Workbook

Sheet INDICE
B1: ÍNDICE
B2: 1. ESTABLECIMIENTOS EDUCATIVOS
B3: 2. SEDES EDUCATIVAS
B4: 3. PROYECCIÓN DE POBLACIÓN - CENSO 2018
B5: 4. MATRÍCULA SECTOR GRADOS NIVEL
B6: 5. MATRÍCULA SECTOR ZONA GRADOS NIVEL
B7: 6. MATRÍCULA SECTOR GENERO NIVEL
B8: 7. TASA DE COBERTURA BRUTA
B9: 8. TASA DE COBERTURA NETA
B10: 9. TASA DESERCIÓN OFICIAL
B11: 10. MATRÍCULA GRUPOS ÉTNICOS
B12: 11.EXTRAEDAD OFICIAL
B13: 12.EXTRAEDAD NO OFICIAL
B14: 13.TASA MATRICULACION 5A16
B15: 14.ESTUDIANTES VENEZOLANOS
B16: 15.TRAYECTORIA GRADO
B17: 16. EFICIENCIA
B18: 17. MATRÍCULA RESIDENCIAS ESCOLARES
B19: 18. POB DISCAPACIDAD HOMOLOGADA
B20: 19. MATRICULA IE-SEDES
B21: 20. EE MAYORITARIA INDIGENA
B22: 21. EE MAYORITARIA NARP

Sheet 1 ESTAB
B1: ESTABLECIMIENTOS EDUCATIVOS
B2: Corte 2025
B3: ENTIDAD
B4: SOLEDAD | C4: SECTOR | D4: 2014 | E4: 2015 | F4: 2016 | G4: 2017 | H4: 2018 | I4: 2019 | J4: 2020 | K4: 2021 | L4: 2022 | M4: 2023 | N4: 2024 | O4: 2025
C5: Oficial | D5: =+SUMIFS($D$200:$D$395,$B$200:$B$395,$B$4,$C$200:$C$395,C5) -> 30 | E5: =+SUMIFS($E$200:$E$395,$B$200:$B$395,$B$4,$C$200:$C$395,C5) -> 30 | F5: =+SUMIFS($F$200:$F$395,$B$200:$B$395,$B$4,$C$200:$C$395,C5) -> 30 | G5: =+SUMIFS($G$200:$G$395,$B$200:$B$395,$B$4,$C$200:$C$395,C5) -> 31 | H5: =+SUMIFS($H$200:$H$395,$B$200:$B$395,$B$4,$C$200:$C$395,C5) -> 31 | I5: =+SUMIFS($I$200:$I$395,$B$200:$B$395,$B$4,$C$200:$C$395,C5) -> 32 | J5: =+SUMIFS($J$200:$J$395,$B$200:$B$395,$B$4,$C$200:$C$395,C5) -> 32 | K5: =+SUMIFS($K$200:$K$395,$B$200:$B$395,$B$4,$C$200:$C$395,C5) -> 32 | L5: =+SUMIFS($L$200:$L$395,$B$200:$B$395,$B$4,$C$200:$C$395,C5) -> 32 | M5: =+SUMIFS($M$200:$M$395,$B$200:$B$395,$B$4,$C$200:$C$395,C5) -> 34 | N5: =+SUMIFS($N$200:$N$395,$B$200:$B$395,$B$4,$C$200:$C$395,C5) -> 34 | O5: =+SUMIFS($O$200:$O$395,$B$200:$B$395,$B$4,$C$200:$C$395,C5) -> 34
C6: No Oficial | D6: =+SUMIFS($D$200:$D$395,$B$200:$B$395,$B$4,$C$200:$C$395,C6) -> 196 | E6: =+SUMIFS($E$200:$E$395,$B$200:$B$395,$B$4,$C$200:$C$395,C6) -> 208 | F6: =+SUMIFS($F$200:$F$395,$B$200:$B$395,$B$4,$C$200:$C$395,C6) -> 216 | G6: =+SUMIFS($G$200:$G$395,$B$200:$B$395,$B$4,$C$200:$C$395,C6) -> 233 | H6: =+SUMIFS($H$200:$H$395,$B$200:$B$395,$B$4,$C$200:$C$395,C6) -> 248 | I6: =+SUMIFS($I$200:$I$395,$B$200:$B$395,$B$4,$C$200:$C$395,C6) -> 256 | J6: =+SUMIFS($J$200:$J$395,$B$200:$B$395,$B$4,$C$200:$C$395,C6) -> 273 | K6: =+SUMIFS($K$200:$K$395,$B$200:$B$395,$B$4,$C$200:$C$395,C6) -> 273 | L6: =+SUMIFS($L$200:$L$395,$B$200:$B$395,$B$4,$C$200:$C$395,C6) -> 291 | M6: =+SUMIFS($M$200:$M$395,$B$200:$B$395,$B$4,$C$200:$C$395,C6) -> 310 | N6: =+SUMIFS($N$200:$N$395,$B$200:$B$395,$B$4,$C$200:$C$395,C6) -> 333 | O6: =+SUMIFS($O$200:$O$395,$B$200:$B$395,$B$4,$C$200:$C$395,C6) -> 346
C7: Total | D7: =SUM(D5:D6) -> 226 | E7: 238 | F7: 246 | G7: 264 | H7: 279 | I7: 288 | J7: 305 | K7: =SUM(K5:K6) -> 305 | L7: 323 | M7: 344 | N7: 367 | O7: 380
C8: FUENTE: SIMAT OAPF
C10: =+B4 -> SOLEDAD
A199: lista | B199: ENTIDAD | C199: Sector | D199: 2014 | E199: 2015 | F199: 2016 | G199: 2017 | H199: 2018 | I199: 2019 | J199: 2020 | K199: =+K4 -> 2021 | L199: =+L4 -> 2022 | M199: 2023 | N199: =+N4 -> 2024 | O199: =+O4 -> 2025
A200: AMAZONAS | B200: AMAZONAS | C200: OFICIAL | D200: 29 | E200: 29 | F200: 29 | G200: 50 | H200: 49 | I200: 56 | J200: 54 | K200: 56 | L200: 55 | M200: 50 | N200: 51 | O200: 51
A201: ANTIOQUIA | B201: AMAZONAS | C201: NO OFICIAL | D201: 26 | E201: 26 | F201: 26 | G201: 5 | H201: 6 | I201: 6 | J201: 5 | K201: 7 | L201: 5 | M201: 5 | N201: 4 | O201: 5
A202: APARTADO | B202: ANTIOQUIA | C202: OFICIAL | D202: 2692 | E202: 618 | F202: 625 | G202: 617 | H202: 607 | I202: 584 | J202: 585 | K202: 577 | L202: 569 | M202: 555 | N202: 553 | O202: 547
A203: ARAUCA | B203: ANTIOQUIA | C203: NO OFICIAL | D203: 218 | E203: 213 | F203: 140 | G203: 139 | H203: 136 | I203: 154 | J203: 155 | K203: 147 | L203: 148 | M203: 128 | N203: 128 | O203: 126
A204: ARMENIA | B204: APARTADO | C204: OFICIAL | D204: 22 | E204: 21 | F204: 21 | G204: 22 | H204: 22 | I204: 21 | J204: 21 | K204: 21 | L204: 21 | M204: 21 | N204: 21 | O204: 21
A205: ATLANTICO | B205: APARTADO | C205: NO OFICIAL | D205: 16 | E205: 12 | F205: 9 | G205: 9 | H205: 10 | I205: 10 | J205: 11 | K205: 12 | L205: 11 | M205: 12 | N205: 12 | O205: 12
A206: BARRANCABERMEJA | B206: ARAUCA | C206: OFICIAL | D206: 68 | E206: 68 | F206: 66 | G206: 66 | H206: 67 | I206: 67 | J206: 67 | K206: 67 | L206: 67 | M206: 67 | N206: 67 | O206: 67
A207: BARRANQUILLA | B207: ARAUCA | C207: NO OFICIAL | D207: 22 | E207: 22 | F207: 23 | G207: 28 | H207: 29 | I207: 34 | J207: 42 | K207: 44 | L207: 48 | M207: 44 | N207: 40 | O207: 41
A208: BELLO | B208: ARMENIA | C208: OFICIAL | D208: 29 | E208: 29 | F208: 29 | G208: 30 | H208: 30 | I208: 30 | J208: 30 | K208: 29 | L208: 29 | M208: 29 | N208: 29 | O208: 29
A209: BOGOTA | B209: ARMENIA | C209: NO OFICIAL | D209: 41 | E209: 42 | F209: 40 | G209: 38 | H209: 37 | I209: 38 | J209: 38 | K209: 37 | L209: 37 | M209: 36 | N209: 36 | O209: 35
A210: BOLIVAR | B210: ATLANTICO | C210: OFICIAL | D210: 76 | E210: 76 | F210: 84 | G210: 85 | H210: 85 | I210: 85 | J210: 85 | K210: 85 | L210: 85 | M210: 85 | N210: 86 | O210: 86
A211: BOYACA | B211: ATLANTICO | C211: NO OFICIAL | D211: 91 | E211: 90 | F211: 93 | G211: 94 | H211: 97 | I211: 102 | J211: 105 | K211: 103 | L211: 106 | M211: 116 | N211: 123 | O211: 123
A212: BUCARAMANGA | B212: BARRANCABERMEJA | C212: OFICIAL | D212: 22 | E212: 21 | F212: 21 | G212: 22 | H212: 22 | I212: 22 | J212: 22 | K212: 22 | L212: 22 | M212: 21 | N212: 21 | O212: 21
A213: BUENAVENTURA | B213: BARRANCABERMEJA | C213: NO OFICIAL | D213: 70 | E213: 72 | F213: 77 | G213: 79 | H213: 82 | I213: 81 | J213: 81 | K213: 81 | L213: 77 | M213: 75 | N213: 80 | O213: 77
A214: BUGA | B214: BARRANQUILLA | C214: OFICIAL | D214: 161 | E214: 160 | F214: 160 | G214: 163 | H214: 162 | I214: 160 | J214: 160 | K214: 160 | L214: 160 | M214: 160 | N214: 159 | O214: 160
A215: CALDAS | B215: BARRANQUILLA | C215: NO OFICIAL | D215: 300 | E215: 314 | F215: 339 | G215: 353 | H215: 346 | I215: 341 | J215: 343 | K215: 344 | L215: 330 | M215: 344 | N215: 343 | O215: 355
A216: CALI | B216: BELLO | C216: OFICIAL | D216: 40 | E216: 39 | F216: 40 | G216: 40 | H216: 40 | I216: 40 | J216: 39 | K216: 39 | L216: 39 | M216: 39 | N216: 39 | O216: 39
A217: CAQUETA | B217: BELLO | C217: NO OFICIAL | D217: 59 | E217: 61 | F217: 60 | G217: 64 | H217: 64 | I217: 66 | J217: 76 | K217: 80 | L217: 83 | M217: 80 | N217: 74 | O217: 74
A218: CARTAGENA | B218: BOGOTA | C218: OFICIAL | D218: 386 | E218: 385 | F218: 386 | G218: 387 | H218: 388 | I218: 394 | J218: 402 | K218: 403 | L218: 405 | M218: 411 | N218: 417 | O218: 417
A219: CARTAGO | B219: BOGOTA | C219: NO OFICIAL | D219: 1852 | E219: 1840 | F219: 1786 | G219: 1775 | H219: 1748 | I219: 1713 | J219: 1700 | K219: 1624 | L219: 1566 | M219: 1515 | N219: 1457 | O219: 1393
A220: CASANARE | B220: BOLIVAR | C220: OFICIAL | D220: 224 | E220: 224 | F220: 224 | G220: 224 | H220: 224 | I220: 225 | J220: 226 | K220: 226 | L220: 226 | M220: 226 | N220: 227 | O220: 227
A221: CAUCA | B221: BOLIVAR | C221: NO OFICIAL | D221: 43 | E221: 57 | F221: 61 | G221: 74 | H221: 79 | I221: 91 | J221: 101 | K221: 97 | L221: 104 | M221: 108 | N221: 118 | O221: 131
A222: CESAR | B222: BOYACA | C222: OFICIAL | D222: 255 | E222: 254 | F222: 254 | G222: 254 | H222: 254 | I222: 255 | J222: 255 | K222: 255 | L222: 256 | M222: 256 | N222: 256 | O222: 256
A223: CHÍA | B223: BOYACA | C223: NO OFICIAL | D223: 96 | E223: 97 | F223: 97 | G223: 107 | H223: 109 | I223: 110 | J223: 111 | K223: 104 | L223: 101 | M223: 100 | N223: 101 | O223: 105
A224: CHOCO | B224: BUCARAMANGA | C224: OFICIAL | D224: 51 | E224: 49 | F224: 48 | G224: 47 | H224: 48 | I224: 47 | J224: 47 | K224: 47 | L224: 47 | M224: 48 | N224: 48 | O224: 48
A225: CIENAGA | B225: BUCARAMANGA | C225: NO OFICIAL | D225: 164 | E225: 168 | F225: 168 | G225: 175 | H225: 177 | I225: 169 | J225: 160 | K225: 154 | L225: 145 | M225: 142 | N225: 144 | O225: 140
A226: CORDOBA | B226: BUENAVENTURA | C226: OFICIAL | D226: 43 | E226: 43 | F226: 43 | G226: 44 | H226: 44 | I226: 44 | J226: 44 | K226: 45 | L226: 45 | M226: 45 | N226: 44 | O226: 45
A227: CUCUTA | B227: BUENAVENTURA | C227: NO OFICIAL | D227: 378 | E227: 388 | F227: 218 | G227: 218 | H227: 215 | I227: 123 | J227: 122 | K227: 124 | L227: 109 | M227: 109 | N227: 108 | O227: 99
A228: CUNDINAMARCA | B228: BUGA | C228: OFICIAL | D228: 14 | E228: 14 | F228: 14 | G228: 14 | H228: 14 | I228: 14 | J228: 14 | K228: 14 | L228: 14 | M228: 14 | N228: 14 | O228: 14
A229: DOSQUEBRADAS | B229: BUGA | C229: NO OFICIAL | D229: 51 | E229: 55 | F229: 52 | G229: 53 | H229: 53 | I229: 53 | J229: 53 | K229: 52 | L229: 52 | M229: 53 | N229: 50 | O229: 47
A230: DUITAMA | B230: CALDAS | C230: OFICIAL | D230: 169 | E230: 168 | F230: 166 | G230: 165 | H230: 165 | I230: 165 | J230: 164 | K230: 163 | L230: 162 | M230: 162 | N230: 161 | O230: 161
A231: ENVIGADO | B231: CALDAS | C231: NO OFICIAL | D231: 45 | E231: 46 | F231: 49 | G231: 46 | H231: 48 | I231: 46 | J231: 50 | K231: 49 | L231: 44 | M231: 46 | N231: 46 | O231: 48
A232: FACATATIVA | B232: CALI | C232: OFICIAL | D232: 93 | E232: 93 | F232: 93 | G232: 95 | H232: 95 | I232: 95 | J232: 96 | K232: 96 | L232: 96 | M232: 96 | N232: 96 | O232: 96
A233: FLORENCIA | B233: CALI | C233: NO OFICIAL | D233: 743 | E233: 715 | F233: 699 | G233: 692 | H233: 682 | I233: 665 | J233: 635 | K233: 630 | L233: 605 | M233: 596 | N233: 583 | O233: 569
A234: FLORIDABLANCA | B234: CAQUETA | C234: OFICIAL | D234: 150 | E234: 150 | F234: 146 | G234: 145 | H234: 144 | I234: 143 | J234: 144 | K234: 144 | L234: 144 | M234: 144 | N234: 144 | O234: 144
A235: FUNZA | B235: CAQUETA | C235: NO OFICIAL | D235: 6 | E235: 5 | F235: 5 | G235: 5 | H235: 4 | I235: 4 | J235: 4 | K235: 4 | L235: 5 | M235: 4 | N235: 6 | O235: 8
A236: FUSAGASUGA | B236: CARTAGENA | C236: OFICIAL | D236: 97 | E236: 97 | F236: 98 | G236: 100 | H236: 101 | I236: 101 | J236: 102 | K236: 102 | L236: 103 | M236: 103 | N236: 104 | O236: 104
A237: GIRARDOT | B237: CARTAGENA | C237: NO OFICIAL | D237: 282 | E237: 281 | F237: 274 | G237: 269 | H237: 259 | I237: 262 | J237: 268 | K237: 271 | L237: 263 | M237: 273 | N237: 276 | O237: 273
A238: GIRON | B238: CARTAGO | C238: OFICIAL | D238: 12 | E238: 12 | F238: 12 | G238: 12 | H238: 12 | I238: 12 | J238: 12 | K238: 12 | L238: 12 | M238: 12 | N238: 12 | O238: 12
A239: GUAINIA | B239: CARTAGO | C239: NO OFICIAL | D239: 30 | E239: 30 | F239: 29 | G239: 27 | H239: 28 | I239: 28 | J239: 27 | K239: 23 | L239: 25 | M239: 25 | N239: 23 | O239: 23
A240: GUAVIARE | B240: CASANARE | C240: OFICIAL | D240: 68 | E240: 69 | F240: 69 | G240: 69 | H240: 69 | I240: 69 | J240: 69 | K240: 69 | L240: 69 | M240: 68 | N240: 69 | O240: 69
A241: HUILA | B241: CASANARE | C241: NO OFICIAL | D241: 19 | E241: 20 | F241: 20 | G241: 21 | H241: 21 | I241: 19 | J241: 19 | K241: 14 | L241: 14 | M241: 17 | N241: 18 | O241: 19
A242: IBAGUE | B242: CAUCA | C242: OFICIAL | D242: 564 | E242: 559 | F242: 556 | G242: 553 | H242: 553 | I242: 553 | J242: 552 | K242: 552 | L242: 553 | M242: 554 | N242: 558 | O242: 557
A243: IPIALES | B243: CAUCA | C243: NO OFICIAL | D243: 59 | E243: 63 | F243: 64 | G243: 66 | H243: 65 | I243: 63 | J243: 63 | K243: 65 | L243: 63 | M243: 63 | N243: 67 | O243: 66
A244: ITAGUI | B244: CESAR | C244: OFICIAL | D244: 186 | E244: 184 | F244: 182 | G244: 181 | H244: 181 | I244: 180 | J244: 180 | K244: 180 | L244: 181 | M244: 180 | N244: 179 | O244: 179
A245: JAMUNDÍ | B245: CESAR | C245: NO OFICIAL | D245: 74 | E245: 75 | F245: 74 | G245: 78 | H245: 86 | I245: 95 | J245: 99 | K245: 96 | L245: 97 | M245: 102 | N245: 106 | O245: 107
A246: LA ESTRELLA | B246: CHÍA | C246: OFICIAL | D246: 12 | E246: 12 | F246: 12 | G246: 12 | H246: 12 | I246: 12 | J246: 12 | K246: 12 | L246: 12 | M246: 12 | N246: 12 | O246: 12
A247: LA GUAJIRA | B247: CHÍA | C247: NO OFICIAL | D247: 70 | E247: 77 | F247: 76 | G247: 79 | H247: 76 | I247: 80 | J247: 81 | K247: 84 | L247: 81 | M247: 84 | N247: 81 | O247: 85
A248: LORICA | B248: CHOCO | C248: OFICIAL | D248: 169 | E248: 165 | F248: 176 | G248: 183 | H248: 183 | I248: 184 | J248: 186 | K248: 189 | L248: 192 | M248: 195 | N248: 199 | O248: 201
A249: MAGANGUE | B249: CHOCO | C249: NO OFICIAL | D249: 2 | E249: 4 | F249: 5 | G249: 5 | H249: 4 | I249: 3 | J249: 3 | K249: 3 | L249: 4 | M249: 4 | N249: 3 | O249: 4
A250: MAGDALENA | B250: CIENAGA | C250: OFICIAL | D250: 25 | E250: 24 | F250: 25 | G250: 25 | H250: 25 | I250: 25 | J250: 25 | K250: 25 | L250: 25 | M250: 25 | N250: 25 | O250: 25
A251: MAICAO | B251: CIENAGA | C251: NO OFICIAL | D251: 34 | E251: 35 | F251: 37 | G251: 37 | H251: 50 | I251: 49 | J251: 49 | K251: 50 | L251: 50 | M251: 49 | N251: 49 | O251: 48
A252: MALAMBO | B252: CORDOBA | C252: OFICIAL | D252: 370 | E252: 368 | F252: 359 | G252: 351 | H252: 335 | I252: 334 | J252: 328 | K252: 327 | L252: 325 | M252: 315 | N252: 315 | O252: 314
A253: MANIZALES | B253: CORDOBA | C253: NO OFICIAL | D253: 84 | E253: 87 | F253: 95 | G253: 96 | H253: 99 | I253: 101 | J253: 101 | K253: 100 | L253: 98 | M253: 97 | N253: 97 | O253: 97
A254: MEDELLIN | B254: CUCUTA | C254: OFICIAL | D254: 59 | E254: 59 | F254: 59 | G254: 59 | H254: 60 | I254: 61 | J254: 61 | K254: 62 | L254: 64 | M254: 64 | N254: 64 | O254: 64
A255: META | B255: CUCUTA | C255: NO OFICIAL | D255: 202 | E255: 194 | F255: 203 | G255: 209 | H255: 210 | I255: 210 | J255: 213 | K255: 209 | L255: 196 | M255: 196 | N255: 196 | O255: 191
A256: MONTERIA | B256: CUNDINAMARCA | C256: OFICIAL | D256: 283 | E256: 283 | F256: 283 | G256: 283 | H256: 281 | I256: 277 | J256: 276 | K256: 277 | L256: 277 | M256: 276 | N256: 276 | O256: 276
A257: MOSQUERA | B257: CUNDINAMARCA | C257: NO OFICIAL | D257: 326 | E257: 340 | F257: 348 | G257: 353 | H257: 359 | I257: 330 | J257: 332 | K257: 325 | L257: 330 | M257: 336 | N257: 342 | O257: 346
A258: NARIÑO | B258: DOSQUEBRADAS | C258: OFICIAL | D258: 20 | E258: 20 | F258: 20 | G258: 20 | H258: 21 | I258: 21 | J258: 21 | K258: 21 | L258: 21 | M258: 21 | N258: 21 | O258: 21
A259: NEIVA | B259: DOSQUEBRADAS | C259: NO OFICIAL | D259: 56 | E259: 59 | F259: 59 | G259: 64 | H259: 73 | I259: 72 | J259: 72 | K259: 66 | L259: 67 | M259: 65 | N259: 65 | O259: 67
A260: NORTE SANTANDER | B260: DUITAMA | C260: OFICIAL | D260: 16 | E260: 14 | F260: 14 | G260: 14 | H260: 14 | I260: 14 | J260: 14 | K260: 14 | L260: 14 | M260: 14 | N260: 14 | O260: 14
A261: PALMIRA | B261: DUITAMA | C261: NO OFICIAL | D261: 49 | E261: 49 | F261: 50 | G261: 52 | H261: 52 | I261: 52 | J261: 50 | K261: 47 | L261: 47 | M261: 47 | N261: 47 | O261: 47
A262: PASTO | B262: ENVIGADO | C262: OFICIAL | D262: 12 | E262: 12 | F262: 13 | G262: 14 | H262: 14 | I262: 14 | J262: 14 | K262: 14 | L262: 14 | M262: 14 | N262: 14 | O262: 14
A263: PEREIRA | B263: ENVIGADO | C263: NO OFICIAL | D263: 54 | E263: 57 | F263: 58 | G263: 59 | H263: 63 | I263: 62 | J263: 62 | K263: 57 | L263: 57 | M263: 57 | N263: 55 | O263: 53
A264: PIEDECUESTA | B264: FACATATIVA | C264: OFICIAL | D264: 11 | E264: 11 | F264: 11 | G264: 11 | H264: 11 | I264: 11 | J264: 11 | K264: 11 | L264: 11 | M264: 11 | N264: 11 | O264: 11
A265: PITALITO | B265: FACATATIVA | C265: NO OFICIAL | D265: 53 | E265: 56 | F265: 61 | G265: 63 | H265: 66 | I265: 69 | J265: 68 | K265: 64 | L265: 63 | M265: 56 | N265: 53 | O265: 53
A266: POPAYAN | B266: FLORENCIA | C266: OFICIAL | D266: 29 | E266: 29 | F266: 31 | G266: 31 | H266: 30 | I266: 30 | J266: 30 | K266: 30 | L266: 30 | M266: 30 | N266: 30 | O266: 30
A267: PUTUMAYO | B267: FLORENCIA | C267: NO OFICIAL | D267: 30 | E267: 32 | F267: 35 | G267: 41 | H267: 41 | I267: 42 | J267: 42 | K267: 44 | L267: 42 | M267: 42 | N267: 42 | O267: 42
A268: QUIBDÓ | B268: FLORIDABLANCA | C268: OFICIAL | D268: 16 | E268: 16 | F268: 16 | G268: 16 | H268: 16 | I268: 16 | J268: 16 | K268: 16 | L268: 16 | M268: 16 | N268: 16 | O268: 16
A269: QUINDIO | B269: FLORIDABLANCA | C269: NO OFICIAL | D269: 103 | E269: 105 | F269: 111 | G269: 101 | H269: 100 | I269: 104 | J269: 96 | K269: 97 | L269: 97 | M269: 94 | N269: 94 | O269: 90
A270: RIOHACHA | B270: FUNZA | C270: OFICIAL | I270: 4 | J270: 4 | K270: 4 | L270: 4 | M270: 4 | N270: 4 | O270: 4
A271: RIONEGRO | B271: FUNZA | C271: NO OFICIAL | I271: 40 | J271: 41 | K271: 42 | L271: 45 | M271: 44 | N271: 45 | O271: 44
A272: RISARALDA | B272: FUSAGASUGA | C272: OFICIAL | D272: 14 | E272: 14 | F272: 14 | G272: 14 | H272: 14 | I272: 13 | J272: 13 | K272: 13 | L272: 13 | M272: 13 | N272: 13 | O272: 13
A273: SABANETA | B273: FUSAGASUGA | C273: NO OFICIAL | D273: 43 | E273: 44 | F273: 46 | G273: 45 | H273: 45 | I273: 47 | J273: 48 | K273: 48 | L273: 46 | M273: 48 | N273: 47 | O273: 49
A274: SAHAGUN | B274: GIRARDOT | C274: OFICIAL | D274: 8 | E274: 8 | F274: 8 | G274: 8 | H274: 8 | I274: 8 | J274: 8 | K274: 8 | L274: 8 | M274: 8 | N274: 8 | O274: 8
A275: SAN_ANDRES | B275: GIRARDOT | C275: NO OFICIAL | D275: 43 | E275: 47 | F275: 49 | G275: 51 | H275: 53 | I275: 51 | J275: 64 | K275: 62 | L275: 61 | M275: 58 | N275: 56 | O275: 53
A276: SANTA MARTA | B276: GIRON | C276: OFICIAL | D276: 13 | E276: 13 | F276: 15 | G276: 15 | H276: 15 | I276: 19 | J276: 20 | K276: 20 | L276: 20 | M276: 20 | N276: 20 | O276: 20
A277: SANTANDER | B277: GIRON | C277: NO OFICIAL | D277: 39 | E277: 38 | F277: 37 | G277: 38 | H277: 37 | I277: 35 | J277: 35 | K277: 29 | L277: 25 | M277: 24 | N277: 25 | O277: 25
A278: SINCELEJO | B278: GUAINIA | C278: OFICIAL | D278: 21 | E278: 21 | F278: 21 | G278: 21 | H278: 21 | I278: 21 | J278: 21 | K278: 21 | L278: 21 | M278: 25 | N278: 25 | O278: 25
A279: SOACHA | B279: GUAINIA | C279: NO OFICIAL | D279: 1 | E279: 1 | F279: 1 | G279: 1 | H279: 1 | I279: 2 | J279: 2 | K279: 2 | L279: 2 | M279: 2 | N279: 2 | O279: 2
A280: SOGAMOSO | B280: GUAVIARE | C280: OFICIAL | D280: 41 | E280: 41 | F280: 43 | G280: 43 | H280: 43 | I280: 43 | J280: 43 | K280: 43 | L280: 43 | M280: 43 | N280: 43 | O280: 43
A281: SOLEDAD | B281: GUAVIARE | C281: NO OFICIAL | D281: 10 | E281: 10 | F281: 13 | G281: 11 | H281: 11 | I281: 13 | J281: 13 | K281: 13 | L281: 12 | M281: 13 | N281: 13 | O281: 13
A282: SUCRE | B282: HUILA | C282: OFICIAL | D282: 188 | E282: 182 | F282: 179 | G282: 178 | H282: 178 | I282: 177 | J282: 177 | K282: 177 | L282: 177 | M282: 176 | N282: 176 | O282: 176
A283: TOLIMA | B283: HUILA | C283: NO OFICIAL | D283: 53 | E283: 50 | F283: 49 | G283: 50 | H283: 50 | I283: 50 | J283: 50 | K283: 47 | L283: 44 | M283: 46 | N283: 46 | O283: 45
A284: TULUA | B284: IBAGUE | C284: OFICIAL | D284: 59 | E284: 58 | F284: 58 | G284: 60 | H284: 60 | I284: 60 | J284: 60 | K284: 60 | L284: 60 | M284: 60 | N284: 60 | O284: 60
A285: TUMACO | B285: IBAGUE | C285: NO OFICIAL | D285: 177 | E285: 174 | F285: 173 | G285: 164 | H285: 165 | I285: 160 | J285: 161 | K285: 149 | L285: 144 | M285: 145 | N285: 143 | O285: 145
A286: TUNJA | B286: IPIALES | C286: OFICIAL | D286: 61 | E286: 62 | F286: 62 | G286: 62 | H286: 62 | I286: 62 | J286: 61 | K286: 61 | L286: 61 | M286: 22 | N286: 22 | O286: 22
A287: TURBO | B287: IPIALES | C287: NO OFICIAL | D287: 27 | E287: 31 | F287: 27 | G287: 33 | H287: 36 | I287: 34 | J287: 35 | K287: 37 | L287: 36 | M287: 39 | N287: 39 | O287: 38
A288: URIBIA | B288: ITAGUI | C288: OFICIAL | D288: 24 | E288: 24 | F288: 24 | G288: 24 | H288: 24 | I288: 24 | J288: 24 | K288: 24 | L288: 24 | M288: 24 | N288: 24 | O288: 24
A289: VALLE | B289: ITAGUI | C289: NO OFICIAL | D289: 49 | E289: 52 | F289: 47 | G289: 50 | H289: 50 | I289: 50 | J289: 51 | K289: 52 | L289: 51 | M289: 50 | N289: 50 | O289: 50
A290: VALLEDUPAR | B290: JAMUNDÍ | C290: OFICIAL | D290: 15 | E290: 15 | F290: 15 | G290: 15 | H290: 15 | I290: 16 | J290: 16 | K290: 16 | L290: 16 | M290: 16 | N290: 17 | O290: 18
A291: VAUPES | B291: JAMUNDÍ | C291: NO OFICIAL | D291: 20 | E291: 28 | F291: 32 | G291: 34 | H291: 33 | I291: 36 | J291: 39 | K291: 43 | L291: 42 | M291: 41 | N291: 40 | O291: 39
A292: VICHADA | B292: LA ESTRELLA | C292: OFICIAL | M292: 4 | N292: 4 | O292: 4
A293: VILLAVICENCIO | B293: LA ESTRELLA | C293: NO OFICIAL | M293: 21 | N293: 21 | O293: 22
A294: YOPAL | B294: LA GUAJIRA | C294: OFICIAL | D294: 85 | E294: 88 | F294: 88 | G294: 90 | H294: 90 | I294: 91 | J294: 91 | K294: 91 | L294: 91 | M294: 97 | N294: 98 | O294: 99
A295: YUMBO | B295: LA GUAJIRA | C295: NO OFICIAL | D295: 25 | E295: 24 | F295: 31 | G295: 40 | H295: 40 | I295: 41 | J295: 42 | K295: 42 | L295: 43 | M295: 49 | N295: 53 | O295: 54
A296: ZIPAQUIRA | B296: LORICA | C296: OFICIAL | D296: 31 | E296: 31 | F296: 31 | G296: 31 | H296: 31 | I296: 31 | J296: 31 | K296: 31 | L296: 31 | M296: 31 | N296: 31 | O296: 31
A297: COLOMBIA | B297: LORICA | C297: NO OFICIAL | D297: 21 | E297: 21 | F297: 18 | G297: 18 | H297: 16 | I297: 18 | J297: 17 | K297: 17 | L297: 18 | M297: 20 | N297: 21 | O297: 21
B298: MAGANGUE | C298: OFICIAL | D298: 20 | E298: 20 | F298: 20 | G298: 20 | H298: 20 | I298: 20 | J298: 20 | K298: 20 | L298: 20 | M298: 20 | N298: 20 | O298: 20
B299: MAGANGUE | C299: NO OFICIAL | D299: 26 | E299: 29 | F299: 27 | G299: 26 | H299: 27 | I299: 25 | J299: 27 | K299: 24 | L299: 27 | M299: 28 | N299: 28 | O299: 26
B300: MAGDALENA | C300: OFICIAL | D300: 156 | E300: 159 | F300: 154 | G300: 154 | H300: 154 | I300: 154 | J300: 153 | K300: 153 | L300: 153 | M300: 153 | N300: 153 | O300: 153
B301: MAGDALENA | C301: NO OFICIAL | D301: 82 | E301: 95 | F301: 113 | G301: 121 | H301: 121 | I301: 117 | J301: 67 | K301: 74 | L301: 74 | M301: 82 | N301: 82 | O301: 81
B302: MAICAO | C302: OFICIAL | D302: 27 | E302: 27 | F302: 27 | G302: 27 | H302: 27 | I302: 27 | J302: 27 | K302: 27 | L302: 27 | M302: 27 | N302: 27 | O302: 28
B303: MAICAO | C303: NO OFICIAL | D303: 17 | E303: 17 | F303: 19 | G303: 18 | H303: 20 | I303: 21 | J303: 21 | K303: 20 | L303: 21 | M303: 25 | N303: 25 | O303: 26
B304: MALAMBO | C304: OFICIAL | D304: 14 | E304: 13 | F304: 13 | G304: 13 | H304: 13 | I304: 13 | J304: 13 | K304: 13 | L304: 13 | M304: 13 | N304: 13 | O304: 13
B305: MALAMBO | C305: NO OFICIAL | D305: 44 | E305: 47 | F305: 48 | G305: 49 | H305: 49 | I305: 53 | J305: 61 | K305: 61 | L305: 60 | M305: 63 | N305: 64 | O305: 66
B306: MANIZALES | C306: OFICIAL | D306: 59 | E306: 56 | F306: 55 | G306: 54 | H306: 56 | I306: 54 | J306: 53 | K306: 53 | L306: 53 | M306: 52 | N306: 51 | O306: 51
B307: MANIZALES | C307: NO OFICIAL | D307: 77 | E307: 76 | F307: 76 | G307: 74 | H307: 71 | I307: 73 | J307: 75 | K307: 70 | L307: 69 | M307: 65 | N307: 62 | O307: 60
B308: MEDELLIN | C308: OFICIAL | D308: 218 | E308: 219 | F308: 230 | G308: 231 | H308: 230 | I308: 231 | J308: 231 | K308: 231 | L308: 231 | M308: 230 | N308: 230 | O308: 230
B309: MEDELLIN | C309: NO OFICIAL | D309: 351 | E309: 360 | F309: 363 | G309: 354 | H309: 345 | I309: 351 | J309: 346 | K309: 330 | L309: 323 | M309: 318 | N309: 306 | O309: 301
B310: META | C310: OFICIAL | D310: 142 | E310: 140 | F310: 141 | G310: 136 | H310: 134 | I310: 134 | J310: 134 | K310: 134 | L310: 135 | M310: 136 | N310: 136 | O310: 133
B311: META | C311: NO OFICIAL | D311: 54 | E311: 56 | F311: 54 | G311: 56 | H311: 59 | I311: 63 | J311: 67 | K311: 69 | L311: 73 | M311: 78 | N311: 82 | O311: 75
B312: MONTERIA | C312: OFICIAL | D312: 60 | E312: 60 | F312: 60 | G312: 60 | H312: 61 | I312: 61 | J312: 61 | K312: 61 | L312: 61 | M312: 64 | N312: 64 | O312: 64
B313: MONTERIA | C313: NO OFICIAL | D313: 83 | E313: 82 | F313: 85 | G313: 85 | H313: 86 | I313: 86 | J313: 86 | K313: 86 | L313: 84 | M313: 81 | N313: 81 | O313: 82
B314: MOSQUERA | C314: OFICIAL | D314: 6 | E314: 8 | F314: 8 | G314: 8 | H314: 8 | I314: 8 | J314: 8 | K314: 8 | L314: 8 | M314: 8 | N314: 8 | O314: 8
B315: MOSQUERA | C315: NO OFICIAL | D315: 38 | E315: 40 | F315: 42 | G315: 41 | H315: 39 | I315: 34 | J315: 33 | K315: 32 | L315: 31 | M315: 33 | N315: 33 | O315: 33
B316: NARIÑO | C316: OFICIAL | D316: 1955 | E316: 1944 | F316: 1909 | G316: 1887 | H316: 1835 | I316: 1820 | J316: 1375 | K316: 606 | L316: 519 | M316: 463 | N316: 442 | O316: 440
B317: NARIÑO | C317: NO OFICIAL | D317: 13 | E317: 13 | F317: 16 | G317: 18 | H317: 18 | I317: 17 | J317: 18 | K317: 16 | L317: 19 | M317: 20 | N317: 21 | O317: 20
B318: NEIVA | C318: OFICIAL | D318: 37 | E318: 37 | F318: 37 | G318: 37 | H318: 37 | I318: 37 | J318: 37 | K318: 37 | L318: 37 | M318: 37 | N318: 37 | O318: 37
B319: NEIVA | C319: NO OFICIAL | D319: 108 | E319: 120 | F319: 127 | G319: 131 | H319: 133 | I319: 137 | J319: 134 | K319: 128 | L319: 129 | M319: 129 | N319: 130 | O319: 130
B320: NORTE SANTANDER | C320: OFICIAL | D320: 218 | E320: 219 | F320: 216 | G320: 211 | H320: 211 | I320: 209 | J320: 211 | K320: 211 | L320: 214 | M320: 216 | N320: 216 | O320: 217
B321: NORTE SANTANDER | C321: NO OFICIAL | D321: 77 | E321: 82 | F321: 77 | G321: 80 | H321: 85 | I321: 80 | J321: 79 | K321: 77 | L321: 84 | M321: 85 | N321: 87 | O321: 88
B322: PALMIRA | C322: OFICIAL | D322: 27 | E322: 27 | F322: 27 | G322: 27 | H322: 27 | I322: 27 | J322: 27 | K322: 27 | L322: 27 | M322: 27 | N322: 27 | O322: 27
B323: PALMIRA | C323: NO OFICIAL | D323: 97 | E323: 104 | F323: 116 | G323: 116 | H323: 114 | I323: 111 | J323: 107 | K323: 102 | L323: 105 | M323: 105 | N323: 103 | O323: 102
B324: PASTO | C324: OFICIAL | D324: 51 | E324: 51 | F324: 50 | G324: 50 | H324: 49 | I324: 50 | J324: 50 | K324: 49 | L324: 49 | M324: 49 | N324: 48 | O324: 48
B325: PASTO | C325: NO OFICIAL | D325: 93 | E325: 92 | F325: 94 | G325: 99 | H325: 104 | I325: 107 | J325: 115 | K325: 111 | L325: 113 | M325: 115 | N325: 116 | O325: 116
B326: PEREIRA | C326: OFICIAL | D326: 72 | E326: 72 | F326: 72 | G326: 73 | H326: 73 | I326: 72 | J326: 71 | K326: 71 | L326: 71 | M326: 71 | N326: 69 | O326: 69
B327: PEREIRA | C327: NO OFICIAL | D327: 122 | E327: 127 | F327: 129 | G327: 137 | H327: 144 | I327: 152 | J327: 154 | K327: 139 | L327: 142 | M327: 147 | N327: 150 | O327: 149
B328: PIEDECUESTA | C328: OFICIAL | D328: 17 | E328: 17 | F328: 17 | G328: 17 | H328: 17 | I328: 17 | J328: 17 | K328: 17 | L328: 17 | M328: 18 | N328: 18 | O328: 18
B329: PIEDECUESTA | C329: NO OFICIAL | D329: 40 | E329: 41 | F329: 46 | G329: 44 | H329: 44 | I329: 43 | J329: 45 | K329: 42 | L329: 43 | M329: 43 | N329: 43 | O329: 43
B330: PITALITO | C330: OFICIAL | D330: 16 | E330: 16 | F330: 16 | G330: 16 | H330: 16 | I330: 16 | J330: 16 | K330: 16 | L330: 16 | M330: 16 | N330: 16 | O330: 16
B331: PITALITO | C331: NO OFICIAL | D331: 25 | E331: 26 | F331: 29 | G331: 31 | H331: 31 | I331: 32 | J331: 33 | K331: 32 | L331: 32 | M331: 32 | N331: 30 | O331: 29
B332: POPAYAN | C332: OFICIAL | D332: 40 | E332: 40 | F332: 40 | G332: 40 | H332: 40 | I332: 40 | J332: 40 | K332: 40 | L332: 43 | M332: 44 | N332: 44 | O332: 44
B333: POPAYAN | C333: NO OFICIAL | D333: 63 | E333: 73 | F333: 83 | G333: 105 | H333: 104 | I333: 112 | J333: 114 | K333: 114 | L333: 109 | M333: 120 | N333: 119 | O333: 120
B334: PUTUMAYO | C334: OFICIAL | D334: 158 | E334: 148 | F334: 148 | G334: 149 | H334: 148 | I334: 148 | J334: 149 | K334: 149 | L334: 147 | M334: 147 | N334: 147 | O334: 147
B335: PUTUMAYO | C335: NO OFICIAL | D335: 23 | E335: 23 | F335: 22 | G335: 25 | H335: 26 | I335: 26 | J335: 27 | K335: 28 | L335: 28 | M335: 29 | N335: 29 | O335: 29
B336: QUIBDÓ | C336: OFICIAL | D336: 25 | E336: 25 | F336: 24 | G336: 24 | H336: 24 | I336: 24 | J336: 24 | K336: 24 | L336: 24 | M336: 24 | N336: 25 | O336: 25
B337: QUIBDÓ | C337: NO OFICIAL | D337: 14 | E337: 12 | F337: 16 | G337: 11 | H337: 15 | I337: 15 | J337: 13 | K337: 15 | L337: 15 | M337: 18 | N337: 21 | O337: 20
B338: QUINDIO | C338: OFICIAL | D338: 55 | E338: 54 | F338: 54 | G338: 54 | H338: 54 | I338: 54 | J338: 54 | K338: 54 | L338: 54 | M338: 54 | N338: 54 | O338: 54
B339: QUINDIO | C339: NO OFICIAL | D339: 16 | E339: 15 | F339: 14 | G339: 15 | H339: 14 | I339: 16 | J339: 16 | K339: 17 | L339: 17 | M339: 17 | N339: 19 | O339: 16
B340: RIOHACHA | C340: OFICIAL | D340: 37 | E340: 38 | F340: 38 | G340: 38 | H340: 38 | I340: 40 | J340: 40 | K340: 41 | L340: 41 | M340: 43 | N340: 50 | O340: 50
B341: RIOHACHA | C341: NO OFICIAL | D341: 42 | E341: 42 | F341: 43 | G341: 52 | H341: 59 | I341: 62 | J341: 64 | K341: 63 | L341: 64 | M341: 71 | N341: 71 | O341: 73
B342: RIONEGRO | C342: OFICIAL | D342: 16 | E342: 16 | F342: 16 | G342: 16 | H342: 16 | I342: 16 | J342: 16 | K342: 16 | L342: 16 | M342: 16 | N342: 16 | O342: 17
B343: RIONEGRO | C343: NO OFICIAL | D343: 21 | E343: 20 | F343: 19 | G343: 20 | H343: 20 | I343: 20 | J343: 22 | K343: 21 | L343: 22 | M343: 23 | N343: 23 | O343: 23
B344: RISARALDA | C344: OFICIAL | D344: 96 | E344: 89 | F344: 79 | G344: 71 | H344: 70 | I344: 69 | J344: 70 | K344: 70 | L344: 69 | M344: 68 | N344: 69 | O344: 68
B345: RISARALDA | C345: NO OFICIAL | D345: 11 | E345: 12 | F345: 14 | G345: 14 | H345: 16 | I345: 16 | J345: 16 | K345: 15 | L345: 15 | M345: 15 | N345: 16 | O345: 16
B346: SABANETA | C346: OFICIAL | D346: 8 | E346: 8 | F346: 8 | G346: 8 | H346: 8 | I346: 8 | J346: 8 | K346: 8 | L346: 8 | M346: 8 | N346: 8 | O346: 8
B347: SABANETA | C347: NO OFICIAL | D347: 20 | E347: 22 | F347: 22 | G347: 21 | H347: 21 | I347: 24 | J347: 26 | K347: 32 | L347: 33 | M347: 36 | N347: 34 | O347: 34
B348: SAHAGUN | C348: OFICIAL | D348: 28 | E348: 27 | F348: 27 | G348: 27 | H348: 27 | I348: 27 | J348: 26 | K348: 26 | L348: 26 | M348: 24 | N348: 23 | O348: 20
B349: SAHAGUN | C349: NO OFICIAL | D349: 7 | E349: 7 | F349: 6 | G349: 6 | H349: 6 | I349: 6 | J349: 7 | K349: 7 | L349: 7 | M349: 7 | N349: 6 | O349: 6
B350: SAN_ANDRES | C350: OFICIAL | D350: 12 | E350: 11 | F350: 11 | G350: 11 | H350: 11 | I350: 11 | J350: 11 | K350: 11 | L350: 11 | M350: 11 | N350: 11 | O350: 11
B351: SAN_ANDRES | C351: NO OFICIAL | D351: 9 | E351: 11 | F351: 10 | G351: 10 | H351: 10 | I351: 10 | J351: 10 | K351: 9 | L351: 9 | M351: 9 | N351: 9 | O351: 9
B352: SANTA MARTA | C352: OFICIAL | D352: 73 | E352: 72 | F352: 72 | G352: 72 | H352: 74 | I352: 75 | J352: 75 | K352: 75 | L352: 76 | M352: 75 | N352: 75 | O352: 75
B353: SANTA MARTA | C353: NO OFICIAL | D353: 184 | E353: 182 | F353: 198 | G353: 206 | H353: 208 | I353: 212 | J353: 218 | K353: 218 | L353: 216 | M353: 220 | N353: 226 | O353: 235
B354: SANTANDER | C354: OFICIAL | D354: 278 | E354: 276 | F354: 276 | G354: 275 | H354: 274 | I354: 274 | J354: 272 | K354: 274 | L354: 274 | M354: 275 | N354: 275 | O354: 275
B355: SANTANDER | C355: NO OFICIAL | D355: 155 | E355: 154 | F355: 162 | G355: 165 | H355: 161 | I355: 167 | J355: 166 | K355: 171 | L355: 169 | M355: 167 | N355: 162 | O355: 99
B356: SINCELEJO | C356: OFICIAL | D356: 35 | E356: 35 | F356: 35 | G356: 36 | H356: 36 | I356: 36 | J356: 36 | K356: 36 | L356: 36 | M356: 36 | N356: 36 | O356: 36
B357: SINCELEJO | C357: NO OFICIAL | D357: 68 | E357: 69 | F357: 70 | G357: 71 | H357: 72 | I357: 70 | J357: 70 | K357: 70 | L357: 67 | M357: 65 | N357: 66 | O357: 67
B358: SOACHA | C358: OFICIAL | D358: 22 | E358: 22 | F358: 22 | G358: 22 | H358: 22 | I358: 24 | J358: 26 | K358: 28 | L358: 28 | M358: 30 | N358: 30 | O358: 30
B359: SOACHA | C359: NO OFICIAL | D359: 138 | E359: 146 | F359: 155 | G359: 172 | H359: 182 | I359: 194 | J359: 199 | K359: 199 | L359: 201 | M359: 193 | N359: 190 | O359: 189
B360: SOGAMOSO | C360: OFICIAL | D360: 16 | E360: 16 | F360: 16 | G360: 16 | H360: 16 | I360: 16 | J360: 16 | K360: 16 | L360: 16 | M360: 16 | N360: 16 | O360: 16
B361: SOGAMOSO | C361: NO OFICIAL | D361: 42 | E361: 47 | F361: 47 | G361: 45 | H361: 49 | I361: 50 | J361: 50 | K361: 49 | L361: 46 | M361: 47 | N361: 44 | O361: 44
B362: SOLEDAD | C362: OFICIAL | D362: 30 | E362: 30 | F362: 30 | G362: 31 | H362: 31 | I362: 32 | J362: 32 | K362: 32 | L362: 32 | M362: 34 | N362: 34 | O362: 34
B363: SOLEDAD | C363: NO OFICIAL | D363: 196 | E363: 208 | F363: 216 | G363: 233 | H363: 248 | I363: 256 | J363: 273 | K363: 273 | L363: 291 | M363: 310 | N363: 333 | O363: 346
B364: SUCRE | C364: OFICIAL | D364: 268 | E364: 268 | F364: 268 | G364: 269 | H364: 268 | I364: 267 | J364: 267 | K364: 268 | L364: 267 | M364: 267 | N364: 261 | O364: 259
B365: SUCRE | C365: NO OFICIAL | D365: 61 | E365: 63 | F365: 62 | G365: 68 | H365: 69 | I365: 71 | J365: 71 | K365: 69 | L365: 76 | M365: 81 | N365: 78 | O365: 79
B366: TOLIMA | C366: OFICIAL | D366: 213 | E366: 213 | F366: 213 | G366: 213 | H366: 213 | I366: 212 | J366: 212 | K366: 212 | L366: 212 | M366: 212 | N366: 212 | O366: 213
B367: TOLIMA | C367: NO OFICIAL | D367: 125 | E367: 125 | F367: 125 | G367: 133 | H367: 136 | I367: 138 | J367: 144 | K367: 144 | L367: 147 | M367: 153 | N367: 153 | O367: 156
B368: TULUA | C368: OFICIAL | D368: 18 | E368: 18 | F368: 18 | G368: 18 | H368: 18 | I368: 18 | J368: 18 | K368: 18 | L368: 18 | M368: 18 | N368: 18 | O368: 18
B369: TULUA | C369: NO OFICIAL | D369: 53 | E369: 52 | F369: 48 | G369: 48 | H369: 47 | I369: 46 | J369: 46 | K369: 45 | L369: 43 | M369: 42 | N369: 40 | O369: 38
B370: TUMACO | C370: OFICIAL | D370: 66 | E370: 66 | F370: 66 | G370: 66 | H370: 66 | I370: 66 | J370: 66 | K370: 66 | L370: 66 | M370: 66 | N370: 66 | O370: 66
B371: TUMACO | C371: NO OFICIAL | D371: 11 | E371: 14 | F371: 19 | G371: 22 | H371: 20 | I371: 25 | J371: 26 | K371: 28 | L371: 29 | M371: 31 | N371: 31 | O371: 33
B372: TUNJA | C372: OFICIAL | D372: 14 | E372: 14 | F372: 14 | G372: 14 | H372: 14 | I372: 14 | J372: 14 | K372: 14 | L372: 14 | M372: 14 | N372: 14 | O372: 14
B373: TUNJA | C373: NO OFICIAL | D373: 92 | E373: 99 | F373: 99 | G373: 109 | H373: 112 | I373: 113 | J373: 113 | K373: 108 | L373: 109 | M373: 107 | N373: 113 | O373: 108
B374: TURBO | C374: OFICIAL | D374: 39 | E374: 39 | F374: 39 | G374: 38 | H374: 39 | I374: 38 | J374: 38 | K374: 36 | L374: 36 | M374: 37 | N374: 37 | O374: 37
B375: TURBO | C375: NO OFICIAL | D375: 13 | E375: 12 | F375: 12 | G375: 14 | H375: 15 | I375: 16 | J375: 16 | K375: 17 | L375: 19 | M375: 20 | N375: 20 | O375: 18
B376: URIBIA | C376: OFICIAL | D376: 22 | E376: 22 | F376: 22 | G376: 22 | H376: 25 | I376: 25 | J376: 30 | K376: 37 | L376: 37 | M376: 38 | N376: 39 | O376: 43
B377: URIBIA | C377: NO OFICIAL | D377: 1 | E377: 1 | F377: 1 | G377: 1 | H377: 1 | I377: 1 | J377: 1 | K377: 1 | L377: 1 | M377: 1 | N377: 1 | O377: 3
B378: VALLE | C378: OFICIAL | D378: 152 | E378: 152 | F378: 149 | G378: 149 | H378: 149 | I378: 149 | J378: 149 | K378: 149 | L378: 150 | M378: 149 | N378: 149 | O378: 148
B379: VALLE | C379: NO OFICIAL | D379: 104 | E379: 120 | F379: 118 | G379: 114 | H379: 123 | I379: 125 | J379: 130 | K379: 127 | L379: 120 | M379: 119 | N379: 122 | O379: 126
B380: VALLEDUPAR | C380: OFICIAL | D380: 42 | E380: 42 | F380: 43 | G380: 44 | H380: 48 | I380: 47 | J380: 47 | K380: 48 | L380: 48 | M380: 47 | N380: 48 | O380: 47
B381: VALLEDUPAR | C381: NO OFICIAL | D381: 140 | E381: 148 | F381: 151 | G381: 158 | H381: 169 | I381: 182 | J381: 186 | K381: 186 | L381: 199 | M381: 200 | N381: 205 | O381: 202
B382: VAUPES | C382: OFICIAL | D382: 16 | E382: 16 | F382: 16 | G382: 16 | H382: 15 | I382: 16 | J382: 16 | K382: 16 | L382: 16 | M382: 17 | N382: 17 | O382: 17
B383: VAUPES | C383: NO OFICIAL | D383: 1 | E383: 1 | F383: 1 | G383: 1 | H383: 1 | I383: 1 | J383: 4 | K383: 3 | L383: 3 | M383: 3 | N383: 3 | O383: 3
B384: VICHADA | C384: OFICIAL | D384: 47 | E384: 46 | F384: 48 | G384: 50 | H384: 52 | I384: 52 | J384: 54 | K384: 56 | L384: 59 | M384: 59 | N384: 60 | O384: 60
B385: VICHADA | C385: NO OFICIAL | D385: 2 | E385: 2 | F385: 2 | G385: 2 | H385: 3 | I385: 3 | J385: 3 | K385: 4 | L385: 4 | M385: 5 | N385: 6 | O385: 6
B386: VILLAVICENCIO | C386: OFICIAL | D386: 50 | E386: 50 | F386: 57 | G386: 59 | H386: 62 | I386: 62 | J386: 59 | K386: 60 | L386: 61 | M386: 55 | N386: 55 | O386: 55
B387: VILLAVICENCIO | C387: NO OFICIAL | D387: 165 | E387: 171 | F387: 181 | G387: 195 | H387: 190 | I387: 193 | J387: 188 | K387: 185 | L387: 186 | M387: 190 | N387: 192 | O387: 197
B388: YOPAL | C388: OFICIAL | D388: 24 | E388: 24 | F388: 25 | G388: 25 | H388: 25 | I388: 25 | J388: 25 | K388: 25 | L388: 25 | M388: 25 | N388: 25 | O388: 25
B389: YOPAL | C389: NO OFICIAL | D389: 41 | E389: 46 | F389: 50 | G389: 53 | H389: 51 | I389: 50 | J389: 51 | K389: 48 | L389: 48 | M389: 45 | N389: 46 | O389: 48
... 8 more rows

Sheet 2 SEDES
B1: SEDES EDUCATIVAS | S1: Indice
B2: =+'1 ESTAB'!B2 -> Corte 2025
B3: ENTIDAD
B4: COLOMBIA | C4: SECTOR | D4: 2014 | E4: 2015 | F4: 2016 | G4: 2017 | H4: 2018 | I4: 2019 | J4: 2020 | K4: =+'1 ESTAB'!K4 -> 2021 | L4: =+'1 ESTAB'!L4 -> 2022 | M4: =+'1 ESTAB'!M4 -> 2023 | N4: 2024 | O4: =+'1 ESTAB'!O4 -> 2025 | Q4: TOTAL SEDES 2026
C5: Oficial Urbana | D5: =+SUMIFS($D$200:$D$591,$B$200:$B$591,$B$4,$C$200:$C$591,C5) -> 8781 | E5: =+SUMIFS($E$200:$E$591,$B$200:$B$591,$B$4,$C$200:$C$591,C5) -> 8731 | F5: =+SUMIFS($F$200:$F$591,$B$200:$B$591,$B$4,$C$200:$C$591,C5) -> 8767 | G5: =+SUMIFS($G$200:$G$591,$B$200:$B$591,$B$4,$C$200:$C$591,C5) -> 8704 | H5: =+SUMIFS($H$200:$H$591,$B$200:$B$591,$B$4,$C$200:$C$591,C5) -> 8622 | I5: =+SUMIFS($I$200:$I$591,$B$200:$B$591,$B$4,$C$200:$C$591,C5) -> 8573 | J5: =+SUMIFS($J$200:$J$591,$B$200:$B$591,$B$4,$C$200:$C$591,C5) -> 8567 | K5: =+SUMIFS($K$200:$K$591,$B$200:$B$591,$B$4,$C$200:$C$591,C5) -> 8526 | L5: =+SUMIFS($L$200:$L$591,$B$200:$B$591,$B$4,$C$200:$C$591,C5) -> 8523 | M5: =+SUMIFS($M$200:$M$591,$B$200:$B$591,$B$4,$C$200:$C$591,C5) -> 8505 | N5: =+SUMIFS($N$200:$N$591,$B$200:$B$591,$B$4,$C$200:$C$591,C5) -> 8511 | O5: =+SUMIFS($O$200:$O$591,$B$200:$B$591,$B$4,$C$200:$C$591,C5) -> 8488 | Q5: OFICIALES | R5: NO OFICIALES | S5: TOTAL
C6: Oficial Rural | D6: =+SUMIFS($D$200:$D$591,$B$200:$B$591,$B$4,$C$200:$C$591,C6) -> 34383 | E6: =+SUMIFS($E$200:$E$591,$B$200:$B$591,$B$4,$C$200:$C$591,C6) -> 34436 | F6: =+SUMIFS($F$200:$F$591,$B$200:$B$591,$B$4,$C$200:$C$591,C6) -> 34713 | G6: =+SUMIFS($G$200:$G$591,$B$200:$B$591,$B$4,$C$200:$C$591,C6) -> 35329 | H6: =+SUMIFS($H$200:$H$591,$B$200:$B$591,$B$4,$C$200:$C$591,C6) -> 35384 | I6: =+SUMIFS($I$200:$I$591,$B$200:$B$591,$B$4,$C$200:$C$591,C6) -> 35383 | J6: =+SUMIFS($J$200:$J$591,$B$200:$B$591,$B$4,$C$200:$C$591,C6) -> 35286 | K6: =+SUMIFS($K$200:$K$591,$B$200:$B$591,$B$4,$C$200:$C$591,C6) -> 35346 | L6: =+SUMIFS($L$200:$L$591,$B$200:$B$591,$B$4,$C$200:$C$591,C6) -> 35298 | M6: =+SUMIFS($M$200:$M$591,$B$200:$B$591,$B$4,$C$200:$C$591,C6) -> 35209 | N6: =+SUMIFS($N$200:$N$591,$B$200:$B$591,$B$4,$C$200:$C$591,C6) -> 35111 | O6: =+SUMIFS($O$200:$O$591,$B$200:$B$591,$B$4,$C$200:$C$591,C6) -> 35044 | Q6: =SUM(O5:O6) -> 43532 | R6: =SUM(O7:O8) -> 9473 | S6: =SUM(Q6:R6) -> 53005
C7: No oficial Urbana | D7: =+SUMIFS($D$200:$D$591,$B$200:$B$591,$B$4,$C$200:$C$591,C7) -> 9023 | E7: =+SUMIFS($E$200:$E$591,$B$200:$B$591,$B$4,$C$200:$C$591,C7) -> 9215 | F7: =+SUMIFS($F$200:$F$591,$B$200:$B$591,$B$4,$C$200:$C$591,C7) -> 9114 | G7: =+SUMIFS($G$200:$G$591,$B$200:$B$591,$B$4,$C$200:$C$591,C7) -> 9306 | H7: =+SUMIFS($H$200:$H$591,$B$200:$B$591,$B$4,$C$200:$C$591,C7) -> 9354 | I7: =+SUMIFS($I$200:$I$591,$B$200:$B$591,$B$4,$C$200:$C$591,C7) -> 9321 | J7: =+SUMIFS($J$200:$J$591,$B$200:$B$591,$B$4,$C$200:$C$591,C7) -> 9353 | K7: =+SUMIFS($K$200:$K$591,$B$200:$B$591,$B$4,$C$200:$C$591,C7) -> 9148 | L7: =+SUMIFS($L$200:$L$591,$B$200:$B$591,$B$4,$C$200:$C$591,C7) -> 9037 | M7: =+SUMIFS($M$200:$M$591,$B$200:$B$591,$B$4,$C$200:$C$591,C7) -> 9076 | N7: =+SUMIFS($N$200:$N$591,$B$200:$B$591,$B$4,$C$200:$C$591,C7) -> 9055 | O7: 8985
C8: No oficial Rural | D8: =+SUMIFS($D$200:$D$591,$B$200:$B$591,$B$4,$C$200:$C$591,C8) -> 508 | E8: =+SUMIFS($E$200:$E$591,$B$200:$B$591,$B$4,$C$200:$C$591,C8) -> 504 | F8: =+SUMIFS($F$200:$F$591,$B$200:$B$591,$B$4,$C$200:$C$591,C8) -> 466 | G8: =+SUMIFS($G$200:$G$591,$B$200:$B$591,$B$4,$C$200:$C$591,C8) -> 467 | H8: =+SUMIFS($H$200:$H$591,$B$200:$B$591,$B$4,$C$200:$C$591,C8) -> 489 | I8: =+SUMIFS($I$200:$I$591,$B$200:$B$591,$B$4,$C$200:$C$591,C8) -> 519 | J8: =+SUMIFS($J$200:$J$591,$B$200:$B$591,$B$4,$C$200:$C$591,C8) -> 513 | K8: =+SUMIFS($K$200:$K$591,$B$200:$B$591,$B$4,$C$200:$C$591,C8) -> 519 | L8: =+SUMIFS($L$200:$L$591,$B$200:$B$591,$B$4,$C$200:$C$591,C8) -> 519 | M8: =+SUMIFS($M$200:$M$591,$B$200:$B$591,$B$4,$C$200:$C$591,C8) -> 537 | N8: =+SUMIFS($N$200:$N$591,$B$200:$B$591,$B$4,$C$200:$C$591,C8) -> 538 | O8: 488
C9: Total | D9: =SUM(D5:D8) -> 52695 | E9: 52886 | F9: 53060 | G9: 53806 | H9: 53849 | I9: 53796 | J9: 53719 | K9: =SUM(K5:K8) -> 53539 | L9: 53377 | M9: 53327 | N9: 53215 | O9: 53005
C10: FUENTE: SIMAT OAPF
C12: =+B4 -> COLOMBIA
A199: lista | B199: Entidad | C199: Sector Zona | D199: 2014 | E199: 2015 | F199: 2016 | G199: 2017 | H199: 2018 | I199: 2019 | J199: 2020 | K199: 2021 | L199: =+L4 -> 2022 | M199: 2023 | N199: 2024 | O199: =+O4 -> 2025
A200: AMAZONAS | B200: AMAZONAS | C200: Oficial Urbana | D200: 13 | E200: 13 | F200: 13 | G200: 14 | H200: 14 | I200: 13 | J200: 12 | K200: 13 | L200: 13 | M200: 13 | N200: 13 | O200: 13 | P200: AMAZONAS
A201: ANTIOQUIA | B201: AMAZONAS | C201: Oficial Rural | D201: 97 | E201: 97 | F201: 96 | G201: 116 | H201: 114 | I201: 118 | J201: 116 | K201: 118 | L201: 117 | M201: 116 | N201: 117 | O201: 117
A202: APARTADO | B202: AMAZONAS | C202: No oficial Urbana | D202: 5 | E202: 5 | F202: 6 | G202: 5 | H202: 6 | I202: 6 | J202: 5 | K202: 7 | L202: 5 | M202: 5 | N202: 4 | O202: 5
A203: ARAUCA | B203: AMAZONAS | C203: No oficial Rural | D203: 21 | E203: 21 | F203: 20 | G203: 0 | H203: 0 | I203: 0 | J203: 0 | K203: 0 | L203: 0 | M203: 0 | N203: 0 | O203: 0
A204: ARMENIA | B204: ANTIOQUIA | C204: Oficial Urbana | D204: 425 | E204: 428 | F204: 415 | G204: 417 | H204: 410 | I204: 406 | J204: 405 | K204: 401 | L204: 411 | M204: 407 | N204: 411 | O204: 410
A205: ATLANTICO | B205: ANTIOQUIA | C205: Oficial Rural | D205: 3577 | E205: 3571 | F205: 3745 | G205: 3798 | H205: 3829 | I205: 3852 | J205: 3855 | K205: 3848 | L205: 3839 | M205: 3848 | N205: 3834 | O205: 3819
A206: BARRANCABERMEJA | B206: ANTIOQUIA | C206: No oficial Urbana | D206: 148 | E206: 161 | F206: 122 | G206: 121 | H206: 119 | I206: 134 | J206: 134 | K206: 127 | L206: 128 | M206: 107 | N206: 105 | O206: 103
A207: BARRANQUILLA | B207: ANTIOQUIA | C207: No oficial Rural | D207: 48 | E207: 52 | F207: 18 | G207: 18 | H207: 17 | I207: 20 | J207: 21 | K207: 20 | L207: 20 | M207: 21 | N207: 23 | O207: 23
A208: BELLO | B208: APARTADO | C208: Oficial Urbana | D208: 15 | E208: 17 | F208: 17 | G208: 17 | H208: 18 | I208: 18 | J208: 18 | K208: 18 | L208: 17 | M208: 17 | N208: 17 | O208: 17
A209: BOGOTA | B209: APARTADO | C209: Oficial Rural | D209: 43 | E209: 47 | F209: 47 | G209: 47 | H209: 46 | I209: 47 | J209: 47 | K209: 47 | L209: 48 | M209: 49 | N209: 49 | O209: 49
A210: BOLIVAR | B210: APARTADO | C210: No oficial Urbana | D210: 15 | E210: 11 | F210: 8 | G210: 8 | H210: 9 | I210: 9 | J210: 10 | K210: 11 | L210: 10 | M210: 11 | N210: 11 | O210: 11
A211: BOYACA | B211: APARTADO | C211: No oficial Rural | D211: 1 | E211: 1 | F211: 1 | G211: 1 | H211: 1 | I211: 1 | J211: 1 | K211: 1 | L211: 1 | M211: 1 | N211: 1 | O211: 1
A212: BUCARAMANGA | B212: ARAUCA | C212: Oficial Urbana | D212: 78 | E212: 77 | F212: 77 | G212: 76 | H212: 76 | I212: 76 | J212: 76 | K212: 75 | L212: 75 | M212: 75 | N212: 75 | O212: 75
A213: BUENAVENTURA | B213: ARAUCA | C213: Oficial Rural | D213: 391 | E213: 397 | F213: 398 | G213: 393 | H213: 393 | I213: 395 | J213: 395 | K213: 397 | L213: 397 | M213: 399 | N213: 404 | O213: 405
A214: BUGA | B214: ARAUCA | C214: No oficial Urbana | D214: 21 | E214: 21 | F214: 22 | G214: 27 | H214: 28 | I214: 30 | J214: 38 | K214: 40 | L214: 44 | M214: 40 | N214: 36 | O214: 37
A215: CALDAS | B215: ARAUCA | C215: No oficial Rural | D215: 1 | E215: 1 | F215: 1 | G215: 1 | H215: 1 | I215: 4 | J215: 4 | K215: 4 | L215: 4 | M215: 4 | N215: 4 | O215: 4
A216: CALI | B216: ARMENIA | C216: Oficial Urbana | D216: 56 | E216: 55 | F216: 55 | G216: 56 | H216: 56 | I216: 56 | J216: 56 | K216: 56 | L216: 55 | M216: 55 | N216: 55 | O216: 55
A217: CAQUETA | B217: ARMENIA | C217: Oficial Rural | D217: 16 | E217: 16 | F217: 15 | G217: 16 | H217: 16 | I217: 16 | J217: 16 | K217: 16 | L217: 16 | M217: 16 | N217: 16 | O217: 16
A218: CARTAGENA | B218: ARMENIA | C218: No oficial Urbana | D218: 35 | E218: 37 | F218: 35 | G218: 33 | H218: 32 | I218: 32 | J218: 32 | K218: 31 | L218: 31 | M218: 30 | N218: 30 | O218: 29
A219: CARTAGO | B219: ARMENIA | C219: No oficial Rural | D219: 4 | E219: 5 | F219: 5 | G219: 5 | H219: 5 | I219: 6 | J219: 6 | K219: 6 | L219: 6 | M219: 6 | N219: 6 | O219: 6
A220: CASANARE | B220: ATLANTICO | C220: Oficial Urbana | D220: 130 | E220: 129 | F220: 130 | G220: 129 | H220: 128 | I220: 126 | J220: 121 | K220: 119 | L220: 119 | M220: 118 | N220: 118 | O220: 116
A221: CAUCA | B221: ATLANTICO | C221: Oficial Rural | D221: 75 | E221: 75 | F221: 75 | G221: 77 | H221: 76 | I221: 76 | J221: 76 | K221: 81 | L221: 89 | M221: 86 | N221: 87 | O221: 88
A222: CESAR | B222: ATLANTICO | C222: No oficial Urbana | D222: 90 | E222: 89 | F222: 92 | G222: 93 | H222: 95 | I222: 100 | J222: 103 | K222: 101 | L222: 104 | M222: 114 | N222: 121 | O222: 121
A223: CHÍA | B223: ATLANTICO | C223: No oficial Rural | D223: 1 | E223: 1 | F223: 1 | G223: 1 | H223: 2 | I223: 2 | J223: 2 | K223: 2 | L223: 2 | M223: 2 | N223: 2 | O223: 2
A224: CHOCO | B224: BARRANCABERMEJA | C224: Oficial Urbana | D224: 54 | E224: 55 | F224: 53 | G224: 54 | H224: 54 | I224: 54 | J224: 54 | K224: 54 | L224: 54 | M224: 54 | N224: 54 | O224: 54
A225: CIENAGA | B225: BARRANCABERMEJA | C225: Oficial Rural | D225: 53 | E225: 54 | F225: 54 | G225: 54 | H225: 53 | I225: 54 | J225: 53 | K225: 53 | L225: 53 | M225: 53 | N225: 52 | O225: 52
A226: CORDOBA | B226: BARRANCABERMEJA | C226: No oficial Urbana | D226: 71 | E226: 73 | F226: 78 | G226: 79 | H226: 82 | I226: 81 | J226: 81 | K226: 81 | L226: 77 | M226: 75 | N226: 79 | O226: 76
A227: CUCUTA | B227: BARRANCABERMEJA | C227: No oficial Rural | D227: 1 | E227: 1 | F227: 1 | G227: 2 | H227: 2 | I227: 2 | J227: 2 | K227: 2 | L227: 2 | M227: 2 | N227: 3 | O227: 3
A228: CUNDINAMARCA | B228: BARRANQUILLA | C228: Oficial Urbana | D228: 212 | E228: 211 | F228: 210 | G228: 216 | H228: 217 | I228: 218 | J228: 216 | K228: 217 | L228: 219 | M228: 220 | N228: 220 | O228: 223
A229: DOSQUEBRADAS | B229: BARRANQUILLA | C229: Oficial Rural | D229: 0 | E229: 0 | F229: 0 | G229: 0 | H229: 0 | I229: 0 | J229: 0 | K229: 0 | L229: 0 | M229: 0 | N229: 0 | O229: 0
A230: DUITAMA | B230: BARRANQUILLA | C230: No oficial Urbana | D230: 300 | E230: 313 | F230: 338 | G230: 352 | H230: 345 | I230: 340 | J230: 342 | K230: 343 | L230: 329 | M230: 343 | N230: 342 | O230: 354
A231: ENVIGADO | B231: BARRANQUILLA | C231: No oficial Rural | D231: 0 | E231: 1 | F231: 1 | G231: 1 | H231: 1 | I231: 1 | J231: 1 | K231: 1 | L231: 1 | M231: 1 | N231: 1 | O231: 1
A232: FACATATIVA | B232: BELLO | C232: Oficial Urbana | D232: 61 | E232: 57 | F232: 57 | G232: 57 | H232: 54 | I232: 55 | J232: 55 | K232: 55 | L232: 55 | M232: 55 | N232: 56 | O232: 56
A233: FLORENCIA | B233: BELLO | C233: Oficial Rural | D233: 6 | E233: 6 | F233: 6 | G233: 6 | H233: 6 | I233: 6 | J233: 6 | K233: 6 | L233: 7 | M233: 7 | N233: 7 | O233: 7
A234: FLORIDABLANCA | B234: BELLO | C234: No oficial Urbana | D234: 58 | E234: 60 | F234: 59 | G234: 63 | H234: 63 | I234: 65 | J234: 75 | K234: 79 | L234: 82 | M234: 79 | N234: 73 | O234: 73
A235: FUNZA | B235: BELLO | C235: No oficial Rural | D235: 1 | E235: 1 | F235: 1 | G235: 1 | H235: 1 | I235: 1 | J235: 1 | K235: 1 | L235: 1 | M235: 1 | N235: 1 | O235: 1
A236: FUSAGASUGA | B236: BOGOTA | C236: Oficial Urbana | D236: 659 | E236: 660 | F236: 681 | G236: 681 | H236: 670 | I236: 679 | J236: 684 | K236: 684 | L236: 687 | M236: 693 | N236: 705 | O236: 702
A237: GIRARDOT | B237: BOGOTA | C237: Oficial Rural | D237: 50 | E237: 47 | F237: 44 | G237: 44 | H237: 52 | I237: 52 | J237: 52 | K237: 52 | L237: 52 | M237: 52 | N237: 51 | O237: 51
A238: GIRON | B238: BOGOTA | C238: No oficial Urbana | D238: 1844 | E238: 1830 | F238: 1776 | G238: 1764 | H238: 1737 | I238: 1702 | J238: 1689 | K238: 1613 | L238: 1556 | M238: 1505 | N238: 1447 | O238: 1384
A239: GUAINIA | B239: BOGOTA | C239: No oficial Rural | D239: 8 | E239: 10 | F239: 10 | G239: 11 | H239: 11 | I239: 11 | J239: 11 | K239: 11 | L239: 10 | M239: 10 | N239: 10 | O239: 9
A240: GUAVIARE | B240: BOLIVAR | C240: Oficial Urbana | D240: 249 | E240: 246 | F240: 243 | G240: 244 | H240: 243 | I240: 244 | J240: 243 | K240: 240 | L240: 238 | M240: 238 | N240: 237 | O240: 234
A241: HUILA | B241: BOLIVAR | C241: Oficial Rural | D241: 986 | E241: 987 | F241: 976 | G241: 980 | H241: 974 | I241: 979 | J241: 974 | K241: 977 | L241: 971 | M241: 968 | N241: 963 | O241: 962
A242: IBAGUE | B242: BOLIVAR | C242: No oficial Urbana | D242: 42 | E242: 55 | F242: 60 | G242: 72 | H242: 76 | I242: 88 | J242: 98 | K242: 94 | L242: 100 | M242: 102 | N242: 112 | O242: 124
A243: IPIALES | B243: BOLIVAR | C243: No oficial Rural | D243: 1 | E243: 2 | F243: 1 | G243: 2 | H243: 3 | I243: 3 | J243: 3 | K243: 3 | L243: 4 | M243: 6 | N243: 6 | O243: 7
A244: ITAGUI | B244: BOYACA | C244: Oficial Urbana | D244: 267 | E244: 267 | F244: 267 | G244: 270 | H244: 267 | I244: 269 | J244: 269 | K244: 268 | L244: 270 | M244: 270 | N244: 270 | O244: 270
A245: JAMUNDÍ | B245: BOYACA | C245: Oficial Rural | D245: 1859 | E245: 1841 | F245: 1822 | G245: 1791 | H245: 1784 | I245: 1758 | J245: 1744 | K245: 1736 | L245: 1722 | M245: 1713 | N245: 1695 | O245: 1677
A246: LA ESTRELLA | B246: BOYACA | C246: No oficial Urbana | D246: 86 | E246: 86 | F246: 86 | G246: 92 | H246: 91 | I246: 91 | J246: 92 | K246: 85 | L246: 82 | M246: 81 | N246: 81 | O246: 80
A247: LA GUAJIRA | B247: BOYACA | C247: No oficial Rural | D247: 10 | E247: 11 | F247: 11 | G247: 15 | H247: 18 | I247: 19 | J247: 19 | K247: 19 | L247: 19 | M247: 19 | N247: 20 | O247: 25
A248: LORICA | B248: BUCARAMANGA | C248: Oficial Urbana | D248: 106 | E248: 105 | F248: 104 | G248: 104 | H248: 105 | I248: 104 | J248: 104 | K248: 102 | L248: 100 | M248: 101 | N248: 102 | O248: 101
A249: MAGANGUE | B249: BUCARAMANGA | C249: Oficial Rural | D249: 19 | E249: 19 | F249: 18 | G249: 19 | H249: 19 | I249: 19 | J249: 19 | K249: 20 | L249: 20 | M249: 20 | N249: 20 | O249: 20
A250: MAGDALENA | B250: BUCARAMANGA | C250: No oficial Urbana | D250: 163 | E250: 168 | F250: 168 | G250: 175 | H250: 177 | I250: 169 | J250: 160 | K250: 154 | L250: 145 | M250: 142 | N250: 144 | O250: 140
A251: MAICAO | B251: BUCARAMANGA | C251: No oficial Rural | D251: 2 | E251: 0 | F251: 0 | G251: 0 | H251: 0 | I251: 0 | J251: 0 | K251: 0 | L251: 0 | M251: 0 | N251: 0 | O251: 0
A252: MALAMBO | B252: BUENAVENTURA | C252: Oficial Urbana | D252: 68 | E252: 66 | F252: 67 | G252: 67 | H252: 63 | I252: 62 | J252: 62 | K252: 63 | L252: 63 | M252: 61 | N252: 63 | O252: 63
A253: MANIZALES | B253: BUENAVENTURA | C253: Oficial Rural | D253: 152 | E253: 154 | F253: 149 | G253: 146 | H253: 148 | I253: 146 | J253: 144 | K253: 145 | L253: 151 | M253: 139 | N253: 148 | O253: 147
A254: MEDELLIN | B254: BUENAVENTURA | C254: No oficial Urbana | D254: 406 | E254: 404 | F254: 220 | G254: 221 | H254: 217 | I254: 125 | J254: 123 | K254: 124 | L254: 109 | M254: 109 | N254: 108 | O254: 99
A255: META | B255: BUENAVENTURA | C255: No oficial Rural | D255: 0 | E255: 0 | F255: 0 | G255: 0 | H255: 0 | I255: 0 | J255: 0 | K255: 0 | L255: 0 | M255: 0 | N255: 0 | O255: 0
A256: MONTERIA | B256: BUGA | C256: Oficial Urbana | D256: 31 | E256: 28 | F256: 28 | G256: 28 | H256: 29 | I256: 29 | J256: 28 | K256: 28 | L256: 28 | M256: 29 | N256: 28 | O256: 26
A257: MOSQUERA | B257: BUGA | C257: Oficial Rural | D257: 35 | E257: 35 | F257: 35 | G257: 33 | H257: 33 | I257: 34 | J257: 34 | K257: 34 | L257: 33 | M257: 31 | N257: 31 | O257: 34
A258: NARIÑO | B258: BUGA | C258: No oficial Urbana | D258: 51 | E258: 55 | F258: 52 | G258: 53 | H258: 53 | I258: 53 | J258: 53 | K258: 52 | L258: 52 | M258: 53 | N258: 50 | O258: 47
A259: NEIVA | B259: BUGA | C259: No oficial Rural | D259: 0 | E259: 0 | F259: 0 | G259: 0 | H259: 0 | I259: 0 | J259: 0 | K259: 0 | L259: 0 | M259: 0 | N259: 0 | O259: 0
A260: NORTE SANTANDER | B260: CALDAS | C260: Oficial Urbana | D260: 146 | E260: 145 | F260: 145 | G260: 141 | H260: 140 | I260: 138 | J260: 138 | K260: 139 | L260: 140 | M260: 139 | N260: 139 | O260: 138
A261: PALMIRA | B261: CALDAS | C261: Oficial Rural | D261: 916 | E261: 918 | F261: 907 | G261: 895 | H261: 895 | I261: 884 | J261: 875 | K261: 872 | L261: 871 | M261: 857 | N261: 852 | O261: 844
A262: PASTO | B262: CALDAS | C262: No oficial Urbana | D262: 41 | E262: 42 | F262: 45 | G262: 42 | H262: 44 | I262: 42 | J262: 46 | K262: 45 | L262: 40 | M262: 41 | N262: 41 | O262: 42
A263: PEREIRA | B263: CALDAS | C263: No oficial Rural | D263: 4 | E263: 4 | F263: 4 | G263: 4 | H263: 4 | I263: 4 | J263: 4 | K263: 4 | L263: 4 | M263: 5 | N263: 5 | O263: 6
A264: PIEDECUESTA | B264: CALI | C264: Oficial Urbana | D264: 290 | E264: 294 | F264: 290 | G264: 299 | H264: 304 | I264: 304 | J264: 306 | K264: 307 | L264: 307 | M264: 301 | N264: 301 | O264: 301
A265: PITALITO | B265: CALI | C265: Oficial Rural | D265: 46 | E265: 46 | F265: 46 | G265: 46 | H265: 46 | I265: 46 | J265: 46 | K265: 46 | L265: 47 | M265: 51 | N265: 51 | O265: 51
A266: POPAYAN | B266: CALI | C266: No oficial Urbana | D266: 729 | E266: 705 | F266: 687 | G266: 680 | H266: 669 | I266: 651 | J266: 623 | K266: 617 | L266: 592 | M266: 579 | N266: 566 | O266: 553
A267: PUTUMAYO | B267: CALI | C267: No oficial Rural | D267: 15 | E267: 15 | F267: 12 | G267: 12 | H267: 13 | I267: 14 | J267: 12 | K267: 13 | L267: 13 | M267: 17 | N267: 17 | O267: 16
A268: QUIBDÓ | B268: CAQUETA | C268: Oficial Urbana | D268: 69 | E268: 64 | F268: 63 | G268: 63 | H268: 63 | I268: 63 | J268: 63 | K268: 63 | L268: 63 | M268: 59 | N268: 59 | O268: 59
A269: QUINDIO | B269: CAQUETA | C269: Oficial Rural | D269: 1170 | E269: 1156 | F269: 1148 | G269: 1147 | H269: 1137 | I269: 1130 | J269: 1124 | K269: 1126 | L269: 1113 | M269: 1120 | N269: 1115 | O269: 1113
A270: RIOHACHA | B270: CAQUETA | C270: No oficial Urbana | D270: 7 | E270: 5 | F270: 6 | G270: 5 | H270: 4 | I270: 4 | J270: 4 | K270: 4 | L270: 5 | M270: 4 | N270: 6 | O270: 8
A271: RIONEGRO | B271: CAQUETA | C271: No oficial Rural | D271: 1 | E271: 0 | F271: 0 | G271: 0 | H271: 0 | I271: 0 | J271: 0 | K271: 0 | L271: 0 | M271: 0 | N271: 0 | O271: 0
A272: RISARALDA | B272: CARTAGENA | C272: Oficial Urbana | D272: 152 | E272: 152 | F272: 153 | G272: 155 | H272: 164 | I272: 165 | J272: 166 | K272: 166 | L272: 167 | M272: 167 | N272: 168 | O272: 168
A273: SABANETA | B273: CARTAGENA | C273: Oficial Rural | D273: 32 | E273: 32 | F273: 35 | G273: 35 | H273: 36 | I273: 36 | J273: 36 | K273: 37 | L273: 37 | M273: 37 | N273: 37 | O273: 38
A274: SAHAGUN | B274: CARTAGENA | C274: No oficial Urbana | D274: 276 | E274: 275 | F274: 268 | G274: 263 | H274: 252 | I274: 255 | J274: 261 | K274: 263 | L274: 255 | M274: 264 | N274: 267 | O274: 264
A275: SAN ANDRES | B275: CARTAGENA | C275: No oficial Rural | D275: 6 | E275: 6 | F275: 6 | G275: 6 | H275: 7 | I275: 7 | J275: 7 | K275: 8 | L275: 8 | M275: 9 | N275: 9 | O275: 9
A276: SANTA MARTA | B276: CARTAGO | C276: Oficial Urbana | D276: 31 | E276: 31 | F276: 31 | G276: 31 | H276: 30 | I276: 30 | J276: 30 | K276: 30 | L276: 30 | M276: 30 | N276: 30 | O276: 30
A277: SANTANDER | B277: CARTAGO | C277: Oficial Rural | D277: 12 | E277: 12 | F277: 12 | G277: 12 | H277: 12 | I277: 12 | J277: 12 | K277: 12 | L277: 12 | M277: 12 | N277: 12 | O277: 12
A278: SINCELEJO | B278: CARTAGO | C278: No oficial Urbana | D278: 30 | E278: 30 | F278: 29 | G278: 27 | H278: 27 | I278: 27 | J278: 26 | K278: 22 | L278: 24 | M278: 24 | N278: 22 | O278: 22
A279: SOACHA | B279: CARTAGO | C279: No oficial Rural | D279: 0 | E279: 0 | F279: 0 | G279: 0 | H279: 1 | I279: 1 | J279: 1 | K279: 1 | L279: 1 | M279: 1 | N279: 1 | O279: 1
A280: SOGAMOSO | B280: CASANARE | C280: Oficial Urbana | D280: 62 | E280: 60 | F280: 60 | G280: 61 | H280: 61 | I280: 61 | J280: 61 | K280: 61 | L280: 62 | M280: 62 | N280: 63 | O280: 63
A281: SOLEDAD | B281: CASANARE | C281: Oficial Rural | D281: 461 | E281: 462 | F281: 458 | G281: 457 | H281: 450 | I281: 440 | J281: 438 | K281: 437 | L281: 436 | M281: 434 | N281: 428 | O281: 429
A282: SUCRE | B282: CASANARE | C282: No oficial Urbana | D282: 18 | E282: 19 | F282: 19 | G282: 19 | H282: 19 | I282: 17 | J282: 17 | K282: 13 | L282: 13 | M282: 16 | N282: 17 | O282: 18
A283: TOLIMA | B283: CASANARE | C283: No oficial Rural | D283: 1 | E283: 1 | F283: 1 | G283: 2 | H283: 2 | I283: 2 | J283: 2 | K283: 1 | L283: 1 | M283: 1 | N283: 1 | O283: 1
A284: TULUA | B284: CAUCA | C284: Oficial Urbana | D284: 211 | E284: 195 | F284: 192 | G284: 185 | H284: 184 | I284: 184 | J284: 184 | K284: 184 | L284: 184 | M284: 184 | N284: 184 | O284: 181
A285: TUMACO | B285: CAUCA | C285: Oficial Rural | D285: 2218 | E285: 2223 | F285: 2207 | G285: 2205 | H285: 2200 | I285: 2208 | J285: 2205 | K285: 2203 | L285: 2201 | M285: 2192 | N285: 2195 | O285: 2189
A286: TUNJA | B286: CAUCA | C286: No oficial Urbana | D286: 51 | E286: 58 | F286: 59 | G286: 60 | H286: 58 | I286: 56 | J286: 57 | K286: 59 | L286: 57 | M286: 57 | N286: 61 | O286: 60
A287: TURBO | B287: CAUCA | C287: No oficial Rural | D287: 8 | E287: 5 | F287: 5 | G287: 6 | H287: 7 | I287: 7 | J287: 6 | K287: 6 | L287: 6 | M287: 6 | N287: 6 | O287: 6
A288: URIBIA | B288: CESAR | C288: Oficial Urbana | D288: 181 | E288: 180 | F288: 180 | G288: 179 | H288: 178 | I288: 179 | J288: 180 | K288: 182 | L288: 182 | M288: 181 | N288: 180 | O288: 179
A289: VALLE | B289: CESAR | C289: Oficial Rural | D289: 885 | E289: 856 | F289: 854 | G289: 862 | H289: 856 | I289: 853 | J289: 845 | K289: 851 | L289: 851 | M289: 850 | N289: 848 | O289: 860
A290: VALLEDUPAR | B290: CESAR | C290: No oficial Urbana | D290: 72 | E290: 73 | F290: 72 | G290: 76 | H290: 83 | I290: 92 | J290: 95 | K290: 92 | L290: 93 | M290: 98 | N290: 101 | O290: 102
A291: VAUPES | B291: CESAR | C291: No oficial Rural | D291: 2 | E291: 2 | F291: 2 | G291: 2 | H291: 3 | I291: 3 | J291: 4 | K291: 4 | L291: 4 | M291: 4 | N291: 5 | O291: 5
A292: VICHADA | B292: CHÍA | C292: Oficial Urbana | D292: 8 | E292: 8 | F292: 8 | G292: 8 | H292: 8 | I292: 7 | J292: 7 | K292: 7 | L292: 7 | M292: 6 | N292: 7 | O292: 7
A293: VILLAVICENCIO | B293: CHÍA | C293: Oficial Rural | D293: 13 | E293: 13 | F293: 13 | G293: 13 | H293: 13 | I293: 13 | J293: 13 | K293: 13 | L293: 13 | M293: 13 | N293: 14 | O293: 14
A294: YOPAL | B294: CHÍA | C294: No oficial Urbana | D294: 39 | E294: 40 | F294: 41 | G294: 43 | H294: 42 | I294: 44 | J294: 44 | K294: 45 | L294: 43 | M294: 44 | N294: 43 | O294: 47
A295: YUMBO | B295: CHÍA | C295: No oficial Rural | D295: 31 | E295: 37 | F295: 35 | G295: 36 | H295: 34 | I295: 36 | J295: 37 | K295: 39 | L295: 38 | M295: 40 | N295: 38 | O295: 38
A296: ZIPAQUIRA | B296: CHOCO | C296: Oficial Urbana | D296: 117 | E296: 105 | F296: 105 | G296: 103 | H296: 100 | I296: 89 | J296: 88 | K296: 88 | L296: 88 | M296: 88 | N296: 88 | O296: 88
A297: COLOMBIA | B297: CHOCO | C297: Oficial Rural | D297: 946 | E297: 965 | F297: 973 | G297: 986 | H297: 987 | I297: 1002 | J297: 1002 | K297: 1014 | L297: 1016 | M297: 1018 | N297: 1025 | O297: 1040
B298: CHOCO | C298: No oficial Urbana | D298: 2 | E298: 4 | F298: 5 | G298: 5 | H298: 4 | I298: 3 | J298: 3 | K298: 3 | L298: 4 | M298: 4 | N298: 3 | O298: 4
B299: CHOCO | C299: No oficial Rural | D299: 0 | E299: 0 | F299: 0 | G299: 0 | H299: 0 | I299: 0 | J299: 0 | K299: 0 | L299: 0 | M299: 0 | N299: 0 | O299: 0
B300: CIENAGA | C300: Oficial Urbana | D300: 32 | E300: 29 | F300: 27 | G300: 27 | H300: 27 | I300: 27 | J300: 27 | K300: 27 | L300: 27 | M300: 27 | N300: 27 | O300: 27
B301: CIENAGA | C301: Oficial Rural | D301: 67 | E301: 79 | F301: 91 | G301: 92 | H301: 92 | I301: 91 | J301: 91 | K301: 91 | L301: 89 | M301: 85 | N301: 86 | O301: 85
B302: CIENAGA | C302: No oficial Urbana | D302: 34 | E302: 35 | F302: 37 | G302: 37 | H302: 49 | I302: 48 | J302: 49 | K302: 50 | L302: 49 | M302: 48 | N302: 48 | O302: 47
B303: CIENAGA | C303: No oficial Rural | D303: 0 | E303: 0 | F303: 0 | G303: 0 | H303: 1 | I303: 1 | J303: 0 | K303: 0 | L303: 1 | M303: 1 | N303: 1 | O303: 1
B304: CORDOBA | C304: Oficial Urbana | D304: 156 | E304: 155 | F304: 153 | G304: 153 | H304: 156 | I304: 157 | J304: 155 | K304: 155 | L304: 153 | M304: 156 | N304: 156 | O304: 155
B305: CORDOBA | C305: Oficial Rural | D305: 1134 | E305: 1196 | F305: 1147 | G305: 1174 | H305: 1219 | I305: 1229 | J305: 1240 | K305: 1237 | L305: 1228 | M305: 1224 | N305: 1216 | O305: 1214
B306: CORDOBA | C306: No oficial Urbana | D306: 69 | E306: 73 | F306: 78 | G306: 81 | H306: 83 | I306: 85 | J306: 85 | K306: 85 | L306: 83 | M306: 82 | N306: 82 | O306: 83
B307: CORDOBA | C307: No oficial Rural | D307: 15 | E307: 14 | F307: 17 | G307: 15 | H307: 16 | I307: 16 | J307: 16 | K307: 15 | L307: 15 | M307: 15 | N307: 15 | O307: 14
B308: CUCUTA | C308: Oficial Urbana | D308: 159 | E308: 158 | F308: 158 | G308: 155 | H308: 156 | I308: 156 | J308: 156 | K308: 156 | L308: 157 | M308: 158 | N308: 157 | O308: 157
B309: CUCUTA | C309: Oficial Rural | D309: 60 | E309: 63 | F309: 62 | G309: 63 | H309: 63 | I309: 63 | J309: 63 | K309: 62 | L309: 62 | M309: 62 | N309: 62 | O309: 63
B310: CUCUTA | C310: No oficial Urbana | D310: 199 | E310: 191 | F310: 200 | G310: 206 | H310: 207 | I310: 207 | J310: 211 | K310: 207 | L310: 194 | M310: 194 | N310: 194 | O310: 189
B311: CUCUTA | C311: No oficial Rural | D311: 3 | E311: 3 | F311: 3 | G311: 3 | H311: 3 | I311: 3 | J311: 2 | K311: 2 | L311: 2 | M311: 2 | N311: 2 | O311: 2
B312: CUNDINAMARCA | C312: Oficial Urbana | D312: 409 | E312: 423 | F312: 426 | G312: 426 | H312: 396 | I312: 373 | J312: 372 | K312: 371 | L312: 361 | M312: 355 | N312: 352 | O312: 352
B313: CUNDINAMARCA | C313: Oficial Rural | D313: 2133 | E313: 2127 | F313: 2123 | G313: 2111 | H313: 2136 | I313: 2123 | J313: 2103 | K313: 2100 | L313: 2074 | M313: 2049 | N313: 2024 | O313: 2000
B314: CUNDINAMARCA | C314: No oficial Urbana | D314: 212 | E314: 255 | F314: 265 | G314: 266 | H314: 269 | I314: 235 | J314: 239 | K314: 230 | L314: 232 | M314: 238 | N314: 245 | O314: 245
B315: CUNDINAMARCA | C315: No oficial Rural | D315: 82 | E315: 87 | F315: 83 | G315: 87 | H315: 90 | I315: 95 | J315: 93 | K315: 95 | L315: 98 | M315: 98 | N315: 97 | O315: 101
B316: DOSQUEBRADAS | C316: Oficial Urbana | D316: 47 | E316: 47 | F316: 47 | G316: 46 | H316: 46 | I316: 46 | J316: 46 | K316: 46 | L316: 46 | M316: 45 | N316: 45 | O316: 45
B317: DOSQUEBRADAS | C317: Oficial Rural | D317: 26 | E317: 26 | F317: 26 | G317: 27 | H317: 27 | I317: 27 | J317: 27 | K317: 27 | L317: 27 | M317: 27 | N317: 26 | O317: 26
B318: DOSQUEBRADAS | C318: No oficial Urbana | D318: 55 | E318: 58 | F318: 58 | G318: 63 | H318: 72 | I318: 71 | J318: 71 | K318: 65 | L318: 66 | M318: 64 | N318: 64 | O318: 66
B319: DOSQUEBRADAS | C319: No oficial Rural | D319: 1 | E319: 1 | F319: 1 | G319: 1 | H319: 1 | I319: 1 | J319: 1 | K319: 1 | L319: 1 | M319: 1 | N319: 1 | O319: 1
B320: DUITAMA | C320: Oficial Urbana | D320: 18 | E320: 18 | F320: 18 | G320: 17 | H320: 17 | I320: 17 | J320: 17 | K320: 17 | L320: 17 | M320: 17 | N320: 17 | O320: 17
B321: DUITAMA | C321: Oficial Rural | D321: 16 | E321: 15 | F321: 14 | G321: 13 | H321: 12 | I321: 12 | J321: 12 | K321: 12 | L321: 12 | M321: 12 | N321: 12 | O321: 12
B322: DUITAMA | C322: No oficial Urbana | D322: 49 | E322: 48 | F322: 49 | G322: 51 | H322: 51 | I322: 51 | J322: 49 | K322: 46 | L322: 46 | M322: 46 | N322: 46 | O322: 46
B323: DUITAMA | C323: No oficial Rural | D323: 0 | E323: 1 | F323: 1 | G323: 1 | H323: 1 | I323: 1 | J323: 1 | K323: 1 | L323: 1 | M323: 1 | N323: 1 | O323: 1
B324: ENVIGADO | C324: Oficial Urbana | D324: 19 | E324: 19 | F324: 19 | G324: 18 | H324: 18 | I324: 18 | J324: 18 | K324: 18 | L324: 18 | M324: 18 | N324: 18 | O324: 18
B325: ENVIGADO | C325: Oficial Rural | D325: 5 | E325: 5 | F325: 5 | G325: 5 | H325: 5 | I325: 5 | J325: 5 | K325: 5 | L325: 5 | M325: 5 | N325: 5 | O325: 4
B326: ENVIGADO | C326: No oficial Urbana | D326: 53 | E326: 55 | F326: 56 | G326: 57 | H326: 60 | I326: 59 | J326: 59 | K326: 55 | L326: 55 | M326: 55 | N326: 53 | O326: 51
B327: ENVIGADO | C327: No oficial Rural | D327: 1 | E327: 2 | F327: 2 | G327: 2 | H327: 3 | I327: 3 | J327: 3 | K327: 2 | L327: 2 | M327: 2 | N327: 2 | O327: 2
B328: FACATATIVA | C328: Oficial Urbana | D328: 21 | E328: 21 | F328: 21 | G328: 21 | H328: 21 | I328: 19 | J328: 19 | K328: 17 | L328: 17 | M328: 16 | N328: 16 | O328: 16
B329: FACATATIVA | C329: Oficial Rural | D329: 7 | E329: 7 | F329: 7 | G329: 7 | H329: 7 | I329: 7 | J329: 7 | K329: 9 | L329: 9 | M329: 9 | N329: 9 | O329: 8
B330: FACATATIVA | C330: No oficial Urbana | D330: 50 | E330: 53 | F330: 57 | G330: 59 | H330: 62 | I330: 65 | J330: 64 | K330: 60 | L330: 59 | M330: 52 | N330: 50 | O330: 50
B331: FACATATIVA | C331: No oficial Rural | D331: 3 | E331: 3 | F331: 4 | G331: 4 | H331: 4 | I331: 4 | J331: 4 | K331: 4 | L331: 4 | M331: 4 | N331: 3 | O331: 3
B332: FLORENCIA | C332: Oficial Urbana | D332: 43 | E332: 43 | F332: 44 | G332: 45 | H332: 46 | I332: 46 | J332: 46 | K332: 44 | L332: 44 | M332: 43 | N332: 43 | O332: 43
B333: FLORENCIA | C333: Oficial Rural | D333: 113 | E333: 113 | F333: 114 | G333: 109 | H333: 107 | I333: 103 | J333: 90 | K333: 99 | L333: 99 | M333: 82 | N333: 79 | O333: 79
B334: FLORENCIA | C334: No oficial Urbana | D334: 29 | E334: 32 | F334: 35 | G334: 41 | H334: 40 | I334: 41 | J334: 41 | K334: 43 | L334: 41 | M334: 41 | N334: 41 | O334: 41
B335: FLORENCIA | C335: No oficial Rural | D335: 1 | E335: 0 | F335: 0 | G335: 0 | H335: 1 | I335: 1 | J335: 1 | K335: 1 | L335: 1 | M335: 1 | N335: 1 | O335: 1
B336: FLORIDABLANCA | C336: Oficial Urbana | D336: 42 | E336: 42 | F336: 42 | G336: 42 | H336: 42 | I336: 41 | J336: 40 | K336: 40 | L336: 40 | M336: 40 | N336: 41 | O336: 41
B337: FLORIDABLANCA | C337: Oficial Rural | D337: 19 | E337: 19 | F337: 19 | G337: 19 | H337: 19 | I337: 16 | J337: 16 | K337: 16 | L337: 16 | M337: 16 | N337: 16 | O337: 16
B338: FLORIDABLANCA | C338: No oficial Urbana | D338: 98 | E338: 102 | F338: 108 | G338: 98 | H338: 96 | I338: 98 | J338: 90 | K338: 90 | L338: 90 | M338: 87 | N338: 87 | O338: 83
B339: FLORIDABLANCA | C339: No oficial Rural | D339: 4 | E339: 3 | F339: 3 | G339: 3 | H339: 4 | I339: 6 | J339: 6 | K339: 7 | L339: 7 | M339: 7 | N339: 7 | O339: 7
B340: FUNZA | C340: Oficial Urbana | D340: 15 | I340: 15 | J340: 15 | K340: 15 | L340: 15 | M340: 15 | N340: 15 | O340: 13
B341: FUNZA | C341: Oficial Rural | D341: 3 | I341: 3 | J341: 3 | K341: 3 | L341: 3 | M341: 3 | N341: 3 | O341: 2
B342: FUNZA | C342: No oficial Urbana | D342: 31 | I342: 39 | J342: 40 | K342: 41 | L342: 44 | M342: 43 | N342: 44 | O342: 43
B343: FUNZA | C343: No oficial Rural | D343: 0 | I343: 1 | J343: 1 | K343: 1 | L343: 1 | M343: 1 | N343: 1 | O343: 1
B344: FUSAGASUGA | C344: Oficial Urbana | D344: 25 | E344: 25 | F344: 25 | G344: 25 | H344: 25 | I344: 24 | J344: 24 | K344: 24 | L344: 24 | M344: 24 | N344: 25 | O344: 25
B345: FUSAGASUGA | C345: Oficial Rural | D345: 34 | E345: 34 | F345: 34 | G345: 34 | H345: 34 | I345: 34 | J345: 34 | K345: 34 | L345: 34 | M345: 34 | N345: 34 | O345: 34
B346: FUSAGASUGA | C346: No oficial Urbana | D346: 42 | E346: 42 | F346: 44 | G346: 43 | H346: 43 | I346: 45 | J346: 46 | K346: 45 | L346: 43 | M346: 45 | N346: 44 | O346: 46
B347: FUSAGASUGA | C347: No oficial Rural | D347: 1 | E347: 2 | F347: 2 | G347: 2 | H347: 2 | I347: 2 | J347: 2 | K347: 3 | L347: 3 | M347: 3 | N347: 3 | O347: 3
B348: GIRARDOT | C348: Oficial Urbana | D348: 29 | E348: 29 | F348: 29 | G348: 29 | H348: 29 | I348: 29 | J348: 29 | K348: 28 | L348: 28 | M348: 27 | N348: 27 | O348: 27
B349: GIRARDOT | C349: Oficial Rural | D349: 5 | E349: 5 | F349: 5 | G349: 5 | H349: 5 | I349: 5 | J349: 5 | K349: 5 | L349: 5 | M349: 5 | N349: 5 | O349: 5
B350: GIRARDOT | C350: No oficial Urbana | D350: 43 | E350: 47 | F350: 49 | G350: 51 | H350: 53 | I350: 51 | J350: 64 | K350: 62 | L350: 61 | M350: 58 | N350: 56 | O350: 53
B351: GIRARDOT | C351: No oficial Rural | D351: 0 | E351: 0 | F351: 0 | G351: 0 | H351: 0 | I351: 0 | J351: 0 | K351: 0 | L351: 0 | M351: 0 | N351: 0 | O351: 0
B352: GIRON | C352: Oficial Urbana | D352: 26 | E352: 28 | F352: 27 | G352: 27 | H352: 27 | I352: 23 | J352: 24 | K352: 24 | L352: 24 | M352: 24 | N352: 24 | O352: 24
B353: GIRON | C353: Oficial Rural | D353: 36 | E353: 35 | F353: 35 | G353: 35 | H353: 35 | I353: 34 | J353: 34 | K353: 34 | L353: 34 | M353: 33 | N353: 33 | O353: 33
B354: GIRON | C354: No oficial Urbana | D354: 39 | E354: 38 | F354: 37 | G354: 38 | H354: 37 | I354: 35 | J354: 35 | K354: 29 | L354: 25 | M354: 24 | N354: 25 | O354: 25
B355: GIRON | C355: No oficial Rural | D355: 0 | E355: 0 | F355: 0 | G355: 0 | H355: 0 | I355: 0 | J355: 0 | K355: 0 | L355: 0 | M355: 0 | N355: 0 | O355: 0
B356: GUAINIA | C356: Oficial Urbana | D356: 7 | E356: 6 | F356: 6 | G356: 6 | H356: 6 | I356: 6 | J356: 6 | K356: 6 | L356: 6 | M356: 6 | N356: 6 | O356: 6
B357: GUAINIA | C357: Oficial Rural | D357: 84 | E357: 84 | F357: 84 | G357: 84 | H357: 82 | I357: 82 | J357: 84 | K357: 87 | L357: 88 | M357: 88 | N357: 91 | O357: 93
B358: GUAINIA | C358: No oficial Urbana | D358: 1 | E358: 1 | F358: 1 | G358: 1 | H358: 1 | I358: 2 | J358: 2 | K358: 2 | L358: 2 | M358: 2 | N358: 2 | O358: 2
B359: GUAINIA | C359: No oficial Rural | D359: 0 | E359: 0 | F359: 0 | G359: 0 | H359: 0 | I359: 0 | J359: 0 | K359: 0 | L359: 0 | M359: 0 | N359: 0 | O359: 0
B360: GUAVIARE | C360: Oficial Urbana | D360: 17 | E360: 17 | F360: 16 | G360: 16 | H360: 16 | I360: 16 | J360: 16 | K360: 16 | L360: 16 | M360: 16 | N360: 16 | O360: 16
B361: GUAVIARE | C361: Oficial Rural | D361: 232 | E361: 229 | F361: 227 | G361: 226 | H361: 223 | I361: 220 | J361: 218 | K361: 223 | L361: 219 | M361: 218 | N361: 213 | O361: 209
B362: GUAVIARE | C362: No oficial Urbana | D362: 10 | E362: 10 | F362: 13 | G362: 11 | H362: 11 | I362: 13 | J362: 13 | K362: 13 | L362: 12 | M362: 13 | N362: 13 | O362: 13
B363: GUAVIARE | C363: No oficial Rural | D363: 0 | E363: 0 | F363: 0 | G363: 0 | H363: 0 | I363: 0 | J363: 0 | K363: 0 | L363: 0 | M363: 0 | N363: 0 | O363: 0
B364: HUILA | C364: Oficial Urbana | D364: 168 | E364: 169 | F364: 167 | G364: 163 | H364: 154 | I364: 149 | J364: 149 | K364: 149 | L364: 149 | M364: 149 | N364: 149 | O364: 149
B365: HUILA | C365: Oficial Rural | D365: 1283 | E365: 1292 | F365: 1285 | G365: 1287 | H365: 1295 | I365: 1298 | J365: 1300 | K365: 1299 | L365: 1299 | M365: 1299 | N365: 1297 | O365: 1295
B366: HUILA | C366: No oficial Urbana | D366: 52 | E366: 48 | F366: 47 | G366: 48 | H366: 48 | I366: 47 | J366: 46 | K366: 43 | L366: 40 | M366: 42 | N366: 42 | O366: 41
B367: HUILA | C367: No oficial Rural | D367: 1 | E367: 2 | F367: 2 | G367: 2 | H367: 2 | I367: 3 | J367: 4 | K367: 4 | L367: 4 | M367: 4 | N367: 4 | O367: 4
B368: IBAGUE | C368: Oficial Urbana | D368: 113 | E368: 113 | F368: 110 | G368: 115 | H368: 115 | I368: 115 | J368: 114 | K368: 112 | L368: 113 | M368: 112 | N368: 113 | O368: 112
B369: IBAGUE | C369: Oficial Rural | D369: 106 | E369: 106 | F369: 106 | G369: 107 | H369: 106 | I369: 106 | J369: 106 | K369: 105 | L369: 103 | M369: 103 | N369: 104 | O369: 101
B370: IBAGUE | C370: No oficial Urbana | D370: 178 | E370: 175 | F370: 173 | G370: 164 | H370: 165 | I370: 160 | J370: 161 | K370: 149 | L370: 145 | M370: 146 | N370: 144 | O370: 145
B371: IBAGUE | C371: No oficial Rural | D371: 0 | E371: 0 | F371: 0 | G371: 0 | H371: 0 | I371: 0 | J371: 0 | K371: 0 | L371: 0 | M371: 0 | N371: 0 | O371: 0
B372: IPIALES | C372: Oficial Urbana | D372: 16 | E372: 16 | F372: 16 | G372: 16 | H372: 15 | I372: 15 | J372: 15 | K372: 14 | L372: 14 | M372: 14 | N372: 14 | O372: 14
B373: IPIALES | C373: Oficial Rural | D373: 66 | E373: 67 | F373: 65 | G373: 66 | H373: 65 | I373: 67 | J373: 67 | K373: 68 | L373: 68 | M373: 68 | N373: 67 | O373: 65
B374: IPIALES | C374: No oficial Urbana | D374: 27 | E374: 31 | F374: 27 | G374: 33 | H374: 36 | I374: 34 | J374: 35 | K374: 37 | L374: 36 | M374: 39 | N374: 39 | O374: 38
B375: IPIALES | C375: No oficial Rural | D375: 0 | E375: 0 | F375: 0 | G375: 0 | H375: 0 | I375: 0 | J375: 0 | K375: 0 | L375: 0 | M375: 0 | N375: 0 | O375: 0
B376: ITAGUI | C376: Oficial Urbana | D376: 34 | E376: 34 | F376: 33 | G376: 33 | H376: 33 | I376: 33 | J376: 33 | K376: 33 | L376: 33 | M376: 33 | N376: 33 | O376: 37
B377: ITAGUI | C377: Oficial Rural | D377: 4 | E377: 4 | F377: 4 | G377: 4 | H377: 4 | I377: 4 | J377: 4 | K377: 4 | L377: 4 | M377: 4 | N377: 4 | O377: 0
B378: ITAGUI | C378: No oficial Urbana | D378: 49 | E378: 52 | F378: 47 | G378: 50 | H378: 50 | I378: 50 | J378: 51 | K378: 52 | L378: 51 | M378: 50 | N378: 50 | O378: 50
B379: ITAGUI | C379: No oficial Rural | D379: 0 | E379: 0 | F379: 0 | G379: 0 | H379: 0 | I379: 0 | J379: 0 | K379: 0 | L379: 0 | M379: 0 | N379: 0 | O379: 0
B380: JAMUNDÍ | C380: Oficial Urbana | D380: 13 | E380: 13 | F380: 13 | G380: 13 | H380: 13 | I380: 14 | J380: 14 | K380: 14 | L380: 14 | M380: 14 | N380: 15 | O380: 16
B381: JAMUNDÍ | C381: Oficial Rural | D381: 55 | E381: 55 | F381: 56 | G381: 56 | H381: 55 | I381: 54 | J381: 61 | K381: 62 | L381: 60 | M381: 60 | N381: 60 | O381: 60
B382: JAMUNDÍ | C382: No oficial Urbana | D382: 20 | E382: 28 | F382: 31 | G382: 33 | H382: 32 | I382: 34 | J382: 37 | K382: 40 | L382: 39 | M382: 38 | N382: 36 | O382: 35
B383: JAMUNDÍ | C383: No oficial Rural | D383: 0 | E383: 0 | F383: 1 | G383: 1 | H383: 1 | I383: 2 | J383: 2 | K383: 3 | L383: 3 | M383: 3 | N383: 4 | O383: 4
B384: LA ESTRELLA | C384: Oficial Urbana | M384: 9 | N384: 9 | O384: 9
B385: LA ESTRELLA | C385: Oficial Rural | M385: 0 | N385: 0 | O385: 0
B386: LA ESTRELLA | C386: No oficial Urbana | M386: 17 | N386: 17 | O386: 18
B387: LA ESTRELLA | C387: No oficial Rural | M387: 4 | N387: 4 | O387: 4
... 206 more rows

Sheet 3 POB DANE 2018
B1: PROYECCIÓN DE POBLACIÓN DANE 5 A 16 AÑOS | K1: Indice
B2: Censo 2018 NUEVA PROYECCION
B3: ENTIDAD
B4: VALLEDUPAR | C4: Año | D4: 3_años | E4: 4_años | F4: 5_años | G4: 6 a 10_años | H4: 11 A 14_años | I4: 15 A 16_ años | J4: 5 A16 años
C5: 2018 | D5: =+SUMIFS($D$200:$D$1753,$B$200:$B$1753,$B$4,$C$200:$C$1753,C5) -> 10065 | E5: =+SUMIFS($E$200:$E$1753,$B$200:$B$1753,$B$4,$C$200:$C$1753,C5) -> 10048 | F5: =+SUMIFS($F$200:$F$1753,$B$200:$B$1753,$B$4,$C$200:$C$1753,C5) -> 10072 | G5: =+SUMIFS($G$200:$G$1753,$B$200:$B$1753,$B$4,$C$200:$C$1753,C5) -> 51187 | H5: =+SUMIFS($H$200:$H$1753,$B$200:$B$1753,$B$4,$C$200:$C$1753,C5) -> 41189 | I5: =+SUMIFS($I$200:$I$1753,$B$200:$B$1753,$B$4,$C$200:$C$1753,C5) -> 19539 | J5: =+SUMIFS($J$200:$J$1753,$B$200:$B$1753,$B$4,$C$200:$C$1753,C5) -> 121987
C6: 2019 | D6: =+SUMIFS($D$200:$D$1753,$B$200:$B$1753,$B$4,$C$200:$C$1753,C6) -> 10349 | E6: =+SUMIFS($E$200:$E$1753,$B$200:$B$1753,$B$4,$C$200:$C$1753,C6) -> 10313 | F6: 10311 | G6: 52079 | H6: 42537 | I6: =+SUMIFS($I$200:$I$1753,$B$200:$B$1753,$B$4,$C$200:$C$1753,C6) -> 20540 | J6: =+SUMIFS($J$200:$J$1753,$B$200:$B$1753,$B$4,$C$200:$C$1753,C6) -> 125467
C7: 2020 | D7: 10711 | E7: 10644 | F7: 10622 | G7: 53248 | H7: 43705 | I7: 21527 | J7: 129102
C8: 2021 | D8: 10908 | E8: 10860 | F8: 10819 | G8: 54014 | H8: 44329 | I8: 22270 | J8: 131432
C9: 2022 | D9: 10632 | E9: 10986 | F9: 10966 | G9: 54571 | H9: 44565 | I9: 22867 | J9: 132969
C10: 2023 | D10: 10781 | E10: 10701 | F10: 11080 | G10: 55147 | H10: 44822 | I10: 23187 | J10: 134236
C11: 2024 | D11: 10735 | E11: 10842 | F11: =+SUMIFS($F$200:$F$1753,$B$200:$B$1753,$B$4,$C$200:$C$1753,C11) -> 10789 | G11: =+SUMIFS($G$200:$G$1753,$B$200:$B$1753,$B$4,$C$200:$C$1753,C11) -> 55720 | H11: =+SUMIFS($H$200:$H$1753,$B$200:$B$1753,$B$4,$C$200:$C$1753,C11) -> 45109 | I11: =+SUMIFS($I$200:$I$1753,$B$200:$B$1753,$B$4,$C$200:$C$1753,C11) -> 23264 | J11: 134882 | Q11: 0
C12: 2025 | D12: 10757 | E12: 10782 | F12: 10920 | G12: 55856 | H12: 45412 | I12: 23348 | J12: 135536
C13: 2026 | D13: 10778 | E13: 10771 | F13: 10828 | G13: 55884 | H13: 45682 | I13: 23413 | J13: 135807
C14: 2027 | D14: 10775 | E14: 10787 | F14: 10813 | G14: 55715 | H14: 45976 | I14: 23491 | J14: 135995
C15: 2028 | D15: 10743 | E15: 10781 | F15: 10826 | G15: 55425 | H15: 46301 | I15: 23593 | J15: 136145
C16: 2029 | D16: 10678 | E16: 10745 | F16: 10818 | G16: 55075 | H16: 46617 | I16: 23718 | J16: 136228
C17: 2030 | D17: 10625 | E17: 10683 | F17: 10783 | G17: 55045 | H17: 46518 | I17: 23866 | J17: 136212
C18: FUENTE: PROYECCIONES DE POBLACIÓN DANE CENSO 2018
C21: =+B4 -> VALLEDUPAR
A199: lista | B199: Entidad | C199: Año | D199: 3_años | E199: 4_años | F199: 5_años | G199: 6 a 10_años | H199: 11 A 14_años | I199: 15 A 16_ años | J199: 5 A16 años
A200: AMAZONAS | B200: AMAZONAS | C200: 2018 | D200: 1924 | E200: 1932 | F200: 1942 | G200: 9948 | H200: 8134 | I200: 3948 | J200: 23972
A201: ANTIOQUIA | B201: ANTIOQUIA | C201: 2018 | D201: 41683 | E201: 42283 | F201: 42937 | G201: 225414 | H201: 188810 | I201: 91967 | J201: 549128
A202: APARTADO | B202: APARTADO | C202: 2018 | D202: 2450 | E202: 2447 | F202: 2451 | G202: 12557 | H202: 10269 | I202: 4974 | J202: 30251
A203: ARAUCA | B203: ARAUCA | C203: 2018 | D203: 5103 | E203: 5171 | F203: 5246 | G203: 27214 | H203: 22667 | I203: 11226 | J203: 66353
A204: ARMENIA | B204: ARMENIA | C204: 2018 | D204: 3505 | E204: 3539 | F204: 3578 | G204: 18690 | H204: 16321 | I204: 8819 | J204: 47408
A205: ATLANTICO | B205: ATLANTICO | C205: 2018 | D205: 11024 | E205: 11059 | F205: 11104 | G205: 56928 | H205: 46764 | I205: 22915 | J205: 137711
A206: BARRANCABERMEJA | B206: BARRANCABERMEJA | C206: 2018 | D206: 3496 | E206: 3501 | F206: 3496 | G206: 17697 | H206: 14468 | I206: 7323 | J206: 42984
A207: BARRANQUILLA | B207: BARRANQUILLA | C207: 2018 | D207: 18693 | E207: 18882 | F207: 19069 | G207: 98114 | H207: 80867 | I207: 40602 | J207: 238652
A208: BELLO | B208: BELLO | C208: 2018 | D208: 6834 | E208: 6989 | F208: 7128 | G208: 37399 | H208: 31473 | I208: 16159 | J208: 92159
A209: BOGOTA | B209: BOGOTA | C209: 2018 | D209: 97732 | E209: 99523 | F209: 101154 | G209: 527043 | H209: 439576 | I209: 221598 | J209: 1289371
A210: BOLIVAR | B210: BOLIVAR | C210: 2018 | D210: 19808 | E210: 19874 | F210: 19972 | G210: 102047 | H210: 82776 | I210: 39830 | J210: 244625
A211: BOYACA | B211: BOYACA | C211: 2018 | D211: 12048 | E211: 12285 | F211: 12604 | G211: 67110 | H211: 57876 | I211: 28774 | J211: 166364
A212: BUCARAMANGA | B212: BUCARAMANGA | C212: 2018 | D212: 8103 | E212: 8178 | F212: 8244 | G212: 42037 | H212: 34332 | I212: 17266 | J212: 101879
A213: BUENAVENTURA | B213: BUENAVENTURA | C213: 2018 | D213: 6991 | E213: 7096 | F213: 7237 | G213: 37970 | H213: 30050 | I213: 13348 | J213: 88605
A214: BUGA | B214: BUGA | C214: 2018 | D214: 1611 | E214: 1637 | F214: 1661 | G214: 8726 | H214: 7422 | I214: 3845 | J214: 21654
A215: CALDAS | B215: CALDAS | C215: 2018 | D215: 7655 | E215: 7868 | F215: 8070 | G215: 43413 | H215: 37638 | I215: 19048 | J215: 108169
A216: CALI | B216: CALI | C216: 2018 | D216: 26306 | E216: 26861 | F216: 27379 | G216: 145709 | H216: 125724 | I216: 64893 | J216: 363705
A217: CAQUETA | B217: CAQUETA | C217: 2018 | D217: 5189 | E217: 5219 | F217: 5278 | G217: 27471 | H217: 23102 | I217: 11414 | J217: 67265
A218: CARTAGENA | B218: CARTAGENA | C218: 2018 | D218: 16970 | E218: 17000 | F218: 17017 | G218: 85055 | H218: 67975 | I218: 34365 | J218: 204412
A219: CARTAGO | B219: CARTAGO | C219: 2018 | D219: 1529 | E219: 1592 | F219: 1651 | G219: 9088 | H219: 8094 | I219: 4286 | J219: 23119
A220: CASANARE | B220: CASANARE | C220: 2018 | D220: 5027 | E220: 5067 | F220: 5113 | G220: 26080 | H220: 21217 | I220: 10378 | J220: 62788
A221: CAUCA | B221: CAUCA | C221: 2018 | D221: 21081 | E221: 21335 | F221: 21616 | G221: 111421 | H221: 92063 | I221: 45192 | J221: 270292
A222: CESAR | B222: CESAR | C222: 2018 | D222: 15758 | E222: 15849 | F222: 15964 | G222: 81848 | H222: 65227 | I222: 30102 | J222: 193141
A223: CHIA | B223: CHIA | C223: 2018 | D223: 1637 | E223: 1715 | F223: 1795 | G223: 10204 | H223: 9243 | I223: 4630 | J223: 25872
A224: CHOCO | B224: CHOCO | C224: 2018 | D224: 10404 | E224: 10501 | F224: 10579 | G224: 53863 | H224: 41336 | I224: 18035 | J224: 123813
A225: CIENAGA | B225: CIENAGA | C225: 2018 | D225: 2438 | E225: 2461 | F225: 2494 | G225: 13026 | H225: 10728 | I225: 5076 | J225: 31324
A226: CORDOBA | B226: CORDOBA | C226: 2018 | D226: 21181 | E226: 21424 | F226: 21710 | G226: 112365 | H226: 93605 | I226: 46162 | J226: 273842
A227: CUCUTA | B227: CUCUTA | C227: 2018 | D227: 10887 | E227: 11099 | F227: 11308 | G227: 59570 | H227: 50722 | I227: 25507 | J227: 147107
A228: CUNDINAMARCA | B228: CUNDINAMARCA | C228: 2018 | D228: 20236 | E228: 20623 | F228: 21021 | G228: 112439 | H228: 98705 | I228: 50112 | J228: 282277
A229: DOSQUEBRADAS | B229: DOSQUEBRADAS | C229: 2018 | D229: 2862 | E229: 2892 | F229: 2922 | G229: 15107 | H229: 12773 | I229: 6717 | J229: 37519
A230: DUITAMA | B230: DUITAMA | C230: 2018 | D230: 1720 | E230: 1753 | F230: 1774 | G230: 9506 | H230: 8363 | I230: 4368 | J230: 24011
A231: ENVIGADO | B231: ENVIGADO | C231: 2018 | D231: 2112 | E231: 2163 | F231: 2210 | G231: 11727 | H231: 10084 | I231: 5273 | J231: 29294
A232: FACATATIVA | B232: FACATATIVA | C232: 2018 | D232: 2168 | E232: 2178 | F232: 2177 | G232: 11374 | H232: 9989 | I232: 5352 | J232: 28892
A233: FLORENCIA | B233: FLORENCIA | C233: 2018 | D233: 3121 | E233: 3115 | F233: 3074 | G233: 15462 | H233: 13372 | I233: 7112 | J233: 39020
A234: FLORIDABLANCA | B234: FLORIDABLANCA | C234: 2018 | D234: 4204 | E234: 4249 | F234: 4286 | G234: 21852 | H234: 17693 | I234: 8766 | J234: 52597
A235: FUNZA | B235: FUNZA | C235: 2018 | D235: 1382 | E235: 1417 | F235: 1454 | G235: 7714 | H235: 6422 | I235: 3113 | J235: 18703
A236: FUSAGASUGA | B236: FUSAGASUGA | C236: 2018 | D236: 1738 | E236: 1762 | F236: 1792 | G236: 9563 | H236: 8604 | I236: 4606 | J236: 24565
A237: GIRARDOT | B237: GIRARDOT | C237: 2018 | D237: 1449 | E237: 1436 | F237: 1431 | G237: 7131 | H237: 5926 | I237: 3120 | J237: 17608
A238: GIRON | B238: GIRON | C238: 2018 | D238: 2622 | E238: 2643 | F238: 2660 | G238: 13415 | H238: 10616 | I238: 5139 | J238: 31830
A239: GUAINIA | B239: GUAINIA | C239: 2018 | D239: 1295 | E239: 1305 | F239: 1322 | G239: 6905 | H239: 5823 | I239: 2837 | J239: 16887
A240: GUAVIARE | B240: GUAVIARE | C240: 2018 | D240: 1801 | E240: 1793 | F240: 1800 | G240: 9302 | H240: 7836 | I240: 3941 | J240: 22879
A241: HUILA | B241: HUILA | C241: 2018 | D241: 12761 | E241: 12725 | F241: 12720 | G241: 64130 | H241: 51730 | I241: 25386 | J241: 153966
A242: IBAGUE | B242: IBAGUE | C242: 2018 | D242: 6933 | E242: 7025 | F242: 7145 | G242: 37906 | H242: 34098 | I242: 18488 | J242: 97637
A243: IPIALES | B243: IPIALES | C243: 2018 | D243: 1936 | E243: 1949 | F243: 1951 | G243: 10167 | H243: 8379 | I243: 4074 | J243: 24571
A244: ITAGUI | B244: ITAGUI | C244: 2018 | D244: 3056 | E244: 3128 | F244: 3201 | G244: 16954 | H244: 14624 | I244: 7665 | J244: 42444
A245: JAMUNDI | B245: JAMUNDI | C245: 2018 | D245: 2590 | E245: 2628 | F245: 2666 | G245: 13742 | H245: 11107 | I245: 5315 | J245: 32830
A246: LA ESTRELLA | B246: LA ESTRELLA | C246: 2018 | D246: 827 | E246: 847 | F246: 867 | G246: 4570 | H246: 3882 | I246: 2002 | J246: 11321
A247: LA GUAJIRA | B247: LA GUAJIRA | C247: 2018 | D247: 8710 | E247: 8742 | F247: 8764 | G247: 44395 | H247: 35066 | I247: 16218 | J247: 104443
A248: LORICA | B248: LORICA | C248: 2018 | D248: 2105 | E248: 2099 | F248: 2100 | G248: 10537 | H248: 8530 | I248: 4236 | J248: 25403
A249: MAGANGUE | B249: MAGANGUE | C249: 2018 | D249: 2612 | E249: 2625 | F249: 2643 | G249: 13728 | H249: 11462 | I249: 5564 | J249: 33397
A250: MAGDALENA | B250: MAGDALENA | C250: 2018 | D250: 15981 | E250: 16155 | F250: 16348 | G250: 84569 | H250: 67700 | I250: 31096 | J250: 199713
A251: MAICAO | B251: MAICAO | C251: 2018 | D251: 4200 | E251: 4184 | F251: 4173 | G251: 20848 | H251: 16434 | I251: 7696 | J251: 49151
A252: MALAMBO | B252: MALAMBO | C252: 2018 | D252: 2366 | E252: 2395 | F252: 2421 | G252: 12520 | H252: 10161 | I252: 4961 | J252: 30063
A253: MANIZALES | B253: MANIZALES | C253: 2018 | D253: 4718 | E253: 4816 | F253: 4917 | G253: 26457 | H253: 24008 | I253: 13205 | J253: 68587
A254: MEDELLIN | B254: MEDELLIN | C254: 2018 | D254: 29322 | E254: 29997 | F254: 30602 | G254: 161308 | H254: 137387 | I254: 71351 | J254: 400648
A255: META | B255: META | C255: 2018 | D255: 9579 | E255: 9707 | F255: 9847 | G255: 51306 | H255: 42929 | I255: 21203 | J255: 125285
A256: MONTERIA | B256: MONTERIA | C256: 2018 | D256: 9210 | E256: 9094 | F256: 8998 | G256: 44629 | H256: 36410 | I256: 18671 | J256: 108708
A257: MOSQUERA | B257: MOSQUERA | C257: 2018 | D257: 2063 | E257: 2111 | F257: 2152 | G257: 11277 | H257: 9238 | I257: 4469 | J257: 27136
A258: NARIÑO | B258: NARIÑO | C258: 2018 | D258: 14557 | E258: 14879 | F258: 15256 | G258: 80902 | H258: 68206 | I258: 32907 | J258: 197271
A259: NEIVA | B259: NEIVA | C259: 2018 | D259: 6014 | E259: 5995 | F259: 5944 | G259: 29287 | H259: 23277 | I259: 12066 | J259: 70574
A260: NORTE_DE_SANTANDER | B260: NORTE_DE_SANTANDER | C260: 2018 | D260: 13447 | E260: 13625 | F260: 13819 | G260: 72233 | H260: 61327 | I260: 30857 | J260: 178236
A261: PALMIRA | B261: PALMIRA | C261: 2018 | D261: 5127 | E261: 5195 | F261: 5265 | G261: 27128 | H261: 22172 | I261: 10800 | J261: 65365
A262: PASTO | B262: PASTO | C262: 2018 | D262: 5115 | E262: 5178 | F262: 5197 | G262: 28209 | H262: 25073 | I262: 12884 | J262: 71363
A263: PEREIRA | B263: PEREIRA | C263: 2018 | D263: 5917 | E263: 5986 | F263: 6059 | G263: 31576 | H263: 27227 | I263: 14470 | J263: 79332
A264: PIEDECUESTA | B264: PIEDECUESTA | C264: 2018 | D264: 2647 | E264: 2693 | F264: 2728 | G264: 14107 | H264: 11468 | I264: 5537 | J264: 33840
A265: PITALITO | B265: PITALITO | C265: 2018 | D265: 2603 | E265: 2579 | F265: 2558 | G265: 12662 | H265: 10037 | I265: 4993 | J265: 30250
A266: POPAYAN | B266: POPAYAN | C266: 2018 | D266: 4307 | E266: 4306 | F266: 4304 | G266: 22054 | H266: 18801 | I266: 9999 | J266: 55158
A267: PUTUMAYO | B267: PUTUMAYO | C267: 2018 | D267: 6707 | E267: 6793 | F267: 6878 | G267: 36233 | H267: 31101 | I267: 15715 | J267: 89927
A268: QUIBDO | B268: QUIBDO | C268: 2018 | D268: 2582 | E268: 2594 | F268: 2623 | G268: 13666 | H268: 11145 | I268: 5238 | J268: 32672
A269: QUINDIO | B269: QUINDIO | C269: 2018 | D269: 3171 | E269: 3207 | F269: 3255 | G269: 17135 | H269: 14918 | I269: 7867 | J269: 43175
A270: RIOHACHA | B270: RIOHACHA | C270: 2018 | D270: 4492 | E270: 4485 | F270: 4482 | G270: 22469 | H270: 17523 | I270: 8149 | J270: 52623
A271: RIONEGRO | B271: RIONEGRO | C271: 2018 | D271: 1776 | E271: 1783 | F271: 1793 | G271: 9370 | H271: 8257 | I271: 4350 | J271: 23770
A272: RISARALDA | B272: RISARALDA | C272: 2018 | D272: 3913 | E272: 3997 | F272: 4085 | G272: 21694 | H272: 18566 | I272: 9315 | J272: 53660
A273: SABANETA | B273: SABANETA | C273: 2018 | D273: 803 | E273: 807 | F273: 812 | G273: 4068 | H273: 3367 | I273: 1798 | J273: 10045
A274: SAHAGUN | B274: SAHAGUN | C274: 2018 | D274: 1898 | E274: 1903 | F274: 1911 | G274: 9758 | H274: 8217 | I274: 4172 | J274: 24058
A275: SAN_ANDRES | B275: SAN_ANDRES | C275: 2018 | D275: 970 | E275: 969 | F275: 965 | G275: 4790 | H275: 3766 | I275: 1881 | J275: 11402
A276: SANTA_MARTA | B276: SANTA_MARTA | C276: 2018 | D276: 8977 | E276: 9054 | F276: 9173 | G276: 48071 | H276: 40121 | I276: 19347 | J276: 116712
A277: SANTANDER | B277: SANTANDER | C277: 2018 | D277: 11696 | E277: 11948 | F277: 12213 | G277: 65371 | H277: 56996 | I277: 28827 | J277: 163407
A278: SINCELEJO | B278: SINCELEJO | C278: 2018 | D278: 5095 | E278: 5073 | F278: 5041 | G278: 25375 | H278: 20808 | I278: 10561 | J278: 61785
A279: SOACHA | B279: SOACHA | C279: 2018 | D279: 10721 | E279: 10987 | F279: 11231 | G279: 59047 | H279: 48303 | I279: 23238 | J279: 141819
A280: SOGAMOSO | B280: SOGAMOSO | C280: 2018 | D280: 1770 | E280: 1801 | F280: 1820 | G280: 9725 | H280: 8529 | I280: 4460 | J280: 24534
A281: SOLEDAD | B281: SOLEDAD | C281: 2018 | D281: 9835 | E281: 9954 | F281: 10059 | G281: 51558 | H281: 42224 | I281: 21410 | J281: 125251
A282: SUCRE | B282: SUCRE | C282: 2018 | D282: 12285 | E282: 12348 | F282: 12429 | G282: 63569 | H282: 52011 | I282: 25486 | J282: 153495
A283: TOLIMA | B283: TOLIMA | C283: 2018 | D283: 12615 | E283: 12829 | F283: 13050 | G283: 69057 | H283: 59366 | I283: 29879 | J283: 171352
A284: TULUA | B284: TULUA | C284: 2018 | D284: 2753 | E284: 2816 | F284: 2878 | G284: 15410 | H284: 13373 | I284: 6940 | J284: 38601
A285: TUMACO | B285: TUMACO | C285: 2018 | D285: 5695 | E285: 5701 | F285: 5715 | G285: 29176 | H285: 23435 | I285: 10766 | J285: 69092
A286: TUNJA | B286: TUNJA | C286: 2018 | D286: 2525 | E286: 2556 | F286: 2569 | G286: 13617 | H286: 12065 | I286: 6473 | J286: 34724
A287: TURBO | B287: TURBO | C287: 2018 | D287: 2635 | E287: 2718 | F287: 2805 | G287: 15224 | H287: 12762 | I287: 5975 | J287: 36766
A288: URIBIA | B288: URIBIA | C288: 2018 | D288: 4505 | E288: 4619 | F288: 4692 | G288: 23990 | H288: 18238 | I288: 8085 | J288: 55005
A289: VALLE | B289: VALLE | C289: 2018 | D289: 13023 | E289: 13262 | F289: 13512 | G289: 70553 | H289: 58670 | I289: 29053 | J289: 171788
A290: VALLEDUPAR | B290: VALLEDUPAR | C290: 2018 | D290: 10065 | E290: 10048 | F290: 10072 | G290: 51187 | H290: 41189 | I290: 19539 | J290: 121987
A291: VAUPES | B291: VAUPES | C291: 2018 | D291: 1118 | E291: 1164 | F291: 1217 | G291: 6765 | H291: 5766 | I291: 2687 | J291: 16435
A292: VICHADA | B292: VICHADA | C292: 2018 | D292: 2662 | E292: 2696 | F292: 2766 | G292: 14714 | H292: 12443 | I292: 6060 | J292: 35983
A293: VILLAVICENCIO | B293: VILLAVICENCIO | C293: 2018 | D293: 8368 | E293: 8486 | F293: 8602 | G293: 45044 | H293: 38352 | I293: 19767 | J293: 111765
A294: YOPAL | B294: YOPAL | C294: 2018 | D294: 2926 | E294: 2949 | F294: 2975 | G294: 15361 | H294: 12906 | I294: 6599 | J294: 37841
A295: YUMBO | B295: YUMBO | C295: 2018 | D295: 1432 | E295: 1464 | F295: 1498 | G295: 8029 | H295: 6954 | I295: 3501 | J295: 19982
A296: ZIPAQUIRA | B296: ZIPAQUIRA | C296: 2018 | D296: 2038 | E296: 2084 | F296: 2125 | G296: 11202 | H296: 9291 | I296: 4512 | J296: 27130
A297: COLOMBIA | B297: COLOMBIA | C297: 2018 | D297: 771531 | E297: 781474 | F297: 791611 | G297: 4117933 | H297: 3436080 | I297: 1709901 | J297: 10055525
B298: AMAZONAS | C298: 2019 | D298: 1918 | E298: 1922 | F298: 1926 | G298: 9812 | H298: 8041 | I298: 3964 | J298: 23743
B299: ANTIOQUIA | C299: 2019 | D299: 41458 | E299: 42048 | F299: 42649 | G299: 223136 | H299: 189015 | I299: 93173 | J299: 547973
B300: APARTADO | C300: 2019 | D300: 2399 | E300: 2396 | F300: 2396 | G300: 12241 | H300: 10152 | I300: 4988 | J300: 29777
B301: ARAUCA | C301: 2019 | D301: 5075 | E301: 5138 | F301: 5208 | G301: 26981 | H301: 22552 | I301: 11260 | J301: 66001
B302: ARMENIA | C302: 2019 | D302: 3462 | E302: 3495 | F302: 3533 | G302: 18407 | H302: 16110 | I302: 8689 | J302: 46739
B303: ATLANTICO | C303: 2019 | D303: 11284 | E303: 11302 | F303: 11315 | G303: 57605 | H303: 47727 | I303: 23675 | J303: 140322
B304: BARRANCABERMEJA | C304: 2019 | D304: 3542 | E304: 3541 | F304: 3526 | G304: 17725 | H304: 14474 | I304: 7399 | J304: 43124
B305: BARRANQUILLA | C305: 2019 | D305: 18894 | E305: 19067 | F305: 19228 | G305: 98508 | H305: 81304 | I305: 40686 | J305: 239726
B306: BELLO | C306: 2019 | D306: 6890 | E306: 7042 | F306: 7185 | G306: 37704 | H306: 31869 | I306: 16283 | J306: 93041
B307: BOGOTA | C307: 2019 | D307: 97012 | E307: 98758 | F307: 100388 | G307: 522753 | H307: 440540 | I307: 222766 | J307: 1286447
B308: BOLIVAR | C308: 2019 | D308: 20076 | E308: 20120 | F308: 20173 | G308: 102488 | H308: 83697 | I308: 40629 | J308: 246987
B309: BOYACA | C309: 2019 | D309: 11927 | E309: 12184 | F309: 12441 | G309: 65900 | H309: 56962 | I309: 28633 | J309: 163936
B310: BUCARAMANGA | C310: 2019 | D310: 8103 | E310: 8185 | F310: 8260 | G310: 42126 | H310: 34610 | I310: 17356 | J310: 102352
B311: BUENAVENTURA | C311: 2019 | D311: 6882 | E311: 6984 | F311: 7114 | G311: 37305 | H311: 30352 | I311: 13820 | J311: 88591
B312: BUGA | C312: 2019 | D312: 1603 | E312: 1630 | F312: 1653 | G312: 8674 | H312: 7381 | I312: 3817 | J312: 21525
B313: CALDAS | C313: 2019 | D313: 7615 | E313: 7817 | F313: 8020 | G313: 43010 | H313: 37380 | I313: 18885 | J313: 107295
B314: CALI | C314: 2019 | D314: 26068 | E314: 26598 | F314: 27098 | G314: 143915 | H314: 125013 | I314: 64617 | J314: 360643
B315: CAQUETA | C315: 2019 | D315: 5102 | E315: 5135 | F315: 5163 | G315: 26738 | H315: 22535 | I315: 11308 | J315: 65744
B316: CARTAGENA | C316: 2019 | D316: 16980 | E316: 17019 | F316: 17041 | G316: 85202 | H316: 67982 | I316: 34099 | J316: 204324
B317: CARTAGO | C317: 2019 | D317: 1516 | E317: 1578 | F317: 1638 | G317: 8979 | H317: 8012 | I317: 4234 | J317: 22863
B318: CASANARE | C318: 2019 | D318: 5022 | E318: 5062 | F318: 5100 | G318: 25984 | H318: 21234 | I318: 10469 | J318: 62787
B319: CAUCA | C319: 2019 | D319: 20967 | E319: 21223 | F319: 21491 | G319: 110612 | H319: 92392 | I319: 45688 | J319: 270183
B320: CESAR | C320: 2019 | D320: 16170 | E320: 16231 | F320: 16297 | G320: 83038 | H320: 67077 | I320: 31487 | J320: 197899
B321: CHIA | C321: 2019 | D321: 1704 | E321: 1786 | F321: 1867 | G321: 10604 | H321: 9711 | I321: 4877 | J321: 27059
B322: CHOCO | C322: 2019 | D322: 10361 | E322: 10451 | F322: 10526 | G322: 53526 | H322: 42113 | I322: 18789 | J322: 124954
B323: CIENAGA | C323: 2019 | D323: 2471 | E323: 2489 | F323: 2516 | G323: 13062 | H323: 10933 | I323: 5270 | J323: 31781
B324: CORDOBA | C324: 2019 | D324: 21269 | E324: 21507 | F324: 21762 | G324: 112243 | H324: 93563 | I324: 46584 | J324: 274152
B325: CUCUTA | C325: 2019 | D325: 11136 | E325: 11332 | F325: 11521 | G325: 60306 | H325: 51394 | I325: 26142 | J325: 149363
B326: CUNDINAMARCA | C326: 2019 | D326: 20484 | E326: 20828 | F326: 21208 | G326: 112790 | H326: 99133 | I326: 50748 | J326: 283879
B327: DOSQUEBRADAS | C327: 2019 | D327: 2860 | E327: 2889 | F327: 2918 | G327: 15058 | H327: 12754 | I327: 6699 | J327: 37429
B328: DUITAMA | C328: 2019 | D328: 1716 | E328: 1745 | F328: 1763 | G328: 9395 | H328: 8287 | I328: 4371 | J328: 23816
B329: ENVIGADO | C329: 2019 | D329: 2122 | E329: 2174 | F329: 2224 | G329: 11797 | H329: 10197 | I329: 5303 | J329: 29521
B330: FACATATIVA | C330: 2019 | D330: 2182 | E330: 2189 | F330: 2182 | G330: 11339 | H330: 9986 | I330: 5410 | J330: 28917
B331: FLORENCIA | C331: 2019 | D331: 3084 | E331: 3077 | F331: 3025 | G331: 15121 | H331: 13105 | I331: 7077 | J331: 38328
B332: FLORIDABLANCA | C332: 2019 | D332: 4216 | E332: 4262 | F332: 4305 | G332: 21953 | H332: 17880 | I332: 8832 | J332: 52970
B333: FUNZA | C333: 2019 | D333: 1417 | E333: 1454 | F333: 1490 | G333: 7912 | H333: 6652 | I333: 3236 | J333: 19290
B334: FUSAGASUGA | C334: 2019 | D334: 1752 | E334: 1775 | F334: 1804 | G334: 9555 | H334: 8556 | I334: 4607 | J334: 24522
B335: GIRARDOT | C335: 2019 | D335: 1436 | E335: 1423 | F335: 1414 | G335: 7001 | H335: 5795 | I335: 3070 | J335: 17280
B336: GIRON | C336: 2019 | D336: 2640 | E336: 2665 | F336: 2682 | G336: 13537 | H336: 10776 | I336: 5202 | J336: 32197
B337: GUAINIA | C337: 2019 | D337: 1316 | E337: 1324 | F337: 1338 | G337: 6953 | H337: 5869 | I337: 2910 | J337: 17070
B338: GUAVIARE | C338: 2019 | D338: 1766 | E338: 1758 | F338: 1762 | G338: 9039 | H338: 7626 | I338: 3889 | J338: 22316
B339: HUILA | C339: 2019 | D339: 12775 | E339: 12745 | F339: 12731 | G339: 63984 | H339: 51770 | I339: 25386 | J339: 153871
B340: IBAGUE | C340: 2019 | D340: 6883 | E340: 6972 | F340: 7078 | G340: 37342 | H340: 33474 | I340: 18257 | J340: 96151
B341: IPIALES | C341: 2019 | D341: 1900 | E341: 1913 | F341: 1912 | G341: 9942 | H341: 8343 | I341: 4097 | J341: 24294
B342: ITAGUI | C342: 2019 | D342: 3058 | E342: 3132 | F342: 3205 | G342: 16994 | H342: 14732 | I342: 7676 | J342: 42607
B343: JAMUNDI | C343: 2019 | D343: 2651 | E343: 2689 | F343: 2724 | G343: 14017 | H343: 11410 | I343: 5465 | J343: 33616
B344: LA ESTRELLA | C344: 2019 | D344: 838 | E344: 859 | F344: 878 | G344: 4632 | H344: 3955 | I344: 2030 | J344: 11495
B345: LA GUAJIRA | C345: 2019 | D345: 8933 | E345: 8956 | F345: 8966 | G345: 45107 | H345: 36161 | I345: 17023 | J345: 107257
B346: LORICA | C346: 2019 | D346: 2106 | E346: 2102 | F346: 2096 | G346: 10492 | H346: 8513 | I346: 4257 | J346: 25358
B347: MAGANGUE | C347: 2019 | D347: 2653 | E347: 2660 | F347: 2668 | G347: 13761 | H347: 11606 | I347: 5719 | J347: 33754
B348: MAGDALENA | C348: 2019 | D348: 16283 | E348: 16424 | F348: 16564 | G348: 85140 | H348: 69029 | I348: 32231 | J348: 202964
B349: MAICAO | C349: 2019 | D349: 4311 | E349: 4290 | F349: 4265 | G349: 21187 | H349: 16970 | I349: 8098 | J349: 50520
B350: MALAMBO | C350: 2019 | D350: 2434 | E350: 2462 | F350: 2486 | G350: 12799 | H350: 10401 | I350: 5061 | J350: 30747
B351: MANIZALES | C351: 2019 | D351: 4693 | E351: 4789 | F351: 4886 | G351: 26224 | H351: 23841 | I351: 13092 | J351: 68043
B352: MEDELLIN | C352: 2019 | D352: 29066 | E352: 29729 | F352: 30349 | G352: 160076 | H352: 136988 | I352: 70745 | J352: 398158
B353: META | C353: 2019 | D353: 9594 | E353: 9721 | F353: 9847 | G353: 51149 | H353: 42912 | I353: 21412 | J353: 125320
B354: MONTERIA | C354: 2019 | D354: 9298 | E354: 9184 | F354: 9070 | G354: 44857 | H354: 36614 | I354: 18975 | J354: 109516
B355: MOSQUERA | C355: 2019 | D355: 2138 | E355: 2187 | F355: 2231 | G355: 11677 | H355: 9664 | I355: 4690 | J355: 28262
B356: NARIÑO | C356: 2019 | D356: 14300 | E356: 14617 | F356: 14969 | G356: 79220 | H356: 68184 | I356: 33332 | J356: 195705
B357: NEIVA | C357: 2019 | D357: 6058 | E357: 6045 | F357: 5990 | G357: 29420 | H357: 23459 | I357: 12149 | J357: 71018
B358: NORTE_DE_SANTANDER | C358: 2019 | D358: 13797 | E358: 13960 | F358: 14130 | G358: 73308 | H358: 62185 | I358: 31611 | J358: 181234
B359: PALMIRA | C359: 2019 | D359: 5141 | E359: 5206 | F359: 5276 | G359: 27119 | H359: 22318 | I359: 10886 | J359: 65599
B360: PASTO | C360: 2019 | D360: 4998 | E360: 5057 | F360: 5075 | G360: 27470 | H360: 24864 | I360: 12898 | J360: 70307
B361: PEREIRA | C361: 2019 | D361: 5861 | E361: 5930 | F361: 5998 | G361: 31188 | H361: 26952 | I361: 14301 | J361: 78439
B362: PIEDECUESTA | C362: 2019 | D362: 2684 | E362: 2729 | F362: 2770 | G362: 14321 | H362: 11711 | I362: 5637 | J362: 34439
B363: PITALITO | C363: 2019 | D363: 2632 | E363: 2611 | F363: 2588 | G363: 12767 | H363: 10149 | I363: 5046 | J363: 30550
B364: POPAYAN | C364: 2019 | D364: 4317 | E364: 4318 | F364: 4319 | G364: 22105 | H364: 18858 | I364: 10019 | J364: 55301
B365: PUTUMAYO | C365: 2019 | D365: 6667 | E365: 6752 | F365: 6827 | G365: 35763 | H365: 30960 | I365: 15849 | J365: 89399
B366: QUIBDO | C366: 2019 | D366: 2555 | E366: 2564 | F366: 2594 | G366: 13492 | H366: 11300 | I366: 5439 | J366: 32825
B367: QUINDIO | C367: 2019 | D367: 3143 | E367: 3176 | F367: 3216 | G367: 16919 | H367: 14769 | I367: 7776 | J367: 42680
B368: RIOHACHA | C368: 2019 | D368: 4516 | E368: 4501 | F368: 4486 | G368: 22370 | H368: 17750 | I368: 8417 | J368: 53023
B369: RIONEGRO | C369: 2019 | D369: 1772 | E369: 1777 | F369: 1785 | G369: 9291 | H369: 8304 | I369: 4435 | J369: 23815
B370: RISARALDA | C370: 2019 | D370: 3900 | E370: 3993 | F370: 4075 | G370: 21597 | H370: 18523 | I370: 9283 | J370: 53478
B371: SABANETA | C371: 2019 | D371: 825 | E371: 831 | F371: 832 | G371: 4184 | H371: 3483 | I371: 1848 | J371: 10347
B372: SAHAGUN | C372: 2019 | D372: 1906 | E372: 1910 | F372: 1916 | G372: 9750 | H372: 8214 | I372: 4215 | J372: 24095
B373: SAN_ANDRES | C373: 2019 | D373: 963 | E373: 963 | F373: 961 | G373: 4763 | H373: 3741 | I373: 1856 | J373: 11321
B374: SANTA_MARTA | C374: 2019 | D374: 9130 | E374: 9196 | F374: 9293 | G374: 48376 | H374: 40991 | I374: 20110 | J374: 118770
B375: SANTANDER | C375: 2019 | D375: 11840 | E375: 12061 | F375: 12308 | G375: 65406 | H375: 56991 | I375: 29130 | J375: 163835
B376: SINCELEJO | C376: 2019 | D376: 5183 | E376: 5160 | F376: 5118 | G376: 25660 | H376: 21088 | I376: 10779 | J376: 62645
B377: SOACHA | C377: 2019 | D377: 10994 | E377: 11264 | F377: 11516 | G377: 60511 | H377: 50018 | I377: 24134 | J377: 146179
B378: SOGAMOSO | C378: 2019 | D378: 1758 | E378: 1788 | F378: 1802 | G378: 9574 | H378: 8412 | I378: 4450 | J378: 24238
B379: SOLEDAD | C379: 2019 | D379: 10122 | E379: 10232 | F379: 10326 | G379: 52696 | H379: 43216 | I379: 21847 | J379: 128085
... 1189 more rows

Sheet 4 MAT SECTOR
B1: MATRICULA POR GRADOS SEGÚN SECTOR | I1: Indice | AM1: Indice
B2: =+'1 ESTAB'!B2 -> Corte 2025
D3: MATRICULA TOTAL X GRADO
B4: ENTIDAD | D4: 2014 | G4: 2015 | J4: 2016 | M4: 2017 | P4: 2018 | S4: 2019 | V4: 2020 | Y4: =+'1 ESTAB'!K4 -> 2021 | AB4: =+'1 ESTAB'!L4 -> 2022 | AE4: =+'1 ESTAB'!M4 -> 2023 | AH4: =+'1 ESTAB'!N4 -> 2024 | AK4: =+'1 ESTAB'!O4 -> 2025
B5: URIBIA | C5: Grado | D5: Oficial | E5: Contratada | F5: Privada | G5: Oficial | H5: Contratada | I5: Privada | J5: Oficial | K5: Contratada | L5: Privada | M5: Oficial | N5: Contratada | O5: Privada | P5: Oficial | Q5: Contratada | R5: Privada | S5: Oficial | T5: Contratada | U5: Privada | V5: Oficial | W5: Contratada | X5: Privada | Y5: Oficial | Z5: Contratada | AA5: Privada | AB5: Oficial | AC5: Contratada | AD5: Privada | AE5: Oficial | AF5: Contratada | AG5: Privada | AH5: Oficial | AI5: Contratada | AJ5: Privada | AK5: Oficial | AL5: Contratada | AM5: Privada
C6: Prejardín | D6: =+SUMIFS($D$201:$D$3234,$B$201:$B$3234,$B$5,$C$201:$C$3234,C6) -> 0 | E6: =+SUMIFS($E$201:$E$3234,$B$201:$B$3234,$B$5,$C$201:$C$3234,C6) -> 0 | F6: =+SUMIFS($F$201:$F$3234,$B$201:$B$3234,$B$5,$C$201:$C$3234,C6) -> 16 | G6: =+SUMIFS($G$201:$G$3234,$B$201:$B$3234,$B$5,$C$201:$C$3234,C6) -> 0 | H6: =+SUMIFS($H$201:$H$3234,$B$201:$B$3234,$B$5,$C$201:$C$3234,C6) -> 0 | I6: =+SUMIFS($I$201:$I$3234,$B$201:$B$3234,$B$5,$C$201:$C$3234,C6) -> 7 | J6: =+SUMIFS($J$201:$J$3234,$B$201:$B$3234,$B$5,$C$201:$C$3234,C6) -> 0 | K6: =+SUMIFS($K$201:$K$3234,$B$201:$B$3234,$B$5,$C$201:$C$3234,C6) -> 0 | L6: =+SUMIFS($L$201:$L$3234,$B$201:$B$3234,$B$5,$C$201:$C$3234,C6) -> 9 | M6: =+SUMIFS($M$201:$M$3234,$B$201:$B$3234,$B$5,$C$201:$C$3234,C6) -> 0 | N6: =+SUMIFS($N$201:$N$3234,$B$201:$B$3234,$B$5,$C$201:$C$3234,C6) -> 0 | O6: =+SUMIFS($O$201:$O$3234,$B$201:$B$3234,$B$5,$C$201:$C$3234,C6) -> 7 | P6: =+SUMIFS($P$201:$P$3234,$B$201:$B$3234,$B$5,$C$201:$C$3234,C6) -> 0 | Q6: =+SUMIFS($Q$201:$Q$3234,$B$201:$B$3234,$B$5,$C$201:$C$3234,C6) -> 0 | R6: =+SUMIFS($R$201:$R$3234,$B$201:$B$3234,$B$5,$C$201:$C$3234,C6) -> 18 | S6: =+SUMIFS($S$201:$S$3234,$B$201:$B$3234,$B$5,$C$201:$C$3234,C6) -> 74 | T6: =+SUMIFS($T$201:$T$3234,$B$201:$B$3234,$B$5,$C$201:$C$3234,C6) -> 0 | U6: =+SUMIFS($U$201:$U$3234,$B$201:$B$3234,$B$5,$C$201:$C$3234,C6) -> 1 | V6: =+SUMIFS($V$201:$V$3234,$B$201:$B$3234,$B$5,$C$201:$C$3234,C6) -> 67 | W6: =+SUMIFS($W$201:$W$3234,$B$201:$B$3234,$B$5,$C$201:$C$3234,C6) -> 0 | X6: =+SUMIFS($X$201:$X$3234,$B$201:$B$3234,$B$5,$C$201:$C$3234,C6) -> 6 | Y6: =+SUMIFS($Y$201:$Y$3234,$B$201:$B$3234,$B$5,$C$201:$C$3234,C6) -> 70 | Z6: =+SUMIFS($Z$201:$Z$3234,$B$201:$B$3234,$B$5,$C$201:$C$3234,C6) -> 0 | AA6: =+SUMIFS($AA$201:$AA$3234,$B$201:$B$3234,$B$5,$C$201:$C$3234,C6) -> 3 | AB6: =+SUMIFS($AB$201:$AB$3234,$B$201:$B$3234,$B$5,$C$201:$C$3234,C6) -> 78 | AC6: =+SUMIFS($AC$201:$AC$3234,$B$201:$B$3234,$B$5,$C$201:$C$3234,C6) -> 0 | AD6: =+SUMIFS($AD$201:$AD$3234,$B$201:$B$3234,$B$5,$C$201:$C$3234,C6) -> 15 | AE6: =+SUMIFS($AE$201:$AE$3234,$B$201:$B$3234,$B$5,$C$201:$C$3234,C6) -> 110 | AF6: =+SUMIFS($AF$201:$AF$3234,$B$201:$B$3234,$B$5,$C$201:$C$3234,C6) -> 0 | AG6: =+SUMIFS($AG$201:$AG$3234,$B$201:$B$3234,$B$5,$C$201:$C$3234,C6) -> 7 | AH6: =+SUMIFS($AH$201:$AH$3234,$B$201:$B$3234,$B$5,$C$201:$C$3234,C6) -> 204 | AI6: =+SUMIFS($AI$201:$AI$3234,$B$201:$B$3234,$B$5,$C$201:$C$3234,C6) -> 0 | AJ6: =+SUMIFS($AJ$201:$AJ$3234,$B$201:$B$3234,$B$5,$C$201:$C$3234,C6) -> 0 | AK6: =+SUMIFS($AK$201:$AK$3234,$B$201:$B$3234,$B$5,$C$201:$C$3234,C6) -> 372 | AL6: =+SUMIFS($AL$201:$AL$3234,$B$201:$B$3234,$B$5,$C$201:$C$3234,C6) -> 93 | AM6: =+SUMIFS($AM$201:$AM$3234,$B$201:$B$3234,$B$5,$C$201:$C$3234,C6) -> 20
C7: Jardín | D7: 0 | E7: 0 | F7: 17 | G7: 0 | H7: 0 | I7: 15 | J7: 0 | K7: 0 | L7: 10 | M7: 0 | N7: 0 | O7: 10 | P7: 0 | Q7: 0 | R7: 8 | S7: 0 | T7: 0 | U7: 12 | V7: 0 | W7: 0 | X7: 6 | Y7: 0 | Z7: 0 | AA7: 12 | AB7: 0 | AC7: 0 | AD7: 5 | AE7: 0 | AF7: 0 | AG7: 14 | AH7: 76 | AI7: 0 | AJ7: 5 | AK7: 318 | AL7: 135 | AM7: 8
C8: Transición | D8: 827 | E8: 2818 | F8: 13 | G8: 887 | H8: 2969 | I8: 16 | J8: 1217 | K8: 3096 | L8: 15 | M8: 3422 | N8: 663 | O8: 8 | P8: 3670 | Q8: 787 | R8: 12 | S8: 3133 | T8: 1605 | U8: 9 | V8: 3824 | W8: 1820 | X8: 12 | Y8: 3551 | Z8: 3504 | AA8: 8 | AB8: 3140 | AC8: 3473 | AD8: 11 | AE8: 2809 | AF8: 3205 | AG8: 7 | AH8: 3394 | AI8: 3412 | AJ8: 12 | AK8: 3899 | AL8: 4104 | AM8: 12
C9: Primero | D9: 1444 | E9: 4708 | F9: 10 | G9: 1313 | H9: 4693 | I9: 11 | J9: 2056 | K9: 4090 | L9: 14 | M9: 5384 | N9: 763 | O9: 13 | P9: 5068 | Q9: 1150 | R9: 8 | S9: 4623 | T9: 2076 | U9: 11 | V9: 4526 | W9: 2513 | X9: 10 | Y9: 4423 | Z9: 4269 | AA9: 11 | AB9: 3794 | AC9: 5272 | AD9: 13 | AE9: 3635 | AF9: 4846 | AG9: 18 | AH9: 3374 | AI9: 4823 | AJ9: 9 | AK9: 3213 | AL9: 5873 | AM9: 12
C10: Segundo | D10: 1543 | E10: 4256 | F10: 14 | G10: 1293 | H10: 4742 | I10: 9 | J10: 2056 | K10: 3844 | L10: 8 | M10: 5100 | N10: 881 | O10: 8 | P10: 5271 | Q10: 1077 | R10: 6 | S10: 4876 | T10: 1628 | U10: 8 | V10: 4802 | W10: 1999 | X10: 9 | Y10: 4723 | Z10: 3655 | AA10: 8 | AB10: 3988 | AC10: 4847 | AD10: 14 | AE10: 3869 | AF10: 5098 | AG10: 13 | AH10: 3759 | AI10: 5236 | AJ10: 17 | AK10: 3318 | AL10: 6023 | AM10: 15
C11: Tercero | D11: 1187 | E11: 3441 | F11: 6 | G11: 1443 | H11: 3682 | I11: 9 | J11: 2060 | K11: 3330 | L11: 5 | M11: 4780 | N11: 580 | O11: 9 | P11: 4704 | Q11: 903 | R11: 5 | S11: 4616 | T11: 1494 | U11: 7 | V11: 4923 | W11: 1649 | X11: 10 | Y11: 4747 | Z11: 3193 | AA11: 5 | AB11: 4399 | AC11: 3993 | AD11: 7 | AE11: 4104 | AF11: 4683 | AG11: 13 | AH11: 3849 | AI11: 5583 | AJ11: 15 | AK11: 3651 | AL11: 6433 | AM11: 11
C12: Cuarto | D12: 1133 | E12: 2245 | F12: 10 | G12: 1207 | H12: 2794 | I12: 6 | J12: 1841 | K12: 2370 | L12: 5 | M12: 3920 | N12: 592 | O12: 6 | P12: 4134 | Q12: 663 | R12: 4 | S12: 4224 | T12: 952 | U12: 4 | V12: 4427 | W12: 1300 | X12: 6 | Y12: 4634 | Z12: 2528 | AA12: 8 | AB12: 4230 | AC12: 3529 | AD12: 7 | AE12: 3975 | AF12: 3694 | AG12: 7 | AH12: 3892 | AI12: 4765 | AJ12: 15 | AK12: 3787 | AL12: 5789 | AM12: 16
C13: Quinto | D13: 1084 | E13: 1159 | F13: 1 | G13: 1100 | H13: 1733 | I13: 6 | J13: 1821 | K13: 1752 | L13: 4 | M13: 3461 | N13: 413 | O13: 5 | P13: 3736 | Q13: 594 | R13: 4 | S13: 3664 | T13: 973 | U13: 8 | V13: 3971 | W13: 1132 | X13: 3 | Y13: 4496 | Z13: 2306 | AA13: 6 | AB13: 4441 | AC13: 2904 | AD13: 5 | AE13: 4646 | AF13: 2987 | AG13: 6 | AH13: 4479 | AI13: 3795 | AJ13: 8 | AK13: 4086 | AL13: 5201 | AM13: 15
C14: Sexto | D14: 1209 | E14: 483 | F14: 0 | G14: 1132 | H14: 704 | I14: 0 | J14: 1078 | K14: 956 | L14: 0 | M14: 1717 | N14: 727 | O14: 0 | P14: 2183 | Q14: 1008 | R14: 0 | S14: 1492 | T14: 2085 | U14: 0 | V14: 731 | W14: 3058 | X14: 0 | Y14: 926 | Z14: 3336 | AA14: 0 | AB14: 1280 | AC14: 3963 | AD14: 0 | AE14: 1275 | AF14: 4205 | AG14: 0 | AH14: 1111 | AI14: 4633 | AJ14: 0 | AK14: 1428 | AL14: 5364 | AM14: 0
C15: Septimo | D15: 910 | E15: 225 | F15: 0 | G15: 881 | H15: 536 | I15: 0 | J15: 1047 | K15: 509 | L15: 0 | M15: 1442 | N15: 319 | O15: 0 | P15: 1617 | Q15: 476 | R15: 0 | S15: 1290 | T15: 1349 | U15: 0 | V15: 1371 | W15: 1697 | X15: 0 | Y15: 1054 | Z15: 2630 | AA15: 0 | AB15: 1179 | AC15: 2585 | AD15: 0 | AE15: 1232 | AF15: 3096 | AG15: 0 | AH15: 1271 | AI15: 3293 | AJ15: 0 | AK15: 1438 | AL15: 3485 | AM15: 0
C16: Octavo | D16: 546 | E16: 291 | F16: 0 | G16: 577 | H16: 381 | I16: 0 | J16: 610 | K16: 567 | L16: 0 | M16: 1278 | N16: 95 | O16: 0 | P16: 1376 | Q16: 141 | R16: 0 | S16: 1352 | T16: 455 | U16: 0 | V16: 1367 | W16: 838 | X16: 0 | Y16: 1326 | Z16: 1660 | AA16: 0 | AB16: 1338 | AC16: 1969 | AD16: 0 | AE16: 1107 | AF16: 1987 | AG16: 0 | AH16: 1136 | AI16: 2450 | AJ16: 0 | AK16: 1062 | AL16: 2995 | AM16: 0
C17: Noveno | D17: 421 | E17: 198 | F17: 0 | G17: 522 | H17: 207 | I17: 0 | J17: 508 | K17: 324 | L17: 0 | M17: 870 | N17: 134 | O17: 0 | P17: 907 | Q17: 237 | R17: 0 | S17: 991 | T17: 257 | U17: 0 | V17: 1279 | W17: 271 | X17: 0 | Y17: 1377 | Z17: 730 | AA17: 0 | AB17: 1334 | AC17: 1307 | AD17: 0 | AE17: 1235 | AF17: 1437 | AG17: 0 | AH17: 1149 | AI17: 1444 | AJ17: 0 | AK17: 1283 | AL17: 1826 | AM17: 0
C18: Decimo | D18: 324 | E18: 103 | F18: 0 | G18: 407 | H18: 105 | I18: 0 | J18: 418 | K18: 193 | L18: 0 | M18: 517 | N18: 230 | O18: 0 | P18: 656 | Q18: 187 | R18: 0 | S18: 672 | T18: 264 | U18: 0 | V18: 776 | W18: 267 | X18: 0 | Y18: 788 | Z18: 685 | AA18: 0 | AB18: 991 | AC18: 802 | AD18: 0 | AE18: 993 | AF18: 1149 | AG18: 0 | AH18: 1119 | AI18: 1082 | AJ18: 0 | AK18: 891 | AL18: 1253 | AM18: 0
C19: Once | D19: 274 | E19: 114 | F19: 0 | G19: 294 | H19: 88 | I19: 0 | J19: 348 | K19: 89 | L19: 0 | M19: 454 | N19: 80 | O19: 0 | P19: 480 | Q19: 137 | R19: 0 | S19: 559 | T19: 145 | U19: 0 | V19: 727 | W19: 122 | X19: 0 | Y19: 727 | Z19: 244 | AA19: 0 | AB19: 704 | AC19: 515 | AD19: 0 | AE19: 893 | AF19: 468 | AG19: 0 | AH19: 981 | AI19: 644 | AJ19: 0 | AK19: 844 | AL19: 858 | AM19: 0
C20: 12º Normal | D20: 13 | E20: 1 | F20: 0 | G20: 25 | H20: 0 | I20: 0 | J20: 21 | K20: 0 | L20: 0 | M20: 198 | N20: 0 | O20: 0 | P20: 181 | Q20: 0 | R20: 0 | S20: 7 | T20: 0 | U20: 0 | V20: 0 | W20: 0 | X20: 0 | Y20: 433 | Z20: 0 | AA20: 0 | AB20: 27 | AC20: 0 | AD20: 0 | AE20: 1 | AF20: 0 | AG20: 0 | AH20: 0 | AI20: 0 | AJ20: 0 | AK20: 0 | AL20: 0 | AM20: 0
C21: 13º Normal | D21: 11 | E21: 4 | F21: 0 | G21: 1 | H21: 10 | I21: 0 | J21: 9 | K21: 0 | L21: 0 | M21: 42 | N21: 0 | O21: 0 | P21: 24 | Q21: 0 | R21: 0 | S21: 151 | T21: 0 | U21: 0 | V21: 22 | W21: 0 | X21: 0 | Y21: 108 | Z21: 0 | AA21: 0 | AB21: 407 | AC21: 0 | AD21: 0 | AE21: 64 | AF21: 0 | AG21: 0 | AH21: 0 | AI21: 0 | AJ21: 0 | AK21: 0 | AL21: 0 | AM21: 0
C22: Ciclo 0 Adultos EA | AK22: 0 | AL22: 0 | AM22: 0
C23: Ciclo 1 Adultos | D23: =+SUMIFS($D$201:$D$3234,$B$201:$B$3234,$B$5,$C$201:$C$3234,C23) -> 41 | E23: =+SUMIFS($E$201:$E$3234,$B$201:$B$3234,$B$5,$C$201:$C$3234,C23) -> 1468 | F23: =+SUMIFS($F$201:$F$3234,$B$201:$B$3234,$B$5,$C$201:$C$3234,C23) -> 0 | G23: =+SUMIFS($G$201:$G$3234,$B$201:$B$3234,$B$5,$C$201:$C$3234,C23) -> 57 | H23: =+SUMIFS($H$201:$H$3234,$B$201:$B$3234,$B$5,$C$201:$C$3234,C23) -> 864 | I23: =+SUMIFS($I$201:$I$3234,$B$201:$B$3234,$B$5,$C$201:$C$3234,C23) -> 0 | J23: =+SUMIFS($J$201:$J$3234,$B$201:$B$3234,$B$5,$C$201:$C$3234,C23) -> 472 | K23: =+SUMIFS($K$201:$K$3234,$B$201:$B$3234,$B$5,$C$201:$C$3234,C23) -> 6 | L23: =+SUMIFS($L$201:$L$3234,$B$201:$B$3234,$B$5,$C$201:$C$3234,C23) -> 0 | M23: =+SUMIFS($M$201:$M$3234,$B$201:$B$3234,$B$5,$C$201:$C$3234,C23) -> 955 | N23: =+SUMIFS($N$201:$N$3234,$B$201:$B$3234,$B$5,$C$201:$C$3234,C23) -> 0 | O23: =+SUMIFS($O$201:$O$3234,$B$201:$B$3234,$B$5,$C$201:$C$3234,C23) -> 0 | P23: =+SUMIFS($P$201:$P$3234,$B$201:$B$3234,$B$5,$C$201:$C$3234,C23) -> 844 | Q23: =+SUMIFS($Q$201:$Q$3234,$B$201:$B$3234,$B$5,$C$201:$C$3234,C23) -> 0 | R23: =+SUMIFS($R$201:$R$3234,$B$201:$B$3234,$B$5,$C$201:$C$3234,C23) -> 0 | S23: =+SUMIFS($S$201:$S$3234,$B$201:$B$3234,$B$5,$C$201:$C$3234,C23) -> 52 | T23: =+SUMIFS($T$201:$T$3234,$B$201:$B$3234,$B$5,$C$201:$C$3234,C23) -> 0 | U23: =+SUMIFS($U$201:$U$3234,$B$201:$B$3234,$B$5,$C$201:$C$3234,C23) -> 0 | V23: =+SUMIFS($V$201:$V$3234,$B$201:$B$3234,$B$5,$C$201:$C$3234,C23) -> 31 | W23: =+SUMIFS($W$201:$W$3234,$B$201:$B$3234,$B$5,$C$201:$C$3234,C23) -> 0 | X23: =+SUMIFS($X$201:$X$3234,$B$201:$B$3234,$B$5,$C$201:$C$3234,C23) -> 0 | Y23: =+SUMIFS($Y$201:$Y$3234,$B$201:$B$3234,$B$5,$C$201:$C$3234,C23) -> 666 | Z23: =+SUMIFS($Z$201:$Z$3234,$B$201:$B$3234,$B$5,$C$201:$C$3234,C23) -> 0 | AA23: =+SUMIFS($AA$201:$AA$3234,$B$201:$B$3234,$B$5,$C$201:$C$3234,C23) -> 0 | AB23: =+SUMIFS($AB$201:$AB$3234,$B$201:$B$3234,$B$5,$C$201:$C$3234,C23) -> 24 | AC23: =+SUMIFS($AC$201:$AC$3234,$B$201:$B$3234,$B$5,$C$201:$C$3234,C23) -> 0 | AD23: =+SUMIFS($AD$201:$AD$3234,$B$201:$B$3234,$B$5,$C$201:$C$3234,C23) -> 0 | AE23: =+SUMIFS($AE$201:$AE$3234,$B$201:$B$3234,$B$5,$C$201:$C$3234,C23) -> 23 | AF23: =+SUMIFS($AF$201:$AF$3234,$B$201:$B$3234,$B$5,$C$201:$C$3234,C23) -> 0 | AG23: =+SUMIFS($AG$201:$AG$3234,$B$201:$B$3234,$B$5,$C$201:$C$3234,C23) -> 0 | AH23: =+SUMIFS($AH$201:$AH$3234,$B$201:$B$3234,$B$5,$C$201:$C$3234,C23) -> 773 | AI23: =+SUMIFS($AI$201:$AI$3234,$B$201:$B$3234,$B$5,$C$201:$C$3234,C23) -> 0 | AJ23: =+SUMIFS($AJ$201:$AJ$3234,$B$201:$B$3234,$B$5,$C$201:$C$3234,C23) -> 0 | AK23: 7 | AL23: 0 | AM23: 0
C24: Ciclo 2 Adultos | D24: 88 | E24: 712 | F24: 0 | G24: 349 | H24: 2121 | I24: 0 | J24: 112 | K24: 1287 | L24: 0 | M24: 67 | N24: 0 | O24: 0 | P24: 80 | Q24: 0 | R24: 0 | S24: 86 | T24: 0 | U24: 0 | V24: 73 | W24: 0 | X24: 0 | Y24: 42 | Z24: 0 | AA24: 0 | AB24: 41 | AC24: 0 | AD24: 0 | AE24: 49 | AF24: 0 | AG24: 0 | AH24: 25 | AI24: 0 | AJ24: 0 | AK24: 9 | AL24: 0 | AM24: 0
C25: Ciclo 3 Adultos | D25: 155 | E25: 0 | F25: 0 | G25: 315 | H25: 115 | I25: 0 | J25: 207 | K25: 0 | L25: 0 | M25: 170 | N25: 0 | O25: 0 | P25: 198 | Q25: 0 | R25: 0 | S25: 221 | T25: 0 | U25: 0 | V25: 199 | W25: 0 | X25: 0 | Y25: 160 | Z25: 0 | AA25: 0 | AB25: 151 | AC25: 0 | AD25: 0 | AE25: 102 | AF25: 0 | AG25: 0 | AH25: 124 | AI25: 0 | AJ25: 0 | AK25: 84 | AL25: 0 | AM25: 2
C26: Ciclo 4 Adultos | D26: 170 | E26: 0 | F26: 0 | G26: 227 | H26: 0 | I26: 0 | J26: 220 | K26: 0 | L26: 0 | M26: 214 | N26: 0 | O26: 0 | P26: 240 | Q26: 0 | R26: 0 | S26: 313 | T26: 0 | U26: 0 | V26: 264 | W26: 0 | X26: 0 | Y26: 216 | Z26: 0 | AA26: 0 | AB26: 239 | AC26: 0 | AD26: 0 | AE26: 227 | AF26: 0 | AG26: 0 | AH26: 192 | AI26: 0 | AJ26: 0 | AK26: 163 | AL26: 0 | AM26: 10
C27: Ciclo 5 Adultos | D27: 165 | E27: 0 | F27: 0 | G27: 35 | H27: 0 | I27: 0 | J27: 0 | K27: 0 | L27: 0 | M27: 0 | N27: 0 | O27: 0 | P27: 1 | Q27: 0 | R27: 0 | S27: 61 | T27: 0 | U27: 0 | V27: 297 | W27: 0 | X27: 0 | Y27: 154 | Z27: 0 | AA27: 0 | AB27: 117 | AC27: 0 | AD27: 0 | AE27: 140 | AF27: 0 | AG27: 0 | AH27: 194 | AI27: 0 | AJ27: 0 | AK27: 119 | AL27: 0 | AM27: 2
C28: Ciclo 6 Adultos | D28: 0 | E28: 0 | F28: 0 | G28: 144 | H28: 0 | I28: 0 | J28: 211 | K28: 0 | L28: 0 | M28: 209 | N28: 0 | O28: 0 | P28: 223 | Q28: 0 | R28: 0 | S28: 143 | T28: 0 | U28: 0 | V28: 30 | W28: 0 | X28: 0 | Y28: 193 | Z28: 0 | AA28: 0 | AB28: 181 | AC28: 0 | AD28: 0 | AE28: 181 | AF28: 0 | AG28: 0 | AH28: 153 | AI28: 0 | AJ28: 0 | AK28: 189 | AL28: 0 | AM28: 255
C29: Semestre introductorio NS | D29: 0 | E29: 0 | F29: 0 | G29: 0 | H29: 0 | I29: 0 | J29: 0 | K29: 0 | L29: 0 | M29: 0 | N29: 0 | O29: 0 | P29: 0 | Q29: 0 | R29: 0 | S29: 0 | T29: 0 | U29: 0 | V29: 0 | W29: 0 | X29: 0 | Y29: 0 | Z29: 0 | AA29: 0 | AB29: 0 | AC29: 0 | AD29: 0 | AE29: 0 | AF29: 0 | AG29: 0 | AH29: 0 | AI29: 0 | AJ29: 0 | AK29: 0 | AL29: 0 | AM29: 0
C30: Programa formación compl 1 NS | D30: 0 | E30: 0 | F30: 0 | G30: 0 | H30: 0 | I30: 0 | J30: 0 | K30: 0 | L30: 0 | M30: 0 | N30: 0 | O30: 0 | P30: 0 | Q30: 0 | R30: 0 | S30: 0 | T30: 0 | U30: 0 | V30: 0 | W30: 0 | X30: 0 | Y30: 0 | Z30: 0 | AA30: 0 | AB30: 0 | AC30: 0 | AD30: 0 | AE30: 0 | AF30: 0 | AG30: 0 | AH30: 0 | AI30: 0 | AJ30: 0 | AK30: 0 | AL30: 0 | AM30: 0
C31: Programa formación compl 2 NS | D31: 0 | E31: 0 | F31: 0 | G31: 0 | H31: 0 | I31: 0 | J31: 0 | K31: 0 | L31: 0 | M31: 0 | N31: 0 | O31: 0 | P31: 0 | Q31: 0 | R31: 0 | S31: 0 | T31: 0 | U31: 0 | V31: 0 | W31: 0 | X31: 0 | Y31: 0 | Z31: 0 | AA31: 0 | AB31: 0 | AC31: 0 | AD31: 0 | AE31: 0 | AF31: 0 | AG31: 0 | AH31: 0 | AI31: 0 | AJ31: 0 | AK31: 0 | AL31: 0 | AM31: 0
C32: Programa formación compl 3 NS | D32: 0 | E32: 0 | F32: 0 | G32: 0 | H32: 0 | I32: 0 | J32: 0 | K32: 0 | L32: 0 | M32: 0 | N32: 0 | O32: 0 | P32: 0 | Q32: 0 | R32: 0 | S32: 0 | T32: 0 | U32: 0 | V32: 0 | W32: 0 | X32: 0 | Y32: 0 | Z32: 0 | AA32: 0 | AB32: 0 | AC32: 0 | AD32: 0 | AE32: 0 | AF32: 0 | AG32: 0 | AH32: 0 | AI32: 0 | AJ32: 0 | AK32: 0 | AL32: 0 | AM32: 0
C33: Programa formación compl 4 NS | D33: 0 | E33: 0 | F33: 0 | G33: 0 | H33: 0 | I33: 0 | J33: 0 | K33: 0 | L33: 0 | M33: 0 | N33: 0 | O33: 0 | P33: 0 | Q33: 0 | R33: 0 | S33: 0 | T33: 0 | U33: 0 | V33: 0 | W33: 0 | X33: 0 | Y33: 0 | Z33: 0 | AA33: 0 | AB33: 0 | AC33: 0 | AD33: 0 | AE33: 0 | AF33: 0 | AG33: 0 | AH33: 0 | AI33: 0 | AJ33: 0 | AK33: 0 | AL33: 0 | AM33: 0
C34: Aceleración del Aprendizaje | D34: 244 | E34: 38 | F34: 0 | G34: 204 | H34: 32 | I34: 0 | J34: 152 | K34: 31 | L34: 0 | M34: 161 | N34: 0 | O34: 0 | P34: 93 | Q34: 46 | R34: 0 | S34: 137 | T34: 5 | U34: 0 | V34: 135 | W34: 0 | X34: 0 | Y34: 103 | Z34: 33 | AA34: 0 | AB34: 188 | AC34: 1 | AD34: 0 | AE34: 203 | AF34: 4 | AG34: 0 | AH34: 222 | AI34: 0 | AJ34: 0 | AK34: 275 | AL34: 20 | AM34: 0
C35: Total | D35: =SUM(D6:D34) -> 11789 | E35: 22264 | F35: 87 | G35: 12413 | H35: 25776 | I35: 79 | J35: 16464 | K35: 22444 | L35: 70 | M35: 34361 | N35: 5477 | O35: 66 | P35: 35686 | Q35: 7406 | R35: 65 | S35: 32737 | T35: 13288 | U35: 60 | V35: 33842 | W35: 16666 | X35: 62 | Y35: 34917 | Z35: 28773 | AA35: 61 | AB35: 32271 | AC35: 35160 | AD35: 77 | AE35: 30873 | AF35: 36859 | AG35: 85 | AH35: 31477 | AI35: 41160 | AJ35: 81 | AK35: 30436 | AL35: 49452 | AM35: 378
D36: =SUM(D35:F35) -> 34140 | G36: =SUM(G35:I35) -> 38268 | J36: =SUM(J35:L35) -> 38978 | M36: =SUM(M35:O35) -> 39904 | P36: =SUM(P35:R35) -> 43157 | S36: =SUM(S35:U35) -> 46085 | V36: =SUM(V35:X35) -> 50570 | Y36: =SUM(Y35:AA35) -> 63751 | AB36: =SUM(AB35:AD35) -> 67508 | AE36: =SUM(AE35:AG35) -> 67817 | AH36: =SUM(AH35:AJ35) -> 72718 | AK36: =SUM(AK35:AM35) -> 80266
C37: FUENTE: SIMAT Para lo años 2013 y 2014 La matrícula de ciclo 0 se suma a ciclo 1
C39: =+B5 -> URIBIA
D40: 2014 | G40: 2015 | J40: 2016 | M40: 2017 | P40: 2018 | S40: 2019 | V40: =+V4 -> 2020 | Y40: =+Y4 -> 2021 | AB40: =+AB4 -> 2022 | AE40: =+AE4 -> 2023 | AH40: =+AH4 -> 2024 | AK40: =+AK4 -> 2025
C41: NIVEL | D41: Oficial | E41: Contratada | F41: Privada | G41: Oficial | H41: Contratada | I41: Privada | J41: Oficial | K41: Contratada | L41: Privada | M41: Oficial | N41: Contratada | O41: Privada | P41: Oficial | Q41: Contratada | R41: Privada | S41: Oficial | T41: Contratada | U41: Privada | V41: Oficial | W41: Contratada | X41: Privada | Y41: Oficial | Z41: Contratada | AA41: Privada | AB41: Oficial | AC41: Contratada | AD41: Privada | AE41: Oficial | AF41: Contratada | AG41: Privada | AH41: Oficial | AI41: Contratada | AJ41: Privada | AK41: Oficial | AL41: Contratada | AM41: Privada
C42: Prejardín y jardín | D42: =SUM(D6:D7) -> 0 | E42: 0 | F42: 33 | G42: 0 | H42: 0 | I42: 22 | J42: 0 | K42: 0 | L42: 19 | M42: 0 | N42: 0 | O42: 17 | P42: 0 | Q42: 0 | R42: 26 | S42: 74 | T42: 0 | U42: 13 | V42: =SUM(V6:V7) -> 67 | W42: 0 | X42: 12 | Y42: 70 | Z42: 0 | AA42: 15 | AB42: 78 | AC42: 0 | AD42: 20 | AE42: 110 | AF42: 0 | AG42: 21 | AH42: 280 | AI42: 0 | AJ42: 5 | AK42: =SUM(AK6:AK7) -> 690 | AL42: 228 | AM42: 28
C43: Transición | D43: =+D8 -> 827 | E43: 2818 | F43: 13 | G43: 887 | H43: 2969 | I43: 16 | J43: 1217 | K43: 3096 | L43: 15 | M43: 3422 | N43: 663 | O43: 8 | P43: 3670 | Q43: 787 | R43: 12 | S43: =+S8 -> 3133 | T43: 1605 | U43: 9 | V43: 3824 | W43: 1820 | X43: 12 | Y43: 3551 | Z43: 3504 | AA43: 8 | AB43: 3140 | AC43: 3473 | AD43: 11 | AE43: 2809 | AF43: 3205 | AG43: 7 | AH43: 3394 | AI43: 3412 | AJ43: 12 | AK43: =+AK8 -> 3899 | AL43: 4104 | AM43: 12
C44: Primaria | D44: =SUM(D9:D13)+D23+D24+D34 -> 6764 | E44: 18027 | F44: 41 | G44: 6966 | H44: 20661 | I44: 41 | J44: 10570 | K44: 16710 | L44: 36 | M44: 23828 | N44: 3229 | O44: 41 | P44: 23930 | Q44: 4433 | R44: 27 | S44: 22278 | T44: 7128 | U44: 38 | V44: 22888 | W44: 8593 | X44: 38 | Y44: 23834 | Z44: 15984 | AA44: 38 | AB44: 21105 | AC44: 20546 | AD44: 46 | AE44: 20504 | AF44: 21312 | AG44: 57 | AH44: =SUM(AH9:AH13)+AH23+AH24+AH34 -> 20373 | AI44: =SUM(AI9:AI13)+AI23+AI24+AI34 -> 24202 | AJ44: =SUM(AJ9:AJ13)+AJ23+AJ24+AJ34 -> 64 | AK44: =SUM(AK9:AK13)+AK22+AK23+AK24+AK34 -> 18346 | AL44: =SUM(AL9:AL13)+AL22+AL23+AL24+AL34 -> 29339 | AM44: =SUM(AM9:AM13)+AM22+AM23+AM24+AM34 -> 69
C45: Secundaria | D45: =SUM(D14:D17)+D25+D26 -> 3411 | E45: 1197 | F45: 0 | G45: 3654 | H45: 1943 | I45: 0 | J45: 3670 | K45: 2356 | L45: 0 | M45: 5691 | N45: 1275 | O45: 0 | P45: 6521 | Q45: 1862 | R45: 0 | S45: =SUM(S14:S17)+S25+S26 -> 5659 | T45: 4146 | U45: 0 | V45: 5211 | W45: 5864 | X45: 0 | Y45: 5059 | Z45: 8356 | AA45: 0 | AB45: 5521 | AC45: 9824 | AD45: 0 | AE45: =SUM(AE14:AE17)+AE25+AE26+SUM(AE29:AE33) -> 5178 | AF45: 10725 | AG45: 0 | AH45: 4983 | AI45: 11820 | AJ45: 0 | AK45: =SUM(AK14:AK17)+AK25+AK26+SUM(AK29:AK33) -> 5458 | AL45: 13670 | AM45: 12
C46: Media | D46: =SUM(D18:D21)+D27+D28 -> 787 | E46: 222 | F46: 0 | G46: 906 | H46: 203 | I46: 0 | J46: 1007 | K46: 282 | L46: 0 | M46: 1420 | N46: 310 | O46: 0 | P46: 1565 | Q46: 324 | R46: 0 | S46: =SUM(S18:S21)+S27+S28 -> 1593 | T46: 409 | U46: 0 | V46: 1852 | W46: 389 | X46: 0 | Y46: 2403 | Z46: 929 | AA46: 0 | AB46: 2427 | AC46: 1317 | AD46: 0 | AE46: 2272 | AF46: 1617 | AG46: 0 | AH46: 2447 | AI46: 1726 | AJ46: 0 | AK46: =SUM(AK18:AK21)+AK27+AK28 -> 2043 | AL46: 2111 | AM46: 257
C47: Total | D47: =SUM(D42:D46) -> 11789 | E47: 22264 | F47: 87 | G47: 12413 | H47: 25776 | I47: 79 | J47: 16464 | K47: 22444 | L47: 70 | M47: 34361 | N47: 5477 | O47: 66 | P47: 35686 | Q47: 7406 | R47: 65 | S47: =SUM(S42:S46) -> 32737 | T47: 13288 | U47: 60 | V47: 33842 | W47: 16666 | X47: 62 | Y47: =SUM(Y42:Y46) -> 34917 | Z47: 28773 | AA47: 61 | AB47: 32271 | AC47: 35160 | AD47: 77 | AE47: =SUM(AE42:AE46) -> 30873 | AF47: 36859 | AG47: 85 | AH47: 31477 | AI47: 41160 | AJ47: 81 | AK47: =SUM(AK42:AK46) -> 30436 | AL47: 49452 | AM47: 378
C48: FUENTE: SIMAT OAPF
C50: =+B5 -> URIBIA
D51: 2014 | G51: 2015 | J51: 2016 | M51: 2017 | P51: 2018 | S51: 2019 | V51: =+V4 -> 2020 | Y51: =+Y4 -> 2021 | AB51: =+AB4 -> 2022 | AE51: =+AE4 -> 2023 | AH51: =+AH4 -> 2024 | AK51: =+AK4 -> 2025
C52: NIVEL ADULTOS | D52: Oficial | E52: Contratada | F52: Privada | G52: Oficial | H52: Contratada | I52: Privada | J52: Oficial | K52: Contratada | L52: Privada | M52: Oficial | N52: Contratada | O52: Privada | P52: Oficial | Q52: Contratada | R52: Privada | S52: Oficial | T52: Contratada | U52: Privada | V52: Oficial | W52: Contratada | X52: Privada | Y52: Oficial | Z52: Contratada | AA52: Privada | AB52: Oficial | AC52: Contratada | AD52: Privada | AE52: Oficial | AF52: Contratada | AG52: Privada | AH52: Oficial | AI52: Contratada | AJ52: Privada | AK52: Oficial | AL52: Contratada | AM52: Privada
C53: Prejardín y jardín | D53: =SUM(D6:D7) -> 0 | E53: 0 | F53: 33 | G53: 0 | H53: 0 | I53: 22 | J53: 0 | K53: 0 | M53: 0 | N53: 0 | O53: 17 | P53: 0 | Q53: 0 | R53: 26 | S53: 74 | T53: 0 | U53: 13 | V53: =SUM(V6:V7) -> 67 | W53: 0 | X53: 12 | Y53: 70 | Z53: 0 | AA53: 15 | AB53: 78 | AC53: 0 | AD53: 20 | AE53: 110 | AF53: 0 | AG53: 21 | AH53: 280 | AI53: 0 | AJ53: 5 | AK53: =SUM(AK6:AK7) -> 690 | AL53: 228 | AM53: 28
C54: Transición | D54: =+D8 -> 827 | E54: 2818 | F54: 13 | G54: 887 | H54: 2969 | I54: 16 | J54: 1217 | K54: 3096 | L54: 15 | M54: 3422 | N54: 663 | O54: 8 | P54: 3670 | Q54: 787 | R54: 12 | S54: =+S8 -> 3133 | T54: 1605 | U54: 9 | V54: 3824 | W54: 1820 | X54: 12 | Y54: 3551 | Z54: 3504 | AA54: 8 | AB54: 3140 | AC54: 3473 | AD54: 11 | AE54: 2809 | AF54: 3205 | AG54: 7 | AH54: 3394 | AI54: 3412 | AJ54: 12 | AK54: =+AK8 -> 3899 | AL54: 4104 | AM54: 12
C55: Primaria | D55: =SUM(D9:D13)+D34 -> 6635 | E55: 15847 | F55: 41 | G55: 6560 | H55: 17676 | I55: 41 | J55: 9986 | K55: 15417 | L55: 36 | M55: 22806 | N55: 3229 | O55: 41 | P55: 23006 | Q55: 4433 | R55: 27 | S55: 22140 | T55: 7128 | U55: 38 | V55: 22784 | W55: 8593 | X55: 38 | Y55: 23126 | Z55: 15984 | AA55: 38 | AB55: 21040 | AC55: 20546 | AD55: 46 | AE55: 20432 | AF55: 21312 | AG55: 57 | AH55: =SUM(AH9:AH13)+AH34 -> 19575 | AI55: =SUM(AI9:AI13)+AI34 -> 24202 | AJ55: =SUM(AJ9:AJ13)+AJ34 -> 64 | AK55: =SUM(AK9:AK13)+AK34 -> 18330 | AL55: 29339 | AM55: 69
C56: Secundaria | D56: =SUM(D14:D17) -> 3086 | E56: 1197 | F56: 0 | G56: 3112 | H56: 1828 | I56: 0 | J56: 3243 | K56: 2356 | L56: 0 | M56: 5307 | N56: 1275 | O56: 0 | P56: 6083 | Q56: 1862 | R56: 0 | S56: =SUM(S14:S17) -> 5125 | T56: 4146 | U56: 0 | V56: 4748 | W56: 5864 | X56: 0 | Y56: 4683 | Z56: 8356 | AA56: 0 | AB56: 5131 | AC56: 9824 | AD56: 0 | AE56: 4849 | AF56: 10725 | AG56: 0 | AH56: 4667 | AI56: 11820 | AJ56: 0 | AK56: =SUM(AK14:AK17) -> 5211 | AL56: 13670 | AM56: 0
C57: Media | D57: =SUM(D18:D21) -> 622 | E57: 222 | F57: 0 | G57: 727 | H57: 203 | I57: 0 | J57: 796 | K57: 282 | L57: 0 | M57: 1211 | N57: 310 | O57: 0 | P57: 1341 | Q57: 324 | R57: 0 | S57: =SUM(S18:S21) -> 1389 | T57: 409 | U57: 0 | V57: 1525 | W57: 389 | X57: 0 | Y57: 2056 | Z57: 929 | AA57: 0 | AB57: 2129 | AC57: 1317 | AD57: 0 | AE57: =SUM(AE18:AE21)+SUM(AE29:AE33) -> 1951 | AF57: 1617 | AG57: 0 | AH57: 2100 | AI57: 1726 | AJ57: 0 | AK57: =SUM(AK18:AK21)+SUM(AK29:AK33) -> 1735 | AL57: 2111 | AM57: 0
C58: Adultos | D58: =SUM(D23:D28) -> 619 | E58: 2180 | F58: 0 | G58: 1127 | H58: 3100 | I58: 0 | J58: 1222 | K58: 1293 | L58: 0 | M58: 1615 | N58: 0 | O58: 0 | P58: 1586 | Q58: 0 | R58: 0 | S58: =SUM(S23:S28) -> 876 | T58: 0 | U58: 0 | V58: 894 | W58: 0 | X58: 0 | Y58: 1431 | Z58: 0 | AA58: 0 | AB58: 753 | AC58: 0 | AD58: 0 | AE58: 722 | AF58: 0 | AG58: 0 | AH58: 1461 | AI58: 0 | AJ58: 0 | AK58: =SUM(AK22:AK28) -> 571 | AL58: 0 | AM58: 269
C59: Total | D59: =SUM(D53:D58) -> 11789 | E59: 22264 | F59: 87 | G59: 12413 | H59: 25776 | I59: 79 | J59: 16464 | K59: 22444 | L59: 51 | M59: 34361 | N59: 5477 | O59: 66 | P59: 35686 | Q59: 7406 | R59: 65 | S59: 32737 | T59: 13288 | U59: 60 | V59: =SUM(V53:V58) -> 33842 | W59: =SUM(W53:W58) -> 16666 | X59: =SUM(X53:X58) -> 62 | Y59: =SUM(Y53:Y58) -> 34917 | Z59: 28773 | AA59: 61 | AB59: 32271 | AC59: 35160 | AD59: 77 | AE59: =SUM(AE53:AE58) -> 30873 | AF59: 36859 | AG59: 85 | AH59: 31477 | AI59: 41160 | AJ59: 81 | AK59: =SUM(AK53:AK58) -> 30436 | AL59: 49452 | AM59: 378
C60: FUENTE: SIMAT OAPF
C62: =+B5 -> URIBIA
C63: Sector | D63: 2014 | E63: 2015 | F63: 2016 | G63: 2017 | H63: 2018 | I63: 2019 | J63: 2020 | K63: 2021 | L63: 2022 | M63: 2023 | N63: =+AH51 -> 2024 | O63: =+AK51 -> 2025
C64: Oficial | D64: =+D59 -> 11789 | E64: =+G59 -> 12413 | F64: =+J59 -> 16464 | G64: =+M59 -> 34361 | H64: =+P59 -> 35686 | I64: =+S59 -> 32737 | J64: =+V59 -> 33842 | K64: =+Y59 -> 34917 | L64: =+AB59 -> 32271 | M64: =+AE59 -> 30873 | N64: =+AH59 -> 31477 | O64: =+AK59 -> 30436
C65: Contratada | D65: =+E59 -> 22264 | E65: =+H59 -> 25776 | F65: =+K59 -> 22444 | G65: =+N59 -> 5477 | H65: =+Q59 -> 7406 | I65: =+T59 -> 13288 | J65: =+W59 -> 16666 | K65: =+Z59 -> 28773 | L65: =+AC59 -> 35160 | M65: =+AF59 -> 36859 | N65: =+AI59 -> 41160 | O65: =+AL59 -> 49452
C66: Privada | D66: =+F59 -> 87 | E66: =+I59 -> 79 | F66: =+L59 -> 51 | G66: =+O59 -> 66 | H66: =+R59 -> 65 | I66: =+U59 -> 60 | J66: =+X59 -> 62 | K66: =+AA59 -> 61 | L66: =+AD59 -> 77 | M66: =+AG59 -> 85 | N66: =+AJ59 -> 81 | O66: =+AM59 -> 378
C67: Total | D67: =SUM(D64:D66) -> 34140 | E67: 38268 | F67: 38959 | G67: 39904 | H67: 43157 | I67: 46085 | J67: 50570 | K67: 63751 | L67: 67508 | M67: 67817 | N67: 72718 | O67: 80266
C68: FUENTE: SIMAT OAPF 2025 información preliminar
P69: =+B5 -> URIBIA
D70: =+B5 -> URIBIA
D199: 2014 | G199: 2015 | J199: 2016 | M199: 2017 | P199: 2018 | S199: 2019 | V199: =+V4 -> 2020 | Y199: =+Y4 -> 2021 | AB199: =+AB4 -> 2022 | AE199: =+AE4 -> 2023 | AH199: =+AH4 -> 2024 | AK199: =+AK4 -> 2025
A200: lista | B200: ENTIDAD | C200: GRADO | D200: Oficial | E200: Contratada | F200: Privada | G200: Oficial | H200: Contratada | I200: Privada | J200: Oficial | K200: Contratada | L200: Privada | M200: Oficial | N200: Contratada | O200: Privada | P200: Oficial | Q200: Contratada | R200: Privada | S200: Oficial | T200: Contratada | U200: Privada | V200: Oficial | W200: Contratada | X200: Privada | Y200: Oficial | Z200: Contratada | AA200: Privada | AB200: Oficial | AC200: Contratada | AD200: Privada | AE200: Oficial | AF200: Contratada | AG200: Privada | AH200: Oficial | AI200: Contratada | AJ200: Privada | AK200: Oficial | AL200: Contratada | AM200: Privada
A201: AMAZONAS | B201: AMAZONAS | C201: Prejardín | D201: 0 | E201: 0 | F201: 87 | G201: 0 | H201: 0 | I201: 42 | J201: 0 | K201: 0 | L201: 86 | M201: 0 | N201: 0 | O201: 101 | P201: 0 | Q201: 0 | R201: 66 | S201: 0 | T201: 0 | U201: 35 | V201: 0 | W201: 0 | X201: 1 | Y201: 0 | Z201: 0 | AA201: 24 | AB201: 0 | AC201: 0 | AD201: 42 | AE201: 0 | AF201: 0 | AG201: 37 | AH201: 0 | AI201: 0 | AJ201: 37 | AK201: 0 | AL201: 0 | AM201: 14
A202: ANTIOQUIA | B202: AMAZONAS | C202: Jardín | D202: 0 | E202: 0 | F202: 91 | G202: 0 | H202: 0 | I202: 122 | J202: 0 | K202: 0 | L202: 111 | M202: 0 | N202: 0 | O202: 122 | P202: 1 | Q202: 0 | R202: 128 | S202: 6 | T202: 0 | U202: 66 | V202: 6 | W202: 0 | X202: 65 | Y202: 2 | Z202: 0 | AA202: 65 | AB202: 4 | AC202: 0 | AD202: 68 | AE202: 8 | AF202: 0 | AG202: 68 | AH202: 4 | AI202: 0 | AJ202: 65 | AK202: 735 | AL202: 0 | AM202: 50
A203: APARTADO | B203: AMAZONAS | C203: Transición | D203: 1481 | E203: 171 | F203: 103 | G203: 1305 | H203: 171 | I203: 99 | J203: 1403 | K203: 164 | L203: 118 | M203: 1568 | N203: 188 | O203: 102 | P203: 1368 | Q203: 139 | R203: 131 | S203: 1611 | T203: 201 | U203: 116 | V203: 1541 | W203: 161 | X203: 43 | Y203: 1410 | Z203: 192 | AA203: 84 | AB203: 1502 | AC203: 143 | AD203: 81 | AE203: 1367 | AF203: 178 | AG203: 74 | AH203: 1283 | AI203: 170 | AJ203: 76 | AK203: 986 | AL203: 166 | AM203: 71
A204: ARAUCA | B204: AMAZONAS | C204: Primero | D204: 2059 | E204: 282 | F204: 73 | G204: 1934 | H204: 251 | I204: 91 | J204: 1861 | K204: 217 | L204: 77 | M204: 1946 | N204: 247 | O204: 77 | P204: 2025 | Q204: 239 | R204: 72 | S204: 1909 | T204: 201 | U204: 71 | V204: 1975 | W204: 242 | X204: 78 | Y204: 1780 | Z204: 236 | AA204: 66 | AB204: 1773 | AC204: 241 | AD204: 67 | AE204: 1811 | AF204: 223 | AG204: 80 | AH204: 1645 | AI204: 227 | AJ204: 90 | AK204: 1547 | AL204: 239 | AM204: 76
A205: ARMENIA | B205: AMAZONAS | C205: Segundo | D205: 2034 | E205: 272 | F205: 67 | G205: 1816 | H205: 274 | I205: 52 | J205: 1821 | K205: 228 | L205: 86 | M205: 1688 | N205: 233 | O205: 61 | P205: 1735 | Q205: 223 | R205: 80 | S205: 1827 | T205: 230 | U205: 68 | V205: 1781 | W205: 203 | X205: 65 | Y205: 1824 | Z205: 244 | AA205: 73 | AB205: 1677 | AC205: 233 | AD205: 60 | AE205: 1687 | AF205: 242 | AG205: 61 | AH205: 1675 | AI205: 222 | AJ205: 81 | AK205: 1559 | AL205: 238 | AM205: 80
A206: ATLANTICO | B206: AMAZONAS | C206: Tercero | D206: 1704 | E206: 204 | F206: 46 | G206: 1872 | H206: 234 | I206: 65 | J206: 1691 | K206: 225 | L206: 59 | M206: 1761 | N206: 221 | O206: 67 | P206: 1609 | Q206: 189 | R206: 60 | S206: 1672 | T206: 193 | U206: 70 | V206: 1749 | W206: 210 | X206: 65 | Y206: 1795 | Z206: 204 | AA206: 50 | AB206: 1753 | AC206: 212 | AD206: 64 | AE206: 1655 | AF206: 231 | AG206: 61 | AH206: 1652 | AI206: 221 | AJ206: 66 | AK206: 1635 | AL206: 219 | AM206: 68
A207: BARRANCABERMEJA | B207: AMAZONAS | C207: Cuarto | D207: 1691 | E207: 215 | F207: 34 | G207: 1650 | H207: 189 | I207: 49 | J207: 1777 | K207: 198 | L207: 73 | M207: 1639 | N207: 200 | O207: 39 | P207: 1621 | Q207: 200 | R207: 78 | S207: 1525 | T207: 171 | U207: 55 | V207: 1545 | W207: 172 | X207: 65 | Y207: 1662 | Z207: 211 | AA207: 44 | AB207: 1612 | AC207: 163 | AD207: 62 | AE207: 1581 | AF207: 173 | AG207: 62 | AH207: 1570 | AI207: 192 | AJ207: 58 | AK207: 1521 | AL207: 196 | AM207: 54
A208: BARRANQUILLA | B208: AMAZONAS | C208: Quinto | D208: 1676 | E208: 192 | F208: 48 | G208: 1591 | H208: 202 | I208: 28 | J208: 1588 | K208: 175 | L208: 51 | M208: 1668 | N208: 187 | O208: 54 | P208: 1543 | Q208: 162 | R208: 42 | S208: 1565 | T208: 170 | U208: 68 | V208: 1442 | W208: 159 | X208: 50 | Y208: 1522 | Z208: 161 | AA208: 53 | AB208: 1571 | AC208: 180 | AD208: 49 | AE208: 1469 | AF208: 141 | AG208: 56 | AH208: 1503 | AI208: 155 | AJ208: 61 | AK208: 1508 | AL208: 182 | AM208: 52
A209: BELLO | B209: AMAZONAS | C209: Sexto | D209: 1789 | E209: 0 | F209: 37 | G209: 1933 | H209: 0 | I209: 47 | J209: 1878 | K209: 0 | L209: 48 | M209: 1859 | N209: 40 | O209: 44 | P209: 2003 | Q209: 16 | R209: 69 | S209: 1832 | T209: 20 | U209: 67 | V209: 1945 | W209: 26 | X209: 69 | Y209: 2062 | Z209: 15 | AA209: 43 | AB209: 1705 | AC209: 24 | AD209: 68 | AE209: 1772 | AF209: 21 | AG209: 57 | AH209: 1687 | AI209: 18 | AJ209: 72 | AK209: 1758 | AL209: 30 | AM209: 59
A210: BOGOTA | B210: AMAZONAS | C210: Septimo | D210: 1646 | E210: 0 | F210: 47 | G210: 1524 | H210: 0 | I210: 40 | J210: 1597 | K210: 0 | L210: 47 | M210: 1615 | N210: 0 | O210: 37 | P210: 1566 | Q210: 33 | R210: 58 | S210: 1724 | T210: 18 | U210: 64 | V210: 1552 | W210: 17 | X210: 65 | Y210: 1648 | Z210: 24 | AA210: 57 | AB210: 1640 | AC210: 8 | AD210: 57 | AE210: 1472 | AF210: 22 | AG210: 69 | AH210: 1505 | AI210: 18 | AJ210: 44 | AK210: 1447 | AL210: 20 | AM210: 57
A211: BOLIVAR | B211: AMAZONAS | C211: Octavo | D211: 1222 | E211: 0 | F211: 49 | G211: 1411 | H211: 0 | I211: 39 | J211: 1334 | K211: 0 | L211: 41 | M211: 1400 | N211: 0 | O211: 33 | P211: 1365 | Q211: 0 | R211: 27 | S211: 1286 | T211: 27 | U211: 59 | V211: 1460 | W211: 17 | X211: 62 | Y211: 1395 | Z211: 18 | AA211: 52 | AB211: 1375 | AC211: 19 | AD211: 65 | AE211: 1441 | AF211: 7 | AG211: 57 | AH211: 1276 | AI211: 19 | AJ211: 64 | AK211: 1258 | AL211: 12 | AM211: 45
A212: BOYACA | B212: AMAZONAS | C212: Noveno | D212: 1043 | E212: 0 | F212: 45 | G212: 1081 | H212: 0 | I212: 39 | J212: 1232 | K212: 0 | L212: 35 | M212: 1171 | N212: 0 | O212: 30 | P212: 1173 | Q212: 0 | R212: 29 | S212: 1163 | T212: 0 | U212: 28 | V212: 1149 | W212: 22 | X212: 50 | Y212: 1254 | Z212: 16 | AA212: 53 | AB212: 1172 | AC212: 16 | AD212: 48 | AE212: 1129 | AF212: 17 | AG212: 67 | AH212: 1197 | AI212: 6 | AJ212: 50 | AK212: 1154 | AL212: 14 | AM212: 57
A213: BUCARAMANGA | B213: AMAZONAS | C213: Decimo | D213: 952 | E213: 0 | F213: 29 | G213: 1002 | H213: 0 | I213: 38 | J213: 978 | K213: 0 | L213: 29 | M213: 1077 | N213: 0 | O213: 25 | P213: 1022 | Q213: 0 | R213: 28 | S213: 1014 | T213: 0 | U213: 27 | V213: 1042 | W213: 0 | X213: 29 | Y213: 1088 | Z213: 0 | AA213: 32 | AB213: 1049 | AC213: 0 | AD213: 49 | AE213: 1016 | AF213: 11 | AG213: 46 | AH213: 945 | AI213: 13 | AJ213: 59 | AK213: 1001 | AL213: 7 | AM213: 48
A214: BUENAVENTURA | B214: AMAZONAS | C214: Once | D214: 659 | E214: 0 | F214: 30 | G214: 732 | H214: 0 | I214: 27 | J214: 784 | K214: 0 | L214: 40 | M214: 786 | N214: 0 | O214: 23 | P214: 854 | Q214: 0 | R214: 21 | S214: 745 | T214: 0 | U214: 27 | V214: 796 | W214: 0 | X214: 25 | Y214: 730 | Z214: 0 | AA214: 24 | AB214: 777 | AC214: 0 | AD214: 42 | AE214: 861 | AF214: 12 | AG214: 43 | AH214: 777 | AI214: 10 | AJ214: 42 | AK214: 690 | AL214: 9 | AM214: 58
A215: BUGA | B215: AMAZONAS | C215: 12º Normal | D215: 60 | E215: 0 | F215: 0 | G215: 26 | H215: 0 | I215: 0 | J215: 71 | K215: 0 | L215: 0 | M215: 43 | N215: 0 | O215: 0 | P215: 20 | Q215: 0 | R215: 0 | S215: 48 | T215: 0 | U215: 0 | V215: 26 | W215: 0 | X215: 0 | Y215: 53 | Z215: 0 | AA215: 0 | AB215: 42 | AC215: 0 | AD215: 0 | AE215: 19 | AF215: 0 | AG215: 0 | AH215: 21 | AI215: 0 | AJ215: 0 | AK215: 0 | AL215: 0 | AM215: 0
A216: CALDAS | B216: AMAZONAS | C216: 13º Normal | D216: 34 | E216: 0 | F216: 0 | G216: 52 | H216: 0 | I216: 0 | J216: 11 | K216: 0 | L216: 0 | M216: 27 | N216: 0 | O216: 0 | P216: 16 | Q216: 0 | R216: 0 | S216: 38 | T216: 0 | U216: 0 | V216: 22 | W216: 0 | X216: 0 | Y216: 23 | Z216: 0 | AA216: 0 | AB216: 31 | AC216: 0 | AD216: 0 | AE216: 18 | AF216: 0 | AG216: 0 | AH216: 32 | AI216: 0 | AJ216: 0 | AK216: 1 | AL216: 0 | AM216: 0
B217: AMAZONAS | C217: Ciclo 0 Adultos EA | AK217: 0 | AL217: 0 | AM217: 0
A218: CALI | B218: AMAZONAS | C218: Ciclo 1 Adultos | D218: 40 | E218: 0 | F218: 0 | G218: 97 | H218: 0 | I218: 0 | J218: 66 | K218: 0 | L218: 0 | M218: 81 | N218: 0 | O218: 0 | P218: 62 | Q218: 0 | R218: 0 | S218: 67 | T218: 0 | U218: 0 | V218: 30 | W218: 0 | X218: 0 | Y218: 25 | Z218: 0 | AA218: 0 | AB218: 39 | AC218: 0 | AD218: 0 | AE218: 21 | AF218: 0 | AG218: 0 | AH218: 535 | AI218: 0 | AJ218: 0 | AK218: 32 | AL218: 0 | AM218: 0
A219: CAQUETA | B219: AMAZONAS | C219: Ciclo 2 Adultos | D219: 106 | E219: 0 | F219: 0 | G219: 124 | H219: 0 | I219: 0 | J219: 161 | K219: 0 | L219: 0 | M219: 115 | N219: 0 | O219: 0 | P219: 105 | Q219: 0 | R219: 0 | S219: 128 | T219: 0 | U219: 0 | V219: 77 | W219: 0 | X219: 0 | Y219: 58 | Z219: 0 | AA219: 0 | AB219: 62 | AC219: 0 | AD219: 0 | AE219: 32 | AF219: 0 | AG219: 0 | AH219: 36 | AI219: 0 | AJ219: 0 | AK219: 52 | AL219: 0 | AM219: 0
A220: CARTAGENA | B220: AMAZONAS | C220: Ciclo 3 Adultos | D220: 297 | E220: 0 | F220: 0 | G220: 387 | H220: 0 | I220: 0 | J220: 321 | K220: 0 | L220: 0 | M220: 265 | N220: 0 | O220: 0 | P220: 355 | Q220: 0 | R220: 0 | S220: 378 | T220: 0 | U220: 0 | V220: 414 | W220: 0 | X220: 0 | Y220: 415 | Z220: 0 | AA220: 0 | AB220: 337 | AC220: 0 | AD220: 0 | AE220: 222 | AF220: 0 | AG220: 0 | AH220: 191 | AI220: 0 | AJ220: 0 | AK220: 194 | AL220: 0 | AM220: 0
A221: CARTAGO | B221: AMAZONAS | C221: Ciclo 4 Adultos | D221: 278 | E221: 0 | F221: 0 | G221: 293 | H221: 0 | I221: 0 | J221: 383 | K221: 0 | L221: 0 | M221: 278 | N221: 0 | O221: 0 | P221: 302 | Q221: 0 | R221: 0 | S221: 398 | T221: 0 | U221: 0 | V221: 367 | W221: 0 | X221: 0 | Y221: 407 | Z221: 0 | AA221: 0 | AB221: 407 | AC221: 0 | AD221: 0 | AE221: 261 | AF221: 0 | AG221: 0 | AH221: 238 | AI221: 0 | AJ221: 0 | AK221: 167 | AL221: 0 | AM221: 0
A222: CASANARE | B222: AMAZONAS | C222: Ciclo 5 Adultos | D222: 273 | E222: 0 | F222: 0 | G222: 268 | H222: 0 | I222: 0 | J222: 289 | K222: 0 | L222: 0 | M222: 322 | N222: 0 | O222: 0 | P222: 272 | Q222: 0 | R222: 0 | S222: 276 | T222: 0 | U222: 0 | V222: 327 | W222: 0 | X222: 0 | Y222: 369 | Z222: 0 | AA222: 0 | AB222: 328 | AC222: 0 | AD222: 0 | AE222: 186 | AF222: 0 | AG222: 0 | AH222: 218 | AI222: 0 | AJ222: 0 | AK222: 138 | AL222: 0 | AM222: 2
A223: CAUCA | B223: AMAZONAS | C223: Ciclo 6 Adultos | D223: 196 | E223: 0 | F223: 0 | G223: 217 | H223: 0 | I223: 0 | J223: 203 | K223: 0 | L223: 0 | M223: 230 | N223: 0 | O223: 0 | P223: 215 | Q223: 0 | R223: 0 | S223: 236 | T223: 0 | U223: 0 | V223: 265 | W223: 0 | X223: 0 | Y223: 258 | Z223: 0 | AA223: 0 | AB223: 248 | AC223: 0 | AD223: 0 | AE223: 192 | AF223: 0 | AG223: 12 | AH223: 141 | AI223: 0 | AJ223: 1 | AK223: 137 | AL223: 0 | AM223: 14
A224: CESAR | B224: AMAZONAS | C224: Semestre introductorio NS | D224: 0 | E224: 0 | F224: 0 | G224: 0 | H224: 0 | I224: 0 | J224: 0 | K224: 0 | L224: 0 | M224: 0 | N224: 0 | O224: 0 | P224: 0 | Q224: 0 | R224: 0 | S224: 0 | T224: 0 | U224: 0 | V224: 0 | W224: 0 | X224: 0 | Y224: 0 | Z224: 0 | AA224: 0 | AB224: 0 | AC224: 0 | AD224: 0 | AE224: 0 | AF224: 0 | AG224: 0 | AH224: 0 | AI224: 0 | AJ224: 0 | AK224: 9 | AL224: 0 | AM224: 0
A225: CHIA | B225: AMAZONAS | C225: Programa formación compl 1 NS | D225: 0 | E225: 0 | F225: 0 | G225: 0 | H225: 0 | I225: 0 | J225: 0 | K225: 0 | L225: 0 | M225: 0 | N225: 0 | O225: 0 | P225: 0 | Q225: 0 | R225: 0 | S225: 0 | T225: 0 | U225: 0 | V225: 0 | W225: 0 | X225: 0 | Y225: 0 | Z225: 0 | AA225: 0 | AB225: 0 | AC225: 0 | AD225: 0 | AE225: 0 | AF225: 0 | AG225: 0 | AH225: 0 | AI225: 0 | AJ225: 0 | AK225: 8 | AL225: 0 | AM225: 0
A226: CHOCO | B226: AMAZONAS | C226: Programa formación compl 2 NS | D226: 0 | E226: 0 | F226: 0 | G226: 0 | H226: 0 | I226: 0 | J226: 0 | K226: 0 | L226: 0 | M226: 0 | N226: 0 | O226: 0 | P226: 0 | Q226: 0 | R226: 0 | S226: 0 | T226: 0 | U226: 0 | V226: 0 | W226: 0 | X226: 0 | Y226: 0 | Z226: 0 | AA226: 0 | AB226: 0 | AC226: 0 | AD226: 0 | AE226: 0 | AF226: 0 | AG226: 0 | AH226: 0 | AI226: 0 | AJ226: 0 | AK226: 5 | AL226: 0 | AM226: 0
A227: CIENAGA | B227: AMAZONAS | C227: Programa formación compl 3 NS | D227: 0 | E227: 0 | F227: 0 | G227: 0 | H227: 0 | I227: 0 | J227: 0 | K227: 0 | L227: 0 | M227: 0 | N227: 0 | O227: 0 | P227: 0 | Q227: 0 | R227: 0 | S227: 0 | T227: 0 | U227: 0 | V227: 0 | W227: 0 | X227: 0 | Y227: 0 | Z227: 0 | AA227: 0 | AB227: 0 | AC227: 0 | AD227: 0 | AE227: 0 | AF227: 0 | AG227: 0 | AH227: 0 | AI227: 0 | AJ227: 0 | AK227: 9 | AL227: 0 | AM227: 0
A228: CORDOBA | B228: AMAZONAS | C228: Programa formación compl 4 NS | D228: 0 | E228: 0 | F228: 0 | G228: 0 | H228: 0 | I228: 0 | J228: 0 | K228: 0 | L228: 0 | M228: 0 | N228: 0 | O228: 0 | P228: 0 | Q228: 0 | R228: 0 | S228: 0 | T228: 0 | U228: 0 | V228: 0 | W228: 0 | X228: 0 | Y228: 0 | Z228: 0 | AA228: 0 | AB228: 0 | AC228: 0 | AD228: 0 | AE228: 0 | AF228: 0 | AG228: 0 | AH228: 0 | AI228: 0 | AJ228: 0 | AK228: 6 | AL228: 0 | AM228: 0
A229: CUCUTA | B229: AMAZONAS | C229: Aceleración del Aprendizaje | D229: 18 | E229: 0 | F229: 0 | G229: 21 | H229: 0 | I229: 0 | J229: 21 | K229: 0 | L229: 0 | M229: 56 | N229: 0 | O229: 0 | P229: 26 | Q229: 0 | R229: 0 | S229: 46 | T229: 0 | U229: 0 | V229: 33 | W229: 0 | X229: 0 | Y229: 17 | Z229: 0 | AA229: 0 | AB229: 0 | AC229: 0 | AD229: 0 | AE229: 0 | AF229: 0 | AG229: 0 | AH229: 0 | AI229: 0 | AJ229: 0 | AK229: 0 | AL229: 0 | AM229: 0
A230: CUNDINAMARCA | B230: ANTIOQUIA | C230: Prejardín | D230: 0 | E230: 0 | F230: 1092 | G230: 0 | H230: 0 | I230: 981 | J230: 0 | K230: 0 | L230: 1397 | M230: 0 | N230: 0 | O230: 1335 | P230: 0 | Q230: 0 | R230: 1391 | S230: 0 | T230: 0 | U230: 1504 | V230: 0 | W230: 0 | X230: 1357 | Y230: 0 | Z230: 0 | AA230: 1202 | AB230: 0 | AC230: 0 | AD230: 1263 | AE230: 0 | AF230: 0 | AG230: 1288 | AH230: 74 | AI230: 0 | AJ230: 1362 | AK230: 250 | AL230: 0 | AM230: 1239
A231: DOSQUEBRADAS | B231: ANTIOQUIA | C231: Jardín | D231: 0 | E231: 0 | F231: 1392 | G231: 0 | H231: 0 | I231: 1476 | J231: 0 | K231: 0 | L231: 1642 | M231: 0 | N231: 0 | O231: 1717 | P231: 26 | Q231: 0 | R231: 1699 | S231: 0 | T231: 0 | U231: 1742 | V231: 0 | W231: 0 | X231: 1854 | Y231: 0 | Z231: 0 | AA231: 1660 | AB231: 0 | AC231: 0 | AD231: 1901 | AE231: 0 | AF231: 0 | AG231: 1823 | AH231: 124 | AI231: 0 | AJ231: 1739 | AK231: 579 | AL231: 0 | AM231: 1692
A232: DUITAMA | B232: ANTIOQUIA | C232: Transición | D232: 35385 | E232: 2124 | F232: 1764 | G232: 33088 | H232: 1979 | I232: 1680 | J232: 31964 | K232: 1967 | L232: 1860 | M232: 32022 | N232: 1443 | O232: 1953 | P232: 31156 | Q232: 1170 | R232: 1954 | S232: 30742 | T232: 1301 | U232: 1962 | V232: 30057 | W232: 1088 | X232: 2104 | Y232: 29921 | Z232: 971 | AA232: 2067 | AB232: 32233 | AC232: 1019 | AD232: 2305 | AE232: 31501 | AF232: 1297 | AG232: 2416 | AH232: 30253 | AI232: 1132 | AJ232: 2230 | AK232: 28431 | AL232: 1107 | AM232: 2081
A233: ENVIGADO | B233: ANTIOQUIA | C233: Primero | D233: 53570 | E233: 4248 | F233: 1424 | G233: 50124 | H233: 3888 | I233: 1555 | J233: 47261 | K233: 3532 | L233: 1556 | M233: 44490 | N233: 2799 | O233: 1616 | P233: 43913 | Q233: 2316 | R233: 1600 | S233: 42631 | T233: 2097 | U233: 1724 | V233: 41131 | W233: 1847 | X233: 1706 | Y233: 39076 | Z233: 1539 | AA233: 1716 | AB233: 40849 | AC233: 1627 | AD233: 1968 | AE233: 41221 | AF233: 1628 | AG233: 2013 | AH233: 39253 | AI233: 1808 | AJ233: 2039 | AK233: 37058 | AL233: 1632 | AM233: 1926
A234: FACATATIVA | B234: ANTIOQUIA | C234: Segundo | D234: 51883 | E234: 3579 | F234: 1509 | G234: 47616 | H234: 3268 | I234: 1506 | J234: 45579 | K234: 2947 | L234: 1538 | M234: 43230 | N234: 2598 | O234: 1592 | P234: 40498 | Q234: 2289 | R234: 1555 | S234: 39930 | T234: 2005 | U234: 1570 | V234: 38734 | W234: 1827 | X234: 1694 | Y234: 39079 | Z234: 1748 | AA234: 1604 | AB234: 37148 | AC234: 1590 | AD234: 1819 | AE234: 37405 | AF234: 1563 | AG234: 1924 | AH234: 37727 | AI234: 1671 | AJ234: 1972 | AK234: 36503 | AL234: 1735 | AM234: 1972
A235: FLORENCIA | B235: ANTIOQUIA | C235: Tercero | D235: 48559 | E235: 3179 | F235: 1432 | G235: 49182 | H235: 2961 | I235: 1512 | J235: 46667 | K235: 2710 | L235: 1577 | M235: 44169 | N235: 2352 | O235: 1576 | P235: 41591 | Q235: 2363 | R235: 1542 | S235: 39755 | T235: 2121 | U235: 1565 | V235: 39249 | W235: 1892 | X235: 1577 | Y235: 38845 | Z235: 1785 | AA235: 1597 | AB235: 36531 | AC235: 1703 | AD235: 1673 | AE235: 36318 | AF235: 1524 | AG235: 1863 | AH235: 36399 | AI235: 1503 | AJ235: 1886 | AK235: 36593 | AL235: 1544 | AM235: 1989
A236: FLORIDABLANCA | B236: ANTIOQUIA | C236: Cuarto | D236: 46715 | E236: 2662 | F236: 1419 | G236: 45760 | H236: 2642 | I236: 1435 | J236: 46880 | K236: 2393 | L236: 1504 | M236: 44349 | N236: 2205 | O236: 1593 | P236: 41857 | Q236: 2014 | R236: 1546 | S236: 40158 | T236: 1914 | U236: 1490 | V236: 38539 | W236: 1724 | X236: 1553 | Y236: 39102 | Z236: 1695 | AA236: 1526 | AB236: 37236 | AC236: 1615 | AD236: 1668 | AE236: 34776 | AF236: 1464 | AG236: 1677 | AH236: 35077 | AI236: 1365 | AJ236: 1813 | AK236: 35364 | AL236: 1401 | AM236: 1875
A237: FUNZA | B237: ANTIOQUIA | C237: Quinto | D237: 44961 | E237: 2371 | F237: 1308 | G237: 43998 | H237: 2289 | I237: 1455 | J237: 43817 | K237: 1958 | L237: 1496 | M237: 44345 | N237: 2014 | O237: 1547 | P237: 42114 | Q237: 1836 | R237: 1609 | S237: 40615 | T237: 1778 | U237: 1529 | V237: 38870 | W237: 1636 | X237: 1504 | Y237: 38486 | Z237: 1704 | AA237: 1483 | AB237: 37797 | AC237: 1638 | AD237: 1603 | AE237: 35905 | AF237: 1544 | AG237: 1697 | AH237: 33544 | AI237: 1315 | AJ237: 1681 | AK237: 34087 | AL237: 1262 | AM237: 1830
A238: FUSAGASUGA | B238: ANTIOQUIA | C238: Sexto | D238: 46069 | E238: 5473 | F238: 1243 | G238: 46314 | H238: 5443 | I238: 1507 | J238: 46432 | K238: 5045 | L238: 1502 | M238: 47241 | N238: 3850 | O238: 1513 | P238: 48053 | Q238: 3694 | R238: 1583 | S238: 45853 | T238: 3503 | U238: 1631 | V238: 45528 | W238: 3391 | X238: 1580 | Y238: 42046 | Z238: 2909 | AA238: 1650 | AB238: 40453 | AC238: 3060 | AD238: 1624 | AE238: 39429 | AF238: 2884 | AG238: 1704 | AH238: 38207 | AI238: 2721 | AJ238: 1740 | AK238: 35919 | AL238: 2610 | AM238: 1675
A239: GIRARDOT | B239: ANTIOQUIA | C239: Septimo | D239: 39083 | E239: 5485 | F239: 1282 | G239: 37628 | H239: 4725 | I239: 1351 | J239: 39240 | K239: 4031 | L239: 1310 | M239: 39072 | N239: 3677 | O239: 1517 | P239: 39436 | Q239: 3318 | R239: 1506 | S239: 40305 | T239: 3151 | U239: 1507 | V239: 39620 | W239: 3065 | X239: 1623 | Y239: 40820 | Z239: 3210 | AA239: 1700 | AB239: 37394 | AC239: 2784 | AD239: 1651 | AE239: 36144 | AF239: 2777 | AG239: 1617 | AH239: 35322 | AI239: 2621 | AJ239: 1634 | AK239: 34094 | AL239: 2455 | AM239: 1733
A240: GIRON | B240: ANTIOQUIA | C240: Octavo | D240: 33318 | E240: 3354 | F240: 1217 | G240: 32710 | H240: 4593 | I240: 1380 | J240: 32213 | K240: 3475 | L240: 1252 | M240: 33484 | N240: 3107 | O240: 1325 | P240: 32929 | Q240: 2994 | R240: 1469 | S240: 34325 | T240: 2669 | U240: 1412 | V240: 35566 | W240: 2697 | X240: 1449 | Y240: 36186 | Z240: 2780 | AA240: 1652 | AB240: 34847 | AC240: 2823 | AD240: 1670 | AE240: 32576 | AF240: 2417 | AG240: 1652 | AH240: 31013 | AI240: 2395 | AJ240: 1474 | AK240: 30625 | AL240: 2247 | AM240: 1548
A241: GUAINIA | B241: ANTIOQUIA | C241: Noveno | D241: 28012 | E241: 3421 | F241: 1177 | G241: 27665 | H241: 2966 | I241: 1324 | J241: 28108 | K241: 3056 | L241: 1202 | M241: 27485 | N241: 2673 | O241: 1245 | P241: 28360 | Q241: 2463 | R241: 1313 | S241: 28674 | T241: 2419 | U241: 1401 | V241: 30093 | W241: 2362 | X241: 1328 | Y241: 32328 | Z241: 2533 | AA241: 1481 | AB241: 31069 | AC241: 2415 | AD241: 1570 | AE241: 29739 | AF241: 2429 | AG241: 1567 | AH241: 28405 | AI241: 2141 | AJ241: 1494 | AK241: 27250 | AL241: 2158 | AM241: 1411
A242: GUAVIARE | B242: ANTIOQUIA | C242: Decimo | D242: 23426 | E242: 2742 | F242: 1040 | G242: 23431 | H242: 2720 | I242: 1081 | J242: 23624 | K242: 2087 | L242: 1121 | M242: 23800 | N242: 2318 | O242: 1130 | P242: 23437 | Q242: 2030 | R242: 1141 | S242: 24350 | T242: 1876 | U242: 1139 | V242: 25141 | W242: 1905 | X242: 1316 | Y242: 26342 | Z242: 2114 | AA242: 1314 | AB242: 26850 | AC242: 2043 | AD242: 1373 | AE242: 25830 | AF242: 1963 | AG242: 1465 | AH242: 24854 | AI242: 1984 | AJ242: 1384 | AK242: 24319 | AL242: 1759 | AM242: 1399
A243: HUILA | B243: ANTIOQUIA | C243: Once | D243: 19472 | E243: 2422 | F243: 1016 | G243: 18844 | H243: 2373 | I243: 1032 | J243: 19808 | K243: 1819 | L243: 986 | M243: 19585 | N243: 1555 | O243: 1042 | P243: 19652 | Q243: 1886 | R243: 1023 | S243: 20058 | T243: 1576 | U243: 1028 | V243: 21035 | W243: 1537 | X243: 1036 | Y243: 21614 | Z243: 1705 | AA243: 1262 | AB243: 21385 | AC243: 1661 | AD243: 1205 | AE243: 22361 | AF243: 1629 | AG243: 1214 | AH243: 21632 | AI243: 1653 | AJ243: 1310 | AK243: 21180 | AL243: 1621 | AM243: 1341
A244: IBAGUE | B244: ANTIOQUIA | C244: 12º Normal | D244: 587 | E244: 0 | F244: 6 | G244: 594 | H244: 0 | I244: 0 | J244: 416 | K244: 0 | L244: 0 | M244: 383 | N244: 0 | O244: 1 | P244: 411 | Q244: 0 | R244: 0 | S244: 441 | T244: 0 | U244: 0 | V244: 461 | W244: 0 | X244: 0 | Y244: 448 | Z244: 0 | AA244: 0 | AB244: 498 | AC244: 0 | AD244: 1 | AE244: 0 | AF244: 0 | AG244: 0 | AH244: 0 | AI244: 0 | AJ244: 0 | AK244: 0 | AL244: 0 | AM244: 0
A245: IPIALES | B245: ANTIOQUIA | C245: 13º Normal | D245: 658 | E245: 0 | F245: 0 | G245: 519 | H245: 1 | I245: 0 | J245: 419 | K245: 0 | L245: 0 | M245: 335 | N245: 0 | O245: 0 | P245: 275 | Q245: 0 | R245: 0 | S245: 279 | T245: 0 | U245: 0 | V245: 307 | W245: 0 | X245: 0 | Y245: 350 | Z245: 0 | AA245: 0 | AB245: 341 | AC245: 0 | AD245: 0 | AE245: 0 | AF245: 0 | AG245: 1 | AH245: 0 | AI245: 0 | AJ245: 0 | AK245: 0 | AL245: 0 | AM245: 0
B246: ANTIOQUIA | C246: Ciclo 0 Adultos EA | AK246: 0 | AL246: 0 | AM246: 0
A247: ITAGUI | B247: ANTIOQUIA | C247: Ciclo 1 Adultos | D247: 460 | E247: 1982 | F247: 8 | G247: 10207 | H247: 27 | I247: 4 | J247: 9738 | K247: 34 | L247: 0 | M247: 3228 | N247: 0 | O247: 26 | P247: 10274 | Q247: 0 | R247: 0 | S247: 3606 | T247: 0 | U247: 0 | V247: 107 | W247: 0 | X247: 0 | Y247: 1099 | Z247: 0 | AA247: 0 | AB247: 196 | AC247: 0 | AD247: 0 | AE247: 107 | AF247: 0 | AG247: 1 | AH247: 90 | AI247: 0 | AJ247: 2 | AK247: 46 | AL247: 0 | AM247: 1
A248: JAMUNDI | B248: ANTIOQUIA | C248: Ciclo 2 Adultos | D248: 1316 | E248: 2039 | F248: 32 | G248: 1896 | H248: 1327 | I248: 25 | J248: 2536 | K248: 2018 | L248: 18 | M248: 2438 | N248: 0 | O248: 19 | P248: 2158 | Q248: 0 | R248: 485 | S248: 2013 | T248: 0 | U248: 104 | V248: 2031 | W248: 0 | X248: 24 | Y248: 1399 | Z248: 0 | AA248: 26 | AB248: 1720 | AC248: 0 | AD248: 30 | AE248: 1131 | AF248: 0 | AG248: 36 | AH248: 1007 | AI248: 0 | AJ248: 23 | AK248: 901 | AL248: 0 | AM248: 54
A249: LA ESTRELLA | B249: ANTIOQUIA | C249: Ciclo 3 Adultos | D249: 6300 | E249: 3239 | F249: 481 | G249: 7608 | H249: 3210 | I249: 502 | J249: 8520 | K249: 1593 | L249: 507 | M249: 10083 | N249: 0 | O249: 382 | P249: 11542 | Q249: 0 | R249: 893 | S249: 11304 | T249: 0 | U249: 804 | V249: 9924 | W249: 0 | X249: 447 | Y249: 8131 | Z249: 0 | AA249: 442 | AB249: 8912 | AC249: 0 | AD249: 556 | AE249: 6974 | AF249: 0 | AG249: 524 | AH249: 6030 | AI249: 0 | AJ249: 355 | AK249: 5092 | AL249: 0 | AM249: 474
A250: LA GUAJIRA | B250: ANTIOQUIA | C250: Ciclo 4 Adultos | D250: 7229 | E250: 2958 | F250: 899 | G250: 8672 | H250: 3076 | I250: 821 | J250: 9827 | K250: 2398 | L250: 883 | M250: 11018 | N250: 0 | O250: 874 | P250: 12085 | Q250: 0 | R250: 1205 | S250: 12387 | T250: 0 | U250: 1192 | V250: 11861 | W250: 0 | X250: 1146 | Y250: 10021 | Z250: 0 | AA250: 742 | AB250: 10305 | AC250: 0 | AD250: 1041 | AE250: 9336 | AF250: 0 | AG250: 1072 | AH250: 8006 | AI250: 0 | AJ250: 963 | AK250: 6749 | AL250: 0 | AM250: 881
A251: LORICA | B251: ANTIOQUIA | C251: Ciclo 5 Adultos | D251: 2414 | E251: 1246 | F251: 533 | G251: 3517 | H251: 1019 | I251: 621 | J251: 3568 | K251: 929 | L251: 681 | M251: 3218 | N251: 0 | O251: 529 | P251: 4014 | Q251: 0 | R251: 960 | S251: 3206 | T251: 0 | U251: 439 | V251: 2276 | W251: 0 | X251: 591 | Y251: 4539 | Z251: 0 | AA251: 725 | AB251: 2832 | AC251: 0 | AD251: 789 | AE251: 2932 | AF251: 0 | AG251: 863 | AH251: 2003 | AI251: 0 | AJ251: 746 | AK251: 1809 | AL251: 0 | AM251: 677
A252: MAGANGUE | B252: ANTIOQUIA | C252: Ciclo 6 Adultos | D252: 6226 | E252: 1325 | F252: 1470 | G252: 6254 | H252: 1524 | I252: 1259 | J252: 7103 | K252: 1445 | L252: 1179 | M252: 8667 | N252: 0 | O252: 1293 | P252: 9040 | Q252: 0 | R252: 1295 | S252: 10299 | T252: 0 | U252: 2116 | V252: 11214 | W252: 0 | X252: 1417 | Y252: 7856 | Z252: 0 | AA252: 1279 | AB252: 8302 | AC252: 0 | AD252: 1931 | AE252: 7325 | AF252: 0 | AG252: 1970 | AH252: 7624 | AI252: 0 | AJ252: 1826 | AK252: 6219 | AL252: 0 | AM252: 1892
A253: MAGDALENA | B253: ANTIOQUIA | C253: Semestre introductorio NS | D253: 0 | E253: 0 | F253: 0 | G253: 0 | H253: 0 | I253: 0 | J253: 0 | K253: 0 | L253: 0 | M253: 0 | N253: 0 | O253: 0 | P253: 0 | Q253: 0 | R253: 0 | S253: 0 | T253: 0 | U253: 0 | V253: 0 | W253: 0 | X253: 0 | Y253: 0 | Z253: 0 | AA253: 0 | AB253: 0 | AC253: 0 | AD253: 0 | AE253: 128 | AF253: 0 | AG253: 0 | AH253: 130 | AI253: 0 | AJ253: 3 | AK253: 112 | AL253: 0 | AM253: 2
A254: MAICAO | B254: ANTIOQUIA | C254: Programa formación compl 1 NS | D254: 0 | E254: 0 | F254: 0 | G254: 0 | H254: 0 | I254: 0 | J254: 0 | K254: 0 | L254: 0 | M254: 0 | N254: 0 | O254: 0 | P254: 0 | Q254: 0 | R254: 0 | S254: 0 | T254: 0 | U254: 0 | V254: 0 | W254: 0 | X254: 0 | Y254: 0 | Z254: 0 | AA254: 0 | AB254: 0 | AC254: 0 | AD254: 0 | AE254: 196 | AF254: 0 | AG254: 1 | AH254: 85 | AI254: 0 | AJ254: 0 | AK254: 126 | AL254: 0 | AM254: 4
A255: MALAMBO | B255: ANTIOQUIA | C255: Programa formación compl 2 NS | D255: 0 | E255: 0 | F255: 0 | G255: 0 | H255: 0 | I255: 0 | J255: 0 | K255: 0 | L255: 0 | M255: 0 | N255: 0 | O255: 0 | P255: 0 | Q255: 0 | R255: 0 | S255: 0 | T255: 0 | U255: 0 | V255: 0 | W255: 0 | X255: 0 | Y255: 0 | Z255: 0 | AA255: 0 | AB255: 0 | AC255: 0 | AD255: 0 | AE255: 187 | AF255: 0 | AG255: 0 | AH255: 194 | AI255: 0 | AJ255: 0 | AK255: 169 | AL255: 0 | AM255: 3
A256: MANIZALES | B256: ANTIOQUIA | C256: Programa formación compl 3 NS | D256: 0 | E256: 0 | F256: 0 | G256: 0 | H256: 0 | I256: 0 | J256: 0 | K256: 0 | L256: 0 | M256: 0 | N256: 0 | O256: 0 | P256: 0 | Q256: 0 | R256: 0 | S256: 0 | T256: 0 | U256: 0 | V256: 0 | W256: 0 | X256: 0 | Y256: 0 | Z256: 0 | AA256: 0 | AB256: 0 | AC256: 0 | AD256: 0 | AE256: 111 | AF256: 0 | AG256: 0 | AH256: 72 | AI256: 0 | AJ256: 0 | AK256: 88 | AL256: 0 | AM256: 9
A257: MEDELLIN | B257: ANTIOQUIA | C257: Programa formación compl 4 NS | D257: 0 | E257: 0 | F257: 0 | G257: 0 | H257: 0 | I257: 0 | J257: 0 | K257: 0 | L257: 0 | M257: 0 | N257: 0 | O257: 0 | P257: 0 | Q257: 0 | R257: 0 | S257: 0 | T257: 0 | U257: 0 | V257: 0 | W257: 0 | X257: 0 | Y257: 0 | Z257: 0 | AA257: 0 | AB257: 0 | AC257: 0 | AD257: 0 | AE257: 233 | AF257: 0 | AG257: 0 | AH257: 256 | AI257: 0 | AJ257: 0 | AK257: 204 | AL257: 0 | AM257: 11
A258: META | B258: ANTIOQUIA | C258: Aceleración del Aprendizaje | D258: 1141 | E258: 700 | F258: 0 | G258: 1238 | H258: 747 | I258: 0 | J258: 1317 | K258: 4 | L258: 0 | M258: 1334 | N258: 0 | O258: 0 | P258: 1619 | Q258: 0 | R258: 0 | S258: 1495 | T258: 0 | U258: 0 | V258: 1427 | W258: 0 | X258: 0 | Y258: 1212 | Z258: 0 | AA258: 0 | AB258: 1219 | AC258: 0 | AD258: 0 | AE258: 1165 | AF258: 0 | AG258: 0 | AH258: 1157 | AI258: 0 | AJ258: 0 | AK258: 1125 | AL258: 0 | AM258: 0
A259: MONTERIA | B259: APARTADO | C259: Prejardín | D259: 0 | E259: 0 | F259: 39 | G259: 0 | H259: 0 | I259: 27 | J259: 0 | K259: 0 | L259: 38 | M259: 0 | N259: 0 | O259: 20 | P259: 0 | Q259: 0 | R259: 46 | S259: 0 | T259: 0 | U259: 83 | V259: 0 | W259: 0 | X259: 84 | Y259: 0 | Z259: 0 | AA259: 162 | AB259: 0 | AC259: 0 | AD259: 53 | AE259: 0 | AF259: 0 | AG259: 163 | AH259: 94 | AI259: 0 | AJ259: 172 | AK259: 222 | AL259: 0 | AM259: 135
A260: MOSQUERA | B260: APARTADO | C260: Jardín | D260: 0 | E260: 0 | F260: 85 | G260: 0 | H260: 0 | I260: 73 | J260: 0 | K260: 0 | L260: 63 | M260: 0 | N260: 0 | O260: 63 | P260: 0 | Q260: 0 | R260: 111 | S260: 0 | T260: 0 | U260: 113 | V260: 0 | W260: 0 | X260: 119 | Y260: 0 | Z260: 0 | AA260: 214 | AB260: 0 | AC260: 0 | AD260: 214 | AE260: 0 | AF260: 0 | AG260: 191 | AH260: 91 | AI260: 0 | AJ260: 183 | AK260: 339 | AL260: 0 | AM260: 133
A261: NARIÑO | B261: APARTADO | C261: Transición | D261: 1915 | E261: 469 | F261: 161 | G261: 2064 | H261: 99 | I261: 133 | J261: 1868 | K261: 70 | L261: 150 | M261: 2084 | N261: 7 | O261: 172 | P261: 1957 | Q261: 0 | R261: 188 | S261: 1979 | T261: 0 | U261: 167 | V261: 2079 | W261: 0 | X261: 194 | Y261: 1893 | Z261: 0 | AA261: 178 | AB261: 2057 | AC261: 0 | AD261: 238 | AE261: 1892 | AF261: 0 | AG261: 261 | AH261: 1852 | AI261: 0 | AJ261: 220 | AK261: 1518 | AL261: 0 | AM261: 219
A262: NEIVA | B262: APARTADO | C262: Primero | D262: 2499 | E262: 711 | F262: 201 | G262: 2807 | H262: 103 | I262: 184 | J262: 2586 | K262: 0 | L262: 218 | M262: 2394 | N262: 54 | O262: 184 | P262: 2477 | Q262: 2 | R262: 190 | S262: 2529 | T262: 0 | U262: 168 | V262: 2342 | W262: 0 | X262: 149 | Y262: 2370 | Z262: 0 | AA262: 150 | AB262: 2279 | AC262: 0 | AD262: 181 | AE262: 2280 | AF262: 0 | AG262: 167 | AH262: 2166 | AI262: 0 | AJ262: 183 | AK262: 2137 | AL262: 0 | AM262: 157
A263: NORTE_DE_SANTANDER | B263: APARTADO | C263: Segundo | D263: 2349 | E263: 782 | F263: 187 | G263: 2867 | H263: 99 | I263: 216 | J263: 2809 | K263: 0 | L263: 210 | M263: 2467 | N263: 5 | O263: 205 | P263: 2278 | Q263: 0 | R263: 189 | S263: 2354 | T263: 0 | U263: 184 | V263: 2293 | W263: 0 | X263: 165 | Y263: 2225 | Z263: 0 | AA263: 135 | AB263: 2226 | AC263: 0 | AD263: 161 | AE263: 2109 | AF263: 0 | AG263: 176 | AH263: 2149 | AI263: 0 | AJ263: 171 | AK263: 2064 | AL263: 0 | AM263: 168
A264: PALMIRA | B264: APARTADO | C264: Tercero | D264: 2293 | E264: 648 | F264: 199 | G264: 2755 | H264: 107 | I264: 221 | J264: 2716 | K264: 0 | L264: 204 | M264: 2657 | N264: 3 | O264: 198 | P264: 2335 | Q264: 0 | R264: 215 | S264: 2242 | T264: 0 | U264: 172 | V264: 2250 | W264: 0 | X264: 191 | Y264: 2246 | Z264: 0 | AA264: 144 | AB264: 2107 | AC264: 0 | AD264: 150 | AE264: 2108 | AF264: 0 | AG264: 171 | AH264: 2027 | AI264: 0 | AJ264: 178 | AK264: 2132 | AL264: 0 | AM264: 155
A265: PASTO | B265: APARTADO | C265: Cuarto | D265: 2262 | E265: 602 | F265: 178 | G265: 2543 | H265: 102 | I265: 212 | J265: 2634 | K265: 0 | L265: 200 | M265: 2722 | N265: 3 | O265: 195 | P265: 2605 | Q265: 0 | R265: 193 | S265: 2366 | T265: 0 | U265: 217 | V265: 2167 | W265: 0 | X265: 171 | Y265: 2255 | Z265: 0 | AA265: 186 | AB265: 2147 | AC265: 0 | AD265: 150 | AE265: 1955 | AF265: 0 | AG265: 149 | AH265: 2013 | AI265: 0 | AJ265: 164 | AK265: 1968 | AL265: 0 | AM265: 181
A266: PEREIRA | B266: APARTADO | C266: Quinto | D266: 2168 | E266: 537 | F266: 167 | G266: 2524 | H266: 124 | I266: 198 | J266: 2583 | K266: 0 | L266: 196 | M266: 2649 | N266: 4 | O266: 201 | P266: 2633 | Q266: 0 | R266: 205 | S266: 2534 | T266: 0 | U266: 195 | V266: 2339 | W266: 0 | X266: 198 | Y266: 2162 | Z266: 0 | AA266: 163 | AB266: 2187 | AC266: 0 | AD266: 180 | AE266: 2069 | AF266: 0 | AG266: 157 | AH266: 1915 | AI266: 0 | AJ266: 131 | AK266: 2001 | AL266: 0 | AM266: 165
A267: PIEDECUESTA | B267: APARTADO | C267: Sexto | D267: 2543 | E267: 527 | F267: 160 | G267: 3043 | H267: 104 | I267: 186 | J267: 3150 | K267: 0 | L267: 190 | M267: 3231 | N267: 0 | O267: 203 | P267: 3063 | Q267: 0 | R267: 205 | S267: 3209 | T267: 0 | U267: 218 | V267: 2941 | W267: 0 | X267: 190 | Y267: 2567 | Z267: 0 | AA267: 158 | AB267: 2328 | AC267: 0 | AD267: 157 | AE267: 2338 | AF267: 0 | AG267: 178 | AH267: 2259 | AI267: 0 | AJ267: 168 | AK267: 2143 | AL267: 0 | AM267: 132
A268: PITALITO | B268: APARTADO | C268: Septimo | D268: 2220 | E268: 364 | F268: 141 | G268: 2499 | H268: 80 | I268: 192 | J268: 2585 | K268: 0 | L268: 160 | M268: 2606 | N268: 0 | O268: 185 | P268: 2990 | Q268: 0 | R268: 209 | S268: 2804 | T268: 0 | U268: 196 | V268: 2912 | W268: 0 | X268: 221 | Y268: 2878 | Z268: 0 | AA268: 166 | AB268: 2553 | AC268: 0 | AD268: 159 | AE268: 2346 | AF268: 0 | AG268: 158 | AH268: 2493 | AI268: 0 | AJ268: 167 | AK268: 2355 | AL268: 0 | AM268: 158
A269: POPAYAN | B269: APARTADO | C269: Octavo | D269: 1941 | E269: 231 | F269: 159 | G269: 2015 | H269: 47 | I269: 158 | J269: 2085 | K269: 0 | L269: 161 | M269: 2183 | N269: 0 | O269: 148 | P269: 2208 | Q269: 0 | R269: 185 | S269: 2320 | T269: 0 | U269: 199 | V269: 2370 | W269: 0 | X269: 194 | Y269: 2406 | Z269: 0 | AA269: 196 | AB269: 2246 | AC269: 0 | AD269: 181 | AE269: 1985 | AF269: 0 | AG269: 159 | AH269: 1883 | AI269: 0 | AJ269: 138 | AK269: 1868 | AL269: 0 | AM269: 160
A270: PUTUMAYO | B270: APARTADO | C270: Noveno | D270: 1563 | E270: 155 | F270: 118 | G270: 1770 | H270: 15 | I270: 162 | J270: 1720 | K270: 0 | L270: 138 | M270: 1750 | N270: 0 | O270: 157 | P270: 1910 | Q270: 0 | R270: 152 | S270: 2052 | T270: 0 | U270: 172 | V270: 2226 | W270: 0 | X270: 194 | Y270: 2475 | Z270: 0 | AA270: 166 | AB270: 2306 | AC270: 0 | AD270: 193 | AE270: 2144 | AF270: 0 | AG270: 187 | AH270: 2147 | AI270: 0 | AJ270: 162 | AK270: 1966 | AL270: 0 | AM270: 128
A271: QUIBDO | B271: APARTADO | C271: Decimo | D271: 1269 | E271: 66 | F271: 146 | G271: 1438 | H271: 0 | I271: 117 | J271: 1511 | K271: 0 | L271: 153 | M271: 1457 | N271: 0 | O271: 116 | P271: 1495 | Q271: 0 | R271: 147 | S271: 1622 | T271: 0 | U271: 134 | V271: 1784 | W271: 0 | X271: 153 | Y271: 1919 | Z271: 0 | AA271: 177 | AB271: 1957 | AC271: 0 | AD271: 173 | AE271: 1877 | AF271: 0 | AG271: 175 | AH271: 1837 | AI271: 0 | AJ271: 181 | AK271: 1792 | AL271: 0 | AM271: 140
A272: QUINDIO | B272: APARTADO | C272: Once | D272: 1035 | E272: 56 | F272: 89 | G272: 1055 | H272: 0 | I272: 162 | J272: 1171 | K272: 0 | L272: 107 | M272: 1278 | N272: 0 | O272: 136 | P272: 1174 | Q272: 0 | R272: 107 | S272: 1223 | T272: 0 | U272: 145 | V272: 1387 | W272: 0 | X272: 130 | Y272: 1417 | Z272: 0 | AA272: 136 | AB272: 1452 | AC272: 0 | AD272: 165 | AE272: 1506 | AF272: 1 | AG272: 160 | AH272: 1520 | AI272: 0 | AJ272: 165 | AK272: 1527 | AL272: 0 | AM272: 171
A273: RIOHACHA | B273: APARTADO | C273: 12º Normal | D273: 0 | E273: 0 | F273: 0 | G273: 0 | H273: 0 | I273: 0 | J273: 0 | K273: 0 | L273: 0 | M273: 0 | N273: 0 | O273: 0 | P273: 0 | Q273: 0 | R273: 0 | S273: 0 | T273: 0 | U273: 0 | V273: 0 | W273: 0 | X273: 0 | Y273: 0 | Z273: 0 | AA273: 0 | AB273: 0 | AC273: 0 | AD273: 0 | AE273: 0 | AF273: 0 | AG273: 0 | AH273: 0 | AI273: 0 | AJ273: 0 | AK273: 0 | AL273: 0 | AM273: 0
A274: RIONEGRO | B274: APARTADO | C274: 13º Normal | D274: 0 | E274: 0 | F274: 0 | G274: 0 | H274: 0 | I274: 0 | J274: 0 | K274: 0 | L274: 0 | M274: 0 | N274: 0 | O274: 0 | P274: 0 | Q274: 0 | R274: 0 | S274: 0 | T274: 0 | U274: 0 | V274: 0 | W274: 0 | X274: 0 | Y274: 0 | Z274: 0 | AA274: 0 | AB274: 0 | AC274: 0 | AD274: 0 | AE274: 0 | AF274: 0 | AG274: 0 | AH274: 0 | AI274: 0 | AJ274: 0 | AK274: 0 | AL274: 0 | AM274: 0
B275: APARTADO | C275: Ciclo 0 Adultos EA | AK275: 0 | AL275: 0 | AM275: 0
A276: RISARALDA | B276: APARTADO | C276: Ciclo 1 Adultos | D276: 124 | E276: 0 | F276: 0 | G276: 1649 | H276: 0 | I276: 0 | J276: 941 | K276: 0 | L276: 0 | M276: 33 | N276: 0 | O276: 0 | P276: 926 | Q276: 0 | R276: 0 | S276: 8 | T276: 0 | U276: 0 | V276: 0 | W276: 0 | X276: 0 | Y276: 382 | Z276: 2 | AA276: 0 | AB276: 0 | AC276: 0 | AD276: 0 | AE276: 2 | AF276: 0 | AG276: 0 | AH276: 0 | AI276: 0 | AJ276: 30 | AK276: 1 | AL276: 0 | AM276: 50
A277: SABANETA | B277: APARTADO | C277: Ciclo 2 Adultos | D277: 325 | E277: 0 | F277: 0 | G277: 456 | H277: 0 | I277: 0 | J277: 1431 | K277: 2122 | L277: 0 | M277: 913 | N277: 0 | O277: 1 | P277: 41 | Q277: 432 | R277: 0 | S277: 110 | T277: 217 | U277: 0 | V277: 10 | W277: 216 | X277: 0 | Y277: 17 | Z277: 186 | AA277: 5 | AB277: 8 | AC277: 79 | AD277: 11 | AE277: 12 | AF277: 96 | AG277: 5 | AH277: 97 | AI277: 0 | AJ277: 80 | AK277: 23 | AL277: 154 | AM277: 67
A278: SAHAGUN | B278: APARTADO | C278: Ciclo 3 Adultos | D278: 1026 | E278: 22 | F278: 10 | G278: 1199 | H278: 3 | I278: 10 | J278: 1330 | K278: 597 | L278: 1 | M278: 1336 | N278: 0 | O278: 30 | P278: 54 | Q278: 1504 | R278: 7 | S278: 133 | T278: 857 | U278: 4 | V278: 24 | W278: 600 | X278: 6 | Y278: 47 | Z278: 562 | AA278: 16 | AB278: 30 | AC278: 498 | AD278: 70 | AE278: 32 | AF278: 425 | AG278: 37 | AH278: 169 | AI278: 128 | AJ278: 209 | AK278: 16 | AL278: 247 | AM278: 248
A279: SAN_ANDRES | B279: APARTADO | C279: Ciclo 4 Adultos | D279: 1141 | E279: 46 | F279: 10 | G279: 1229 | H279: 0 | I279: 18 | J279: 1470 | K279: 356 | L279: 8 | M279: 1347 | N279: 0 | O279: 29 | P279: 37 | Q279: 1211 | R279: 19 | S279: 203 | T279: 1495 | U279: 10 | V279: 25 | W279: 815 | X279: 6 | Y279: 74 | Z279: 783 | AA279: 18 | AB279: 45 | AC279: 627 | AD279: 52 | AE279: 30 | AF279: 613 | AG279: 65 | AH279: 296 | AI279: 172 | AJ279: 230 | AK279: 25 | AL279: 412 | AM279: 332
A280: SANTA_MARTA | B280: APARTADO | C280: Ciclo 5 Adultos | D280: 159 | E280: 28 | F280: 13 | G280: 215 | H280: 0 | I280: 16 | J280: 318 | K280: 161 | L280: 17 | M280: 344 | N280: 0 | O280: 39 | P280: 95 | Q280: 78 | R280: 31 | S280: 49 | T280: 263 | U280: 18 | V280: 8 | W280: 166 | X280: 33 | Y280: 184 | Z280: 190 | AA280: 25 | AB280: 89 | AC280: 154 | AD280: 68 | AE280: 41 | AF280: 181 | AG280: 75 | AH280: 57 | AI280: 74 | AJ280: 125 | AK280: 21 | AL280: 144 | AM280: 153
A281: SANTANDER | B281: APARTADO | C281: Ciclo 6 Adultos | D281: 1117 | E281: 4 | F281: 34 | G281: 1073 | H281: 24 | I281: 30 | J281: 1047 | K281: 80 | L281: 0 | M281: 1120 | N281: 0 | O281: 9 | P281: 132 | Q281: 1092 | R281: 91 | S281: 61 | T281: 997 | U281: 90 | V281: 17 | W281: 968 | X281: 20 | Y281: 168 | Z281: 497 | AA281: 124 | AB281: 25 | AC281: 710 | AD281: 76 | AE281: 62 | AF281: 724 | AG281: 180 | AH281: 94 | AI281: 430 | AJ281: 295 | AK281: 11 | AL281: 402 | AM281: 340
A282: SINCELEJO | B282: APARTADO | C282: Semestre introductorio NS | D282: 0 | E282: 0 | F282: 0 | G282: 0 | H282: 0 | I282: 0 | J282: 0 | K282: 0 | L282: 0 | M282: 0 | N282: 0 | O282: 0 | P282: 0 | Q282: 0 | R282: 0 | S282: 0 | T282: 0 | U282: 0 | V282: 0 | W282: 0 | X282: 0 | Y282: 0 | Z282: 0 | AA282: 0 | AB282: 0 | AC282: 0 | AD282: 0 | AE282: 0 | AF282: 0 | AG282: 0 | AH282: 0 | AI282: 0 | AJ282: 0 | AK282: 0 | AL282: 0 | AM282: 0
A283: SOACHA | B283: APARTADO | C283: Programa formación compl 1 NS | D283: 0 | E283: 0 | F283: 0 | G283: 0 | H283: 0 | I283: 0 | J283: 0 | K283: 0 | L283: 0 | M283: 0 | N283: 0 | O283: 0 | P283: 0 | Q283: 0 | R283: 0 | S283: 0 | T283: 0 | U283: 0 | V283: 0 | W283: 0 | X283: 0 | Y283: 0 | Z283: 0 | AA283: 0 | AB283: 0 | AC283: 0 | AD283: 0 | AE283: 0 | AF283: 0 | AG283: 0 | AH283: 0 | AI283: 0 | AJ283: 0 | AK283: 0 | AL283: 0 | AM283: 0
A284: SOGAMOSO | B284: APARTADO | C284: Programa formación compl 2 NS | D284: 0 | E284: 0 | F284: 0 | G284: 0 | H284: 0 | I284: 0 | J284: 0 | K284: 0 | L284: 0 | M284: 0 | N284: 0 | O284: 0 | P284: 0 | Q284: 0 | R284: 0 | S284: 0 | T284: 0 | U284: 0 | V284: 0 | W284: 0 | X284: 0 | Y284: 0 | Z284: 0 | AA284: 0 | AB284: 0 | AC284: 0 | AD284: 0 | AE284: 0 | AF284: 0 | AG284: 0 | AH284: 0 | AI284: 0 | AJ284: 0 | AK284: 0 | AL284: 0 | AM284: 0
A285: SOLEDAD | B285: APARTADO | C285: Programa formación compl 3 NS | D285: 0 | E285: 0 | F285: 0 | G285: 0 | H285: 0 | I285: 0 | J285: 0 | K285: 0 | L285: 0 | M285: 0 | N285: 0 | O285: 0 | P285: 0 | Q285: 0 | R285: 0 | S285: 0 | T285: 0 | U285: 0 | V285: 0 | W285: 0 | X285: 0 | Y285: 0 | Z285: 0 | AA285: 0 | AB285: 0 | AC285: 0 | AD285: 0 | AE285: 0 | AF285: 0 | AG285: 0 | AH285: 0 | AI285: 0 | AJ285: 0 | AK285: 0 | AL285: 0 | AM285: 0
A286: SUCRE | B286: APARTADO | C286: Programa formación compl 4 NS | D286: 0 | E286: 0 | F286: 0 | G286: 0 | H286: 0 | I286: 0 | J286: 0 | K286: 0 | L286: 0 | M286: 0 | N286: 0 | O286: 0 | P286: 0 | Q286: 0 | R286: 0 | S286: 0 | T286: 0 | U286: 0 | V286: 0 | W286: 0 | X286: 0 | Y286: 0 | Z286: 0 | AA286: 0 | AB286: 0 | AC286: 0 | AD286: 0 | AE286: 0 | AF286: 0 | AG286: 0 | AH286: 0 | AI286: 0 | AJ286: 0 | AK286: 0 | AL286: 0 | AM286: 0
A287: TOLIMA | B287: APARTADO | C287: Aceleración del Aprendizaje | D287: 228 | E287: 0 | F287: 0 | G287: 267 | H287: 0 | I287: 0 | J287: 340 | K287: 0 | L287: 0 | M287: 285 | N287: 0 | O287: 0 | P287: 436 | Q287: 0 | R287: 0 | S287: 427 | T287: 0 | U287: 0 | V287: 411 | W287: 0 | X287: 0 | Y287: 347 | Z287: 0 | AA287: 0 | AB287: 358 | AC287: 0 | AD287: 0 | AE287: 388 | AF287: 0 | AG287: 0 | AH287: 353 | AI287: 0 | AJ287: 0 | AK287: 305 | AL287: 0 | AM287: 0
A288: TULUA | B288: ARAUCA | C288: Prejardín | D288: 0 | E288: 0 | F288: 125 | G288: 0 | H288: 0 | I288: 217 | J288: 0 | K288: 0 | L288: 60 | M288: 0 | N288: 0 | O288: 227 | P288: 0 | Q288: 0 | R288: 130 | S288: 0 | T288: 0 | U288: 144 | V288: 0 | W288: 0 | X288: 150 | Y288: 0 | Z288: 0 | AA288: 68 | AB288: 0 | AC288: 0 | AD288: 195 | AE288: 0 | AF288: 0 | AG288: 209 | AH288: 74 | AI288: 0 | AJ288: 130 | AK288: 288 | AL288: 0 | AM288: 149
A289: TUMACO | B289: ARAUCA | C289: Jardín | D289: 0 | E289: 0 | F289: 292 | G289: 0 | H289: 0 | I289: 270 | J289: 0 | K289: 0 | L289: 240 | M289: 0 | N289: 0 | O289: 251 | P289: 0 | Q289: 0 | R289: 325 | S289: 0 | T289: 0 | U289: 269 | V289: 0 | W289: 0 | X289: 307 | Y289: 0 | Z289: 0 | AA289: 194 | AB289: 0 | AC289: 0 | AD289: 327 | AE289: 139 | AF289: 0 | AG289: 306 | AH289: 593 | AI289: 0 | AJ289: 250 | AK289: 907 | AL289: 0 | AM289: 218
A290: TUNJA | B290: ARAUCA | C290: Transición | D290: 4715 | E290: 0 | F290: 290 | G290: 4983 | H290: 0 | I290: 361 | J290: 4971 | K290: 0 | L290: 298 | M290: 5024 | N290: 0 | O290: 335 | P290: 5089 | Q290: 0 | R290: 260 | S290: 5158 | T290: 0 | U290: 336 | V290: 5247 | W290: 0 | X290: 347 | Y290: 5546 | Z290: 0 | AA290: 310 | AB290: 5806 | AC290: 0 | AD290: 389 | AE290: 5402 | AF290: 0 | AG290: 416 | AH290: 5103 | AI290: 0 | AJ290: 386 | AK290: 4523 | AL290: 0 | AM290: 323
A291: TURBO | B291: ARAUCA | C291: Primero | D291: 6441 | E291: 0 | F291: 287 | G291: 6155 | H291: 0 | I291: 320 | J291: 6189 | K291: 0 | L291: 297 | M291: 6234 | N291: 0 | O291: 317 | P291: 6506 | Q291: 0 | R291: 296 | S291: 6752 | T291: 0 | U291: 244 | V291: 6874 | W291: 0 | X291: 361 | Y291: 6967 | Z291: 0 | AA291: 330 | AB291: 7316 | AC291: 0 | AD291: 371 | AE291: 7338 | AF291: 0 | AG291: 395 | AH291: 6918 | AI291: 0 | AJ291: 377 | AK291: 6252 | AL291: 0 | AM291: 444
A292: URIBIA | B292: ARAUCA | C292: Segundo | D292: 5922 | E292: 0 | F292: 271 | G292: 5713 | H292: 0 | I292: 291 | J292: 5444 | K292: 0 | L292: 313 | M292: 5585 | N292: 0 | O292: 322 | P292: 5731 | Q292: 0 | R292: 305 | S292: 5952 | T292: 0 | U292: 297 | V292: 6072 | W292: 0 | X292: 299 | Y292: 6388 | Z292: 0 | AA292: 295 | AB292: 5740 | AC292: 0 | AD292: 341 | AE292: 6255 | AF292: 0 | AG292: 396 | AH292: 6328 | AI292: 0 | AJ292: 380 | AK292: 6072 | AL292: 0 | AM292: 347
A293: VALLE | B293: ARAUCA | C293: Tercero | D293: 5457 | E293: 0 | F293: 265 | G293: 5756 | H293: 0 | I293: 287 | J293: 5643 | K293: 0 | L293: 250 | M293: 5415 | N293: 0 | O293: 296 | P293: 5505 | Q293: 0 | R293: 292 | S293: 5742 | T293: 0 | U293: 291 | V293: 5975 | W293: 0 | X293: 309 | Y293: 6291 | Z293: 0 | AA293: 278 | AB293: 5709 | AC293: 0 | AD293: 300 | AE293: 5375 | AF293: 0 | AG293: 357 | AH293: 5975 | AI293: 0 | AJ293: 367 | AK293: 5872 | AL293: 0 | AM293: 381
A294: VALLEDUPAR | B294: ARAUCA | C294: Cuarto | D294: 5135 | E294: 0 | F294: 230 | G294: 5400 | H294: 0 | I294: 252 | J294: 5711 | K294: 0 | L294: 248 | M294: 5474 | N294: 0 | O294: 247 | P294: 5416 | Q294: 0 | R294: 258 | S294: 5490 | T294: 0 | U294: 292 | V294: 5733 | W294: 0 | X294: 298 | Y294: 5908 | Z294: 0 | AA294: 263 | AB294: 5579 | AC294: 0 | AD294: 275 | AE294: 5223 | AF294: 0 | AG294: 309 | AH294: 5096 | AI294: 0 | AJ294: 326 | AK294: 5474 | AL294: 0 | AM294: 361
A295: VAUPES | B295: ARAUCA | C295: Quinto | D295: 4877 | E295: 0 | F295: 198 | G295: 4870 | H295: 0 | I295: 221 | J295: 5238 | K295: 0 | L295: 235 | M295: 5582 | N295: 0 | O295: 244 | P295: 5512 | Q295: 0 | R295: 204 | S295: 5552 | T295: 0 | U295: 241 | V295: 5513 | W295: 0 | X295: 293 | Y295: 5847 | Z295: 0 | AA295: 269 | AB295: 5620 | AC295: 0 | AD295: 262 | AE295: 5267 | AF295: 0 | AG295: 301 | AH295: 5046 | AI295: 0 | AJ295: 276 | AK295: 4921 | AL295: 0 | AM295: 316
A296: VICHADA | B296: ARAUCA | C296: Sexto | D296: 5327 | E296: 0 | F296: 159 | G296: 5414 | H296: 0 | I296: 184 | J296: 5507 | K296: 0 | L296: 174 | M296: 5808 | N296: 0 | O296: 187 | P296: 6171 | Q296: 0 | R296: 189 | S296: 5982 | T296: 0 | U296: 193 | V296: 6127 | W296: 0 | X296: 239 | Y296: 6041 | Z296: 0 | AA296: 264 | AB296: 5763 | AC296: 0 | AD296: 253 | AE296: 5607 | AF296: 0 | AG296: 273 | AH296: 5422 | AI296: 0 | AJ296: 284 | AK296: 5070 | AL296: 0 | AM296: 322
A297: VILLAVICENCIO | B297: ARAUCA | C297: Septimo | D297: 4459 | E297: 0 | F297: 181 | G297: 4645 | H297: 0 | I297: 159 | J297: 4618 | K297: 0 | L297: 160 | M297: 4708 | N297: 0 | O297: 168 | P297: 4982 | Q297: 0 | R297: 162 | S297: 5446 | T297: 0 | U297: 202 | V297: 5431 | W297: 0 | X297: 196 | Y297: 5673 | Z297: 0 | AA297: 228 | AB297: 5206 | AC297: 0 | AD297: 261 | AE297: 5141 | AF297: 0 | AG297: 303 | AH297: 5017 | AI297: 0 | AJ297: 294 | AK297: 4899 | AL297: 0 | AM297: 310
A298: YOPAL | B298: ARAUCA | C298: Octavo | D298: 3665 | E298: 0 | F298: 171 | G298: 3684 | H298: 0 | I298: 164 | J298: 3882 | K298: 0 | L298: 146 | M298: 3922 | N298: 0 | O298: 149 | P298: 3956 | Q298: 0 | R298: 146 | S298: 4252 | T298: 0 | U298: 171 | V298: 4657 | W298: 0 | X298: 197 | Y298: 4622 | Z298: 0 | AA298: 191 | AB298: 4296 | AC298: 0 | AD298: 239 | AE298: 4122 | AF298: 0 | AG298: 291 | AH298: 4090 | AI298: 0 | AJ298: 319 | AK298: 4013 | AL298: 0 | AM298: 307
A299: YUMBO | B299: ARAUCA | C299: Noveno | D299: 3003 | E299: 0 | F299: 147 | G299: 3157 | H299: 0 | I299: 140 | J299: 3225 | K299: 0 | L299: 144 | M299: 3359 | N299: 0 | O299: 134 | P299: 3343 | Q299: 0 | R299: 142 | S299: 3432 | T299: 0 | U299: 116 | V299: 3825 | W299: 0 | X299: 171 | Y299: 4377 | Z299: 0 | AA299: 191 | AB299: 4020 | AC299: 0 | AD299: 210 | AE299: 3912 | AF299: 0 | AG299: 291 | AH299: 3795 | AI299: 0 | AJ299: 290 | AK299: 3677 | AL299: 0 | AM299: 311
A300: ZIPAQUIRA | B300: ARAUCA | C300: Decimo | D300: 2629 | E300: 0 | F300: 110 | G300: 2666 | H300: 0 | I300: 126 | J300: 2785 | K300: 0 | L300: 104 | M300: 2890 | N300: 0 | O300: 129 | P300: 2900 | Q300: 0 | R300: 85 | S300: 2924 | T300: 0 | U300: 99 | V300: 3025 | W300: 0 | X300: 123 | Y300: 3259 | Z300: 0 | AA300: 161 | AB300: 3391 | AC300: 0 | AD300: 208 | AE300: 3333 | AF300: 0 | AG300: 222 | AH300: 3249 | AI300: 0 | AJ300: 277 | AK300: 3163 | AL300: 0 | AM300: 289
A301: COLOMBIA | B301: ARAUCA | C301: Once | D301: 2000 | E301: 0 | F301: 120 | G301: 2154 | H301: 0 | I301: 108 | J301: 2177 | K301: 0 | L301: 117 | M301: 2195 | N301: 0 | O301: 123 | P301: 2345 | Q301: 0 | R301: 118 | S301: 2356 | T301: 0 | U301: 108 | V301: 2466 | W301: 0 | X301: 126 | Y301: 2499 | Z301: 0 | AA301: 129 | AB301: 2486 | AC301: 0 | AD301: 150 | AE301: 2803 | AF301: 0 | AG301: 256 | AH301: 2661 | AI301: 0 | AJ301: 265 | AK301: 2695 | AL301: 0 | AM301: 294
B302: ARAUCA | C302: 12º Normal | D302: 96 | E302: 0 | F302: 0 | G302: 89 | H302: 0 | I302: 0 | J302: 118 | K302: 0 | L302: 0 | M302: 100 | N302: 0 | O302: 0 | P302: 78 | Q302: 0 | R302: 0 | S302: 98 | T302: 0 | U302: 0 | V302: 111 | W302: 0 | X302: 0 | Y302: 96 | Z302: 0 | AA302: 0 | AB302: 113 | AC302: 0 | AD302: 0 | AE302: 0 | AF302: 0 | AG302: 0 | AH302: 0 | AI302: 0 | AJ302: 0 | AK302: 0 | AL302: 0 | AM302: 0
B303: ARAUCA | C303: 13º Normal | D303: 27 | E303: 0 | F303: 0 | G303: 48 | H303: 1 | I303: 0 | J303: 49 | K303: 0 | L303: 0 | M303: 28 | N303: 0 | O303: 0 | P303: 53 | Q303: 0 | R303: 0 | S303: 51 | T303: 0 | U303: 0 | V303: 43 | W303: 0 | X303: 0 | Y303: 48 | Z303: 0 | AA303: 0 | AB303: 38 | AC303: 0 | AD303: 0 | AE303: 0 | AF303: 0 | AG303: 0 | AH303: 0 | AI303: 0 | AJ303: 0 | AK303: 0 | AL303: 0 | AM303: 0
B304: ARAUCA | C304: Ciclo 0 Adultos EA | AK304: 0 | AL304: 0 | AM304: 0
B305: ARAUCA | C305: Ciclo 1 Adultos | D305: 0 | E305: 580 | F305: 0 | G305: 0 | H305: 0 | I305: 0 | J305: 1027 | K305: 0 | L305: 0 | M305: 1076 | N305: 0 | O305: 0 | P305: 1844 | Q305: 0 | R305: 0 | S305: 7 | T305: 0 | U305: 0 | V305: 703 | W305: 0 | X305: 0 | Y305: 1131 | Z305: 0 | AA305: 0 | AB305: 39 | AC305: 0 | AD305: 0 | AE305: 0 | AF305: 0 | AG305: 1 | AH305: 0 | AI305: 0 | AJ305: 0 | AK305: 253 | AL305: 0 | AM305: 0
B306: ARAUCA | C306: Ciclo 2 Adultos | D306: 0 | E306: 330 | F306: 0 | G306: 30 | H306: 0 | I306: 0 | J306: 17 | K306: 0 | L306: 0 | M306: 97 | N306: 0 | O306: 0 | P306: 824 | Q306: 0 | R306: 0 | S306: 170 | T306: 0 | U306: 0 | V306: 90 | W306: 0 | X306: 0 | Y306: 96 | Z306: 0 | AA306: 0 | AB306: 91 | AC306: 0 | AD306: 0 | AE306: 70 | AF306: 0 | AG306: 0 | AH306: 86 | AI306: 0 | AJ306: 0 | AK306: 173 | AL306: 0 | AM306: 0
B307: ARAUCA | C307: Ciclo 3 Adultos | D307: 1080 | E307: 61 | F307: 46 | G307: 1359 | H307: 1 | I307: 82 | J307: 1267 | K307: 0 | L307: 80 | M307: 1409 | N307: 0 | O307: 79 | P307: 1469 | Q307: 0 | R307: 101 | S307: 1330 | T307: 0 | U307: 89 | V307: 1132 | W307: 0 | X307: 55 | Y307: 1008 | Z307: 0 | AA307: 52 | AB307: 1103 | AC307: 0 | AD307: 83 | AE307: 983 | AF307: 0 | AG307: 84 | AH307: 718 | AI307: 0 | AJ307: 69 | AK307: 768 | AL307: 0 | AM307: 75
B308: ARAUCA | C308: Ciclo 4 Adultos | D308: 1108 | E308: 63 | F308: 115 | G308: 1493 | H308: 8 | I308: 187 | J308: 1443 | K308: 0 | L308: 181 | M308: 1371 | N308: 0 | O308: 133 | P308: 1569 | Q308: 0 | R308: 194 | S308: 1534 | T308: 0 | U308: 242 | V308: 1363 | W308: 0 | X308: 181 | Y308: 1210 | Z308: 0 | AA308: 172 | AB308: 1195 | AC308: 0 | AD308: 220 | AE308: 1184 | AF308: 0 | AG308: 217 | AH308: 943 | AI308: 0 | AJ308: 244 | AK308: 851 | AL308: 0 | AM308: 210
B309: ARAUCA | C309: Ciclo 5 Adultos | D309: 526 | E309: 85 | F309: 83 | G309: 506 | H309: 0 | I309: 137 | J309: 661 | K309: 0 | L309: 150 | M309: 313 | N309: 0 | O309: 107 | P309: 302 | Q309: 0 | R309: 97 | S309: 402 | T309: 0 | U309: 123 | V309: 291 | W309: 0 | X309: 205 | Y309: 276 | Z309: 0 | AA309: 264 | AB309: 206 | AC309: 0 | AD309: 216 | AE309: 332 | AF309: 0 | AG309: 327 | AH309: 226 | AI309: 0 | AJ309: 368 | AK309: 170 | AL309: 0 | AM309: 305
B310: ARAUCA | C310: Ciclo 6 Adultos | D310: 576 | E310: 47 | F310: 73 | G310: 894 | H310: 0 | I310: 126 | J310: 963 | K310: 0 | L310: 223 | M310: 1194 | N310: 0 | O310: 271 | P310: 1381 | Q310: 0 | R310: 418 | S310: 1317 | T310: 0 | U310: 1079 | V310: 1410 | W310: 0 | X310: 729 | Y310: 1178 | Z310: 0 | AA310: 856 | AB310: 1154 | AC310: 0 | AD310: 1012 | AE310: 978 | AF310: 0 | AG310: 903 | AH310: 1014 | AI310: 0 | AJ310: 998 | AK310: 881 | AL310: 0 | AM310: 861
B311: ARAUCA | C311: Semestre introductorio NS | D311: 0 | E311: 0 | F311: 0 | G311: 0 | H311: 0 | I311: 0 | J311: 0 | K311: 0 | L311: 0 | M311: 0 | N311: 0 | O311: 0 | P311: 0 | Q311: 0 | R311: 0 | S311: 0 | T311: 0 | U311: 0 | V311: 0 | W311: 0 | X311: 0 | Y311: 0 | Z311: 0 | AA311: 0 | AB311: 0 | AC311: 0 | AD311: 0 | AE311: 9 | AF311: 0 | AG311: 0 | AH311: 30 | AI311: 0 | AJ311: 0 | AK311: 32 | AL311: 0 | AM311: 0
B312: ARAUCA | C312: Programa formación compl 1 NS | D312: 0 | E312: 0 | F312: 0 | G312: 0 | H312: 0 | I312: 0 | J312: 0 | K312: 0 | L312: 0 | M312: 0 | N312: 0 | O312: 0 | P312: 0 | Q312: 0 | R312: 0 | S312: 0 | T312: 0 | U312: 0 | V312: 0 | W312: 0 | X312: 0 | Y312: 0 | Z312: 0 | AA312: 0 | AB312: 0 | AC312: 0 | AD312: 0 | AE312: 25 | AF312: 0 | AG312: 0 | AH312: 24 | AI312: 0 | AJ312: 0 | AK312: 21 | AL312: 0 | AM312: 0
B313: ARAUCA | C313: Programa formación compl 2 NS | D313: 0 | E313: 0 | F313: 0 | G313: 0 | H313: 0 | I313: 0 | J313: 0 | K313: 0 | L313: 0 | M313: 0 | N313: 0 | O313: 0 | P313: 0 | Q313: 0 | R313: 0 | S313: 0 | T313: 0 | U313: 0 | V313: 0 | W313: 0 | X313: 0 | Y313: 0 | Z313: 0 | AA313: 0 | AB313: 0 | AC313: 0 | AD313: 0 | AE313: 36 | AF313: 0 | AG313: 0 | AH313: 20 | AI313: 0 | AJ313: 0 | AK313: 18 | AL313: 0 | AM313: 0
B314: ARAUCA | C314: Programa formación compl 3 NS | D314: 0 | E314: 0 | F314: 0 | G314: 0 | H314: 0 | I314: 0 | J314: 0 | K314: 0 | L314: 0 | M314: 0 | N314: 0 | O314: 0 | P314: 0 | Q314: 0 | R314: 0 | S314: 0 | T314: 0 | U314: 0 | V314: 0 | W314: 0 | X314: 0 | Y314: 0 | Z314: 0 | AA314: 0 | AB314: 0 | AC314: 0 | AD314: 0 | AE314: 26 | AF314: 0 | AG314: 0 | AH314: 25 | AI314: 0 | AJ314: 0 | AK314: 19 | AL314: 0 | AM314: 0
B315: ARAUCA | C315: Programa formación compl 4 NS | D315: 0 | E315: 0 | F315: 0 | G315: 0 | H315: 0 | I315: 0 | J315: 0 | K315: 0 | L315: 0 | M315: 0 | N315: 0 | O315: 0 | P315: 0 | Q315: 0 | R315: 0 | S315: 0 | T315: 0 | U315: 0 | V315: 0 | W315: 0 | X315: 0 | Y315: 0 | Z315: 0 | AA315: 0 | AB315: 0 | AC315: 0 | AD315: 0 | AE315: 37 | AF315: 0 | AG315: 0 | AH315: 45 | AI315: 0 | AJ315: 0 | AK315: 29 | AL315: 0 | AM315: 0
B316: ARAUCA | C316: Aceleración del Aprendizaje | D316: 113 | E316: 0 | F316: 0 | G316: 129 | H316: 0 | I316: 0 | J316: 134 | K316: 0 | L316: 0 | M316: 95 | N316: 0 | O316: 0 | P316: 162 | Q316: 0 | R316: 0 | S316: 184 | T316: 0 | U316: 0 | V316: 330 | W316: 0 | X316: 0 | Y316: 333 | Z316: 0 | AA316: 0 | AB316: 446 | AC316: 0 | AD316: 0 | AE316: 412 | AF316: 0 | AG316: 0 | AH316: 285 | AI316: 0 | AJ316: 0 | AK316: 286 | AL316: 0 | AM316: 0
B317: ARMENIA | C317: Prejardín | D317: 0 | E317: 0 | F317: 446 | G317: 0 | H317: 0 | I317: 548 | J317: 0 | K317: 0 | L317: 644 | M317: 0 | N317: 0 | O317: 605 | P317: 0 | Q317: 0 | R317: 638 | S317: 0 | T317: 0 | U317: 623 | V317: 0 | W317: 0 | X317: 476 | Y317: 0 | Z317: 0 | AA317: 323 | AB317: 0 | AC317: 0 | AD317: 409 | AE317: 57 | AF317: 0 | AG317: 376 | AH317: 109 | AI317: 0 | AJ317: 347 | AK317: 164 | AL317: 0 | AM317: 337
B318: ARMENIA | C318: Jardín | D318: 0 | E318: 0 | F318: 620 | G318: 0 | H318: 0 | I318: 669 | J318: 0 | K318: 0 | L318: 729 | M318: 0 | N318: 0 | O318: 785 | P318: 0 | Q318: 0 | R318: 793 | S318: 0 | T318: 0 | U318: 801 | V318: 0 | W318: 0 | X318: 765 | Y318: 0 | Z318: 0 | AA318: 510 | AB318: 295 | AC318: 0 | AD318: 586 | AE318: 557 | AF318: 0 | AG318: 489 | AH318: 614 | AI318: 0 | AJ318: 471 | AK318: 713 | AL318: 0 | AM318: 401
B319: ARMENIA | C319: Transición | D319: 2628 | E319: 0 | F319: 628 | G319: 2557 | H319: 0 | I319: 725 | J319: 2389 | K319: 0 | L319: 827 | M319: 2407 | N319: 0 | O319: 805 | P319: 2472 | Q319: 0 | R319: 843 | S319: 2513 | T319: 0 | U319: 870 | V319: 2576 | W319: 0 | X319: 866 | Y319: 2432 | Z319: 0 | AA319: 787 | AB319: 2717 | AC319: 0 | AD319: 800 | AE319: 2563 | AF319: 0 | AG319: 740 | AH319: 2360 | AI319: 0 | AJ319: 620 | AK319: 2154 | AL319: 0 | AM319: 600
B320: ARMENIA | C320: Primero | D320: 3250 | E320: 0 | F320: 683 | G320: 2897 | H320: 0 | I320: 696 | J320: 2849 | K320: 0 | L320: 764 | M320: 2799 | N320: 0 | O320: 724 | P320: 2817 | Q320: 0 | R320: 711 | S320: 2859 | T320: 0 | U320: 724 | V320: 2948 | W320: 0 | X320: 734 | Y320: 2929 | Z320: 0 | AA320: 684 | AB320: 3033 | AC320: 0 | AD320: 763 | AE320: 3192 | AF320: 0 | AG320: 748 | AH320: 3037 | AI320: 0 | AJ320: 665 | AK320: 2687 | AL320: 0 | AM320: 605
B321: ARMENIA | C321: Segundo | D321: 3576 | E321: 0 | F321: 620 | G321: 3119 | H321: 0 | I321: 721 | J321: 2868 | K321: 0 | L321: 739 | M321: 2839 | N321: 0 | O321: 711 | P321: 2695 | Q321: 0 | R321: 702 | S321: 2740 | T321: 0 | U321: 725 | V321: 2834 | W321: 0 | X321: 695 | Y321: 2902 | Z321: 0 | AA321: 670 | AB321: 2984 | AC321: 0 | AD321: 722 | AE321: 2828 | AF321: 0 | AG321: 800 | AH321: 2979 | AI321: 0 | AJ321: 713 | AK321: 2950 | AL321: 0 | AM321: 640
B322: ARMENIA | C322: Tercero | D322: 3438 | E322: 0 | F322: 652 | G322: 3490 | H322: 0 | I322: 639 | J322: 3090 | K322: 0 | L322: 719 | M322: 2903 | N322: 0 | O322: 699 | P322: 2851 | Q322: 0 | R322: 687 | S322: 2778 | T322: 0 | U322: 645 | V322: 2745 | W322: 0 | X322: 679 | Y322: 2792 | Z322: 0 | AA322: 648 | AB322: 2858 | AC322: 0 | AD322: 656 | AE322: 2907 | AF322: 0 | AG322: 748 | AH322: 2798 | AI322: 0 | AJ322: 757 | AK322: 2904 | AL322: 0 | AM322: 650
B323: ARMENIA | C323: Cuarto | D323: 3418 | E323: 0 | F323: 632 | G323: 3427 | H323: 0 | I323: 644 | J323: 3508 | K323: 0 | L323: 672 | M323: 3121 | N323: 0 | O323: 663 | P323: 2935 | Q323: 0 | R323: 688 | S323: 2810 | T323: 0 | U323: 675 | V323: 2809 | W323: 0 | X323: 614 | Y323: 2740 | Z323: 0 | AA323: 605 | AB323: 2708 | AC323: 0 | AD323: 649 | AE323: 2657 | AF323: 0 | AG323: 708 | AH323: 2818 | AI323: 0 | AJ323: 739 | AK323: 2732 | AL323: 0 | AM323: 718
B324: ARMENIA | C324: Quinto | D324: 3696 | E324: 0 | F324: 591 | G324: 3348 | H324: 0 | I324: 637 | J324: 3348 | K324: 0 | L324: 667 | M324: 3456 | N324: 0 | O324: 613 | P324: 3154 | Q324: 0 | R324: 659 | S324: 2926 | T324: 0 | U324: 668 | V324: 2845 | W324: 0 | X324: 630 | Y324: 2800 | Z324: 0 | AA324: 566 | AB324: 2800 | AC324: 0 | AD324: 602 | AE324: 2599 | AF324: 0 | AG324: 669 | AH324: 2622 | AI324: 0 | AJ324: 669 | AK324: 2757 | AL324: 0 | AM324: 708
B325: ARMENIA | C325: Sexto | D325: 4320 | E325: 1 | F325: 585 | G325: 4010 | H325: 0 | I325: 640 | J325: 3789 | K325: 0 | L325: 722 | M325: 3765 | N325: 0 | O325: 637 | P325: 3811 | Q325: 0 | R325: 607 | S325: 3445 | T325: 0 | U325: 639 | V325: 3321 | W325: 0 | X325: 629 | Y325: 3138 | Z325: 0 | AA325: 564 | AB325: 3123 | AC325: 0 | AD325: 554 | AE325: 3074 | AF325: 0 | AG325: 649 | AH325: 3004 | AI325: 0 | AJ325: 597 | AK325: 2917 | AL325: 0 | AM325: 639
B326: ARMENIA | C326: Septimo | D326: 4444 | E326: 0 | F326: 609 | G326: 4142 | H326: 0 | I326: 620 | J326: 3989 | K326: 0 | L326: 648 | M326: 3890 | N326: 0 | O326: 637 | P326: 3812 | Q326: 0 | R326: 627 | S326: 3928 | T326: 0 | U326: 601 | V326: 3746 | W326: 0 | X326: 600 | Y326: 3493 | Z326: 0 | AA326: 567 | AB326: 3261 | AC326: 0 | AD326: 570 | AE326: 3087 | AF326: 0 | AG326: 592 | AH326: 3042 | AI326: 0 | AJ326: 616 | AK326: 3019 | AL326: 0 | AM326: 605
B327: ARMENIA | C327: Octavo | D327: 3897 | E327: 0 | F327: 642 | G327: 3735 | H327: 0 | I327: 601 | J327: 3445 | K327: 0 | L327: 657 | M327: 3523 | N327: 0 | O327: 571 | P327: 3382 | Q327: 0 | R327: 631 | S327: 3264 | T327: 0 | U327: 607 | V327: 3383 | W327: 0 | X327: 561 | Y327: 3178 | Z327: 0 | AA327: 582 | AB327: 2965 | AC327: 0 | AD327: 590 | AE327: 2792 | AF327: 0 | AG327: 629 | AH327: 2569 | AI327: 0 | AJ327: 577 | AK327: 2655 | AL327: 0 | AM327: 613
B328: ARMENIA | C328: Noveno | D328: 3958 | E328: 1 | F328: 590 | G328: 3679 | H328: 0 | I328: 629 | J328: 3643 | K328: 0 | L328: 594 | M328: 3385 | N328: 0 | O328: 564 | P328: 3422 | Q328: 0 | R328: 525 | S328: 3372 | T328: 0 | U328: 583 | V328: 3424 | W328: 0 | X328: 544 | Y328: 3609 | Z328: 0 | AA328: 534 | AB328: 3313 | AC328: 0 | AD328: 552 | AE328: 2864 | AF328: 0 | AG328: 570 | AH328: 2657 | AI328: 0 | AJ328: 581 | AK328: 2552 | AL328: 0 | AM328: 535
B329: ARMENIA | C329: Decimo | D329: 3059 | E329: 0 | F329: 518 | G329: 3357 | H329: 0 | I329: 567 | J329: 3208 | K329: 0 | L329: 579 | M329: 3006 | N329: 0 | O329: 450 | P329: 2829 | Q329: 0 | R329: 489 | S329: 2847 | T329: 0 | U329: 466 | V329: 2877 | W329: 0 | X329: 508 | Y329: 2791 | Z329: 0 | AA329: 478 | AB329: 2842 | AC329: 0 | AD329: 489 | AE329: 2665 | AF329: 0 | AG329: 556 | AH329: 2397 | AI329: 0 | AJ329: 524 | AK329: 2370 | AL329: 0 | AM329: 517
B330: ARMENIA | C330: Once | D330: 2796 | E330: 0 | F330: 481 | G330: 2579 | H330: 0 | I330: 508 | J330: 3037 | K330: 0 | L330: 545 | M330: 2972 | N330: 0 | O330: 483 | P330: 2765 | Q330: 0 | R330: 466 | S330: 2597 | T330: 0 | U330: 440 | V330: 2637 | W330: 0 | X330: 410 | Y330: 2774 | Z330: 0 | AA330: 477 | AB330: 2606 | AC330: 0 | AD330: 404 | AE330: 2434 | AF330: 0 | AG330: 431 | AH330: 2189 | AI330: 0 | AJ330: 498 | AK330: 2067 | AL330: 0 | AM330: 494
B331: ARMENIA | C331: 12º Normal | D331: 202 | E331: 0 | F331: 0 | G331: 275 | H331: 0 | I331: 0 | J331: 131 | K331: 0 | L331: 0 | M331: 130 | N331: 0 | O331: 0 | P331: 133 | Q331: 0 | R331: 0 | S331: 141 | T331: 0 | U331: 0 | V331: 116 | W331: 0 | X331: 0 | Y331: 68 | Z331: 0 | AA331: 0 | AB331: 89 | AC331: 0 | AD331: 0 | AE331: 0 | AF331: 0 | AG331: 0 | AH331: 0 | AI331: 0 | AJ331: 0 | AK331: 0 | AL331: 0 | AM331: 0
... 1727 more rows

Sheet 5 MAT SECTOR ZONA
B1: MATRICULA POR GRADOS SEGÚN SECTOR ZONA | BB1: Indice
B2: =+'1 ESTAB'!B2 -> Corte 2025
D5: 2014 | J5: 2015 | P5: 2016 | V5: 2017 | AB5: 2018 | AH5: 2019 | AN5: 2020 | AT5: 2021 | AZ5: 2022 | BF5: =+'1 ESTAB'!M4 -> 2023 | BL5: =+'1 ESTAB'!N4 -> 2024 | BR5: =+'1 ESTAB'!O4 -> 2025
B6: ENTIDAD | D6: Oficial | F6: Contratada | H6: No Oficial | J6: Oficial | L6: Contratada | N6: No Oficial | P6: Oficial | R6: Contratada | T6: No Oficial | V6: Oficial | X6: Contratada | Z6: No Oficial | AB6: Oficial | AD6: Contratada | AF6: No Oficial | AH6: Oficial | AJ6: Contratada | AL6: No Oficial | AN6: Oficial | AP6: Contratada | AR6: No Oficial | AT6: Oficial | AV6: Contratada | AX6: No Oficial | AZ6: Oficial | BB6: Contratada | BD6: No Oficial | BF6: Oficial | BH6: Contratada | BJ6: No Oficial | BL6: Oficial | BN6: Contratada | BP6: No Oficial | BR6: Oficial | BT6: Contratada | BV6: No Oficial
B7: COLOMBIA | C7: Grado | D7: Urbano | E7: Rural | F7: Urbano | G7: Rural | H7: Urbano | I7: Rural | J7: Urbano | K7: Rural | L7: Urbano | M7: Rural | N7: Urbano | O7: Rural | P7: Urbano | Q7: Rural | R7: Urbano | S7: Rural | T7: Urbano | U7: Rural | V7: Urbano | W7: Rural | X7: Urbano | Y7: Rural | Z7: Urbano | AA7: Rural | AB7: Urbano | AC7: Rural | AD7: Urbano | AE7: Rural | AF7: Urbano | AG7: Rural | AH7: Urbano | AI7: Rural | AJ7: Urbano | AK7: Rural | AL7: Urbano | AM7: Rural | AN7: Urbano | AO7: Rural | AP7: Urbano | AQ7: Rural | AR7: Urbano | AS7: Rural | AT7: Urbano | AU7: Rural | AV7: Urbano | AW7: Rural | AX7: Urbano | AY7: Rural | AZ7: Urbano | BA7: Rural | BB7: Urbano | BC7: Rural | BD7: Urbano | BE7: Rural | BF7: Urbano | BG7: Rural | BH7: Urbano | BI7: Rural | BJ7: Urbano | BK7: Rural | BL7: Urbano | BM7: Rural | BN7: Urbano | BO7: Rural | BP7: Urbano | BQ7: Rural | BR7: Urbano | BS7: Rural | BT7: Urbano | BU7: Rural | BV7: Urbano | BW7: Rural
C8: Prejardín | D8: =+SUMIFS($D$201:$D$3234,$B$201:$B$3234,$B$7,$C$201:$C$3234,C8) -> 11637 | E8: =+SUMIFS($E$201:$E$3234,$B$201:$B$3234,$B$7,$C$201:$C$3234,C8) -> 345 | F8: =+SUMIFS($F$201:$F$3234,$B$201:$B$3234,$B$7,$C$201:$C$3234,C8) -> 127 | G8: =+SUMIFS($G$201:$G$3234,$B$201:$B$3234,$B$7,$C$201:$C$3234,C8) -> 0 | H8: =+SUMIFS($H$201:$H$3234,$B$201:$B$3234,$B$7,$C$201:$C$3234,C8) -> 65659 | I8: =+SUMIFS($I$201:$I$3234,$B$201:$B$3234,$B$7,$C$201:$C$3234,C8) -> 2803 | J8: =+SUMIFS($J$201:$J$3234,$B$201:$B$3234,$B$7,$C$201:$C$3234,C8) -> 15858 | K8: =+SUMIFS($K$201:$K$3234,$B$201:$B$3234,$B$7,$C$201:$C$3234,C8) -> 263 | L8: =+SUMIFS($L$201:$L$3234,$B$201:$B$3234,$B$7,$C$201:$C$3234,C8) -> 54 | M8: =+SUMIFS($M$201:$M$3234,$B$201:$B$3234,$B$7,$C$201:$C$3234,C8) -> 0 | N8: =+SUMIFS($N$201:$N$3234,$B$201:$B$3234,$B$7,$C$201:$C$3234,C8) -> 70853 | O8: =+SUMIFS($O$201:$O$3234,$B$201:$B$3234,$B$7,$C$201:$C$3234,C8) -> 2828 | P8: =+SUMIFS($P$201:$P$3234,$B$201:$B$3234,$B$7,$C$201:$C$3234,C8) -> 16154 | Q8: =+SUMIFS($Q$201:$Q$3234,$B$201:$B$3234,$B$7,$C$201:$C$3234,C8) -> 216 | R8: =+SUMIFS($R$201:$R$3234,$B$201:$B$3234,$B$7,$C$201:$C$3234,C8) -> 176 | S8: =+SUMIFS($S$201:$S$3234,$B$201:$B$3234,$B$7,$C$201:$C$3234,C8) -> 17 | T8: =+SUMIFS($T$201:$T$3234,$B$201:$B$3234,$B$7,$C$201:$C$3234,C8) -> 75880 | U8: =+SUMIFS($U$201:$U$3234,$B$201:$B$3234,$B$7,$C$201:$C$3234,C8) -> 3050 | V8: =+SUMIFS($V$201:$V$3234,$B$201:$B$3234,$B$7,$C$201:$C$3234,C8) -> 11761 | W8: =+SUMIFS($W$201:$W$3234,$B$201:$B$3234,$B$7,$C$201:$C$3234,C8) -> 106 | X8: =+SUMIFS($X$201:$X$3234,$B$201:$B$3234,$B$7,$C$201:$C$3234,C8) -> 0 | Y8: =+SUMIFS($Y$201:$Y$3234,$B$201:$B$3234,$B$7,$C$201:$C$3234,C8) -> 14 | Z8: =+SUMIFS($Z$201:$Z$3234,$B$201:$B$3234,$B$7,$C$201:$C$3234,C8) -> 76612 | AA8: =+SUMIFS($AA$201:$AA$3234,$B$201:$B$3234,$B$7,$C$201:$C$3234,C8) -> 3250 | AB8: =+SUMIFS($AB$201:$AB$3234,$B$201:$B$3234,$B$7,$C$201:$C$3234,C8) -> 11584 | AC8: =+SUMIFS($AC$201:$AC$3234,$B$201:$B$3234,$B$7,$C$201:$C$3234,C8) -> 94 | AD8: =+SUMIFS($AD$201:$AD$3234,$B$201:$B$3234,$B$7,$C$201:$C$3234,C8) -> 2 | AE8: =+SUMIFS($AE$201:$AE$3234,$B$201:$B$3234,$B$7,$C$201:$C$3234,C8) -> 0 | AF8: =+SUMIFS($AF$201:$AF$3234,$B$201:$B$3234,$B$7,$C$201:$C$3234,C8) -> 77911 | AG8: =+SUMIFS($AG$201:$AG$3234,$B$201:$B$3234,$B$7,$C$201:$C$3234,C8) -> 3221 | AH8: =+SUMIFS($AH$201:$AH$3234,$B$201:$B$3234,$B$7,$C$201:$C$3234,C8) -> 11019 | AI8: =+SUMIFS($AI$201:$AI$3234,$B$201:$B$3234,$B$7,$C$201:$C$3234,C8) -> 106 | AJ8: =+SUMIFS($AJ$201:$AJ$3234,$B$201:$B$3234,$B$7,$C$201:$C$3234,C8) -> 0 | AK8: =+SUMIFS($AK$201:$AK$3234,$B$201:$B$3234,$B$7,$C$201:$C$3234,C8) -> 0 | AL8: =+SUMIFS($AL$201:$AL$3234,$B$201:$B$3234,$B$7,$C$201:$C$3234,C8) -> 78780 | AM8: =+SUMIFS($AM$201:$AM$3234,$B$201:$B$3234,$B$7,$C$201:$C$3234,C8) -> 3691 | AN8: =+SUMIFS($AN$201:$AN$3234,$B$201:$B$3234,$B$7,$C$201:$C$3234,C8) -> 10857 | AO8: =+SUMIFS($AO$201:$AO$3234,$B$201:$B$3234,$B$7,$C$201:$C$3234,C8) -> 81 | AP8: =+SUMIFS($AP$201:$AP$3234,$B$201:$B$3234,$B$7,$C$201:$C$3234,C8) -> 7 | AQ8: =+SUMIFS($AQ$201:$AQ$3234,$B$201:$B$3234,$B$7,$C$201:$C$3234,C8) -> 0 | AR8: =+SUMIFS($AR$201:$AR$3234,$B$201:$B$3234,$B$7,$C$201:$C$3234,C8) -> 64731 | AS8: =+SUMIFS($AS$201:$AS$3234,$B$201:$B$3234,$B$7,$C$201:$C$3234,C8) -> 3250 | AT8: =+SUMIFS($AT$201:$AT$3234,$B$201:$B$3234,$B$7,$C$201:$C$3234,C8) -> 13325 | AU8: =+SUMIFS($AU$201:$AU$3234,$B$201:$B$3234,$B$7,$C$201:$C$3234,C8) -> 111 | AV8: =+SUMIFS($AV$201:$AV$3234,$B$201:$B$3234,$B$7,$C$201:$C$3234,C8) -> 0 | AW8: =+SUMIFS($AW$201:$AW$3234,$B$201:$B$3234,$B$7,$C$201:$C$3234,C8) -> 0 | AX8: =+SUMIFS($AX$201:$AX$3234,$B$201:$B$3234,$B$7,$C$201:$C$3234,C8) -> 37249 | AY8: =+SUMIFS($AY$201:$AY$3234,$B$201:$B$3234,$B$7,$C$201:$C$3234,C8) -> 2476 | AZ8: =+SUMIFS($AZ$201:$AZ$3234,$B$201:$B$3234,$B$7,$C$201:$C$3234,C8) -> 13821 | BA8: =+SUMIFS($BA$201:$BA$3234,$B$201:$B$3234,$B$7,$C$201:$C$3234,C8) -> 125 | BB8: =+SUMIFS($BB$201:$BB$3234,$B$201:$B$3234,$B$7,$C$201:$C$3234,C8) -> 25 | BC8: =+SUMIFS($BC$201:$BC$3234,$B$201:$B$3234,$B$7,$C$201:$C$3234,C8) -> 0 | BD8: =+SUMIFS($BD$201:$BD$3234,$B$201:$B$3234,$B$7,$C$201:$C$3234,C8) -> 66490 | BE8: =+SUMIFS($BE$201:$BE$3234,$B$201:$B$3234,$B$7,$C$201:$C$3234,C8) -> 3432 | BF8: =+SUMIFS($BF$201:$BF$3234,$B$201:$B$3234,$B$7,$C$201:$C$3234,C8) -> 13197 | BG8: =+SUMIFS($BG$201:$BG$3234,$B$201:$B$3234,$B$7,$C$201:$C$3234,C8) -> 255 | BH8: =+SUMIFS($BH$201:$BH$3234,$B$201:$B$3234,$B$7,$C$201:$C$3234,C8) -> 0 | BI8: =+SUMIFS($BI$201:$BI$3234,$B$201:$B$3234,$B$7,$C$201:$C$3234,C8) -> 0 | BJ8: =+SUMIFS($BJ$201:$BJ$3234,$B$201:$B$3234,$B$7,$C$201:$C$3234,C8) -> 62715 | BK8: =+SUMIFS($BK$201:$BK$3234,$B$201:$B$3234,$B$7,$C$201:$C$3234,C8) -> 3438 | BL8: =+SUMIFS($BL$201:$BL$3234,$B$201:$B$3234,$B$7,$C$201:$C$3234,C8) -> 15360 | BM8: =+SUMIFS($BM$201:$BM$3234,$B$201:$B$3234,$B$7,$C$201:$C$3234,C8) -> 3257 | BN8: =+SUMIFS($BN$201:$BN$3234,$B$201:$B$3234,$B$7,$C$201:$C$3234,C8) -> 0 | BO8: =+SUMIFS($BO$201:$BO$3234,$B$201:$B$3234,$B$7,$C$201:$C$3234,C8) -> 85 | BP8: =+SUMIFS($BP$201:$BP$3234,$B$201:$B$3234,$B$7,$C$201:$C$3234,C8) -> 56576 | BQ8: =+SUMIFS($BQ$201:$BQ$3234,$B$201:$B$3234,$B$7,$C$201:$C$3234,C8) -> 3452 | BR8: =+SUMIFS($BR$201:$BR$3234,$B$201:$B$3234,$B$7,$C$201:$C$3234,C8) -> 26176 | BS8: =+SUMIFS($BS$201:$BS$3234,$B$201:$B$3234,$B$7,$C$201:$C$3234,C8) -> 10418 | BT8: =+SUMIFS($BT$201:$BT$3234,$B$201:$B$3234,$B$7,$C$201:$C$3234,C8) -> 0 | BU8: =+SUMIFS($BU$201:$BU$3234,$B$201:$B$3234,$B$7,$C$201:$C$3234,C8) -> 111 | BV8: =+SUMIFS($BV$201:$BV$3234,$B$201:$B$3234,$B$7,$C$201:$C$3234,C8) -> 55066 | BW8: =+SUMIFS($BW$201:$BW$3234,$B$201:$B$3234,$B$7,$C$201:$C$3234,C8) -> 3267
C9: Jardín | D9: 17223 | E9: 507 | F9: 451 | G9: 0 | H9: 100480 | I9: 4281 | J9: 22706 | K9: 398 | L9: 205 | M9: 0 | N9: 101726 | O9: 4537 | P9: 22997 | Q9: 348 | R9: 50 | S9: 0 | T9: 106796 | U9: 4749 | V9: 25469 | W9: 499 | X9: 18 | Y9: 0 | Z9: 113564 | AA9: 5025 | AB9: 24925 | AC9: 926 | AD9: 0 | AE9: 0 | AF9: 114402 | AG9: 5078 | AH9: 27238 | AI9: 964 | AJ9: 48 | AK9: 0 | AL9: 118022 | AM9: 5433 | AN9: 27258 | AO9: 894 | AP9: 963 | AQ9: 0 | AR9: 112390 | AS9: 5561 | AT9: 25816 | AU9: 850 | AV9: 936 | AW9: 0 | AX9: 73917 | AY9: 4596 | AZ9: 27305 | BA9: 1019 | BB9: 989 | BC9: 0 | BD9: 101573 | BE9: 5359 | BF9: 28702 | BG9: 2145 | BH9: 906 | BI9: 1 | BJ9: 104251 | BK9: 5694 | BL9: 41512 | BM9: 12889 | BN9: 874 | BO9: 188 | BP9: 94051 | BQ9: 5262 | BR9: 64118 | BS9: 26303 | BT9: 936 | BU9: 258 | BV9: 85463 | BW9: 5138
C10: Transición | D10: 374837 | E10: 176288 | F10: 40430 | G10: 27583 | H10: 126747 | I10: 6681 | J10: 358347 | K10: 175598 | L10: 31694 | M10: 21424 | N10: 139255 | O10: 6906 | P10: 350640 | Q10: 173693 | R10: 24401 | S10: 25037 | T10: 138376 | U10: 6688 | V10: 356112 | W10: 180496 | X10: 19473 | Y10: 17795 | Z10: 143107 | AA10: 7000 | AB10: 361165 | AC10: 183579 | AD10: 22106 | AE10: 11402 | AF10: 144746 | AG10: 6718 | AH10: 364119 | AI10: 176968 | AJ10: 21986 | AK10: 12857 | AL10: 146553 | AM10: 7322 | AN10: 367489 | AO10: 173012 | AP10: 19280 | AQ10: 12271 | AR10: 147254 | AS10: 7466 | AT10: 356800 | AU10: 170965 | AV10: 22356 | AW10: 14262 | AX10: 119009 | AY10: 6925 | AZ10: 373030 | BA10: 181175 | BB10: 26606 | BC10: 15341 | BD10: 139149 | BE10: 7919 | BF10: 351250 | BG10: 173957 | BH10: 23522 | BI10: 16206 | BJ10: 142040 | BK10: 8085 | BL10: 323040 | BM10: 158806 | BN10: 22687 | BO10: 15037 | BP10: 131368 | BQ10: 7890 | BR10: 295025 | BS10: 147421 | BT10: 19404 | BU10: 16096 | BV10: 122031 | BW10: 7493
C11: Primero | D11: 463393 | E11: 240132 | F11: 49357 | G11: 42046 | H11: 130297 | I11: 7352 | J11: 441643 | K11: 227194 | L11: 45368 | M11: 36057 | N11: 139661 | O11: 7492 | P11: 430871 | Q11: 222606 | R11: 30688 | S11: 37414 | T11: 144851 | U11: 7869 | V11: 421957 | W11: 227780 | X11: 28569 | Y11: 26180 | Z11: 143524 | AA11: 8050 | AB11: 428351 | AC11: 233065 | AD11: 27405 | AE11: 18349 | AF11: 145267 | AG11: 8208 | AH11: 440252 | AI11: 230449 | AJ11: 28936 | AK11: 18402 | AL11: 147190 | AM11: 8437 | AN11: 439501 | AO11: 220724 | AP11: 28175 | AQ11: 17728 | AR11: 144103 | AS11: 8366 | AT11: 433913 | AU11: 213990 | AV11: 30010 | AW11: 18207 | AX11: 124526 | AY11: 8076 | AZ11: 440190 | BA11: 216917 | BB11: 32375 | BC11: 20067 | BD11: 139632 | BE11: 8953 | BF11: 443444 | BG11: 217236 | BH11: 30499 | BI11: 20961 | BJ11: 148193 | BK11: 9392 | BL11: 418821 | BM11: 208083 | BN11: 29000 | BO11: 20531 | BP11: 141745 | BQ11: 9152 | BR11: 382517 | BS11: 187506 | BT11: 26657 | BU11: 21711 | BV11: 132569 | BW11: 8803
C12: Segundo | D12: 450268 | E12: 233232 | F12: 48255 | G12: 37303 | H12: 127320 | I12: 7260 | J12: 435731 | K12: 222144 | L12: 42610 | M12: 32701 | N12: 136986 | O12: 7506 | P12: 421693 | Q12: 211826 | R12: 33622 | S12: 33036 | T12: 144718 | U12: 7929 | V12: 413006 | W12: 216964 | X12: 29307 | Y12: 23062 | Z12: 144149 | AA12: 8204 | AB12: 404949 | AC12: 218699 | AD12: 28736 | AE12: 16669 | AF12: 141855 | AG12: 8418 | AH12: 413874 | AI12: 216878 | AJ12: 28428 | AK12: 16460 | AL12: 142916 | AM12: 8479 | AN12: 420383 | AO12: 214658 | AP12: 31301 | AQ12: 16008 | AR12: 142356 | AS12: 8354 | AT12: 424912 | AU12: 219039 | AV12: 32000 | AW12: 18067 | AX12: 126216 | AY12: 8223 | AZ12: 405250 | BA12: 202315 | BB12: 32396 | BC12: 18595 | BD12: 131519 | BE12: 8609 | BF12: 412861 | BG12: 203020 | BH12: 30421 | BI12: 19403 | BJ12: 142992 | BK12: 9494 | BL12: 412797 | BM12: 202075 | BN12: 30209 | BO12: 19894 | BP12: 141951 | BQ12: 9308 | BR12: 392134 | BS12: 193164 | BT12: 28406 | BU12: 20980 | BV12: 137212 | BW12: 9100
C13: Tercero | D13: 434563 | E13: 219177 | F13: 50308 | G13: 31708 | H13: 123354 | I13: 7325 | J13: 445946 | K13: 222232 | L13: 44421 | M13: 28628 | N13: 135039 | O13: 7668 | P13: 436232 | Q13: 214533 | R13: 32607 | S13: 28095 | T13: 144580 | U13: 7866 | V13: 424003 | W13: 213456 | X13: 30514 | Y13: 19706 | Z13: 145602 | AA13: 8145 | AB13: 415794 | AC13: 213095 | AD13: 29355 | AE13: 14413 | AF13: 142304 | AG13: 8152 | AH13: 414851 | AI13: 210951 | AJ13: 29059 | AK13: 14920 | AL13: 139447 | AM13: 8506 | AN13: 418116 | AO13: 210069 | AP13: 29764 | AQ13: 14471 | AR13: 138091 | AS13: 8376 | AT13: 424840 | AU13: 218082 | AV13: 32141 | AW13: 16442 | AX13: 126913 | AY13: 8151 | AZ13: 401399 | BA13: 201933 | BB13: 31666 | BC13: 17792 | BD13: 128310 | BE13: 8447 | BF13: 396466 | BG13: 194615 | BH13: 30018 | BI13: 17595 | BJ13: 134541 | BK13: 9006 | BL13: 405678 | BM13: 196468 | BN13: 30132 | BO13: 18474 | BP13: 138564 | BQ13: 9417 | BR13: 406151 | BS13: 195211 | BT13: 29577 | BU13: 19636 | BV13: 137661 | BW13: 9262
C14: Cuarto | D14: 437213 | E14: 211182 | F14: 48518 | G14: 25722 | H14: 115168 | I14: 6965 | J14: 429174 | K14: 207469 | L14: 46548 | M14: 23562 | N14: 124397 | O14: 7396 | P14: 445374 | Q14: 212787 | R14: 34387 | S14: 23578 | T14: 134692 | U14: 7765 | V14: 437991 | W14: 212094 | X14: 30846 | Y14: 16944 | Z14: 138533 | AA14: 7913 | AB14: 427359 | AC14: 209144 | AD14: 30483 | AE14: 11839 | AF14: 139868 | AG14: 8138 | AH14: 423058 | AI14: 204211 | AJ14: 30195 | AK14: 12880 | AL14: 137159 | AM14: 8264 | AN14: 417900 | AO14: 203657 | AP14: 30239 | AQ14: 12832 | AR14: 133209 | AS14: 8293 | AT14: 421604 | AU14: 211229 | AV14: 31725 | AW14: 14451 | AX14: 124098 | AY14: 8050 | AZ14: 410583 | BA14: 204414 | BB14: 32847 | BC14: 15548 | BD14: 126100 | BE14: 8174 | BF14: 389466 | BG14: 188484 | BH14: 29480 | BI14: 15976 | BJ14: 128281 | BK14: 8748 | BL14: 387852 | BM14: 184984 | BN14: 29665 | BO14: 16200 | BP14: 129842 | BQ14: 8914 | BR14: 397383 | BS14: 186922 | BT14: 28631 | BU14: 17276 | BV14: 133539 | BW14: 9402
C15: Quinto | D15: 440853 | E15: 204583 | F15: 46177 | G15: 21912 | H15: 109069 | I15: 6712 | J15: 432950 | K15: 199654 | L15: 43950 | M15: 18930 | N15: 119043 | O15: 7202 | P15: 430777 | Q15: 200230 | R15: 34468 | S15: 18534 | T15: 126877 | U15: 7516 | V15: 444022 | W15: 209958 | X15: 30762 | Y15: 14651 | Z15: 131729 | AA15: 7627 | AB15: 440004 | AC15: 208583 | AD15: 29743 | AE15: 10381 | AF15: 133470 | AG15: 7762 | AH15: 434617 | AI15: 202515 | AJ15: 29898 | AK15: 11102 | AL15: 135752 | AM15: 8155 | AN15: 426092 | AO15: 197900 | AP15: 30613 | AQ15: 11525 | AR15: 132110 | AS15: 8161 | AT15: 422833 | AU15: 208207 | AV15: 31521 | AW15: 13547 | AX15: 122063 | AY15: 8027 | AZ15: 415815 | BA15: 203799 | BB15: 32283 | BC15: 14237 | BD15: 123055 | BE15: 8163 | BF15: 403093 | BG15: 193786 | BH15: 30168 | BI15: 14277 | BJ15: 126144 | BK15: 8597 | BL15: 383546 | BM15: 180255 | BN15: 28641 | BO15: 15162 | BP15: 123910 | BQ15: 8557 | BR15: 383671 | BS15: 178327 | BT15: 27945 | BU15: 15764 | BV15: 126494 | BW15: 8616
C16: Sexto | D16: 568585 | E16: 175657 | F16: 48836 | G16: 14400 | H16: 101302 | I16: 6504 | J16: 560110 | K16: 174310 | L16: 45244 | M16: 14248 | N16: 110529 | O16: 6926 | P16: 557748 | Q16: 176162 | R16: 36572 | S16: 18486 | T16: 114725 | U16: 7343 | V16: 557909 | W16: 180711 | X16: 35304 | Y16: 13966 | Z16: 116084 | AA16: 7465 | AB16: 566782 | AC16: 191132 | AD16: 34103 | AE16: 11839 | AF16: 119458 | AG16: 7768 | AH16: 566734 | AI16: 188047 | AJ16: 33000 | AK16: 13756 | AL16: 120787 | AM16: 7806 | AN16: 558074 | AO16: 185095 | AP16: 33686 | AQ16: 14437 | AR16: 119786 | AS16: 8098 | AT16: 526558 | AU16: 179757 | AV16: 33541 | AW16: 16196 | AX16: 107959 | AY16: 8093 | AZ16: 512024 | BA16: 177250 | BB16: 34636 | BC16: 18051 | BD16: 110314 | BE16: 8229 | BF16: 497903 | BG16: 173637 | BH16: 32369 | BI16: 19211 | BJ16: 113946 | BK16: 8480 | BL16: 487032 | BM16: 171978 | BN16: 33141 | BO16: 18623 | BP16: 113814 | BQ16: 8548 | BR16: 463686 | BS16: 159288 | BT16: 30230 | BU16: 19830 | BV16: 112748 | BW16: 8665
C17: Septimo | D17: 503824 | E17: 149931 | F17: 46236 | G17: 11722 | H17: 101742 | I17: 6187 | J17: 492241 | K17: 147091 | L17: 41452 | M17: 12119 | N17: 106794 | O17: 6663 | P17: 489438 | Q17: 151725 | R17: 33258 | S17: 13641 | T17: 111196 | U17: 6970 | V17: 489452 | W17: 153976 | X17: 31888 | Y17: 10880 | Z17: 112801 | AA17: 7143 | AB17: 488771 | AC17: 159158 | AD17: 32559 | AE17: 9031 | AF17: 113933 | AG17: 7390 | AH17: 504893 | AI17: 165675 | AJ17: 31486 | AK17: 10552 | AL17: 116357 | AM17: 7620 | AN17: 512942 | AO17: 163281 | AP17: 32321 | AQ17: 11845 | AR17: 117559 | AS17: 7627 | AT17: 523306 | AU17: 172256 | AV17: 35263 | AW17: 13740 | AX17: 112539 | AY17: 7992 | AZ17: 481071 | BA17: 157537 | BB17: 33268 | BC17: 14186 | BD17: 108885 | BE17: 8010 | BF17: 469555 | BG17: 155334 | BH17: 31670 | BI17: 16133 | BJ17: 111280 | BK17: 8313 | BL17: 453990 | BM17: 152695 | BN17: 30966 | BO17: 16273 | BP17: 111435 | BQ17: 8343 | BR17: 447082 | BS17: 150444 | BT17: 29840 | BU17: 16119 | BV17: 112176 | BW17: 8506
C18: Octavo | D18: 455189 | E18: 128533 | F18: 40521 | G18: 8261 | H18: 100286 | I18: 6089 | J18: 443997 | K18: 126308 | L18: 37992 | M18: 8934 | N18: 103764 | O18: 6327 | P18: 437110 | Q18: 128758 | R18: 29623 | S18: 11108 | T18: 104592 | U18: 6690 | V18: 437927 | W18: 133378 | X18: 28573 | Y18: 9057 | Z18: 107311 | AA18: 6769 | AB18: 440844 | AC18: 136716 | AD18: 28343 | AE18: 7710 | AF18: 108372 | AG18: 7110 | AH18: 446793 | AI18: 140125 | AJ18: 29104 | AK18: 8111 | AL18: 109103 | AM18: 7202 | AN18: 459596 | AO18: 147313 | AP18: 28797 | AQ18: 9362 | AR18: 111047 | AS18: 7433 | AT18: 474257 | AU18: 153587 | AV18: 30402 | AW18: 11694 | AX18: 109524 | AY18: 7550 | AZ18: 457085 | BA18: 148874 | BB18: 32648 | BC18: 11947 | BD18: 109195 | BE18: 7874 | BF18: 426834 | BG18: 138539 | BH18: 29378 | BI18: 12469 | BJ18: 108715 | BK18: 8044 | BL18: 413083 | BM18: 136125 | BN18: 28639 | BO18: 13884 | BP18: 106814 | BQ18: 7968 | BR18: 400207 | BS18: 134027 | BT18: 27052 | BU18: 13384 | BV18: 107002 | BW18: 8154
C19: Noveno | D19: 399775 | E19: 103545 | F19: 36979 | G19: 6804 | H19: 97006 | I19: 6049 | J19: 396974 | K19: 105383 | L19: 33393 | M19: 6212 | N19: 101382 | O19: 6393 | P19: 392348 | Q19: 107416 | R19: 26602 | S19: 8273 | T19: 101823 | U19: 6241 | V19: 388330 | W19: 109406 | X19: 24682 | Y19: 7000 | Z19: 100757 | AA19: 6508 | AB19: 389571 | AC19: 114327 | AD19: 24604 | AE19: 6224 | AF19: 101652 | AG19: 6576 | AH19: 396927 | AI19: 116745 | AJ19: 24272 | AK19: 6643 | AL19: 102033 | AM19: 6814 | AN19: 407653 | AO19: 120519 | AP19: 26430 | AQ19: 6940 | AR19: 102875 | AS19: 6936 | AT19: 431700 | AU19: 135232 | AV19: 29528 | AW19: 8852 | AX19: 104382 | AY19: 7155 | AZ19: 423986 | BA19: 129295 | BB19: 29255 | BC19: 9637 | BD19: 104358 | BE19: 7264 | BF19: 405393 | BG19: 123674 | BH19: 27776 | BI19: 10253 | BJ19: 105387 | BK19: 7677 | BL19: 382813 | BM19: 117000 | BN19: 26401 | BO19: 10747 | BP19: 102431 | BQ19: 7636 | BR19: 375536 | BS19: 116858 | BT19: 24695 | BU19: 10999 | BV19: 102086 | BW19: 7617
C20: Decimo | D20: 363456 | E20: 81063 | F20: 30526 | G20: 4399 | H20: 83002 | I20: 5477 | J20: 361712 | K20: 81551 | L20: 28970 | M20: 4164 | N20: 89484 | O20: 5575 | P20: 362703 | Q20: 85529 | R20: 23366 | S20: 5476 | T20: 90458 | U20: 5710 | V20: 360135 | W20: 87921 | X20: 21525 | Y20: 5817 | Z20: 89588 | AA20: 5773 | AB20: 356091 | AC20: 90649 | AD20: 20970 | AE20: 4945 | AF20: 89224 | AG20: 5948 | AH20: 360596 | AI20: 93970 | AJ20: 20880 | AK20: 5260 | AL20: 91215 | AM20: 5979 | AN20: 370111 | AO20: 97281 | AP20: 22144 | AQ20: 5874 | AR20: 94654 | AS20: 6414 | AT20: 378588 | AU20: 104641 | AV20: 24664 | AW20: 7110 | AX20: 95891 | AY20: 6685 | AZ20: 380636 | BA20: 107092 | BB20: 25212 | BC20: 7635 | BD20: 97272 | BE20: 6789 | BF20: 373485 | BG20: 102987 | BH20: 23157 | BI20: 8747 | BJ20: 98631 | BK20: 7123 | BL20: 358787 | BM20: 99464 | BN20: 23394 | BO20: 9069 | BP20: 98077 | BQ20: 7144 | BR20: 343237 | BS20: 95545 | BT20: 21789 | BU20: 9378 | BV20: 96293 | BW20: 7189
C21: Once | D21: 304931 | E21: 64612 | F21: 25711 | G21: 3478 | H21: 85609 | I21: 5466 | J21: 298263 | K21: 65932 | L21: 24184 | M21: 3387 | N21: 87356 | O21: 5542 | P21: 302943 | Q21: 68192 | R21: 20277 | S21: 4356 | T21: 92139 | U21: 5675 | V21: 304387 | W21: 71404 | X21: 18290 | Y21: 3691 | Z21: 91889 | AA21: 5710 | AB21: 302220 | AC21: 73890 | AD21: 17788 | AE21: 4087 | AF21: 89386 | AG21: 5693 | AH21: 300308 | AI21: 75386 | AJ21: 16806 | AK21: 4239 | AL21: 89256 | AM21: 6384 | AN21: 306398 | AO21: 79186 | AP21: 17500 | AQ21: 4547 | AR21: 92071 | AS21: 5928 | AT21: 323979 | AU21: 85169 | AV21: 20233 | AW21: 5130 | AX21: 93270 | AY21: 6305 | AZ21: 308906 | BA21: 83419 | BB21: 20808 | BC21: 5641 | BD21: 93646 | BE21: 6334 | BF21: 319709 | BG21: 87035 | BH21: 20456 | BI21: 6255 | BJ21: 95458 | BK21: 6727 | BL21: 313438 | BM21: 84851 | BN21: 19850 | BO21: 6955 | BP21: 96790 | BQ21: 6799 | BR21: 307720 | BS21: 82340 | BT21: 19653 | BU21: 6890 | BV21: 97312 | BW21: 7386
C22: 12º Normal | D22: 7435 | E22: 201 | F22: 2 | G22: 0 | H22: 33 | I22: 42 | J22: 6958 | K22: 226 | L22: 1 | M22: 0 | N22: 15 | O22: 37 | P22: 6546 | Q22: 230 | R22: 0 | S22: 0 | T22: 18 | U22: 0 | V22: 6916 | W22: 290 | X22: 0 | Y22: 0 | Z22: 12 | AA22: 0 | AB22: 6465 | AC22: 264 | AD22: 0 | AE22: 0 | AF22: 19 | AG22: 0 | AH22: 6282 | AI22: 281 | AJ22: 0 | AK22: 0 | AL22: 15 | AM22: 0 | AN22: 6425 | AO22: 335 | AP22: 0 | AQ22: 0 | AR22: 16 | AS22: 0 | AT22: 7355 | AU22: 430 | AV22: 0 | AW22: 0 | AX22: 17 | AY22: 0 | AZ22: 6782 | BA22: 300 | BB22: 0 | BC22: 0 | BD22: 15 | BE22: 0 | BF22: 137 | BG22: 0 | BH22: 0 | BI22: 0 | BJ22: 7 | BK22: 0 | BL22: 21 | BM22: 0 | BN22: 0 | BO22: 0 | BP22: 8 | BQ22: 0 | BR22: 0 | BS22: 0 | BT22: 0 | BU22: 0 | BV22: 0 | BW22: 0
C23: 13º Normal | D23: 6469 | E23: 172 | F23: 4 | G23: 0 | H23: 17 | I23: 0 | J23: 5848 | K23: 211 | L23: 14 | M23: 1 | N23: 1 | O23: 0 | P23: 5478 | Q23: 178 | R23: 0 | S23: 0 | T23: 12 | U23: 0 | V23: 5045 | W23: 161 | X23: 0 | Y23: 0 | Z23: 19 | AA23: 0 | AB23: 5048 | AC23: 171 | AD23: 0 | AE23: 0 | AF23: 9 | AG23: 0 | AH23: 4987 | AI23: 171 | AJ23: 0 | AK23: 0 | AL23: 22 | AM23: 0 | AN23: 5027 | AO23: 194 | AP23: 0 | AQ23: 0 | AR23: 15 | AS23: 0 | AT23: 5486 | AU23: 229 | AV23: 0 | AW23: 0 | AX23: 5 | AY23: 0 | AZ23: 5509 | BA23: 285 | BB23: 0 | BC23: 0 | BD23: 2 | BE23: 0 | BF23: 443 | BG23: 0 | BH23: 0 | BI23: 0 | BJ23: 1 | BK23: 0 | BL23: 35 | BM23: 0 | BN23: 0 | BO23: 0 | BP23: 1 | BQ23: 0 | BR23: 1 | BS23: 0 | BT23: 0 | BU23: 0 | BV23: 0 | BW23: 0
C24: Ciclo 0 Adultos EA | D24: 0 | E24: 0 | F24: 0 | G24: 0 | H24: 0 | I24: 0 | J24: 0 | K24: 0 | L24: 0 | M24: 0 | N24: 0 | O24: 0 | P24: 0 | Q24: 0 | R24: 0 | S24: 0 | T24: 0 | U24: 0 | V24: 0 | W24: 0 | X24: 0 | Y24: 0 | Z24: 0 | AA24: 0 | AB24: 0 | AC24: 0 | AD24: 0 | AE24: 0 | AF24: 0 | AG24: 0 | AH24: 0 | AI24: 0 | AJ24: 0 | AK24: 0 | AL24: 0 | AM24: 0 | AN24: 0 | AO24: 0 | AP24: 0 | AQ24: 0 | AR24: 0 | AS24: 0 | AT24: 0 | AU24: 0 | AV24: 0 | AW24: 0 | AX24: 0 | AY24: 0 | AZ24: 0 | BA24: 0 | BB24: 0 | BC24: 0 | BD24: 0 | BE24: 0 | BF24: 0 | BG24: 0 | BH24: 0 | BI24: 0 | BJ24: 0 | BK24: 0 | BL24: 0 | BM24: 0 | BN24: 0 | BO24: 0 | BP24: 0 | BQ24: 0 | BR24: 0 | BS24: 156 | BT24: 0 | BU24: 0 | BV24: 0 | BW24: 0
C25: Ciclo 1 Adultos | D25: 22281 | E25: 13633 | F25: 11285 | G25: 9647 | H25: 599 | I25: 165 | J25: 32388 | K25: 23467 | L25: 10108 | M25: 4820 | N25: 792 | O25: 2 | P25: 53078 | Q25: 31120 | R25: 106 | S25: 10 | T25: 842 | U25: 4 | V25: 32978 | W25: 18933 | X25: 82 | Y25: 3 | Z25: 583 | AA25: 55 | AB25: 37472 | AC25: 22387 | AD25: 1 | AE25: 13 | AF25: 941 | AG25: 114 | AH25: 10018 | AI25: 5378 | AJ25: 28 | AK25: 5 | AL25: 1391 | AM25: 74 | AN25: 4744 | AO25: 1587 | AP25: 0 | AQ25: 0 | AR25: 643 | AS25: 50 | AT25: 16718 | AU25: 13305 | AV25: 0 | AW25: 438 | AX25: 430 | AY25: 0 | AZ25: 27615 | BA25: 6257 | BB25: 0 | BC25: 2 | BD25: 801 | BE25: 17 | BF25: 15766 | BG25: 3888 | BH25: 0 | BI25: 105 | BJ25: 723 | BK25: 94 | BL25: 6933 | BM25: 6892 | BN25: 30 | BO25: 255 | BP25: 791 | BQ25: 2 | BR25: 4551 | BS25: 3193 | BT25: 3 | BU25: 122 | BV25: 600 | BW25: 3
C26: Ciclo 2 Adultos | D26: 29380 | E26: 15389 | F26: 18172 | G26: 11712 | H26: 1620 | I26: 152 | J26: 24410 | K26: 13735 | L26: 6261 | M26: 7574 | N26: 2378 | O26: 22 | P26: 26483 | Q26: 15044 | R26: 8448 | S26: 8632 | T26: 1854 | U26: 8 | V26: 22816 | W26: 12477 | X26: 7617 | Y26: 4928 | Z26: 1641 | AA26: 74 | AB26: 24803 | AC26: 13640 | AD26: 3768 | AE26: 3026 | AF26: 2299 | AG26: 120 | AH26: 23115 | AI26: 12446 | AJ26: 6228 | AK26: 8290 | AL26: 2374 | AM26: 258 | AN26: 16337 | AO26: 6494 | AP26: 406 | AQ26: 62 | AR26: 2262 | AS26: 98 | AT26: 13695 | AU26: 6081 | AV26: 412 | AW26: 940 | AX26: 1454 | AY26: 63 | AZ26: 16447 | BA26: 6684 | BB26: 604 | BC26: 761 | BD26: 1845 | BE26: 35 | BF26: 16043 | BG26: 5708 | BH26: 1134 | BI26: 1048 | BJ26: 2049 | BK26: 159 | BL26: 15888 | BM26: 5027 | BN26: 740 | BO26: 561 | BP26: 1712 | BQ26: 34 | BR26: 13731 | BS26: 5900 | BT26: 1022 | BU26: 1165 | BV26: 2088 | BW26: 32
C27: Ciclo 3 Adultos | D27: 80012 | E27: 27833 | F27: 29073 | G27: 19486 | H27: 17467 | I27: 1168 | J27: 80842 | K27: 27934 | L27: 20903 | M27: 11058 | N27: 22527 | O27: 294 | P27: 80534 | Q27: 25434 | R27: 20403 | S27: 9491 | T27: 21196 | U27: 278 | V27: 80021 | W27: 25443 | X27: 21424 | Y27: 9387 | Z27: 20838 | AA27: 757 | AB27: 79766 | AC27: 26738 | AD27: 19306 | AE27: 7968 | AF27: 21791 | AG27: 636 | AH27: 79281 | AI27: 28723 | AJ27: 20172 | AK27: 8972 | AL27: 23066 | AM27: 1092 | AN27: 70635 | AO27: 20867 | AP27: 4916 | AQ27: 327 | AR27: 19076 | AS27: 419 | AT27: 58015 | AU27: 18837 | AV27: 4491 | AW27: 2068 | AX27: 15720 | AY27: 643 | AZ27: 66110 | BA27: 19737 | BB27: 5890 | BC27: 3118 | BD27: 21063 | BE27: 369 | BF27: 59437 | BG27: 18042 | BH27: 6007 | BI27: 2891 | BJ27: 19586 | BK27: 478 | BL27: 55603 | BM27: 17301 | BN27: 4643 | BO27: 2152 | BP27: 18887 | BQ27: 419 | BR27: 51634 | BS27: 15784 | BT27: 4613 | BU27: 1540 | BV27: 19250 | BW27: 232
C28: Ciclo 4 Adultos | D28: 87705 | E28: 26577 | F28: 29043 | G28: 15163 | H28: 34186 | I28: 1669 | J28: 93990 | K28: 29365 | L28: 23984 | M28: 11273 | N28: 41017 | O28: 496 | P28: 92859 | Q28: 26499 | R28: 23623 | S28: 9416 | T28: 40172 | U28: 446 | V28: 92501 | W28: 27333 | X28: 21713 | Y28: 6866 | Z28: 40472 | AA28: 561 | AB28: 90298 | AC28: 28497 | AD28: 23183 | AE28: 7566 | AF28: 41091 | AG28: 978 | AH28: 93466 | AI28: 31057 | AJ28: 20007 | AK28: 8589 | AL28: 42345 | AM28: 1428 | AN28: 84179 | AO28: 25056 | AP28: 6955 | AQ28: 1510 | AR28: 39144 | AS28: 1297 | AT28: 75902 | AU28: 22999 | AV28: 6746 | AW28: 1760 | AX28: 35624 | AY28: 730 | AZ28: 77076 | BA28: 23090 | BB28: 7451 | BC28: 3797 | BD28: 41378 | BE28: 624 | BF28: 76349 | BG28: 22142 | BH28: 7920 | BI28: 3282 | BJ28: 43313 | BK28: 670 | BL28: 69316 | BM28: 20695 | BN28: 6614 | BO28: 3141 | BP28: 42156 | BQ28: 624 | BR28: 62800 | BS28: 19502 | BT28: 6381 | BU28: 2325 | BV28: 40330 | BW28: 441
C29: Ciclo 5 Adultos | D29: 47751 | E29: 13565 | F29: 18527 | G29: 9155 | H29: 29305 | I29: 1228 | J29: 47409 | K29: 15548 | L29: 11305 | M29: 4645 | N29: 35522 | O29: 394 | P29: 42264 | Q29: 13396 | R29: 12063 | S29: 3732 | T29: 33942 | U29: 391 | V29: 37680 | W29: 12429 | X29: 10608 | Y29: 4496 | Z29: 35158 | AA29: 243 | AB29: 35767 | AC29: 12656 | AD29: 9952 | AE29: 3102 | AF29: 36414 | AG29: 479 | AH29: 31676 | AI29: 13239 | AJ29: 9865 | AK29: 4476 | AL29: 35394 | AM29: 913 | AN29: 32359 | AO29: 10893 | AP29: 2008 | AQ29: 650 | AR29: 32519 | AS29: 956 | AT29: 35672 | AU29: 12925 | AV29: 2469 | AW29: 742 | AX29: 31607 | AY29: 657 | AZ29: 27279 | BA29: 10729 | BB29: 3531 | BC29: 1628 | BD29: 33346 | BE29: 579 | BF29: 28236 | BG29: 9989 | BH29: 3296 | BI29: 2737 | BJ29: 34250 | BK29: 493 | BL29: 24617 | BM29: 9129 | BN29: 2662 | BO29: 1960 | BP29: 34593 | BQ29: 466 | BR29: 21813 | BS29: 8576 | BT29: 2907 | BU29: 1663 | BV29: 33180 | BW29: 335
C30: Ciclo 6 Adultos | D30: 60000 | E30: 17761 | F30: 25463 | G30: 8278 | H30: 43008 | I30: 2846 | J30: 66655 | K30: 17931 | L30: 16617 | M30: 4209 | N30: 57433 | O30: 1706 | P30: 73506 | Q30: 16919 | R30: 20481 | S30: 6528 | T30: 65311 | U30: 1356 | V30: 76682 | W30: 17878 | X30: 19686 | Y30: 3981 | Z30: 74481 | AA30: 801 | AB30: 75718 | AC30: 18819 | AD30: 20436 | AE30: 5361 | AF30: 78204 | AG30: 1439 | AH30: 85425 | AI30: 20998 | AJ30: 19060 | AK30: 4506 | AL30: 91855 | AM30: 1893 | AN30: 73611 | AO30: 19939 | AP30: 7940 | AQ30: 993 | AR30: 104427 | AS30: 1902 | AT30: 67953 | AU30: 17837 | AV30: 6481 | AW30: 1445 | AX30: 108270 | AY30: 3109 | AZ30: 73906 | BA30: 20004 | BB30: 7169 | BC30: 1730 | BD30: 120221 | BE30: 1403 | BF30: 68564 | BG30: 17962 | BH30: 7692 | BI30: 2712 | BJ30: 129207 | BK30: 1355 | BL30: 66987 | BM30: 18099 | BN30: 6565 | BO30: 3414 | BP30: 125687 | BQ30: 1409 | BR30: 60657 | BS30: 16334 | BT30: 6309 | BU30: 1763 | BV30: 129613 | BW30: 1532
C31: Semestre introductorio NS | D31: 0 | E31: 0 | F31: 0 | G31: 0 | H31: 0 | I31: 0 | J31: 0 | K31: 0 | L31: 0 | M31: 0 | N31: 0 | O31: 0 | P31: 0 | Q31: 0 | R31: 0 | S31: 0 | T31: 0 | U31: 0 | V31: 0 | W31: 0 | X31: 0 | Y31: 0 | Z31: 0 | AA31: 0 | AB31: 0 | AC31: 0 | AD31: 0 | AE31: 0 | AF31: 0 | AG31: 0 | AH31: 0 | AI31: 0 | AJ31: 0 | AK31: 0 | AL31: 0 | AM31: 0 | AN31: 0 | AO31: 0 | AP31: 0 | AQ31: 0 | AR31: 0 | AS31: 0 | AT31: 0 | AU31: 0 | AV31: 0 | AW31: 0 | AX31: 0 | AY31: 0 | AZ31: 0 | BA31: 0 | BB31: 0 | BC31: 0 | BD31: 0 | BE31: 0 | BF31: 1283 | BG31: 80 | BH31: 0 | BI31: 0 | BJ31: 3 | BK31: 0 | BL31: 1402 | BM31: 85 | BN31: 0 | BO31: 0 | BP31: 3 | BQ31: 0 | BR31: 1626 | BS31: 108 | BT31: 0 | BU31: 0 | BV31: 2 | BW31: 0
C32: Programa formación compl 1 NS | D32: 0 | E32: 0 | F32: 0 | G32: 0 | H32: 0 | I32: 0 | J32: 0 | K32: 0 | L32: 0 | M32: 0 | N32: 0 | O32: 0 | P32: 0 | Q32: 0 | R32: 0 | S32: 0 | T32: 0 | U32: 0 | V32: 0 | W32: 0 | X32: 0 | Y32: 0 | Z32: 0 | AA32: 0 | AB32: 0 | AC32: 0 | AD32: 0 | AE32: 0 | AF32: 0 | AG32: 0 | AH32: 0 | AI32: 0 | AJ32: 0 | AK32: 0 | AL32: 0 | AM32: 0 | AN32: 0 | AO32: 0 | AP32: 0 | AQ32: 0 | AR32: 0 | AS32: 0 | AT32: 0 | AU32: 0 | AV32: 0 | AW32: 0 | AX32: 0 | AY32: 0 | AZ32: 0 | BA32: 0 | BB32: 0 | BC32: 0 | BD32: 0 | BE32: 0 | BF32: 2147 | BG32: 141 | BH32: 0 | BI32: 0 | BJ32: 2 | BK32: 0 | BL32: 2112 | BM32: 185 | BN32: 0 | BO32: 0 | BP32: 0 | BQ32: 0 | BR32: 2491 | BS32: 144 | BT32: 0 | BU32: 0 | BV32: 4 | BW32: 0
C33: Programa formación compl 2 NS | D33: 0 | E33: 0 | F33: 0 | G33: 0 | H33: 0 | I33: 0 | J33: 0 | K33: 0 | L33: 0 | M33: 0 | N33: 0 | O33: 0 | P33: 0 | Q33: 0 | R33: 0 | S33: 0 | T33: 0 | U33: 0 | V33: 0 | W33: 0 | X33: 0 | Y33: 0 | Z33: 0 | AA33: 0 | AB33: 0 | AC33: 0 | AD33: 0 | AE33: 0 | AF33: 0 | AG33: 0 | AH33: 0 | AI33: 0 | AJ33: 0 | AK33: 0 | AL33: 0 | AM33: 0 | AN33: 0 | AO33: 0 | AP33: 0 | AQ33: 0 | AR33: 0 | AS33: 0 | AT33: 0 | AU33: 0 | AV33: 0 | AW33: 0 | AX33: 0 | AY33: 0 | AZ33: 0 | BA33: 0 | BB33: 0 | BC33: 0 | BD33: 0 | BE33: 0 | BF33: 2512 | BG33: 88 | BH33: 0 | BI33: 0 | BJ33: 0 | BK33: 0 | BL33: 2522 | BM33: 131 | BN33: 20 | BO33: 0 | BP33: 0 | BQ33: 0 | BR33: 2441 | BS33: 163 | BT33: 0 | BU33: 0 | BV33: 3 | BW33: 0
C34: Programa formación compl 3 NS | D34: 0 | E34: 0 | F34: 0 | G34: 0 | H34: 0 | I34: 0 | J34: 0 | K34: 0 | L34: 0 | M34: 0 | N34: 0 | O34: 0 | P34: 0 | Q34: 0 | R34: 0 | S34: 0 | T34: 0 | U34: 0 | V34: 0 | W34: 0 | X34: 0 | Y34: 0 | Z34: 0 | AA34: 0 | AB34: 0 | AC34: 0 | AD34: 0 | AE34: 0 | AF34: 0 | AG34: 0 | AH34: 0 | AI34: 0 | AJ34: 0 | AK34: 0 | AL34: 0 | AM34: 0 | AN34: 0 | AO34: 0 | AP34: 0 | AQ34: 0 | AR34: 0 | AS34: 0 | AT34: 0 | AU34: 0 | AV34: 0 | AW34: 0 | AX34: 0 | AY34: 0 | AZ34: 0 | BA34: 0 | BB34: 0 | BC34: 0 | BD34: 0 | BE34: 0 | BF34: 1811 | BG34: 84 | BH34: 0 | BI34: 0 | BJ34: 0 | BK34: 0 | BL34: 1472 | BM34: 77 | BN34: 0 | BO34: 0 | BP34: 0 | BQ34: 0 | BR34: 1776 | BS34: 68 | BT34: 0 | BU34: 0 | BV34: 9 | BW34: 0
C35: Programa formación compl 4 NS | D35: 0 | E35: 0 | F35: 0 | G35: 0 | H35: 0 | I35: 0 | J35: 0 | K35: 0 | L35: 0 | M35: 0 | N35: 0 | O35: 0 | P35: 0 | Q35: 0 | R35: 0 | S35: 0 | T35: 0 | U35: 0 | V35: 0 | W35: 0 | X35: 0 | Y35: 0 | Z35: 0 | AA35: 0 | AB35: 0 | AC35: 0 | AD35: 0 | AE35: 0 | AF35: 0 | AG35: 0 | AH35: 0 | AI35: 0 | AJ35: 0 | AK35: 0 | AL35: 0 | AM35: 0 | AN35: 0 | AO35: 0 | AP35: 0 | AQ35: 0 | AR35: 0 | AS35: 0 | AT35: 0 | AU35: 0 | AV35: 0 | AW35: 0 | AX35: 0 | AY35: 0 | AZ35: 0 | BA35: 0 | BB35: 0 | BC35: 0 | BD35: 0 | BE35: 0 | BF35: 3793 | BG35: 192 | BH35: 0 | BI35: 0 | BJ35: 2 | BK35: 0 | BL35: 3410 | BM35: 137 | BN35: 35 | BO35: 0 | BP35: 0 | BQ35: 0 | BR35: 3082 | BS35: 187 | BT35: 0 | BU35: 0 | BV35: 11 | BW35: 0
C36: Aceleración del Aprendizaje | D36: 25835 | E36: 2459 | F36: 2870 | G36: 437 | H36: 192 | I36: 55 | J36: 28235 | K36: 2206 | L36: 2849 | M36: 244 | N36: 420 | O36: 5 | P36: 31470 | Q36: 2514 | R36: 316 | S36: 35 | T36: 253 | U36: 0 | V36: 30848 | W36: 2551 | X36: 399 | Y36: 0 | Z36: 472 | AA36: 0 | AB36: 32138 | AC36: 2365 | AD36: 615 | AE36: 46 | AF36: 227 | AG36: 0 | AH36: 34321 | AI36: 2811 | AJ36: 673 | AK36: 5 | AL36: 332 | AM36: 0 | AN36: 34399 | AO36: 2702 | AP36: 478 | AQ36: 30 | AR36: 175 | AS36: 0 | AT36: 32835 | AU36: 2521 | AV36: 576 | AW36: 33 | AX36: 122 | AY36: 0 | AZ36: 34551 | BA36: 2808 | BB36: 513 | BC36: 13 | BD36: 127 | BE36: 0 | BF36: 35346 | BG36: 3215 | BH36: 705 | BI36: 4 | BJ36: 50 | BK36: 0 | BL36: 34843 | BM36: 2932 | BN36: 425 | BO36: 91 | BP36: 31 | BQ36: 0 | BR36: 35690 | BS36: 3061 | BT36: 537 | BU36: 58 | BV36: 22 | BW36: 0
C37: Total | D37: =SUM(D8:D36) -> 5592615 | E37: 2106377 | F37: 646871 | G37: 309216 | H37: 1593468 | I37: 92476 | J37: 5522387 | K37: 2086150 | L37: 558127 | M37: 254190 | N37: 1726374 | O37: 91917 | P37: 5509246 | Q37: 2085355 | R37: 445537 | S37: 264895 | T37: 1795303 | U37: 94544 | V37: 5457948 | W37: 2115644 | X37: 411280 | Y37: 198424 | Z37: 1828926 | AA37: 97073 | AB37: 5445885 | AC37: 2158594 | AD37: 403458 | AE37: 153971 | AF37: 1842843 | AG37: 99946 | AH37: 5473850 | AI37: 2138094 | AJ37: 400131 | AK37: 170025 | AL37: 1871364 | AM37: 105750 | AN37: 5470086 | AO37: 2101737 | AP37: 353923 | AQ37: 141412 | AR37: 1850513 | AS37: 104985 | AT37: 5496062 | AU37: 2168279 | AV37: 375495 | AW37: 165124 | AX37: 1670805 | AY37: 103506 | AZ37: 5386376 | BA37: 2105058 | BB37: 390172 | BC37: 179726 | BD37: 1798296 | BE37: 106583 | BF37: 5243225 | BG37: 2036235 | BH37: 366574 | BI37: 190266 | BJ37: 1851767 | BK37: 112067 | BL37: 5082910 | BM37: 1989620 | BN37: 355333 | BO37: 192696 | BP37: =SUM(BP8:BP36) -> 1811237 | BQ37: =SUM(BQ8:BQ36) -> 111344 | BR37: =SUM(BR8:BR36) -> 4946936 | BS37: 1936950 | BT37: 336587 | BU37: 197068 | BV37: 1782764 | BW37: 111173
D38: =SUM(D37:E37) -> 7698992 | F38: =SUM(F37:G37) -> 956087 | H38: =SUM(H37:I37) -> 1685944 | J38: =SUM(J37:K37) -> 7608537 | L38: =SUM(L37:M37) -> 812317 | N38: =SUM(N37:O37) -> 1818291 | P38: =SUM(P37:Q37) -> 7594601 | R38: =SUM(R37:S37) -> 710432 | T38: =SUM(T37:U37) -> 1889847 | V38: =SUM(V37:W37) -> 7573592 | X38: =SUM(X37:Y37) -> 609704 | Z38: =SUM(Z37:AA37) -> 1925999 | AB38: =SUM(AB37:AC37) -> 7604479 | AD38: =SUM(AD37:AE37) -> 557429 | AF38: =SUM(AF37:AG37) -> 1942789 | AH38: =SUM(AH37:AI37) -> 7611944 | AJ38: =SUM(AJ37:AK37) -> 570156 | AL38: =SUM(AL37:AM37) -> 1977114 | AN38: =SUM(AN37:AO37) -> 7571823 | AP38: =SUM(AP37:AQ37) -> 495335 | AR38: =SUM(AR37:AS37) -> 1955498 | AT38: =SUM(AT37:AU37) -> 7664341 | AV38: =SUM(AV37:AW37) -> 540619 | AX38: =SUM(AX37:AY37) -> 1774311 | AZ38: =SUM(AZ37:BA37) -> 7491434 | BB38: =SUM(BB37:BC37) -> 569898 | BD38: =SUM(BD37:BE37) -> 1904879 | BF38: =SUM(BF37:BG37) -> 7279460 | BH38: =SUM(BH37:BI37) -> 556840 | BJ38: =SUM(BJ37:BK37) -> 1963834 | BL38: 7072530 | BN38: 548029 | BP38: 1922581 | BR38: 6883886 | BT38: 533655 | BV38: 1893937
C39: FUENTE: SIMAT OAPF
C41: =+B7 -> COLOMBIA | D41: 2014 | J41: 2015 | P41: 2016 | V41: 2017 | AB41: 2018 | AH41: 2019 | AN41: 2020 | AT41: 2021 | AZ41: 2022 | BF41: =+BF5 -> 2023 | BL41: =+BL5 -> 2024 | BR41: =+BR5 -> 2025
D42: Oficial | F42: Contratada | H42: No Oficial | J42: Oficial | L42: Contratada | N42: No Oficial | P42: Oficial | R42: Contratada | T42: No Oficial | V42: Oficial | X42: Contratada | Z42: No Oficial | AB42: Oficial | AD42: Contratada | AF42: No Oficial | AH42: Oficial | AJ42: Contratada | AL42: No Oficial | AN42: Oficial | AP42: Contratada | AR42: No Oficial | AT42: Oficial | AV42: Contratada | AX42: No Oficial | AZ42: Oficial | BB42: Contratada | BD42: No Oficial | BF42: Oficial | BH42: Contratada | BJ42: No Oficial | BL42: Oficial | BN42: Contratada | BP42: No Oficial | BR42: Oficial | BT42: Contratada | BV42: No Oficial
C43: NIVEL | D43: Urbano | E43: Rural | F43: Urbano | G43: Rural | H43: Urbano | I43: Rural | J43: Urbano | K43: Rural | L43: Urbano | M43: Rural | N43: Urbano | O43: Rural | P43: Urbano | Q43: Rural | R43: Urbano | S43: Rural | T43: Urbano | U43: Rural | V43: Urbano | W43: Rural | X43: Urbano | Y43: Rural | Z43: Urbano | AA43: Rural | AB43: Urbano | AC43: Rural | AD43: Urbano | AE43: Rural | AF43: Urbano | AG43: Rural | AH43: Urbano | AI43: Rural | AJ43: Urbano | AK43: Rural | AL43: Urbano | AM43: Rural | AN43: Urbano | AO43: Rural | AP43: Urbano | AQ43: Rural | AR43: Urbano | AS43: Rural | AT43: Urbano | AU43: Rural | AV43: Urbano | AW43: Rural | AX43: Urbano | AY43: Rural | AZ43: Urbano | BA43: Rural | BB43: Urbano | BC43: Rural | BD43: Urbano | BE43: Rural | BF43: Urbano | BG43: Rural | BH43: Urbano | BI43: Rural | BJ43: Urbano | BK43: Rural | BL43: Urbano | BM43: Rural | BN43: Urbano | BO43: Rural | BP43: Urbano | BQ43: Rural | BR43: Urbano | BS43: Rural | BT43: Urbano | BU43: Rural | BV43: Urbano | BW43: Rural
C44: Pre-Jardin y jardín | D44: =SUM(D8:D9) -> 28860 | E44: 852 | F44: 578 | G44: 0 | H44: 166139 | I44: 7084 | J44: 38564 | K44: 661 | L44: 259 | M44: 0 | N44: 172579 | O44: 7365 | P44: 39151 | Q44: 564 | R44: 226 | S44: 17 | T44: 182676 | U44: 7799 | V44: 37230 | W44: 605 | X44: =SUM(X8:X9) -> 18 | Y44: 14 | Z44: 190176 | AA44: 8275 | AB44: 36509 | AC44: 1020 | AD44: 2 | AE44: 0 | AF44: 192313 | AG44: 8299 | AH44: 38257 | AI44: 1070 | AJ44: 48 | AK44: 0 | AL44: 196802 | AM44: 9124 | AN44: 38115 | AO44: 975 | AP44: 970 | AQ44: 0 | AR44: 177121 | AS44: 8811 | AT44: 39141 | AU44: 961 | AV44: 936 | AW44: 0 | AX44: 111166 | AY44: 7072 | AZ44: 41126 | BA44: 1144 | BB44: 1014 | BC44: 0 | BD44: 168063 | BE44: 8791 | BF44: 41899 | BG44: 2400 | BH44: 906 | BI44: 1 | BJ44: 166966 | BK44: 9132 | BL44: =SUM(BL8:BL9) -> 56872 | BM44: 16146 | BN44: 874 | BO44: 273 | BP44: 150627 | BQ44: 8714 | BR44: =SUM(BR8:BR9) -> 90294 | BS44: 36721 | BT44: 936 | BU44: 369 | BV44: 140529 | BW44: 8405
C45: Transición | D45: =+D10 -> 374837 | E45: 176288 | F45: 40430 | G45: 27583 | H45: 126747 | I45: 6681 | J45: 358347 | K45: 175598 | L45: 31694 | M45: 21424 | N45: =+N10 -> 139255 | O45: =+O10 -> 6906 | P45: =+P10 -> 350640 | Q45: 173693 | R45: 24401 | S45: 25037 | T45: 138376 | U45: 6688 | V45: 356112 | W45: 180496 | X45: =+X10 -> 19473 | Y45: 17795 | Z45: 143107 | AA45: 7000 | AB45: 361165 | AC45: 183579 | AD45: 22106 | AE45: 11402 | AF45: 144746 | AG45: 6718 | AH45: 364119 | AI45: 176968 | AJ45: 21986 | AK45: 12857 | AL45: 146553 | AM45: 7322 | AN45: 367489 | AO45: 173012 | AP45: 19280 | AQ45: 12271 | AR45: 147254 | AS45: 7466 | AT45: 356800 | AU45: 170965 | AV45: 22356 | AW45: 14262 | AX45: 119009 | AY45: 6925 | AZ45: 373030 | BA45: 181175 | BB45: 26606 | BC45: 15341 | BD45: 139149 | BE45: 7919 | BF45: 351250 | BG45: 173957 | BH45: 23522 | BI45: 16206 | BJ45: 142040 | BK45: 8085 | BL45: =+BL10 -> 323040 | BM45: 158806 | BN45: 22687 | BO45: 15037 | BP45: 131368 | BQ45: 7890 | BR45: =+BR10 -> 295025 | BS45: 147421 | BT45: 19404 | BU45: 16096 | BV45: 122031 | BW45: 7493
C46: Primaria | D46: =SUM(D11:D15)+D25+D26+D36 -> 2303786 | E46: 1139787 | F46: 274942 | G46: 180487 | H46: 607619 | I46: 35986 | J46: 2270477 | K46: 1118101 | L46: 242115 | M46: 152516 | N46: =SUM(N11:N15)+N25+N26+N36 -> 658716 | O46: 37293 | P46: 2275978 | Q46: 1110660 | R46: 174642 | S46: 149334 | T46: 698667 | U46: 38957 | V46: 2227621 | W46: 1114213 | X46: =SUM(X11:X15)+X25+X26+X36 -> 158096 | Y46: 105474 | Z46: 706233 | AA46: 40068 | AB46: 2210870 | AC46: 1120978 | AD46: 150106 | AE46: 74736 | AF46: 706231 | AG46: 40912 | AH46: 2194106 | AI46: 1085639 | AJ46: 153445 | AK46: 82064 | AL46: 706561 | AM46: 42173 | AN46: 2177472 | AO46: 1057791 | AP46: 150976 | AQ46: 72656 | AR46: 692949 | AS46: 41698 | AT46: 2191350 | AU46: 1092454 | AV46: 158385 | AW46: 82125 | AX46: 625822 | AY46: 40590 | AZ46: 2151850 | BA46: 1045127 | BB46: 162684 | BC46: 87015 | BD46: 651389 | BE46: 42398 | BF46: 2112485 | BG46: 1009952 | BH46: 152425 | BI46: 89369 | BJ46: 682973 | BK46: 45490 | BL46: =SUM(BL11:BL15)+BL25+BL26+BL36 -> 2066358 | BM46: 986716 | BN46: 148842 | BO46: 91168 | BP46: 678546 | BQ46: 45384 | BR46: =SUM(BR11:BR15)+BR24+BR25+BR26+BR36 -> 2015828 | BS46: =SUM(BS11:BS15)+BS24+BS25+BS26+BS36 -> 953440 | BT46: 142778 | BU46: 96712 | BV46: 670185 | BW46: 45218
C47: Secundaria | D47: =SUM(D16:D19)+D27+D28 -> 2095090 | E47: 612076 | F47: 230688 | G47: 75836 | H47: 451989 | I47: 27666 | J47: 2068154 | K47: 610391 | L47: 202968 | M47: 63844 | N47: =SUM(N16:N19)+N27+N28 -> 486013 | O47: 27099 | P47: 2050037 | Q47: 615994 | R47: 170081 | S47: 70415 | T47: 493704 | U47: 27968 | V47: 2046140 | W47: 630247 | X47: =SUM(X16:X19)+X27+X28 -> 163584 | Y47: 57156 | Z47: 498263 | AA47: 29203 | AB47: 2056032 | AC47: 656568 | AD47: 162098 | AE47: 50338 | AF47: 506297 | AG47: 30458 | AH47: 2088094 | AI47: 670372 | AJ47: 158041 | AK47: 56623 | AL47: 513691 | AM47: 31962 | AN47: 2093079 | AO47: 662131 | AP47: 133105 | AQ47: 44421 | AR47: 509487 | AS47: 31810 | AT47: 2089738 | AU47: 682668 | AV47: 139971 | AW47: 54310 | AX47: 485748 | AY47: 32163 | AZ47: 2017352 | BA47: 655783 | BB47: 143148 | BC47: 60736 | BD47: 495193 | BE47: 32370 | BF47: 1935471 | BG47: 631368 | BH47: 135120 | BI47: 64239 | BJ47: 502227 | BK47: 33662 | BL47: =SUM(BL16:BL19)+BL27+BL28 -> 1861837 | BM47: 615794 | BN47: 130404 | BO47: 64820 | BP47: 495537 | BQ47: 33538 | BR47: =SUM(BR16:BR19)+BR27+BR28 -> 1800945 | BS47: 595903 | BT47: 122811 | BU47: 64197 | BV47: 493592 | BW47: 33615
C48: Media | D48: =SUM(D20:D23)+D29+D30 -> 790042 | E48: 177374 | F48: 100233 | G48: 25310 | H48: 240974 | I48: 15059 | J48: 786845 | K48: 181399 | L48: 81091 | M48: 16406 | N48: =SUM(N20:N23)+N29+N30 -> 269811 | O48: 13254 | P48: 793440 | Q48: 184444 | R48: 76187 | S48: 20092 | T48: 281880 | U48: 13132 | V48: 790845 | W48: 190083 | X48: =SUM(X20:X23)+X29+X30 -> 70109 | Y48: 17985 | Z48: 291147 | AA48: 12527 | AB48: 781309 | AC48: 196449 | AD48: 69146 | AE48: 17495 | AF48: 293256 | AG48: 13559 | AH48: 789274 | AI48: 204045 | AJ48: 66611 | AK48: 18481 | AL48: 307757 | AM48: 15169 | AN48: 793931 | AO48: 207828 | AP48: 49592 | AQ48: 12064 | AR48: 323702 | AS48: 15200 | AT48: 819033 | AU48: 221231 | AV48: 53847 | AW48: 14427 | AX48: 329060 | AY48: 16756 | AZ48: 803018 | BA48: 221829 | BB48: 56720 | BC48: 16634 | BD48: 344502 | BE48: 15105 | BF48: =SUM(BF20:BF23)+BF29+BF30+BF31+BF32+BF33+BF34+BF35 -> 802120 | BG48: 218558 | BH48: 54601 | BI48: 20451 | BJ48: 357561 | BK48: 15698 | BL48: =SUM(BL20:BL23)+BL29+BL30+BL31+BL32+BL33+BL34+BL35 -> 774803 | BM48: 212158 | BN48: 52526 | BO48: 21398 | BP48: 355159 | BQ48: 15818 | BR48: =SUM(BR20:BR23)+BR29+BR30+BR31+BR32+BR33+BR34+BR35 -> 744844 | BS48: 203465 | BT48: 50658 | BU48: 19694 | BV48: 356427 | BW48: 16442
C49: Total | D49: =SUM(D44:D48) -> 5592615 | E49: 2106377 | F49: 646871 | G49: 309216 | H49: 1593468 | I49: 92476 | J49: 5522387 | K49: 2086150 | L49: 558127 | M49: 254190 | N49: 1726374 | O49: 91917 | P49: 5509246 | Q49: 2085355 | R49: 445537 | S49: 264895 | T49: 1795303 | U49: 94544 | V49: 5457948 | W49: 2115644 | X49: =SUM(X44:X48) -> 411280 | Y49: 198424 | Z49: 1828926 | AA49: 97073 | AB49: 5445885 | AC49: 2158594 | AD49: 403458 | AE49: 153971 | AF49: 1842843 | AG49: 99946 | AH49: 5473850 | AI49: 2138094 | AJ49: 400131 | AK49: 170025 | AL49: 1871364 | AM49: 105750 | AN49: 5470086 | AO49: 2101737 | AP49: 353923 | AQ49: 141412 | AR49: 1850513 | AS49: 104985 | AT49: 5496062 | AU49: 2168279 | AV49: 375495 | AW49: 165124 | AX49: 1670805 | AY49: 103506 | AZ49: 5386376 | BA49: 2105058 | BB49: 390172 | BC49: 179726 | BD49: 1798296 | BE49: 106583 | BF49: 5243225 | BG49: 2036235 | BH49: 366574 | BI49: 190266 | BJ49: 1851767 | BK49: 112067 | BL49: =SUM(BL44:BL48) -> 5082910 | BM49: 1989620 | BN49: 355333 | BO49: 192696 | BP49: 1811237 | BQ49: 111344 | BR49: =SUM(BR44:BR48) -> 4946936 | BS49: 1936950 | BT49: 336587 | BU49: 197068 | BV49: 1782764 | BW49: 111173
C50: FUENTE: SIMAT OAPF
C52: =+B7 -> COLOMBIA | D52: 2014 | J52: 2015 | P52: 2016 | V52: 2017 | AB52: 2018 | AH52: 2019 | AN52: 2020 | AT52: 2021 | AZ52: 2022 | BF52: =+BF5 -> 2023 | BL52: =+BL5 -> 2024 | BR52: =+BR5 -> 1905-07-17
D53: Oficial | F53: Contratada | H53: No Oficial | J53: Oficial | L53: Contratada | N53: No Oficial | P53: Oficial | R53: Contratada | T53: No Oficial | V53: Oficial | X53: Contratada | Z53: No Oficial | AB53: Oficial | AD53: Contratada | AF53: No Oficial | AH53: Oficial | AJ53: Contratada | AL53: No Oficial | AN53: Oficial | AP53: Contratada | AR53: No Oficial | AT53: Oficial | AV53: Contratada | AX53: No Oficial | AZ53: Oficial | BB53: Contratada | BD53: No Oficial | BF53: Oficial | BH53: Contratada | BJ53: No Oficial | BL53: Oficial | BN53: Contratada | BP53: No Oficial | BR53: Oficial | BT53: Contratada | BV53: No Oficial
C54: NIVEL ADULTOS | D54: Urbano | E54: Rural | F54: Urbano | G54: Rural | H54: Urbano | I54: Rural | J54: Urbano | K54: Rural | L54: Urbano | M54: Rural | N54: Urbano | O54: Rural | P54: Urbano | Q54: Rural | R54: Urbano | S54: Rural | T54: Urbano | U54: Rural | V54: Urbano | W54: Rural | X54: Urbano | Y54: Rural | Z54: Urbano | AA54: Rural | AB54: Urbano | AC54: Rural | AD54: Urbano | AE54: Rural | AF54: Urbano | AG54: Rural | AH54: Urbano | AI54: Rural | AJ54: Urbano | AK54: Rural | AL54: Urbano | AM54: Rural | AN54: Urbano | AO54: Rural | AP54: Urbano | AQ54: Rural | AR54: Urbano | AS54: Rural | AT54: Urbano | AU54: Rural | AV54: Urbano | AW54: Rural | AX54: Urbano | AY54: Rural | AZ54: Urbano | BA54: Rural | BB54: Urbano | BC54: Rural | BD54: Urbano | BE54: Rural | BF54: Urbano | BG54: Rural | BH54: Urbano | BI54: Rural | BJ54: Urbano | BK54: Rural | BL54: Urbano | BM54: Rural | BN54: Urbano | BO54: Rural | BP54: Urbano | BQ54: Rural | BR54: Urbano | BS54: Rural | BT54: Urbano | BU54: Rural | BV54: Urbano | BW54: Rural
C55: Pre-Jardin y jardín | D55: =SUM(D8:D9) -> 28860 | E55: 852 | F55: 578 | G55: 0 | H55: 166139 | I55: 7084 | J55: 38564 | K55: 661 | L55: 259 | M55: 0 | N55: =SUM(N8:N9) -> 172579 | O55: =SUM(O8:O9) -> 7365 | P55: =SUM(P8:P9) -> 39151 | Q55: 564 | R55: 226 | S55: 17 | T55: 182676 | U55: 7799 | V55: 37230 | W55: 605 | X55: =SUM(X8:X9) -> 18 | Y55: 14 | Z55: 190176 | AA55: 8275 | AB55: 36509 | AC55: 1020 | AD55: 2 | AE55: 0 | AF55: 192313 | AG55: 8299 | AH55: 38257 | AI55: 1070 | AJ55: 48 | AK55: 0 | AL55: 196802 | AM55: 9124 | AN55: 38115 | AO55: 975 | AP55: 970 | AQ55: 0 | AR55: 177121 | AS55: 8811 | AT55: 39141 | AU55: 961 | AV55: 936 | AW55: 0 | AX55: 111166 | AY55: 7072 | AZ55: 41126 | BA55: 1144 | BB55: 1014 | BC55: 0 | BD55: 168063 | BE55: 8791 | BF55: 41899 | BG55: 2400 | BH55: 906 | BI55: 1 | BJ55: 166966 | BK55: 9132 | BL55: =SUM(BL8:BL9) -> 56872 | BM55: 16146 | BN55: 874 | BO55: 273 | BP55: 150627 | BQ55: 8714 | BR55: =SUM(BR8:BR9) -> 90294 | BS55: 36721 | BT55: 936 | BU55: 369 | BV55: 140529 | BW55: 8405
C56: Transición | D56: =+D10 -> 374837 | E56: 176288 | F56: 40430 | G56: 27583 | H56: 126747 | I56: 6681 | J56: 358347 | K56: 175598 | L56: 31694 | M56: 21424 | N56: =+N10 -> 139255 | O56: =+O10 -> 6906 | P56: =+P10 -> 350640 | Q56: 173693 | R56: 24401 | S56: 25037 | T56: 138376 | U56: 6688 | V56: 356112 | W56: 180496 | X56: =+X10 -> 19473 | Y56: 17795 | Z56: 143107 | AA56: 7000 | AB56: 361165 | AC56: 183579 | AD56: 22106 | AE56: 11402 | AF56: 144746 | AG56: 6718 | AH56: 364119 | AI56: 176968 | AJ56: 21986 | AK56: 12857 | AL56: 146553 | AM56: 7322 | AN56: 367489 | AO56: 173012 | AP56: 19280 | AQ56: 12271 | AR56: 147254 | AS56: 7466 | AT56: 356800 | AU56: 170965 | AV56: 22356 | AW56: 14262 | AX56: 119009 | AY56: 6925 | AZ56: 373030 | BA56: 181175 | BB56: 26606 | BC56: 15341 | BD56: 139149 | BE56: 7919 | BF56: 351250 | BG56: 173957 | BH56: 23522 | BI56: 16206 | BJ56: 142040 | BK56: 8085 | BL56: =+BL10 -> 323040 | BM56: 158806 | BN56: 22687 | BO56: 15037 | BP56: 131368 | BQ56: 7890 | BR56: =+BR10 -> 295025 | BS56: 147421 | BT56: 19404 | BU56: 16096 | BV56: 122031 | BW56: 7493
C57: Primaria | D57: =SUM(D11:D15)+D36 -> 2252125 | E57: 1110765 | F57: 245485 | G57: 159128 | H57: 605400 | I57: 35669 | J57: 2213679 | K57: 1080899 | L57: 225746 | M57: 140122 | N57: =SUM(N11:N15)+N36 -> 655546 | O57: 37269 | P57: 2196417 | Q57: 1064496 | R57: 166088 | S57: 140692 | T57: 695971 | U57: 38945 | V57: 2171827 | W57: 1082803 | X57: =SUM(X11:X15)+X36 -> 150397 | Y57: 100543 | Z57: 704009 | AA57: 39939 | AB57: 2148595 | AC57: 1084951 | AD57: 146337 | AE57: 71697 | AF57: 702991 | AG57: 40678 | AH57: 2160973 | AI57: 1067815 | AJ57: 147189 | AK57: 73769 | AL57: 702796 | AM57: 41841 | AN57: 2156391 | AO57: 1049710 | AP57: 150570 | AQ57: 72594 | AR57: 690044 | AS57: 41550 | AT57: 2160937 | AU57: 1073068 | AV57: 157973 | AW57: 80747 | AX57: 623938 | AY57: 40527 | AZ57: 2107788 | BA57: 1032186 | BB57: 162080 | BC57: 86252 | BD57: 648743 | BE57: 42346 | BF57: 2080676 | BG57: 1000356 | BH57: 151291 | BI57: 88216 | BJ57: 680201 | BK57: 45237 | BL57: =SUM(BL11:BL15)+BL36 -> 2043537 | BM57: 974797 | BN57: 148072 | BO57: 90352 | BP57: 676043 | BQ57: 45348 | BR57: =SUM(BR11:BR15)+BR36 -> 1997546 | BS57: 944191 | BT57: 141753 | BU57: 95425 | BV57: 667497 | BW57: 45183
C58: Secundaria | D58: =SUM(D16:D19) -> 1927373 | E58: 557666 | F58: 172572 | G58: 41187 | H58: 400336 | I58: 24829 | J58: 1893322 | K58: 553092 | L58: 158081 | M58: 41513 | N58: =SUM(N16:N19) -> 422469 | O58: =SUM(O16:O19) -> 26309 | P58: =SUM(P16:P19) -> 1876644 | Q58: 564061 | R58: 126055 | S58: 51508 | T58: 432336 | U58: 27244 | V58: 1873618 | W58: 577471 | X58: =SUM(X16:X19) -> 120447 | Y58: 40903 | Z58: 436953 | AA58: 27885 | AB58: 1885968 | AC58: 601333 | AD58: 119609 | AE58: 34804 | AF58: 443415 | AG58: 28844 | AH58: 1915347 | AI58: 610592 | AJ58: 117862 | AK58: 39062 | AL58: 448280 | AM58: 29442 | AN58: 1938265 | AO58: 616208 | AP58: 121234 | AQ58: 42584 | AR58: 451267 | AS58: 30094 | AT58: 1955821 | AU58: 640832 | AV58: 128734 | AW58: 50482 | AX58: 434404 | AY58: 30790 | AZ58: 1874166 | BA58: 612956 | BB58: 129807 | BC58: 53821 | BD58: 432752 | BE58: 31377 | BF58: 1799685 | BG58: 591184 | BH58: 121193 | BI58: 58066 | BJ58: 439328 | BK58: 32514 | BL58: =SUM(BL16:BL19) -> 1736918 | BM58: 577798 | BN58: 119147 | BO58: 59527 | BP58: 434494 | BQ58: 32495 | BR58: =SUM(BR16:BR19) -> 1686511 | BS58: 560617 | BT58: 111817 | BU58: 60332 | BV58: 434012 | BW58: 32942
C59: Media | D59: =SUM(D20:D23) -> 682291 | E59: 146048 | F59: 56243 | G59: 7877 | H59: 168661 | I59: 10985 | J59: 672781 | K59: 147920 | L59: 53169 | M59: 7552 | N59: =SUM(N20:N23) -> 176856 | O59: =SUM(O20:O23) -> 11154 | P59: =SUM(P20:P23) -> 677670 | Q59: 154129 | R59: 43643 | S59: 9832 | T59: 182627 | U59: 11385 | V59: =SUM(V20:V23)+SUM(V31:V35) -> 676483 | W59: =SUM(W20:W23)+SUM(W31:W35) -> 159776 | X59: =SUM(X20:X23)+SUM(X31:X35) -> 39815 | Y59: 9508 | Z59: 181508 | AA59: 11483 | AB59: 669824 | AC59: 164974 | AD59: 38758 | AE59: 9032 | AF59: 178638 | AG59: 11641 | AH59: 672173 | AI59: 169808 | AJ59: 37686 | AK59: 9499 | AL59: 180508 | AM59: 12363 | AN59: 687961 | AO59: 176996 | AP59: 39644 | AQ59: 10421 | AR59: 186756 | AS59: 12342 | AT59: 715408 | AU59: 190469 | AV59: 44897 | AW59: 12240 | AX59: 189183 | AY59: 12990 | AZ59: 701833 | BA59: 191096 | BB59: 46020 | BC59: 13276 | BD59: 190935 | BE59: 13123 | BF59: 705320 | BG59: 190607 | BH59: 43613 | BI59: 15002 | BJ59: 194104 | BK59: 13850 | BL59: =SUM(BL20:BL23)+SUM(BL31:BL35) -> 683199 | BM59: 184930 | BN59: 43299 | BO59: 16024 | BP59: 194879 | BQ59: 13943 | BR59: =SUM(BR20:BR23)+SUM(BR31:BR35) -> 662374 | BS59: 178555 | BT59: 41442 | BU59: 16268 | BV59: 193634 | BW59: 14575
C60: Adultos | D60: =SUM(D25:D30) -> 327129 | E60: 114758 | F60: 131563 | G60: 73441 | H60: 126185 | I60: 7228 | J60: 345694 | K60: 127980 | L60: 89178 | M60: 43579 | N60: =SUM(N25:N30) -> 159669 | O60: =SUM(O25:O30) -> 2914 | P60: =SUM(P25:P30) -> 368724 | Q60: 128412 | R60: 85124 | S60: 37809 | T60: 163317 | U60: 2483 | V60: 342678 | W60: 114493 | X60: =SUM(X25:X30) -> 81130 | Y60: 29661 | Z60: 173173 | AA60: 2491 | AB60: 343824 | AC60: 122737 | AD60: 76646 | AE60: 27036 | AF60: 180740 | AG60: 3766 | AH60: 322981 | AI60: 111841 | AJ60: 75360 | AK60: 34838 | AL60: 196425 | AM60: 5658 | AN60: 281865 | AO60: 84836 | AP60: 22225 | AQ60: 3542 | AR60: 198071 | AS60: 4722 | AT60: 267955 | AU60: 91984 | AV60: 20599 | AW60: 7393 | AX60: 193105 | AY60: 5202 | AZ60: 288433 | BA60: 86501 | BB60: 24645 | BC60: 11036 | BD60: 218654 | BE60: 3027 | BF60: 264395 | BG60: 77731 | BH60: 26049 | BI60: 12775 | BJ60: 229128 | BK60: 3249 | BL60: =SUM(BL25:BL30) -> 239344 | BM60: 77143 | BN60: 21254 | BO60: 11483 | BP60: 223826 | BQ60: 2954 | BR60: =SUM(BR24:BR30) -> 215186 | BS60: =SUM(BS24:BS30) -> 69445 | BT60: 21235 | BU60: 8578 | BV60: 225061 | BW60: 2575
C61: Total | D61: =SUM(D55:D60) -> 5592615 | E61: 2106377 | F61: 646871 | G61: 309216 | H61: 1593468 | I61: 92476 | J61: 5522387 | K61: 2086150 | L61: 558127 | M61: 254190 | N61: 1726374 | O61: 91917 | P61: 5509246 | Q61: 2085355 | R61: 445537 | S61: 264895 | T61: 1795303 | U61: 94544 | V61: 5457948 | W61: 2115644 | X61: =SUM(X55:X60) -> 411280 | Y61: 198424 | Z61: 1828926 | AA61: 97073 | AB61: 5445885 | AC61: 2158594 | AD61: 403458 | AE61: 153971 | AF61: 1842843 | AG61: 99946 | AH61: 5473850 | AI61: 2138094 | AJ61: 400131 | AK61: 170025 | AL61: 1871364 | AM61: 105750 | AN61: 5470086 | AO61: 2101737 | AP61: 353923 | AQ61: 141412 | AR61: 1850513 | AS61: 104985 | AT61: 5496062 | AU61: 2168279 | AV61: 375495 | AW61: 165124 | AX61: 1670805 | AY61: 103506 | AZ61: 5386376 | BA61: 2105058 | BB61: 390172 | BC61: 179726 | BD61: 1798296 | BE61: 106583 | BF61: 5243225 | BG61: 2036235 | BH61: 366574 | BI61: 190266 | BJ61: 1851767 | BK61: 112067 | BL61: =SUM(BL55:BL60) -> 5082910 | BM61: 1989620 | BN61: 355333 | BO61: 192696 | BP61: 1811237 | BQ61: 111344 | BR61: =SUM(BR55:BR60) -> 4946936 | BS61: 1936950 | BT61: 336587 | BU61: 197068 | BV61: 1782764 | BW61: 111173
C62: FUENTE: SIMAT OAPF
C64: =+B7 -> COLOMBIA
C65: Sector-Zona | D65: 2014 | E65: 2015 | F65: 2016 | G65: 2017 | H65: 2018 | I65: 2019 | J65: 2020 | K65: 2021 | L65: 2022 | M65: 2023 | N65: =+BL5 -> 2024 | O65: =+BR52 -> 2025
C66: Oficial Urbana | D66: =+D61 -> 5592615 | E66: =+J61 -> 5522387 | F66: =+P61 -> 5509246 | G66: =+V61 -> 5457948 | H66: =+AB61 -> 5445885 | I66: =+AH61 -> 5473850 | J66: =+AN61 -> 5470086 | K66: =+AT61 -> 5496062 | L66: =+AZ61 -> 5386376 | M66: =+BF61 -> 5243225 | N66: =+BL61 -> 5082910 | O66: =+BR61 -> 4946936
C67: Oficial Rural | D67: =+E61 -> 2106377 | E67: =+K61 -> 2086150 | F67: =+Q61 -> 2085355 | G67: =+W61 -> 2115644 | H67: =+AC61 -> 2158594 | I67: =+AI61 -> 2138094 | J67: =+AO61 -> 2101737 | K67: =+AU61 -> 2168279 | L67: =+BA61 -> 2105058 | M67: =+BG61 -> 2036235 | N67: =+BM61 -> 1989620 | O67: =+BS61 -> 1936950
C68: Contratada Ubana | D68: =+F61 -> 646871 | E68: =+L61 -> 558127 | F68: =+R61 -> 445537 | G68: =+X61 -> 411280 | H68: =+AD61 -> 403458 | I68: =+AJ61 -> 400131 | J68: =+AP61 -> 353923 | K68: =+AV61 -> 375495 | L68: =+BB61 -> 390172 | M68: =+BH61 -> 366574 | N68: =+BN61 -> 355333 | O68: =+BT61 -> 336587
C69: Contratada Rural | D69: =+G61 -> 309216 | E69: =+M61 -> 254190 | F69: =+S61 -> 264895 | G69: =+Y61 -> 198424 | H69: =+AE61 -> 153971 | I69: =+AK61 -> 170025 | J69: =+AQ61 -> 141412 | K69: =+AW61 -> 165124 | L69: =+BC61 -> 179726 | M69: =+BI61 -> 190266 | N69: =+BO61 -> 192696 | O69: =+BU61 -> 197068
C70: No Ofcial Urbana | D70: =+H61 -> 1593468 | E70: =+N61 -> 1726374 | F70: =+T61 -> 1795303 | G70: =+Z61 -> 1828926 | H70: =+AF61 -> 1842843 | I70: =+AL61 -> 1871364 | J70: =+AR61 -> 1850513 | K70: =+AX61 -> 1670805 | L70: =+BD61 -> 1798296 | M70: =+BJ61 -> 1851767 | N70: =+BP61 -> 1811237 | O70: =+BV61 -> 1782764
C71: No Oficial Rural | D71: =+I61 -> 92476 | E71: =+O61 -> 91917 | F71: =+U61 -> 94544 | G71: =+AA61 -> 97073 | H71: =+AG61 -> 99946 | I71: =+AM61 -> 105750 | J71: =+AS61 -> 104985 | K71: =+AY61 -> 103506 | L71: =+BE61 -> 106583 | M71: =+BK61 -> 112067 | N71: =+BQ61 -> 111344 | O71: =+BW61 -> 111173
C72: Total | D72: =SUM(D66:D71) -> 10341023 | E72: 10239145 | F72: 10194880 | G72: 10109295 | H72: 10104697 | I72: 10159214 | J72: 10022656 | K72: 9979271 | L72: 9966211 | M72: =SUM(M66:M71) -> 9800134 | N72: =SUM(N66:N71) -> 9543140 | O72: =SUM(O66:O71) -> 9311478
C73: FUENTE: SIMAT OAPF 2025 información preliminar
C75: =+B7 -> COLOMBIA
C76: Zona | D76: 2014 | E76: 2015 | F76: 2016 | G76: 2017 | H76: 2018 | I76: 2019 | J76: 2020 | K76: 2021 | L76: 2022 | M76: 2023 | N76: =+N65 -> 2024 | O76: =+O65 -> 2025
C77: Urbano | D77: =+D66+D68+D70 -> 7832954 | E77: =+E66+E68+E70 -> 7806888 | F77: 7750086 | G77: 7698154 | H77: 7692186 | I77: 7745345 | J77: 7674522 | K77: 7542362 | L77: 7574844 | M77: 7461566 | N77: =+BL61+BN61+BP61 -> 7249480 | O77: =+BR61+BT61+BV61 -> 7066287
C78: Rural | D78: =+D67+D69+D71 -> 2508069 | E78: =+E67+E69+E71 -> 2432257 | F78: 2444794 | G78: 2411141 | H78: 2412511 | I78: 2413869 | J78: 2348134 | K78: 2436909 | L78: 2391367 | M78: 2338568 | N78: =+BM61+BO61+BQ61 -> 2293660 | O78: =+BS61+BU61+BW61 -> 2245191
C79: Total | D79: =SUM(D77:D78) -> 10341023 | E79: =SUM(E77:E78) -> 10239145 | F79: 10194880 | G79: 10109295 | H79: 10104697 | I79: 10159214 | J79: 10022656 | K79: 9979271 | L79: 9966211 | M79: 9800134 | N79: =SUM(N77:N78) -> 9543140 | O79: =SUM(O77:O78) -> 9311478
C80: FUENTE: SIMAT OAPF 2025 información preliminar
C82: =+B7 -> COLOMBIA | N82: =+B7 -> COLOMBIA
D198: 2014 | J198: 2015 | P198: 2016 | V198: 2017 | AB198: 2018 | AH198: 2019 | AN198: 2020 | AT198: 2021 | AZ198: 2022 | BF198: =+BF5 -> 2023 | BL198: =+BL5 -> 2024 | BR198: =+BR5 -> 2025
D199: Oficial | F199: Contratada | H199: No Oficial | J199: Oficial | L199: Contratada | N199: No Oficial | P199: Oficial | R199: Contratada | T199: No Oficial | V199: Oficial | X199: Contratada | Z199: No Oficial | AB199: Oficial | AD199: Contratada | AF199: No Oficial | AH199: Oficial | AJ199: Contratada | AL199: No Oficial | AN199: Oficial | AP199: Contratada | AR199: No Oficial | AT199: Oficial | AV199: Contratada | AX199: No Oficial | AZ199: Oficial | BB199: Contratada | BD199: No Oficial | BF199: Oficial | BH199: Contratada | BJ199: No Oficial | BL199: Oficial | BN199: Contratada | BP199: No Oficial | BR199: Oficial | BT199: Contratada | BV199: No Oficial
A200: lista | B200: ENTIDAD | C200: GRADO | D200: Urbana | E200: Rural | F200: Urbana | G200: Rural | H200: Urbana | I200: Rural | J200: Urbano | K200: Rural | L200: Urbano | M200: Rural | N200: Urbano | O200: Rural | P200: Urbano | Q200: Rural | R200: Urbano | S200: Rural | T200: Urbano | U200: Rural | V200: Urbano | W200: Rural | X200: Urbano | Y200: Rural | Z200: Urbano | AA200: Rural | AB200: Urbano | AC200: Rural | AD200: Urbano | AE200: Rural | AF200: Urbano | AG200: Rural | AH200: Urbano | AI200: Rural | AJ200: Urbano | AK200: Rural | AL200: Urbano | AM200: Rural | AN200: Urbano | AO200: Rural | AP200: Urbano | AQ200: Rural | AR200: Urbano | AS200: Rural | AT200: Urbano | AU200: Rural | AV200: Urbano | AW200: Rural | AX200: Urbano | AY200: Rural | AZ200: Urbano | BA200: Rural | BB200: Urbano | BC200: Rural | BD200: Urbano | BE200: Rural | BF200: Urbano | BG200: Rural | BH200: Urbano | BI200: Rural | BJ200: Urbano | BK200: Rural | BL200: Urbano | BM200: Rural | BN200: Urbano | BO200: Rural | BP200: Urbano | BQ200: Rural | BR200: Urbano | BS200: Rural | BT200: Urbano | BU200: Rural | BV200: Urbano | BW200: Rural
A201: AMAZONAS | B201: AMAZONAS | C201: Prejardín | D201: 0 | E201: 0 | F201: 0 | G201: 0 | H201: 85 | I201: 2 | J201: 0 | K201: 0 | L201: 0 | M201: 0 | N201: 42 | O201: 0 | P201: 0 | Q201: 0 | R201: 0 | S201: 0 | T201: 86 | U201: 0 | V201: 0 | W201: 0 | X201: 0 | Y201: 0 | Z201: 101 | AA201: 0 | AB201: 0 | AC201: 0 | AD201: 0 | AE201: 0 | AF201: 66 | AG201: 0 | AH201: 0 | AI201: 0 | AJ201: 0 | AK201: 0 | AL201: 35 | AM201: 0 | AN201: 0 | AO201: 0 | AP201: 0 | AQ201: 0 | AR201: 1 | AS201: 0 | AT201: 0 | AU201: 0 | AV201: 0 | AW201: 0 | AX201: 24 | AY201: 0 | AZ201: 0 | BA201: 0 | BB201: 0 | BC201: 0 | BD201: 42 | BE201: 0 | BF201: 0 | BG201: 0 | BH201: 0 | BI201: 0 | BJ201: 37 | BK201: 0 | BL201: 0 | BM201: 0 | BN201: 0 | BO201: 0 | BP201: 37 | BQ201: 0 | BR201: 0 | BS201: 0 | BT201: 0 | BU201: 0 | BV201: 14 | BW201: 0
A202: ANTIOQUIA | B202: AMAZONAS | C202: Jardín | D202: 0 | E202: 0 | F202: 0 | G202: 0 | H202: 85 | I202: 6 | J202: 0 | K202: 0 | L202: 0 | M202: 0 | N202: 122 | O202: 0 | P202: 0 | Q202: 0 | R202: 0 | S202: 0 | T202: 111 | U202: 0 | V202: 0 | W202: 0 | X202: 0 | Y202: 0 | Z202: 122 | AA202: 0 | AB202: 1 | AC202: 0 | AD202: 0 | AE202: 0 | AF202: 128 | AG202: 0 | AH202: 6 | AI202: 0 | AJ202: 0 | AK202: 0 | AL202: 66 | AM202: 0 | AN202: 6 | AO202: 0 | AP202: 0 | AQ202: 0 | AR202: 65 | AS202: 0 | AT202: 2 | AU202: 0 | AV202: 0 | AW202: 0 | AX202: 65 | AY202: 0 | AZ202: 4 | BA202: 0 | BB202: 0 | BC202: 0 | BD202: 68 | BE202: 0 | BF202: 8 | BG202: 0 | BH202: 0 | BI202: 0 | BJ202: 68 | BK202: 0 | BL202: 4 | BM202: 0 | BN202: 0 | BO202: 0 | BP202: 65 | BQ202: 0 | BR202: 303 | BS202: 432 | BT202: 0 | BU202: 0 | BV202: 50 | BW202: 0
A203: APARTADO | B203: AMAZONAS | C203: Transición | D203: 746 | E203: 735 | F203: 0 | G203: 171 | H203: 99 | I203: 4 | J203: 701 | K203: 604 | L203: 0 | M203: 171 | N203: 99 | O203: 0 | P203: 738 | Q203: 665 | R203: 0 | S203: 164 | T203: 118 | U203: 0 | V203: 793 | W203: 775 | X203: 0 | Y203: 188 | Z203: 102 | AA203: 0 | AB203: 702 | AC203: 666 | AD203: 0 | AE203: 139 | AF203: 131 | AG203: 0 | AH203: 810 | AI203: 801 | AJ203: 0 | AK203: 201 | AL203: 116 | AM203: 0 | AN203: 809 | AO203: 732 | AP203: 0 | AQ203: 161 | AR203: 43 | AS203: 0 | AT203: 654 | AU203: 756 | AV203: 0 | AW203: 192 | AX203: 84 | AY203: 0 | AZ203: 763 | BA203: 739 | BB203: 0 | BC203: 143 | BD203: 81 | BE203: 0 | BF203: 685 | BG203: 682 | BH203: 0 | BI203: 178 | BJ203: 74 | BK203: 0 | BL203: 573 | BM203: 710 | BN203: 0 | BO203: 170 | BP203: 76 | BQ203: 0 | BR203: 449 | BS203: 537 | BT203: 0 | BU203: 166 | BV203: 71 | BW203: 0
A204: ARAUCA | B204: AMAZONAS | C204: Primero | D204: 1078 | E204: 981 | F204: 0 | G204: 282 | H204: 70 | I204: 3 | J204: 991 | K204: 943 | L204: 0 | M204: 251 | N204: 91 | O204: 0 | P204: 1029 | Q204: 832 | R204: 0 | S204: 217 | T204: 77 | U204: 0 | V204: 1054 | W204: 892 | X204: 0 | Y204: 247 | Z204: 77 | AA204: 0 | AB204: 1045 | AC204: 980 | AD204: 0 | AE204: 239 | AF204: 72 | AG204: 0 | AH204: 936 | AI204: 973 | AJ204: 0 | AK204: 201 | AL204: 71 | AM204: 0 | AN204: 1006 | AO204: 969 | AP204: 0 | AQ204: 242 | AR204: 78 | AS204: 0 | AT204: 921 | AU204: 859 | AV204: 0 | AW204: 236 | AX204: 66 | AY204: 0 | AZ204: 857 | BA204: 916 | BB204: 0 | BC204: 241 | BD204: 67 | BE204: 0 | BF204: 923 | BG204: 888 | BH204: 0 | BI204: 223 | BJ204: 80 | BK204: 0 | BL204: 830 | BM204: 815 | BN204: 0 | BO204: 227 | BP204: 90 | BQ204: 0 | BR204: 753 | BS204: 794 | BT204: 0 | BU204: 239 | BV204: 76 | BW204: 0
A205: ARMENIA | B205: AMAZONAS | C205: Segundo | D205: 1117 | E205: 917 | F205: 0 | G205: 272 | H205: 65 | I205: 2 | J205: 924 | K205: 892 | L205: 0 | M205: 274 | N205: 52 | O205: 0 | P205: 925 | Q205: 896 | R205: 0 | S205: 228 | T205: 86 | U205: 0 | V205: 880 | W205: 808 | X205: 0 | Y205: 233 | Z205: 61 | AA205: 0 | AB205: 898 | AC205: 837 | AD205: 0 | AE205: 223 | AF205: 80 | AG205: 0 | AH205: 883 | AI205: 944 | AJ205: 0 | AK205: 230 | AL205: 68 | AM205: 0 | AN205: 862 | AO205: 919 | AP205: 0 | AQ205: 203 | AR205: 65 | AS205: 0 | AT205: 868 | AU205: 956 | AV205: 0 | AW205: 244 | AX205: 73 | AY205: 0 | AZ205: 848 | BA205: 829 | BB205: 0 | BC205: 233 | BD205: 60 | BE205: 0 | BF205: 838 | BG205: 849 | BH205: 0 | BI205: 242 | BJ205: 61 | BK205: 0 | BL205: 813 | BM205: 862 | BN205: 0 | BO205: 222 | BP205: 81 | BQ205: 0 | BR205: 784 | BS205: 775 | BT205: 0 | BU205: 238 | BV205: 80 | BW205: 0
A206: ATLANTICO | B206: AMAZONAS | C206: Tercero | D206: 889 | E206: 815 | F206: 0 | G206: 204 | H206: 45 | I206: 1 | J206: 1029 | K206: 843 | L206: 0 | M206: 234 | N206: 65 | O206: 0 | P206: 881 | Q206: 810 | R206: 0 | S206: 225 | T206: 59 | U206: 0 | V206: 934 | W206: 827 | X206: 0 | Y206: 221 | Z206: 67 | AA206: 0 | AB206: 879 | AC206: 730 | AD206: 0 | AE206: 189 | AF206: 60 | AG206: 0 | AH206: 837 | AI206: 835 | AJ206: 0 | AK206: 193 | AL206: 70 | AM206: 0 | AN206: 862 | AO206: 887 | AP206: 0 | AQ206: 210 | AR206: 65 | AS206: 0 | AT206: 847 | AU206: 948 | AV206: 0 | AW206: 204 | AX206: 50 | AY206: 0 | AZ206: 832 | BA206: 921 | BB206: 0 | BC206: 212 | BD206: 64 | BE206: 0 | BF206: 840 | BG206: 815 | BH206: 0 | BI206: 231 | BJ206: 61 | BK206: 0 | BL206: 801 | BM206: 851 | BN206: 0 | BO206: 221 | BP206: 66 | BQ206: 0 | BR206: 789 | BS206: 846 | BT206: 0 | BU206: 219 | BV206: 68 | BW206: 0
A207: BARRANCABERMEJA | B207: AMAZONAS | C207: Cuarto | D207: 942 | E207: 749 | F207: 0 | G207: 215 | H207: 30 | I207: 4 | J207: 915 | K207: 735 | L207: 0 | M207: 189 | N207: 49 | O207: 0 | P207: 1019 | Q207: 758 | R207: 0 | S207: 198 | T207: 73 | U207: 0 | V207: 868 | W207: 771 | X207: 0 | Y207: 200 | Z207: 39 | AA207: 0 | AB207: 882 | AC207: 739 | AD207: 0 | AE207: 200 | AF207: 78 | AG207: 0 | AH207: 827 | AI207: 698 | AJ207: 0 | AK207: 171 | AL207: 55 | AM207: 0 | AN207: 807 | AO207: 738 | AP207: 0 | AQ207: 172 | AR207: 65 | AS207: 0 | AT207: 836 | AU207: 826 | AV207: 0 | AW207: 211 | AX207: 44 | AY207: 0 | AZ207: 764 | BA207: 848 | BB207: 0 | BC207: 163 | BD207: 62 | BE207: 0 | BF207: 779 | BG207: 802 | BH207: 0 | BI207: 173 | BJ207: 62 | BK207: 0 | BL207: 787 | BM207: 783 | BN207: 0 | BO207: 192 | BP207: 58 | BQ207: 0 | BR207: 783 | BS207: 738 | BT207: 0 | BU207: 196 | BV207: 54 | BW207: 0
A208: BARRANQUILLA | B208: AMAZONAS | C208: Quinto | D208: 887 | E208: 789 | F208: 0 | G208: 192 | H208: 46 | I208: 2 | J208: 892 | K208: 699 | L208: 0 | M208: 202 | N208: 28 | O208: 0 | P208: 875 | Q208: 713 | R208: 0 | S208: 175 | T208: 51 | U208: 0 | V208: 969 | W208: 699 | X208: 0 | Y208: 187 | Z208: 54 | AA208: 0 | AB208: 842 | AC208: 701 | AD208: 0 | AE208: 162 | AF208: 42 | AG208: 0 | AH208: 810 | AI208: 755 | AJ208: 0 | AK208: 170 | AL208: 68 | AM208: 0 | AN208: 817 | AO208: 625 | AP208: 0 | AQ208: 159 | AR208: 50 | AS208: 0 | AT208: 766 | AU208: 756 | AV208: 0 | AW208: 161 | AX208: 53 | AY208: 0 | AZ208: 809 | BA208: 762 | BB208: 0 | BC208: 180 | BD208: 49 | BE208: 0 | BF208: 714 | BG208: 755 | BH208: 0 | BI208: 141 | BJ208: 56 | BK208: 0 | BL208: 749 | BM208: 754 | BN208: 0 | BO208: 155 | BP208: 61 | BQ208: 0 | BR208: 744 | BS208: 764 | BT208: 0 | BU208: 182 | BV208: 52 | BW208: 0
A209: BELLO | B209: AMAZONAS | C209: Sexto | D209: 976 | E209: 813 | F209: 0 | G209: 0 | H209: 37 | I209: 0 | J209: 1047 | K209: 886 | L209: 0 | M209: 0 | N209: 47 | O209: 0 | P209: 1049 | Q209: 829 | R209: 0 | S209: 0 | T209: 48 | U209: 0 | V209: 1054 | W209: 805 | X209: 0 | Y209: 40 | Z209: 44 | AA209: 0 | AB209: 1123 | AC209: 880 | AD209: 0 | AE209: 16 | AF209: 69 | AG209: 0 | AH209: 1026 | AI209: 806 | AJ209: 0 | AK209: 20 | AL209: 67 | AM209: 0 | AN209: 1063 | AO209: 882 | AP209: 0 | AQ209: 26 | AR209: 69 | AS209: 0 | AT209: 1223 | AU209: 839 | AV209: 0 | AW209: 15 | AX209: 43 | AY209: 0 | AZ209: 998 | BA209: 707 | BB209: 0 | BC209: 24 | BD209: 68 | BE209: 0 | BF209: 1006 | BG209: 766 | BH209: 0 | BI209: 21 | BJ209: 57 | BK209: 0 | BL209: 872 | BM209: 815 | BN209: 0 | BO209: 18 | BP209: 72 | BQ209: 0 | BR209: 930 | BS209: 828 | BT209: 0 | BU209: 30 | BV209: 59 | BW209: 0
A210: BOGOTA | B210: AMAZONAS | C210: Septimo | D210: 932 | E210: 714 | F210: 0 | G210: 0 | H210: 45 | I210: 2 | J210: 836 | K210: 688 | L210: 0 | M210: 0 | N210: 40 | O210: 0 | P210: 917 | Q210: 680 | R210: 0 | S210: 0 | T210: 47 | U210: 0 | V210: 958 | W210: 657 | X210: 0 | Y210: 0 | Z210: 37 | AA210: 0 | AB210: 925 | AC210: 641 | AD210: 0 | AE210: 33 | AF210: 58 | AG210: 0 | AH210: 985 | AI210: 739 | AJ210: 0 | AK210: 18 | AL210: 64 | AM210: 0 | AN210: 894 | AO210: 658 | AP210: 0 | AQ210: 17 | AR210: 65 | AS210: 0 | AT210: 875 | AU210: 773 | AV210: 0 | AW210: 24 | AX210: 57 | AY210: 0 | AZ210: 906 | BA210: 734 | BB210: 0 | BC210: 8 | BD210: 57 | BE210: 0 | BF210: 833 | BG210: 639 | BH210: 0 | BI210: 22 | BJ210: 69 | BK210: 0 | BL210: 872 | BM210: 633 | BN210: 0 | BO210: 18 | BP210: 44 | BQ210: 0 | BR210: 805 | BS210: 642 | BT210: 0 | BU210: 20 | BV210: 57 | BW210: 0
A211: BOLIVAR | B211: AMAZONAS | C211: Octavo | D211: 724 | E211: 498 | F211: 0 | G211: 0 | H211: 46 | I211: 3 | J211: 813 | K211: 598 | L211: 0 | M211: 0 | N211: 39 | O211: 0 | P211: 757 | Q211: 577 | R211: 0 | S211: 0 | T211: 41 | U211: 0 | V211: 825 | W211: 575 | X211: 0 | Y211: 0 | Z211: 33 | AA211: 0 | AB211: 847 | AC211: 518 | AD211: 0 | AE211: 0 | AF211: 27 | AG211: 0 | AH211: 811 | AI211: 475 | AJ211: 0 | AK211: 27 | AL211: 59 | AM211: 0 | AN211: 857 | AO211: 603 | AP211: 0 | AQ211: 17 | AR211: 62 | AS211: 0 | AT211: 776 | AU211: 619 | AV211: 0 | AW211: 18 | AX211: 52 | AY211: 0 | AZ211: 736 | BA211: 639 | BB211: 0 | BC211: 19 | BD211: 65 | BE211: 0 | BF211: 877 | BG211: 564 | BH211: 0 | BI211: 7 | BJ211: 57 | BK211: 0 | BL211: 721 | BM211: 555 | BN211: 0 | BO211: 19 | BP211: 64 | BQ211: 0 | BR211: 741 | BS211: 517 | BT211: 0 | BU211: 12 | BV211: 45 | BW211: 0
A212: BOYACA | B212: AMAZONAS | C212: Noveno | D212: 680 | E212: 363 | F212: 0 | G212: 0 | H212: 42 | I212: 3 | J212: 648 | K212: 433 | L212: 0 | M212: 0 | N212: 39 | O212: 0 | P212: 757 | Q212: 475 | R212: 0 | S212: 0 | T212: 35 | U212: 0 | V212: 682 | W212: 489 | X212: 0 | Y212: 0 | Z212: 30 | AA212: 0 | AB212: 718 | AC212: 455 | AD212: 0 | AE212: 0 | AF212: 29 | AG212: 0 | AH212: 742 | AI212: 421 | AJ212: 0 | AK212: 0 | AL212: 28 | AM212: 0 | AN212: 708 | AO212: 441 | AP212: 0 | AQ212: 22 | AR212: 50 | AS212: 0 | AT212: 710 | AU212: 544 | AV212: 0 | AW212: 16 | AX212: 53 | AY212: 0 | AZ212: 679 | BA212: 493 | BB212: 0 | BC212: 16 | BD212: 48 | BE212: 0 | BF212: 645 | BG212: 484 | BH212: 0 | BI212: 17 | BJ212: 67 | BK212: 0 | BL212: 771 | BM212: 426 | BN212: 0 | BO212: 6 | BP212: 50 | BQ212: 0 | BR212: 708 | BS212: 446 | BT212: 0 | BU212: 14 | BV212: 57 | BW212: 0
A213: BUCARAMANGA | B213: AMAZONAS | C213: Decimo | D213: 640 | E213: 312 | F213: 0 | G213: 0 | H213: 29 | I213: 0 | J213: 671 | K213: 331 | L213: 0 | M213: 0 | N213: 38 | O213: 0 | P213: 638 | Q213: 340 | R213: 0 | S213: 0 | T213: 29 | U213: 0 | V213: 716 | W213: 361 | X213: 0 | Y213: 0 | Z213: 25 | AA213: 0 | AB213: 651 | AC213: 371 | AD213: 0 | AE213: 0 | AF213: 28 | AG213: 0 | AH213: 655 | AI213: 359 | AJ213: 0 | AK213: 0 | AL213: 27 | AM213: 0 | AN213: 695 | AO213: 347 | AP213: 0 | AQ213: 0 | AR213: 29 | AS213: 0 | AT213: 677 | AU213: 411 | AV213: 0 | AW213: 0 | AX213: 32 | AY213: 0 | AZ213: 606 | BA213: 443 | BB213: 0 | BC213: 0 | BD213: 49 | BE213: 0 | BF213: 631 | BG213: 385 | BH213: 0 | BI213: 11 | BJ213: 46 | BK213: 0 | BL213: 556 | BM213: 389 | BN213: 0 | BO213: 13 | BP213: 59 | BQ213: 0 | BR213: 629 | BS213: 372 | BT213: 0 | BU213: 7 | BV213: 48 | BW213: 0
A214: BUENAVENTURA | B214: AMAZONAS | C214: Once | D214: 484 | E214: 175 | F214: 0 | G214: 0 | H214: 28 | I214: 2 | J214: 487 | K214: 245 | L214: 0 | M214: 0 | N214: 27 | O214: 0 | P214: 547 | Q214: 237 | R214: 0 | S214: 0 | T214: 40 | U214: 0 | V214: 533 | W214: 253 | X214: 0 | Y214: 0 | Z214: 23 | AA214: 0 | AB214: 565 | AC214: 289 | AD214: 0 | AE214: 0 | AF214: 21 | AG214: 0 | AH214: 462 | AI214: 283 | AJ214: 0 | AK214: 0 | AL214: 27 | AM214: 0 | AN214: 519 | AO214: 277 | AP214: 0 | AQ214: 0 | AR214: 25 | AS214: 0 | AT214: 443 | AU214: 287 | AV214: 0 | AW214: 0 | AX214: 24 | AY214: 0 | AZ214: 478 | BA214: 299 | BB214: 0 | BC214: 0 | BD214: 42 | BE214: 0 | BF214: 535 | BG214: 326 | BH214: 0 | BI214: 12 | BJ214: 43 | BK214: 0 | BL214: 498 | BM214: 279 | BN214: 0 | BO214: 10 | BP214: 42 | BQ214: 0 | BR214: 429 | BS214: 261 | BT214: 0 | BU214: 9 | BV214: 58 | BW214: 0
A215: BUGA | B215: AMAZONAS | C215: 12º Normal | D215: 60 | E215: 0 | F215: 0 | G215: 0 | H215: 0 | I215: 0 | J215: 26 | K215: 0 | L215: 0 | M215: 0 | N215: 0 | O215: 0 | P215: 71 | Q215: 0 | R215: 0 | S215: 0 | T215: 0 | U215: 0 | V215: 43 | W215: 0 | X215: 0 | Y215: 0 | Z215: 0 | AA215: 0 | AB215: 20 | AC215: 0 | AD215: 0 | AE215: 0 | AF215: 0 | AG215: 0 | AH215: 48 | AI215: 0 | AJ215: 0 | AK215: 0 | AL215: 0 | AM215: 0 | AN215: 26 | AO215: 0 | AP215: 0 | AQ215: 0 | AR215: 0 | AS215: 0 | AT215: 53 | AU215: 0 | AV215: 0 | AW215: 0 | AX215: 0 | AY215: 0 | AZ215: 42 | BA215: 0 | BB215: 0 | BC215: 0 | BD215: 0 | BE215: 0 | BF215: 19 | BG215: 0 | BH215: 0 | BI215: 0 | BJ215: 0 | BK215: 0 | BL215: 21 | BM215: 0 | BN215: 0 | BO215: 0 | BP215: 0 | BQ215: 0 | BR215: 0 | BS215: 0 | BT215: 0 | BU215: 0 | BV215: 0 | BW215: 0
A216: CALDAS | B216: AMAZONAS | C216: 13º Normal | D216: 34 | E216: 0 | F216: 0 | G216: 0 | H216: 0 | I216: 0 | J216: 52 | K216: 0 | L216: 0 | M216: 0 | N216: 0 | O216: 0 | P216: 11 | Q216: 0 | R216: 0 | S216: 0 | T216: 0 | U216: 0 | V216: 27 | W216: 0 | X216: 0 | Y216: 0 | Z216: 0 | AA216: 0 | AB216: 16 | AC216: 0 | AD216: 0 | AE216: 0 | AF216: 0 | AG216: 0 | AH216: 38 | AI216: 0 | AJ216: 0 | AK216: 0 | AL216: 0 | AM216: 0 | AN216: 22 | AO216: 0 | AP216: 0 | AQ216: 0 | AR216: 0 | AS216: 0 | AT216: 23 | AU216: 0 | AV216: 0 | AW216: 0 | AX216: 0 | AY216: 0 | AZ216: 31 | BA216: 0 | BB216: 0 | BC216: 0 | BD216: 0 | BE216: 0 | BF216: 18 | BG216: 0 | BH216: 0 | BI216: 0 | BJ216: 0 | BK216: 0 | BL216: 32 | BM216: 0 | BN216: 0 | BO216: 0 | BP216: 0 | BQ216: 0 | BR216: 1 | BS216: 0 | BT216: 0 | BU216: 0 | BV216: 0 | BW216: 0
B217: AMAZONAS | C217: Ciclo 0 Adultos EA | BR217: 0 | BS217: 0 | BT217: 0 | BU217: 0 | BV217: 0 | BW217: 0
A218: CALI | B218: AMAZONAS | C218: Ciclo 1 Adultos | D218: 37 | E218: 3 | F218: 0 | G218: 0 | H218: 0 | I218: 0 | J218: 55 | K218: 42 | L218: 0 | M218: 0 | N218: 0 | O218: 0 | P218: 55 | Q218: 11 | R218: 0 | S218: 0 | T218: 0 | U218: 0 | V218: 39 | W218: 42 | X218: 0 | Y218: 0 | Z218: 0 | AA218: 0 | AB218: 28 | AC218: 34 | AD218: 0 | AE218: 0 | AF218: 0 | AG218: 0 | AH218: 42 | AI218: 25 | AJ218: 0 | AK218: 0 | AL218: 0 | AM218: 0 | AN218: 20 | AO218: 10 | AP218: 0 | AQ218: 0 | AR218: 0 | AS218: 0 | AT218: 19 | AU218: 6 | AV218: 0 | AW218: 0 | AX218: 0 | AY218: 0 | AZ218: 34 | BA218: 5 | BB218: 0 | BC218: 0 | BD218: 0 | BE218: 0 | BF218: 21 | BG218: 0 | BH218: 0 | BI218: 0 | BJ218: 0 | BK218: 0 | BL218: 198 | BM218: 337 | BN218: 0 | BO218: 0 | BP218: 0 | BQ218: 0 | BR218: 32 | BS218: 0 | BT218: 0 | BU218: 0 | BV218: 0 | BW218: 0
A219: CAQUETA | B219: AMAZONAS | C219: Ciclo 2 Adultos | D219: 93 | E219: 13 | F219: 0 | G219: 0 | H219: 0 | I219: 0 | J219: 89 | K219: 35 | L219: 0 | M219: 0 | N219: 0 | O219: 0 | P219: 107 | Q219: 54 | R219: 0 | S219: 0 | T219: 0 | U219: 0 | V219: 70 | W219: 45 | X219: 0 | Y219: 0 | Z219: 0 | AA219: 0 | AB219: 66 | AC219: 39 | AD219: 0 | AE219: 0 | AF219: 0 | AG219: 0 | AH219: 75 | AI219: 53 | AJ219: 0 | AK219: 0 | AL219: 0 | AM219: 0 | AN219: 64 | AO219: 13 | AP219: 0 | AQ219: 0 | AR219: 0 | AS219: 0 | AT219: 52 | AU219: 6 | AV219: 0 | AW219: 0 | AX219: 0 | AY219: 0 | AZ219: 46 | BA219: 16 | BB219: 0 | BC219: 0 | BD219: 0 | BE219: 0 | BF219: 32 | BG219: 0 | BH219: 0 | BI219: 0 | BJ219: 0 | BK219: 0 | BL219: 36 | BM219: 0 | BN219: 0 | BO219: 0 | BP219: 0 | BQ219: 0 | BR219: 49 | BS219: 3 | BT219: 0 | BU219: 0 | BV219: 0 | BW219: 0
A220: CARTAGENA | B220: AMAZONAS | C220: Ciclo 3 Adultos | D220: 255 | E220: 42 | F220: 0 | G220: 0 | H220: 0 | I220: 0 | J220: 256 | K220: 131 | L220: 0 | M220: 0 | N220: 0 | O220: 0 | P220: 250 | Q220: 71 | R220: 0 | S220: 0 | T220: 0 | U220: 0 | V220: 192 | W220: 73 | X220: 0 | Y220: 0 | Z220: 0 | AA220: 0 | AB220: 247 | AC220: 108 | AD220: 0 | AE220: 0 | AF220: 0 | AG220: 0 | AH220: 219 | AI220: 159 | AJ220: 0 | AK220: 0 | AL220: 0 | AM220: 0 | AN220: 279 | AO220: 135 | AP220: 0 | AQ220: 0 | AR220: 0 | AS220: 0 | AT220: 269 | AU220: 146 | AV220: 0 | AW220: 0 | AX220: 0 | AY220: 0 | AZ220: 206 | BA220: 131 | BB220: 0 | BC220: 0 | BD220: 0 | BE220: 0 | BF220: 172 | BG220: 50 | BH220: 0 | BI220: 0 | BJ220: 0 | BK220: 0 | BL220: 139 | BM220: 52 | BN220: 0 | BO220: 0 | BP220: 0 | BQ220: 0 | BR220: 163 | BS220: 31 | BT220: 0 | BU220: 0 | BV220: 0 | BW220: 0
A221: CARTAGO | B221: AMAZONAS | C221: Ciclo 4 Adultos | D221: 236 | E221: 42 | F221: 0 | G221: 0 | H221: 0 | I221: 0 | J221: 224 | K221: 69 | L221: 0 | M221: 0 | N221: 0 | O221: 0 | P221: 264 | Q221: 119 | R221: 0 | S221: 0 | T221: 0 | U221: 0 | V221: 194 | W221: 84 | X221: 0 | Y221: 0 | Z221: 0 | AA221: 0 | AB221: 213 | AC221: 89 | AD221: 0 | AE221: 0 | AF221: 0 | AG221: 0 | AH221: 234 | AI221: 164 | AJ221: 0 | AK221: 0 | AL221: 0 | AM221: 0 | AN221: 240 | AO221: 127 | AP221: 0 | AQ221: 0 | AR221: 0 | AS221: 0 | AT221: 246 | AU221: 161 | AV221: 0 | AW221: 0 | AX221: 0 | AY221: 0 | AZ221: 216 | BA221: 191 | BB221: 0 | BC221: 0 | BD221: 0 | BE221: 0 | BF221: 170 | BG221: 91 | BH221: 0 | BI221: 0 | BJ221: 0 | BK221: 0 | BL221: 177 | BM221: 61 | BN221: 0 | BO221: 0 | BP221: 0 | BQ221: 0 | BR221: 115 | BS221: 52 | BT221: 0 | BU221: 0 | BV221: 0 | BW221: 0
A222: CASANARE | B222: AMAZONAS | C222: Ciclo 5 Adultos | D222: 236 | E222: 37 | F222: 0 | G222: 0 | H222: 0 | I222: 0 | J222: 219 | K222: 49 | L222: 0 | M222: 0 | N222: 0 | O222: 0 | P222: 219 | Q222: 70 | R222: 0 | S222: 0 | T222: 0 | U222: 0 | V222: 231 | W222: 91 | X222: 0 | Y222: 0 | Z222: 0 | AA222: 0 | AB222: 201 | AC222: 71 | AD222: 0 | AE222: 0 | AF222: 0 | AG222: 0 | AH222: 177 | AI222: 99 | AJ222: 0 | AK222: 0 | AL222: 0 | AM222: 0 | AN222: 198 | AO222: 129 | AP222: 0 | AQ222: 0 | AR222: 0 | AS222: 0 | AT222: 214 | AU222: 155 | AV222: 0 | AW222: 0 | AX222: 0 | AY222: 0 | AZ222: 173 | BA222: 155 | BB222: 0 | BC222: 0 | BD222: 0 | BE222: 0 | BF222: 131 | BG222: 55 | BH222: 0 | BI222: 0 | BJ222: 0 | BK222: 0 | BL222: 138 | BM222: 80 | BN222: 0 | BO222: 0 | BP222: 0 | BQ222: 0 | BR222: 98 | BS222: 40 | BT222: 0 | BU222: 0 | BV222: 2 | BW222: 0
A223: CAUCA | B223: AMAZONAS | C223: Ciclo 6 Adultos | D223: 172 | E223: 24 | F223: 0 | G223: 0 | H223: 0 | I223: 0 | J223: 185 | K223: 32 | L223: 0 | M223: 0 | N223: 0 | O223: 0 | P223: 159 | Q223: 44 | R223: 0 | S223: 0 | T223: 0 | U223: 0 | V223: 166 | W223: 64 | X223: 0 | Y223: 0 | Z223: 0 | AA223: 0 | AB223: 140 | AC223: 75 | AD223: 0 | AE223: 0 | AF223: 0 | AG223: 0 | AH223: 163 | AI223: 73 | AJ223: 0 | AK223: 0 | AL223: 0 | AM223: 0 | AN223: 161 | AO223: 104 | AP223: 0 | AQ223: 0 | AR223: 0 | AS223: 0 | AT223: 136 | AU223: 122 | AV223: 0 | AW223: 0 | AX223: 0 | AY223: 0 | AZ223: 123 | BA223: 125 | BB223: 0 | BC223: 0 | BD223: 0 | BE223: 0 | BF223: 118 | BG223: 74 | BH223: 0 | BI223: 0 | BJ223: 12 | BK223: 0 | BL223: 103 | BM223: 38 | BN223: 0 | BO223: 0 | BP223: 1 | BQ223: 0 | BR223: 83 | BS223: 54 | BT223: 0 | BU223: 0 | BV223: 14 | BW223: 0
A224: CESAR | B224: AMAZONAS | C224: Semestre introductorio NS | D224: 0 | E224: 0 | F224: 0 | G224: 0 | H224: 0 | I224: 0 | J224: 0 | K224: 0 | L224: 0 | M224: 0 | N224: 0 | O224: 0 | P224: 0 | Q224: 0 | R224: 0 | S224: 0 | T224: 0 | U224: 0 | V224: 0 | W224: 0 | X224: 0 | Y224: 0 | Z224: 0 | AA224: 0 | AB224: 0 | AC224: 0 | AD224: 0 | AE224: 0 | AF224: 0 | AG224: 0 | AH224: 0 | AI224: 0 | AJ224: 0 | AK224: 0 | AL224: 0 | AM224: 0 | AN224: 0 | AO224: 0 | AP224: 0 | AQ224: 0 | AR224: 0 | AS224: 0 | AT224: 0 | AU224: 0 | AV224: 0 | AW224: 0 | AX224: 0 | AY224: 0 | AZ224: 0 | BA224: 0 | BB224: 0 | BC224: 0 | BD224: 0 | BE224: 0 | BF224: 0 | BG224: 0 | BH224: 0 | BI224: 0 | BJ224: 0 | BK224: 0 | BL224: 0 | BM224: 0 | BN224: 0 | BO224: 0 | BP224: 0 | BQ224: 0 | BR224: 9 | BS224: 0 | BT224: 0 | BU224: 0 | BV224: 0 | BW224: 0
A225: CHIA | B225: AMAZONAS | C225: Programa formación compl 1 NS | D225: 0 | E225: 0 | F225: 0 | G225: 0 | H225: 0 | I225: 0 | J225: 0 | K225: 0 | L225: 0 | M225: 0 | N225: 0 | O225: 0 | P225: 0 | Q225: 0 | R225: 0 | S225: 0 | T225: 0 | U225: 0 | V225: 0 | W225: 0 | X225: 0 | Y225: 0 | Z225: 0 | AA225: 0 | AB225: 0 | AC225: 0 | AD225: 0 | AE225: 0 | AF225: 0 | AG225: 0 | AH225: 0 | AI225: 0 | AJ225: 0 | AK225: 0 | AL225: 0 | AM225: 0 | AN225: 0 | AO225: 0 | AP225: 0 | AQ225: 0 | AR225: 0 | AS225: 0 | AT225: 0 | AU225: 0 | AV225: 0 | AW225: 0 | AX225: 0 | AY225: 0 | AZ225: 0 | BA225: 0 | BB225: 0 | BC225: 0 | BD225: 0 | BE225: 0 | BF225: 0 | BG225: 0 | BH225: 0 | BI225: 0 | BJ225: 0 | BK225: 0 | BL225: 0 | BM225: 0 | BN225: 0 | BO225: 0 | BP225: 0 | BQ225: 0 | BR225: 8 | BS225: 0 | BT225: 0 | BU225: 0 | BV225: 0 | BW225: 0
A226: CHOCO | B226: AMAZONAS | C226: Programa formación compl 2 NS | D226: 0 | E226: 0 | F226: 0 | G226: 0 | H226: 0 | I226: 0 | J226: 0 | K226: 0 | L226: 0 | M226: 0 | N226: 0 | O226: 0 | P226: 0 | Q226: 0 | R226: 0 | S226: 0 | T226: 0 | U226: 0 | V226: 0 | W226: 0 | X226: 0 | Y226: 0 | Z226: 0 | AA226: 0 | AB226: 0 | AC226: 0 | AD226: 0 | AE226: 0 | AF226: 0 | AG226: 0 | AH226: 0 | AI226: 0 | AJ226: 0 | AK226: 0 | AL226: 0 | AM226: 0 | AN226: 0 | AO226: 0 | AP226: 0 | AQ226: 0 | AR226: 0 | AS226: 0 | AT226: 0 | AU226: 0 | AV226: 0 | AW226: 0 | AX226: 0 | AY226: 0 | AZ226: 0 | BA226: 0 | BB226: 0 | BC226: 0 | BD226: 0 | BE226: 0 | BF226: 0 | BG226: 0 | BH226: 0 | BI226: 0 | BJ226: 0 | BK226: 0 | BL226: 0 | BM226: 0 | BN226: 0 | BO226: 0 | BP226: 0 | BQ226: 0 | BR226: 5 | BS226: 0 | BT226: 0 | BU226: 0 | BV226: 0 | BW226: 0
A227: CIENAGA | B227: AMAZONAS | C227: Programa formación compl 3 NS | D227: 0 | E227: 0 | F227: 0 | G227: 0 | H227: 0 | I227: 0 | J227: 0 | K227: 0 | L227: 0 | M227: 0 | N227: 0 | O227: 0 | P227: 0 | Q227: 0 | R227: 0 | S227: 0 | T227: 0 | U227: 0 | V227: 0 | W227: 0 | X227: 0 | Y227: 0 | Z227: 0 | AA227: 0 | AB227: 0 | AC227: 0 | AD227: 0 | AE227: 0 | AF227: 0 | AG227: 0 | AH227: 0 | AI227: 0 | AJ227: 0 | AK227: 0 | AL227: 0 | AM227: 0 | AN227: 0 | AO227: 0 | AP227: 0 | AQ227: 0 | AR227: 0 | AS227: 0 | AT227: 0 | AU227: 0 | AV227: 0 | AW227: 0 | AX227: 0 | AY227: 0 | AZ227: 0 | BA227: 0 | BB227: 0 | BC227: 0 | BD227: 0 | BE227: 0 | BF227: 0 | BG227: 0 | BH227: 0 | BI227: 0 | BJ227: 0 | BK227: 0 | BL227: 0 | BM227: 0 | BN227: 0 | BO227: 0 | BP227: 0 | BQ227: 0 | BR227: 9 | BS227: 0 | BT227: 0 | BU227: 0 | BV227: 0 | BW227: 0
A228: CORDOBA | B228: AMAZONAS | C228: Programa formación compl 4 NS | D228: 0 | E228: 0 | F228: 0 | G228: 0 | H228: 0 | I228: 0 | J228: 0 | K228: 0 | L228: 0 | M228: 0 | N228: 0 | O228: 0 | P228: 0 | Q228: 0 | R228: 0 | S228: 0 | T228: 0 | U228: 0 | V228: 0 | W228: 0 | X228: 0 | Y228: 0 | Z228: 0 | AA228: 0 | AB228: 0 | AC228: 0 | AD228: 0 | AE228: 0 | AF228: 0 | AG228: 0 | AH228: 0 | AI228: 0 | AJ228: 0 | AK228: 0 | AL228: 0 | AM228: 0 | AN228: 0 | AO228: 0 | AP228: 0 | AQ228: 0 | AR228: 0 | AS228: 0 | AT228: 0 | AU228: 0 | AV228: 0 | AW228: 0 | AX228: 0 | AY228: 0 | AZ228: 0 | BA228: 0 | BB228: 0 | BC228: 0 | BD228: 0 | BE228: 0 | BF228: 0 | BG228: 0 | BH228: 0 | BI228: 0 | BJ228: 0 | BK228: 0 | BL228: 0 | BM228: 0 | BN228: 0 | BO228: 0 | BP228: 0 | BQ228: 0 | BR228: 6 | BS228: 0 | BT228: 0 | BU228: 0 | BV228: 0 | BW228: 0
A229: CUCUTA | B229: AMAZONAS | C229: Aceleración del Aprendizaje | D229: 18 | E229: 0 | F229: 0 | G229: 0 | H229: 0 | I229: 0 | J229: 0 | K229: 21 | L229: 0 | M229: 0 | N229: 0 | O229: 0 | P229: 0 | Q229: 21 | R229: 0 | S229: 0 | T229: 0 | U229: 0 | V229: 33 | W229: 23 | X229: 0 | Y229: 0 | Z229: 0 | AA229: 0 | AB229: 0 | AC229: 26 | AD229: 0 | AE229: 0 | AF229: 0 | AG229: 0 | AH229: 0 | AI229: 46 | AJ229: 0 | AK229: 0 | AL229: 0 | AM229: 0 | AN229: 0 | AO229: 33 | AP229: 0 | AQ229: 0 | AR229: 0 | AS229: 0 | AT229: 0 | AU229: 17 | AV229: 0 | AW229: 0 | AX229: 0 | AY229: 0 | AZ229: 0 | BA229: 0 | BB229: 0 | BC229: 0 | BD229: 0 | BE229: 0 | BF229: 0 | BG229: 0 | BH229: 0 | BI229: 0 | BJ229: 0 | BK229: 0 | BL229: 0 | BM229: 0 | BN229: 0 | BO229: 0 | BP229: 0 | BQ229: 0 | BR229: 0 | BS229: 0 | BT229: 0 | BU229: 0 | BV229: 0 | BW229: 0
A230: CUNDINAMARCA | B230: ANTIOQUIA | C230: Prejardín | D230: 0 | E230: 0 | F230: 0 | G230: 0 | H230: 957 | I230: 135 | J230: 0 | K230: 0 | L230: 0 | M230: 0 | N230: 891 | O230: 90 | P230: 0 | Q230: 0 | R230: 0 | S230: 0 | T230: 1305 | U230: 92 | V230: 0 | W230: 0 | X230: 0 | Y230: 0 | Z230: 1151 | AA230: 184 | AB230: 0 | AC230: 0 | AD230: 0 | AE230: 0 | AF230: 1290 | AG230: 101 | AH230: 0 | AI230: 0 | AJ230: 0 | AK230: 0 | AL230: 1348 | AM230: 156 | AN230: 0 | AO230: 0 | AP230: 0 | AQ230: 0 | AR230: 1185 | AS230: 172 | AT230: 0 | AU230: 0 | AV230: 0 | AW230: 0 | AX230: 1016 | AY230: 186 | AZ230: 0 | BA230: 0 | BB230: 0 | BC230: 0 | BD230: 1069 | BE230: 194 | BF230: 0 | BG230: 0 | BH230: 0 | BI230: 0 | BJ230: 1076 | BK230: 212 | BL230: 40 | BM230: 34 | BN230: 0 | BO230: 0 | BP230: 1107 | BQ230: 255 | BR230: 168 | BS230: 82 | BT230: 0 | BU230: 0 | BV230: 1044 | BW230: 195
A231: DOSQUEBRADAS | B231: ANTIOQUIA | C231: Jardín | D231: 0 | E231: 0 | F231: 0 | G231: 0 | H231: 1220 | I231: 172 | J231: 0 | K231: 0 | L231: 0 | M231: 0 | N231: 1283 | O231: 193 | P231: 0 | Q231: 0 | R231: 0 | S231: 0 | T231: 1494 | U231: 148 | V231: 0 | W231: 0 | X231: 0 | Y231: 0 | Z231: 1493 | AA231: 224 | AB231: 0 | AC231: 26 | AD231: 0 | AE231: 0 | AF231: 1555 | AG231: 144 | AH231: 0 | AI231: 0 | AJ231: 0 | AK231: 0 | AL231: 1575 | AM231: 167 | AN231: 0 | AO231: 0 | AP231: 0 | AQ231: 0 | AR231: 1590 | AS231: 264 | AT231: 0 | AU231: 0 | AV231: 0 | AW231: 0 | AX231: 1398 | AY231: 262 | AZ231: 0 | BA231: 0 | BB231: 0 | BC231: 0 | BD231: 1637 | BE231: 264 | BF231: 0 | BG231: 0 | BH231: 0 | BI231: 0 | BJ231: 1513 | BK231: 310 | BL231: 115 | BM231: 9 | BN231: 0 | BO231: 0 | BP231: 1428 | BQ231: 311 | BR231: 507 | BS231: 72 | BT231: 0 | BU231: 0 | BV231: 1383 | BW231: 309
A232: DUITAMA | B232: ANTIOQUIA | C232: Transición | D232: 19584 | E232: 15801 | F232: 241 | G232: 1883 | H232: 1488 | I232: 276 | J232: 18494 | K232: 14594 | L232: 159 | M232: 1820 | N232: 1416 | O232: 264 | P232: 17180 | Q232: 14784 | R232: 95 | S232: 1872 | T232: 1543 | U232: 317 | V232: 17165 | W232: 14857 | X232: 75 | Y232: 1368 | Z232: 1621 | AA232: 332 | AB232: 16913 | AC232: 14243 | AD232: 55 | AE232: 1115 | AF232: 1741 | AG232: 213 | AH232: 16774 | AI232: 13968 | AJ232: 47 | AK232: 1254 | AL232: 1680 | AM232: 282 | AN232: 16724 | AO232: 13333 | AP232: 32 | AQ232: 1056 | AR232: 1748 | AS232: 356 | AT232: 16240 | AU232: 13681 | AV232: 19 | AW232: 952 | AX232: 1632 | AY232: 435 | AZ232: 17758 | BA232: 14475 | BB232: 32 | BC232: 987 | BD232: 1859 | BE232: 446 | BF232: 17527 | BG232: 13974 | BH232: 49 | BI232: 1248 | BJ232: 1932 | BK232: 484 | BL232: 16976 | BM232: 13277 | BN232: 31 | BO232: 1101 | BP232: 1716 | BQ232: 514 | BR232: 15775 | BS232: 12656 | BT232: 33 | BU232: 1074 | BV232: 1617 | BW232: 464
A233: ENVIGADO | B233: ANTIOQUIA | C233: Primero | D233: 26567 | E233: 27003 | F233: 407 | G233: 3841 | H233: 1100 | I233: 324 | J233: 25555 | K233: 24569 | L233: 428 | M233: 3460 | N233: 1196 | O233: 359 | P233: 23682 | Q233: 23579 | R233: 187 | S233: 3345 | T233: 1194 | U233: 362 | V233: 22143 | W233: 22347 | X233: 161 | Y233: 2638 | Z233: 1251 | AA233: 365 | AB233: 22048 | AC233: 21865 | AD233: 84 | AE233: 2232 | AF233: 1324 | AG233: 276 | AH233: 21705 | AI233: 20926 | AJ233: 90 | AK233: 2007 | AL233: 1363 | AM233: 361 | AN233: 21233 | AO233: 19898 | AP233: 55 | AQ233: 1792 | AR233: 1330 | AS233: 376 | AT233: 20400 | AU233: 18676 | AV233: 35 | AW233: 1504 | AX233: 1297 | AY233: 419 | AZ233: 21805 | BA233: 19044 | BB233: 30 | BC233: 1597 | BD233: 1450 | BE233: 518 | BF233: 22196 | BG233: 19025 | BH233: 37 | BI233: 1591 | BJ233: 1506 | BK233: 507 | BL233: 21315 | BM233: 17938 | BN233: 60 | BO233: 1748 | BP233: 1507 | BQ233: 532 | BR233: 20443 | BS233: 16615 | BT233: 40 | BU233: 1592 | BV233: 1380 | BW233: 546
A234: FACATATIVA | B234: ANTIOQUIA | C234: Segundo | D234: 25781 | E234: 26102 | F234: 325 | G234: 3254 | H234: 1186 | I234: 323 | J234: 24212 | K234: 23404 | L234: 353 | M234: 2915 | N234: 1168 | O234: 338 | P234: 23334 | Q234: 22245 | R234: 271 | S234: 2676 | T234: 1178 | U234: 360 | V234: 21985 | W234: 21245 | X234: 225 | Y234: 2373 | Z234: 1213 | AA234: 379 | AB234: 20506 | AC234: 19992 | AD234: 152 | AE234: 2137 | AF234: 1245 | AG234: 310 | AH234: 20366 | AI234: 19564 | AJ234: 59 | AK234: 1946 | AL234: 1252 | AM234: 318 | AN234: 19952 | AO234: 18782 | AP234: 84 | AQ234: 1743 | AR234: 1312 | AS234: 382 | AT234: 19799 | AU234: 19280 | AV234: 62 | AW234: 1686 | AX234: 1206 | AY234: 398 | AZ234: 19513 | BA234: 17635 | BB234: 37 | BC234: 1553 | BD234: 1369 | BE234: 450 | BF234: 20138 | BG234: 17267 | BH234: 31 | BI234: 1532 | BJ234: 1384 | BK234: 540 | BL234: 20635 | BM234: 17092 | BN234: 37 | BO234: 1634 | BP234: 1451 | BQ234: 521 | BR234: 19983 | BS234: 16520 | BT234: 66 | BU234: 1669 | BV234: 1453 | BW234: 519
A235: FLORENCIA | B235: ANTIOQUIA | C235: Tercero | D235: 24701 | E235: 23858 | F235: 308 | G235: 2871 | H235: 1100 | I235: 332 | J235: 25307 | K235: 23875 | L235: 286 | M235: 2675 | N235: 1162 | O235: 350 | P235: 23961 | Q235: 22706 | R235: 230 | S235: 2480 | T235: 1232 | U235: 345 | V235: 22858 | W235: 21311 | X235: 273 | Y235: 2079 | Z235: 1216 | AA235: 360 | AB235: 21830 | AC235: 19761 | AD235: 215 | AE235: 2148 | AF235: 1235 | AG235: 307 | AH235: 20780 | AI235: 18975 | AJ235: 135 | AK235: 1986 | AL235: 1225 | AM235: 340 | AN235: 20495 | AO235: 18754 | AP235: 66 | AQ235: 1826 | AR235: 1234 | AS235: 343 | AT235: 19850 | AU235: 18995 | AV235: 89 | AW235: 1696 | AX235: 1212 | AY235: 385 | AZ235: 19225 | BA235: 17306 | BB235: 55 | BC235: 1648 | BD235: 1249 | BE235: 424 | BF235: 19352 | BG235: 16966 | BH235: 35 | BI235: 1489 | BJ235: 1384 | BK235: 479 | BL235: 19832 | BM235: 16567 | BN235: 25 | BO235: 1478 | BP235: 1334 | BQ235: 552 | BR235: 20020 | BS235: 16573 | BT235: 36 | BU235: 1508 | BV235: 1477 | BW235: 512
A236: FLORIDABLANCA | B236: ANTIOQUIA | C236: Cuarto | D236: 24395 | E236: 22320 | F236: 310 | G236: 2352 | H236: 1086 | I236: 333 | J236: 23892 | K236: 21868 | L236: 240 | M236: 2402 | N236: 1082 | O236: 353 | P236: 24493 | Q236: 22387 | R236: 196 | S236: 2197 | T236: 1138 | U236: 366 | V236: 23183 | W236: 21166 | X236: 267 | Y236: 1938 | Z236: 1227 | AA236: 366 | AB236: 22085 | AC236: 19772 | AD236: 243 | AE236: 1771 | AF236: 1236 | AG236: 310 | AH236: 21480 | AI236: 18678 | AJ236: 122 | AK236: 1792 | AL236: 1166 | AM236: 324 | AN236: 20302 | AO236: 18237 | AP236: 118 | AQ236: 1606 | AR236: 1189 | AS236: 364 | AT236: 20193 | AU236: 18909 | AV236: 66 | AW236: 1629 | AX236: 1163 | AY236: 363 | AZ236: 19669 | BA236: 17567 | BB236: 80 | BC236: 1535 | BD236: 1266 | BE236: 402 | BF236: 18746 | BG236: 16030 | BH236: 46 | BI236: 1418 | BJ236: 1222 | BK236: 455 | BL236: 19023 | BM236: 16054 | BN236: 33 | BO236: 1332 | BP236: 1333 | BQ236: 480 | BR236: 19544 | BS236: 15820 | BT236: 38 | BU236: 1363 | BV236: 1331 | BW236: 544
A237: FUNZA | B237: ANTIOQUIA | C237: Quinto | D237: 24096 | E237: 20865 | F237: 305 | G237: 2066 | H237: 980 | I237: 328 | J237: 23610 | K237: 20388 | L237: 274 | M237: 2015 | N237: 1094 | O237: 361 | P237: 23128 | Q237: 20689 | R237: 152 | S237: 1806 | T237: 1098 | U237: 398 | V237: 23414 | W237: 20931 | X237: 180 | Y237: 1834 | Z237: 1174 | AA237: 373 | AB237: 22435 | AC237: 19679 | AD237: 182 | AE237: 1654 | AF237: 1285 | AG237: 324 | AH237: 21812 | AI237: 18803 | AJ237: 160 | AK237: 1618 | AL237: 1209 | AM237: 320 | AN237: 21089 | AO237: 17781 | AP237: 105 | AQ237: 1531 | AR237: 1161 | AS237: 343 | AT237: 20130 | AU237: 18356 | AV237: 105 | AW237: 1599 | AX237: 1110 | AY237: 373 | AZ237: 20024 | BA237: 17773 | BB237: 68 | BC237: 1570 | BD237: 1210 | BE237: 393 | BF237: 19469 | BG237: 16436 | BH237: 87 | BI237: 1457 | BJ237: 1262 | BK237: 435 | BL237: 18415 | BM237: 15129 | BN237: 50 | BO237: 1265 | BP237: 1208 | BQ237: 473 | BR237: 18807 | BS237: 15280 | BT237: 35 | BU237: 1227 | BV237: 1347 | BW237: 483
A238: FUSAGASUGA | B238: ANTIOQUIA | C238: Sexto | D238: 31429 | E238: 14640 | F238: 2388 | G238: 3085 | H238: 898 | I238: 345 | J238: 31571 | K238: 14743 | L238: 2537 | M238: 2906 | N238: 1149 | O238: 358 | P238: 30744 | Q238: 15688 | R238: 297 | S238: 4748 | T238: 1112 | U238: 390 | V238: 30385 | W238: 16856 | X238: 291 | Y238: 3559 | Z238: 1113 | AA238: 400 | AB238: 30608 | AC238: 17445 | AD238: 266 | AE238: 3428 | AF238: 1191 | AG238: 392 | AH238: 28880 | AI238: 16973 | AJ238: 243 | AK238: 3260 | AL238: 1276 | AM238: 355 | AN238: 28439 | AO238: 17089 | AP238: 215 | AQ238: 3176 | AR238: 1214 | AS238: 366 | AT238: 26148 | AU238: 15898 | AV238: 105 | AW238: 2804 | AX238: 1265 | AY238: 385 | AZ238: 25091 | BA238: 15362 | BB238: 137 | BC238: 2923 | BD238: 1212 | BE238: 412 | BF238: 24185 | BG238: 15244 | BH238: 103 | BI238: 2781 | BJ238: 1244 | BK238: 460 | BL238: 23645 | BM238: 14562 | BN238: 130 | BO238: 2591 | BP238: 1251 | BQ238: 489 | BR238: 22428 | BS238: 13491 | BT238: 107 | BU238: 2503 | BV238: 1170 | BW238: 505
A239: GIRARDOT | B239: ANTIOQUIA | C239: Septimo | D239: 26724 | E239: 12359 | F239: 2648 | G239: 2837 | H239: 912 | I239: 370 | J239: 25787 | K239: 11841 | L239: 2209 | M239: 2516 | N239: 1018 | O239: 333 | P239: 26237 | Q239: 13003 | R239: 254 | S239: 3777 | T239: 965 | U239: 345 | V239: 25450 | W239: 13622 | X239: 226 | Y239: 3451 | Z239: 1126 | AA239: 391 | AB239: 25377 | AC239: 14059 | AD239: 287 | AE239: 3031 | AF239: 1145 | AG239: 361 | AH239: 25658 | AI239: 14647 | AJ239: 203 | AK239: 2948 | AL239: 1152 | AM239: 355 | AN239: 25122 | AO239: 14498 | AP239: 213 | AQ239: 2852 | AR239: 1249 | AS239: 374 | AT239: 25387 | AU239: 15433 | AV239: 207 | AW239: 3003 | AX239: 1318 | AY239: 382 | AZ239: 23779 | BA239: 13615 | BB239: 131 | BC239: 2653 | BD239: 1266 | BE239: 385 | BF239: 22882 | BG239: 13262 | BH239: 139 | BI239: 2638 | BJ239: 1176 | BK239: 441 | BL239: 22315 | BM239: 13007 | BN239: 115 | BO239: 2506 | BP239: 1187 | BQ239: 447 | BR239: 21288 | BS239: 12806 | BT239: 153 | BU239: 2302 | BV239: 1259 | BW239: 474
A240: GIRON | B240: ANTIOQUIA | C240: Octavo | D240: 23067 | E240: 10251 | F240: 1429 | G240: 1925 | H240: 896 | I240: 321 | J240: 22648 | K240: 10062 | L240: 2272 | M240: 2321 | N240: 1021 | O240: 359 | P240: 21611 | Q240: 10602 | R240: 166 | S240: 3309 | T240: 911 | U240: 341 | V240: 22102 | W240: 11382 | X240: 178 | Y240: 2929 | Z240: 995 | AA240: 330 | AB240: 21609 | AC240: 11320 | AD240: 187 | AE240: 2807 | AF240: 1116 | AG240: 353 | AH240: 22131 | AI240: 12194 | AJ240: 206 | AK240: 2463 | AL240: 1061 | AM240: 351 | AN240: 22595 | AO240: 12971 | AP240: 194 | AQ240: 2503 | AR240: 1078 | AS240: 371 | AT240: 22801 | AU240: 13385 | AV240: 205 | AW240: 2575 | AX240: 1273 | AY240: 379 | AZ240: 22031 | BA240: 12816 | BB240: 196 | BC240: 2627 | BD240: 1281 | BE240: 389 | BF240: 20876 | BG240: 11700 | BH240: 120 | BI240: 2297 | BJ240: 1275 | BK240: 377 | BL240: 19726 | BM240: 11287 | BN240: 120 | BO240: 2275 | BP240: 1057 | BQ240: 417 | BR240: 19328 | BS240: 11297 | BT240: 99 | BU240: 2148 | BV240: 1121 | BW240: 427
A241: GUAINIA | B241: ANTIOQUIA | C241: Noveno | D241: 20156 | E241: 7856 | F241: 1554 | G241: 1867 | H241: 855 | I241: 322 | J241: 19667 | K241: 7998 | L241: 1296 | M241: 1670 | N241: 943 | O241: 381 | P241: 19364 | Q241: 8744 | R241: 152 | S241: 2904 | T241: 865 | U241: 337 | V241: 18884 | W241: 8601 | X241: 138 | Y241: 2535 | Z241: 909 | AA241: 336 | AB241: 19350 | AC241: 9010 | AD241: 150 | AE241: 2313 | AF241: 989 | AG241: 324 | AH241: 19415 | AI241: 9259 | AJ241: 130 | AK241: 2289 | AL241: 1059 | AM241: 342 | AN241: 20125 | AO241: 9968 | AP241: 172 | AQ241: 2190 | AR241: 963 | AS241: 365 | AT241: 21133 | AU241: 11195 | AV241: 193 | AW241: 2340 | AX241: 1110 | AY241: 371 | AZ241: 20807 | BA241: 10262 | BB241: 183 | BC241: 2232 | BD241: 1197 | BE241: 373 | BF241: 19783 | BG241: 9956 | BH241: 148 | BI241: 2281 | BJ241: 1195 | BK241: 372 | BL241: 19087 | BM241: 9318 | BN241: 118 | BO241: 2023 | BP241: 1145 | BQ241: 349 | BR241: 18011 | BS241: 9239 | BT241: 106 | BU241: 2052 | BV241: 991 | BW241: 420
A242: GUAVIARE | B242: ANTIOQUIA | C242: Decimo | D242: 17772 | E242: 5654 | F242: 1360 | G242: 1382 | H242: 748 | I242: 292 | J242: 17806 | K242: 5625 | L242: 1354 | M242: 1366 | N242: 816 | O242: 265 | P242: 17250 | Q242: 6374 | R242: 61 | S242: 2026 | T242: 825 | U242: 296 | V242: 16998 | W242: 6802 | X242: 100 | Y242: 2218 | Z242: 805 | AA242: 325 | AB242: 16889 | AC242: 6548 | AD242: 91 | AE242: 1939 | AF242: 843 | AG242: 298 | AH242: 17323 | AI242: 7027 | AJ242: 86 | AK242: 1790 | AL242: 847 | AM242: 292 | AN242: 17613 | AO242: 7528 | AP242: 102 | AQ242: 1803 | AR242: 952 | AS242: 364 | AT242: 18103 | AU242: 8239 | AV242: 154 | AW242: 1960 | AX242: 950 | AY242: 364 | AZ242: 18428 | BA242: 8422 | BB242: 147 | BC242: 1896 | BD242: 1021 | BE242: 352 | BF242: 17733 | BG242: 8097 | BH242: 130 | BI242: 1833 | BJ242: 1114 | BK242: 351 | BL242: 17017 | BM242: 7837 | BN242: 118 | BO242: 1866 | BP242: 1047 | BQ242: 337 | BR242: 16724 | BS242: 7595 | BT242: 106 | BU242: 1653 | BV242: 1057 | BW242: 342
A243: HUILA | B243: ANTIOQUIA | C243: Once | D243: 14833 | E243: 4639 | F243: 1214 | G243: 1208 | H243: 726 | I243: 290 | J243: 14292 | K243: 4552 | L243: 1165 | M243: 1208 | N243: 743 | O243: 289 | P243: 14532 | Q243: 5276 | R243: 33 | S243: 1786 | T243: 741 | U243: 245 | V243: 14100 | W243: 5485 | X243: 67 | Y243: 1488 | Z243: 753 | AA243: 289 | AB243: 14035 | AC243: 5617 | AD243: 74 | AE243: 1812 | AF243: 734 | AG243: 289 | AH243: 14434 | AI243: 5624 | AJ243: 54 | AK243: 1522 | AL243: 742 | AM243: 286 | AN243: 14802 | AO243: 6233 | AP243: 74 | AQ243: 1463 | AR243: 746 | AS243: 290 | AT243: 15082 | AU243: 6532 | AV243: 91 | AW243: 1614 | AX243: 911 | AY243: 351 | AZ243: 14803 | BA243: 6582 | BB243: 113 | BC243: 1548 | BD243: 861 | BE243: 344 | BF243: 15338 | BG243: 7023 | BH243: 118 | BI243: 1511 | BJ243: 880 | BK243: 334 | BL243: 14978 | BM243: 6654 | BN243: 114 | BO243: 1539 | BP243: 979 | BQ243: 331 | BR243: 14459 | BS243: 6721 | BT243: 96 | BU243: 1525 | BV243: 1013 | BW243: 328
A244: IBAGUE | B244: ANTIOQUIA | C244: 12º Normal | D244: 587 | E244: 0 | F244: 0 | G244: 0 | H244: 6 | I244: 0 | J244: 594 | K244: 0 | L244: 0 | M244: 0 | N244: 0 | O244: 0 | P244: 416 | Q244: 0 | R244: 0 | S244: 0 | T244: 0 | U244: 0 | V244: 357 | W244: 26 | X244: 0 | Y244: 0 | Z244: 1 | AA244: 0 | AB244: 368 | AC244: 43 | AD244: 0 | AE244: 0 | AF244: 0 | AG244: 0 | AH244: 389 | AI244: 52 | AJ244: 0 | AK244: 0 | AL244: 0 | AM244: 0 | AN244: 422 | AO244: 39 | AP244: 0 | AQ244: 0 | AR244: 0 | AS244: 0 | AT244: 380 | AU244: 68 | AV244: 0 | AW244: 0 | AX244: 0 | AY244: 0 | AZ244: 444 | BA244: 54 | BB244: 0 | BC244: 0 | BD244: 1 | BE244: 0 | BF244: 0 | BG244: 0 | BH244: 0 | BI244: 0 | BJ244: 0 | BK244: 0 | BL244: 0 | BM244: 0 | BN244: 0 | BO244: 0 | BP244: 0 | BQ244: 0 | BR244: 0 | BS244: 0 | BT244: 0 | BU244: 0 | BV244: 0 | BW244: 0
A245: IPIALES | B245: ANTIOQUIA | C245: 13º Normal | D245: 658 | E245: 0 | F245: 0 | G245: 0 | H245: 0 | I245: 0 | J245: 519 | K245: 0 | L245: 1 | M245: 0 | N245: 0 | O245: 0 | P245: 419 | Q245: 0 | R245: 0 | S245: 0 | T245: 0 | U245: 0 | V245: 319 | W245: 16 | X245: 0 | Y245: 0 | Z245: 0 | AA245: 0 | AB245: 262 | AC245: 13 | AD245: 0 | AE245: 0 | AF245: 0 | AG245: 0 | AH245: 254 | AI245: 25 | AJ245: 0 | AK245: 0 | AL245: 0 | AM245: 0 | AN245: 286 | AO245: 21 | AP245: 0 | AQ245: 0 | AR245: 0 | AS245: 0 | AT245: 324 | AU245: 26 | AV245: 0 | AW245: 0 | AX245: 0 | AY245: 0 | AZ245: 306 | BA245: 35 | BB245: 0 | BC245: 0 | BD245: 0 | BE245: 0 | BF245: 0 | BG245: 0 | BH245: 0 | BI245: 0 | BJ245: 1 | BK245: 0 | BL245: 0 | BM245: 0 | BN245: 0 | BO245: 0 | BP245: 0 | BQ245: 0 | BR245: 0 | BS245: 0 | BT245: 0 | BU245: 0 | BV245: 0 | BW245: 0
B246: ANTIOQUIA | C246: Ciclo 0 Adultos EA | BR246: 0 | BS246: 0 | BT246: 0 | BU246: 0 | BV246: 0 | BW246: 0
A247: ITAGUI | B247: ANTIOQUIA | C247: Ciclo 1 Adultos | D247: 304 | E247: 156 | F247: 1477 | G247: 505 | H247: 6 | I247: 2 | J247: 4279 | K247: 5928 | L247: 24 | M247: 3 | N247: 4 | O247: 0 | P247: 5310 | Q247: 4428 | R247: 25 | S247: 9 | T247: 0 | U247: 0 | V247: 2379 | W247: 849 | X247: 0 | Y247: 0 | Z247: 26 | AA247: 0 | AB247: 6735 | AC247: 3539 | AD247: 0 | AE247: 0 | AF247: 0 | AG247: 0 | AH247: 2301 | AI247: 1305 | AJ247: 0 | AK247: 0 | AL247: 0 | AM247: 0 | AN247: 52 | AO247: 55 | AP247: 0 | AQ247: 0 | AR247: 0 | AS247: 0 | AT247: 772 | AU247: 327 | AV247: 0 | AW247: 0 | AX247: 0 | AY247: 0 | AZ247: 175 | BA247: 21 | BB247: 0 | BC247: 0 | BD247: 0 | BE247: 0 | BF247: 94 | BG247: 13 | BH247: 0 | BI247: 0 | BJ247: 1 | BK247: 0 | BL247: 64 | BM247: 26 | BN247: 0 | BO247: 0 | BP247: 2 | BQ247: 0 | BR247: 15 | BS247: 31 | BT247: 0 | BU247: 0 | BV247: 1 | BW247: 0
A248: JAMUNDI | B248: ANTIOQUIA | C248: Ciclo 2 Adultos | D248: 1107 | E248: 209 | F248: 1349 | G248: 690 | H248: 24 | I248: 8 | J248: 1365 | K248: 531 | L248: 850 | M248: 477 | N248: 25 | O248: 0 | P248: 1552 | Q248: 984 | R248: 952 | S248: 1066 | T248: 18 | U248: 0 | V248: 1651 | W248: 787 | X248: 0 | Y248: 0 | Z248: 19 | AA248: 0 | AB248: 1267 | AC248: 891 | AD248: 0 | AE248: 0 | AF248: 485 | AG248: 0 | AH248: 1395 | AI248: 618 | AJ248: 0 | AK248: 0 | AL248: 70 | AM248: 34 | AN248: 1546 | AO248: 485 | AP248: 0 | AQ248: 0 | AR248: 24 | AS248: 0 | AT248: 783 | AU248: 616 | AV248: 0 | AW248: 0 | AX248: 20 | AY248: 6 | AZ248: 1096 | BA248: 624 | BB248: 0 | BC248: 0 | BD248: 26 | BE248: 4 | BF248: 730 | BG248: 401 | BH248: 0 | BI248: 0 | BJ248: 33 | BK248: 3 | BL248: 688 | BM248: 319 | BN248: 0 | BO248: 0 | BP248: 15 | BQ248: 8 | BR248: 522 | BS248: 379 | BT248: 0 | BU248: 0 | BV248: 44 | BW248: 10
A249: LA ESTRELLA | B249: ANTIOQUIA | C249: Ciclo 3 Adultos | D249: 5367 | E249: 933 | F249: 2097 | G249: 1142 | H249: 407 | I249: 74 | J249: 5848 | K249: 1760 | L249: 2342 | M249: 868 | N249: 502 | O249: 0 | P249: 6277 | Q249: 2243 | R249: 1132 | S249: 461 | T249: 507 | U249: 0 | V249: 7534 | W249: 2549 | X249: 0 | Y249: 0 | Z249: 382 | AA249: 0 | AB249: 8412 | AC249: 3130 | AD249: 0 | AE249: 0 | AF249: 885 | AG249: 8 | AH249: 7868 | AI249: 3436 | AJ249: 0 | AK249: 0 | AL249: 647 | AM249: 157 | AN249: 7270 | AO249: 2654 | AP249: 0 | AQ249: 0 | AR249: 419 | AS249: 28 | AT249: 5757 | AU249: 2374 | AV249: 0 | AW249: 0 | AX249: 416 | AY249: 26 | AZ249: 6336 | BA249: 2576 | BB249: 0 | BC249: 0 | BD249: 517 | BE249: 39 | BF249: 4673 | BG249: 2301 | BH249: 0 | BI249: 0 | BJ249: 477 | BK249: 47 | BL249: 4153 | BM249: 1877 | BN249: 0 | BO249: 0 | BP249: 323 | BQ249: 32 | BR249: 3618 | BS249: 1474 | BT249: 0 | BU249: 0 | BV249: 447 | BW249: 27
A250: LA GUAJIRA | B250: ANTIOQUIA | C250: Ciclo 4 Adultos | D250: 6122 | E250: 1107 | F250: 2095 | G250: 863 | H250: 828 | I250: 71 | J250: 6936 | K250: 1736 | L250: 2290 | M250: 786 | N250: 821 | O250: 0 | P250: 7407 | Q250: 2420 | R250: 1825 | S250: 573 | T250: 883 | U250: 0 | V250: 8299 | W250: 2719 | X250: 0 | Y250: 0 | Z250: 874 | AA250: 0 | AB250: 8930 | AC250: 3155 | AD250: 0 | AE250: 0 | AF250: 1175 | AG250: 30 | AH250: 9050 | AI250: 3337 | AJ250: 0 | AK250: 0 | AL250: 1003 | AM250: 189 | AN250: 8826 | AO250: 3035 | AP250: 0 | AQ250: 0 | AR250: 982 | AS250: 164 | AT250: 7249 | AU250: 2772 | AV250: 0 | AW250: 0 | AX250: 707 | AY250: 35 | AZ250: 7338 | BA250: 2967 | BB250: 0 | BC250: 0 | BD250: 999 | BE250: 42 | BF250: 6467 | BG250: 2869 | BH250: 0 | BI250: 0 | BJ250: 986 | BK250: 86 | BL250: 5696 | BM250: 2310 | BN250: 0 | BO250: 0 | BP250: 907 | BQ250: 56 | BR250: 4676 | BS250: 2073 | BT250: 0 | BU250: 0 | BV250: 847 | BW250: 34
A251: LORICA | B251: ANTIOQUIA | C251: Ciclo 5 Adultos | D251: 2047 | E251: 367 | F251: 963 | G251: 283 | H251: 480 | I251: 53 | J251: 2830 | K251: 687 | L251: 626 | M251: 393 | N251: 621 | O251: 0 | P251: 2537 | Q251: 1031 | R251: 645 | S251: 284 | T251: 681 | U251: 0 | V251: 2402 | W251: 816 | X251: 0 | Y251: 0 | Z251: 529 | AA251: 0 | AB251: 2726 | AC251: 1288 | AD251: 0 | AE251: 0 | AF251: 932 | AG251: 28 | AH251: 2149 | AI251: 1057 | AJ251: 0 | AK251: 0 | AL251: 424 | AM251: 15 | AN251: 1677 | AO251: 599 | AP251: 0 | AQ251: 0 | AR251: 551 | AS251: 40 | AT251: 3312 | AU251: 1227 | AV251: 0 | AW251: 0 | AX251: 627 | AY251: 98 | AZ251: 1746 | BA251: 1086 | BB251: 0 | BC251: 0 | BD251: 745 | BE251: 44 | BF251: 2071 | BG251: 861 | BH251: 0 | BI251: 0 | BJ251: 798 | BK251: 65 | BL251: 1416 | BM251: 587 | BN251: 0 | BO251: 0 | BP251: 698 | BQ251: 48 | BR251: 1308 | BS251: 501 | BT251: 0 | BU251: 0 | BV251: 649 | BW251: 28
A252: MAGANGUE | B252: ANTIOQUIA | C252: Ciclo 6 Adultos | D252: 5330 | E252: 896 | F252: 889 | G252: 436 | H252: 1417 | I252: 53 | J252: 5183 | K252: 1071 | L252: 1257 | M252: 267 | N252: 1259 | O252: 0 | P252: 5805 | Q252: 1298 | R252: 1216 | S252: 229 | T252: 1179 | U252: 0 | V252: 6464 | W252: 2203 | X252: 0 | Y252: 0 | Z252: 1293 | AA252: 0 | AB252: 6951 | AC252: 2089 | AD252: 0 | AE252: 0 | AF252: 1229 | AG252: 66 | AH252: 7848 | AI252: 2451 | AJ252: 0 | AK252: 0 | AL252: 1920 | AM252: 196 | AN252: 8083 | AO252: 3131 | AP252: 0 | AQ252: 0 | AR252: 1275 | AS252: 142 | AT252: 5736 | AU252: 2120 | AV252: 0 | AW252: 0 | AX252: 1228 | AY252: 51 | AZ252: 6498 | BA252: 1804 | BB252: 0 | BC252: 0 | BD252: 1821 | BE252: 110 | BF252: 5213 | BG252: 2112 | BH252: 0 | BI252: 0 | BJ252: 1881 | BK252: 89 | BL252: 5522 | BM252: 2102 | BN252: 0 | BO252: 0 | BP252: 1743 | BQ252: 83 | BR252: 4478 | BS252: 1741 | BT252: 0 | BU252: 0 | BV252: 1836 | BW252: 56
A253: MAGDALENA | B253: ANTIOQUIA | C253: Semestre introductorio NS | D253: 0 | E253: 0 | F253: 0 | G253: 0 | H253: 0 | I253: 0 | J253: 0 | K253: 0 | L253: 0 | M253: 0 | N253: 0 | O253: 0 | P253: 0 | Q253: 0 | R253: 0 | S253: 0 | T253: 0 | U253: 0 | V253: 0 | W253: 0 | X253: 0 | Y253: 0 | Z253: 0 | AA253: 0 | AB253: 0 | AC253: 0 | AD253: 0 | AE253: 0 | AF253: 0 | AG253: 0 | AH253: 0 | AI253: 0 | AJ253: 0 | AK253: 0 | AL253: 0 | AM253: 0 | AN253: 0 | AO253: 0 | AP253: 0 | AQ253: 0 | AR253: 0 | AS253: 0 | AT253: 0 | AU253: 0 | AV253: 0 | AW253: 0 | AX253: 0 | AY253: 0 | AZ253: 0 | BA253: 0 | BB253: 0 | BC253: 0 | BD253: 0 | BE253: 0 | BF253: 116 | BG253: 12 | BH253: 0 | BI253: 0 | BJ253: 0 | BK253: 0 | BL253: 123 | BM253: 7 | BN253: 0 | BO253: 0 | BP253: 3 | BQ253: 0 | BR253: 111 | BS253: 1 | BT253: 0 | BU253: 0 | BV253: 2 | BW253: 0
A254: MAICAO | B254: ANTIOQUIA | C254: Programa formación compl 1 NS | D254: 0 | E254: 0 | F254: 0 | G254: 0 | H254: 0 | I254: 0 | J254: 0 | K254: 0 | L254: 0 | M254: 0 | N254: 0 | O254: 0 | P254: 0 | Q254: 0 | R254: 0 | S254: 0 | T254: 0 | U254: 0 | V254: 0 | W254: 0 | X254: 0 | Y254: 0 | Z254: 0 | AA254: 0 | AB254: 0 | AC254: 0 | AD254: 0 | AE254: 0 | AF254: 0 | AG254: 0 | AH254: 0 | AI254: 0 | AJ254: 0 | AK254: 0 | AL254: 0 | AM254: 0 | AN254: 0 | AO254: 0 | AP254: 0 | AQ254: 0 | AR254: 0 | AS254: 0 | AT254: 0 | AU254: 0 | AV254: 0 | AW254: 0 | AX254: 0 | AY254: 0 | AZ254: 0 | BA254: 0 | BB254: 0 | BC254: 0 | BD254: 0 | BE254: 0 | BF254: 179 | BG254: 17 | BH254: 0 | BI254: 0 | BJ254: 1 | BK254: 0 | BL254: 76 | BM254: 9 | BN254: 0 | BO254: 0 | BP254: 0 | BQ254: 0 | BR254: 120 | BS254: 6 | BT254: 0 | BU254: 0 | BV254: 4 | BW254: 0
A255: MALAMBO | B255: ANTIOQUIA | C255: Programa formación compl 2 NS | D255: 0 | E255: 0 | F255: 0 | G255: 0 | H255: 0 | I255: 0 | J255: 0 | K255: 0 | L255: 0 | M255: 0 | N255: 0 | O255: 0 | P255: 0 | Q255: 0 | R255: 0 | S255: 0 | T255: 0 | U255: 0 | V255: 0 | W255: 0 | X255: 0 | Y255: 0 | Z255: 0 | AA255: 0 | AB255: 0 | AC255: 0 | AD255: 0 | AE255: 0 | AF255: 0 | AG255: 0 | AH255: 0 | AI255: 0 | AJ255: 0 | AK255: 0 | AL255: 0 | AM255: 0 | AN255: 0 | AO255: 0 | AP255: 0 | AQ255: 0 | AR255: 0 | AS255: 0 | AT255: 0 | AU255: 0 | AV255: 0 | AW255: 0 | AX255: 0 | AY255: 0 | AZ255: 0 | BA255: 0 | BB255: 0 | BC255: 0 | BD255: 0 | BE255: 0 | BF255: 169 | BG255: 18 | BH255: 0 | BI255: 0 | BJ255: 0 | BK255: 0 | BL255: 187 | BM255: 7 | BN255: 0 | BO255: 0 | BP255: 0 | BQ255: 0 | BR255: 165 | BS255: 4 | BT255: 0 | BU255: 0 | BV255: 3 | BW255: 0
A256: MANIZALES | B256: ANTIOQUIA | C256: Programa formación compl 3 NS | D256: 0 | E256: 0 | F256: 0 | G256: 0 | H256: 0 | I256: 0 | J256: 0 | K256: 0 | L256: 0 | M256: 0 | N256: 0 | O256: 0 | P256: 0 | Q256: 0 | R256: 0 | S256: 0 | T256: 0 | U256: 0 | V256: 0 | W256: 0 | X256: 0 | Y256: 0 | Z256: 0 | AA256: 0 | AB256: 0 | AC256: 0 | AD256: 0 | AE256: 0 | AF256: 0 | AG256: 0 | AH256: 0 | AI256: 0 | AJ256: 0 | AK256: 0 | AL256: 0 | AM256: 0 | AN256: 0 | AO256: 0 | AP256: 0 | AQ256: 0 | AR256: 0 | AS256: 0 | AT256: 0 | AU256: 0 | AV256: 0 | AW256: 0 | AX256: 0 | AY256: 0 | AZ256: 0 | BA256: 0 | BB256: 0 | BC256: 0 | BD256: 0 | BE256: 0 | BF256: 100 | BG256: 11 | BH256: 0 | BI256: 0 | BJ256: 0 | BK256: 0 | BL256: 66 | BM256: 6 | BN256: 0 | BO256: 0 | BP256: 0 | BQ256: 0 | BR256: 81 | BS256: 7 | BT256: 0 | BU256: 0 | BV256: 9 | BW256: 0
A257: MEDELLIN | B257: ANTIOQUIA | C257: Programa formación compl 4 NS | D257: 0 | E257: 0 | F257: 0 | G257: 0 | H257: 0 | I257: 0 | J257: 0 | K257: 0 | L257: 0 | M257: 0 | N257: 0 | O257: 0 | P257: 0 | Q257: 0 | R257: 0 | S257: 0 | T257: 0 | U257: 0 | V257: 0 | W257: 0 | X257: 0 | Y257: 0 | Z257: 0 | AA257: 0 | AB257: 0 | AC257: 0 | AD257: 0 | AE257: 0 | AF257: 0 | AG257: 0 | AH257: 0 | AI257: 0 | AJ257: 0 | AK257: 0 | AL257: 0 | AM257: 0 | AN257: 0 | AO257: 0 | AP257: 0 | AQ257: 0 | AR257: 0 | AS257: 0 | AT257: 0 | AU257: 0 | AV257: 0 | AW257: 0 | AX257: 0 | AY257: 0 | AZ257: 0 | BA257: 0 | BB257: 0 | BC257: 0 | BD257: 0 | BE257: 0 | BF257: 205 | BG257: 28 | BH257: 0 | BI257: 0 | BJ257: 0 | BK257: 0 | BL257: 238 | BM257: 18 | BN257: 0 | BO257: 0 | BP257: 0 | BQ257: 0 | BR257: 174 | BS257: 30 | BT257: 0 | BU257: 0 | BV257: 11 | BW257: 0
A258: META | B258: ANTIOQUIA | C258: Aceleración del Aprendizaje | D258: 982 | E258: 159 | F258: 641 | G258: 59 | H258: 0 | I258: 0 | J258: 1070 | K258: 168 | L258: 723 | M258: 24 | N258: 0 | O258: 0 | P258: 1110 | Q258: 207 | R258: 0 | S258: 4 | T258: 0 | U258: 0 | V258: 1144 | W258: 190 | X258: 0 | Y258: 0 | Z258: 0 | AA258: 0 | AB258: 1465 | AC258: 154 | AD258: 0 | AE258: 0 | AF258: 0 | AG258: 0 | AH258: 1351 | AI258: 144 | AJ258: 0 | AK258: 0 | AL258: 0 | AM258: 0 | AN258: 1290 | AO258: 137 | AP258: 0 | AQ258: 0 | AR258: 0 | AS258: 0 | AT258: 1093 | AU258: 119 | AV258: 0 | AW258: 0 | AX258: 0 | AY258: 0 | AZ258: 1116 | BA258: 103 | BB258: 0 | BC258: 0 | BD258: 0 | BE258: 0 | BF258: 1008 | BG258: 157 | BH258: 0 | BI258: 0 | BJ258: 0 | BK258: 0 | BL258: 1013 | BM258: 144 | BN258: 0 | BO258: 0 | BP258: 0 | BQ258: 0 | BR258: 970 | BS258: 155 | BT258: 0 | BU258: 0 | BV258: 0 | BW258: 0
A259: MONTERIA | B259: APARTADO | C259: Prejardín | D259: 0 | E259: 0 | F259: 0 | G259: 0 | H259: 25 | I259: 14 | J259: 0 | K259: 0 | L259: 0 | M259: 0 | N259: 15 | O259: 12 | P259: 0 | Q259: 0 | R259: 0 | S259: 0 | T259: 21 | U259: 17 | V259: 0 | W259: 0 | X259: 0 | Y259: 0 | Z259: 0 | AA259: 20 | AB259: 0 | AC259: 0 | AD259: 0 | AE259: 0 | AF259: 24 | AG259: 22 | AH259: 0 | AI259: 0 | AJ259: 0 | AK259: 0 | AL259: 65 | AM259: 18 | AN259: 0 | AO259: 0 | AP259: 0 | AQ259: 0 | AR259: 50 | AS259: 34 | AT259: 0 | AU259: 0 | AV259: 0 | AW259: 0 | AX259: 138 | AY259: 24 | AZ259: 0 | BA259: 0 | BB259: 0 | BC259: 0 | BD259: 30 | BE259: 23 | BF259: 0 | BG259: 0 | BH259: 0 | BI259: 0 | BJ259: 135 | BK259: 28 | BL259: 22 | BM259: 72 | BN259: 0 | BO259: 0 | BP259: 141 | BQ259: 31 | BR259: 101 | BS259: 121 | BT259: 0 | BU259: 0 | BV259: 111 | BW259: 24
